Workbook

Sheet Topics
A1: Descriptive Statistics: Tabular, Graphical and Numerical summaries of data.
A3: Chapter 2: Descriptive Statistics: Tabular and Graphical summaries of data.
A5: Chapter 3: Descriptive Statistics: Numerical Measures of data.
A7: Topics | B7: Sheet Name (link to jump)
A8: Notes | B8: =A8 -> Notes
A9: Terms | B9: =A9 -> Terms
A10: Measures of Location:
A11: Average = Typical Value
A12: Mean | B12: MeanPorS
A13: Median | B13: =A13 -> Median
A14: Mode | B14: Mode
A15: Skew and Mean, Median, Mode | B15: Skew
A16: Weighted Mean | B16: =A16 -> Weighted Mean
A17: Geometric Mean | B17: =A17 -> Geometric Mean
A18: Percentiles & Quartiles | B18: PercentiileAndQuartile
A19: Percentile Rank | B19: Rank
A20: Measures of Variability:
A21: Visual | B21: V(1)
A22: Range and Interquartile Range | B22: V(5)
A23: Variance | B23: V(6)
A24: Standard Deviation | B24: V(7)
A25: Coefficient of Variation | B25: V(9)
A26: Descriptive Statistics Data Analysis Tool | B26: DS
A27: Measures of Distribution of Shape:
A28: Remember Histograms | B28: Skew (2)
A29: Z-scores | B29: z(1)
A30: Chebyshev's Rule | B30: Chebyshev
A31: Empirical Rule | B31: Empirical Rule
A32: Detecting Outliers | B32: Outliers
A33: Five-Number Summaries and Box & Plots | B33: 5 N S
A34: Measures of Association:
A35: Covariance and Correlation Coefficient | B35: 2 Variable Scatter

Sheet Detailed Topic List
A1: Video16: | B1: Excel 2013 Statistical Analysis #16: Location: Mean, Median, Mode for Central Location
A2: Number | B2: Topic In Video and minute mark in Video. | C2: Time In Video | M2: Text
A3: =ROWS(A3:A$3) -> 1 | B3: =TRIM(REPLACE(M3,1,SEARCH(")",M3)+1,"")) -> Introduction to averages as typical values that represent a single value that represents all the data points | C3: =TRIM(LEFT(M3,SEARCH(")",M3))) -> (00:32) | M3: (00:32) Introduction to averages as typical values that represent a single value that represents all the data points
A4: =ROWS(A$3:A4) -> 2 | B4: =TRIM(REPLACE(M4,1,SEARCH(")",M4)+1,"")) -> Introduction to Location | C4: =TRIM(LEFT(M4,SEARCH(")",M4))) -> (01:17) | M4: (01:17) Introduction to Location
A5: =ROWS(A$3:A5) -> 3 | B5: Sample Statistics are point estimators for the population parameters | C5: (03:55) | M5: (03:55) Sample Statistics are point estimators for the population parameters
A6: =ROWS(A$3:A6) -> 4 | B6: Mean using AVERAGE function | C6: (05:28) | M6: (05:28) Mean using AVERAGE function
A7: =ROWS(A$3:A7) -> 5 | B7: Median using sorting or the MEDIAN function | C7: (09:16) | M7: (09:16) Median using sorting or the MEDIAN function
A8: =ROWS(A$3:A8) -> 6 | B8: Mode for Categorical data using COUNTIFS and MODE for quatitative data using MODE.SNGL. Discussion about Bi-modal and multiple modes and why using a PivotTable rather than MODE.SNGL is wise. | C8: (15:54) | M8: (15:54) Mode for Categorical data using COUNTIFS and MODE for quatitative data using MODE.SNGL. Discussion about Bi-modal and multiple modes and why using a PivotTable rather than MODE.SNGL is wise.
A9: =ROWS(A$3:A9) -> 7 | B9: Relationship between Mean, Median and Mode and skew. | C9: (21:42) | M9: (21:42) Relationship between Mean, Median and Mode and skew.
A11: Video17: | B11: Excel 2013 Statistical Analysis #17: Weighted Mean & SUMPRODUCT Function & Accounting Example
A12: Number | B12: Topic In Video and minute mark in Video. | C12: Time In Video | M12: Text
A13: =ROWS(A$13:A13) -> 1 | B13: =TRIM(REPLACE(M13,1,SEARCH(")",M13)+1,"")) -> Weighted Mean Quiz Score Example and Weighted Mean calculation using a Helper Column | C13: =TRIM(LEFT(M13,SEARCH(")",M13))) -> (00:14) | M13: (00:14) Weighted Mean Quiz Score Example and Weighted Mean calculation using a Helper Column
A14: =ROWS(A$3:A14) -> 12 | B14: =TRIM(REPLACE(M14,1,SEARCH(")",M14)+1,"")) -> SUMPRODUCT and SUM function for single Cell Formula | C14: =TRIM(LEFT(M14,SEARCH(")",M14))) -> (02:47) | M14: (02:47) SUMPRODUCT and SUM function for single Cell Formula
A15: =ROWS(A$3:A15) -> 13 | B15: Calculate Weighted Average for Accounting COGS and End Inventory | C15: (04:47) | M15: (04:47) Calculate Weighted Average for Accounting COGS and End Inventory
A16: =ROWS(A$3:A16) -> 14 | B16: alculate Weighted Average or “Expected Value” given a Percent Frequency Table | C16: (08:10) | M16: (08:10)Calculate Weighted Average or “Expected Value” given a Percent Frequency Table
A18: Video18: | B18: Excel 2013 Statistical Analysis #18: Geometric Mean, Average Compounding Rate GEOMEAN & RRI
A19: Number | B19: Topic In Video and minute mark in Video. | C19: Time In Video | M19: Text
A20: =ROWS(A$20:A20) -> 1 | B20: =TRIM(REPLACE(M20,1,SEARCH(")",M20)+1,"")) -> Intro to Geometric Mean or Average Compounding Rate | C20: =TRIM(LEFT(M20,SEARCH(")",M20))) -> (00:09) | M20: (00:09) Intro to Geometric Mean or Average Compounding Rate
A21: =ROWS(A$20:A21) -> 2 | B21: =TRIM(REPLACE(M21,1,SEARCH(")",M21)+1,"")) -> Growth Rate or Percentage Change Formulas and Growth Factor | C21: =TRIM(LEFT(M21,SEARCH(")",M21))) -> (00:52) | M21: (00:52) Growth Rate or Percentage Change Formulas and Growth Factor
A22: =ROWS(A$20:A22) -> 3 | B22: Why you should not use the Mean when dealing with Growth Rates | C22: (02:36) | M22: (02:36) Why you should not use the Mean when dealing with Growth Rates
A23: =ROWS(A$20:A23) -> 4 | B23: FV formula | C23: (03:15) | M23: (03:15) FV formula
A24: =ROWS(A$20:A24) -> 5 | B24: eometric Mean or Average Compounding Rate using GEOMEAN function when you are given a list of growth rates or Percentage Changes. Stock Price Example | C24: (04:48) | M24: (04:48)Geometric Mean or Average Compounding Rate using GEOMEAN function when you are given a list of growth rates or Percentage Changes. Stock Price Example
A25: =ROWS(A$20:A25) -> 6 | B25: Geometric Mean or Average Compounding Rate using Formula 2 and RRI function when you are given a begin amount (PV) and an end amount (FV)) and the number of periods. Stock Price Example | C25: (06:25) | M25: (06:25) Geometric Mean or Average Compounding Rate using Formula 2 and RRI function when you are given a begin amount (PV) and an end amount (FV)) and the number of periods. Stock Price Example
A26: =ROWS(A$20:A26) -> 7 | B26: Investment example | C26: (08:08) | M26: (08:08) Investment example
A27: =ROWS(A$20:A27) -> 8 | B27: Population Change example | C27: (09:00) | M27: (09:00) Population Change example
A29: Video19: | B29: Excel 2013 Statistical Analysis #19: Location: Percentile, Quartile, Rank and Percentile Rank
A30: Number | B30: Topic In Video and minute mark in Video. | C30: Time In Video | M30: Text
A31: =ROWS(A$31:A31) -> 1 | B31: =TRIM(REPLACE(M31,1,SEARCH(")",M31)+1,"")) -> Percentile where position is calculated with P%*(n+1) | C31: =TRIM(LEFT(M31,SEARCH(")",M31))) -> (00:24) | M31: (00:24) Percentile where position is calculated with P%*(n+1)
A32: =ROWS(A$31:A32) -> 2 | B32: =TRIM(REPLACE(M32,1,SEARCH(")",M32)+1,"")) -> PERCENTILE.EXC function | C32: =TRIM(LEFT(M32,SEARCH(")",M32))) -> (04:26) | M32: (04:26) PERCENTILE.EXC function
A33: =ROWS(A$31:A33) -> 3 | B33: What percentile tells you | C33: (05:18) | M33: (05:18) What percentile tells you
A34: =ROWS(A$31:A34) -> 4 | B34: QUARTILE.EXC function | C34: (06:09) | M34: (06:09) QUARTILE.EXC function
A35: =ROWS(A$31:A35) -> 5 | B35: PERCENTILERANK.EXC function | C35: (06:59) | M35: (06:59) PERCENTILERANK.EXC function
A36: =ROWS(A$31:A36) -> 6 | B36: Median | C36: (07:45) | M36: (07:45) Median
A37: =ROWS(A$31:A37) -> 7 | B37: Quartile 1, 2, 3 | C37: (08:48) | M37: (08:48) Quartile 1, 2, 3
A38: =ROWS(A$31:A38) -> 8 | B38: Quintiles | C38: (09:34) | M38: (09:34) Quintiles
A39: =ROWS(A$31:A39) -> 9 | B39: Deciles | C39: (10:03) | M39: (10:03) Deciles
A40: =ROWS(A$31:A40) -> 10 | B40: Percentile rank for whole data set | C40: (10:24) | M40: (10:24) Percentile rank for whole data set
A41: =ROWS(A$31:A41) -> 11 | B41: PERCENTILE.INC, QUARTILE.INC functions | C41: (11:24) | M41: (11:24) PERCENTILE.INC, QUARTILE.INC functions
A42: =ROWS(A$31:A42) -> 12 | B42: Five Number Summary | C42: (14:13) | M42: (14:13) Five Number Summary
A43: =ROWS(A$31:A43) -> 13 | B43: Big Data Set to see that PERCENTILE.INC and PERCENTILE.EXC are very close if not exactly the same. | C43: (14:40) | M43: (14:40) Big Data Set to see that PERCENTILE.INC and PERCENTILE.EXC are very close if not exactly the same.
A44: =ROWS(A$31:A44) -> 14 | B44: Ranking. RANK,EQ and RANK.AVE functions | C44: (16:29) | M44: (16:29) Ranking. RANK,EQ and RANK.AVE functions
A45: =ROWS(A$31:A45) -> 15 | B45: PERCENTILERANK.INC function | C45: (18:46) | M45: (18:46) PERCENTILERANK.INC function
A46: =ROWS(A$31:A46) -> 16 | B46: Data Ribbon Tab, Analysis group, Data Analysis, Rank and Percentile feature | C46: (19:00) | M46: (19:00) Data Ribbon Tab, Analysis group, Data Analysis, Rank and Percentile feature
A48: Video20: | B48: Excel 2013 Statistical Analysis #20: Standard Deviation: How Fairly Does Mean Represent Data Points?
A49: Number | B49: Topic In Video and minute mark in Video. | C49: Time In Video | M49: Text
A50: =ROWS(A$50:A50) -> 1 | B50: =TRIM(REPLACE(M50,1,SEARCH(")",M50)+1,"")) -> Three data sets and charts of each to illustrate the concept of Variability, or Dispersion, or Spread in the Data. | C50: =TRIM(LEFT(M50,SEARCH(")",M50))) -> (00:09) | M50: (00:09) Three data sets and charts of each to illustrate the concept of Variability, or Dispersion, or Spread in the Data.
A51: =ROWS(A$50:A51) -> 2 | B51: =TRIM(REPLACE(M51,1,SEARCH(")",M51)+1,"")) -> Set 1 (Hours Worked per Week Data), we ask the question: How fairly does the mean represent its data points? | C51: =TRIM(LEFT(M51,SEARCH(")",M51))) -> (00:20) | M51: (00:20) Set 1 (Hours Worked per Week Data), we ask the question: How fairly does the mean represent its data points?
A52: =ROWS(A$50:A52) -> 3 | B52: Set 2 (Seattle and Burien Gas Prices), we ask the question: How volatile are Prices? | C52: (02:37) | M52: (02:37) Set 2 (Seattle and Burien Gas Prices), we ask the question: How volatile are Prices?
A53: =ROWS(A$50:A53) -> 4 | B53: Set 3 (Supplier Days To Fill Order Data), we ask the question: How reliable is a Supplier? | C53: (03:17) | M53: (03:17) Set 3 (Supplier Days To Fill Order Data), we ask the question: How reliable is a Supplier?
A54: =ROWS(A$50:A54) -> 5 | B54: Calculate Range: Max - Min | C54: (04:37) | M54: (04:37) Calculate Range: Max - Min
A55: =ROWS(A$50:A55) -> 6 | B55: Calculate Interquartile range: Quartile 3 – Quartile 1 = Middle 50% of the values | C55: (05:50) | M55: (05:50) Calculate Interquartile range: Quartile 3 – Quartile 1 = Middle 50% of the values
A56: =ROWS(A$50:A56) -> 7 | B56: Variance and Standard Deviation Math Formulas for populations and samples. | C56: (07:17) | M56: (07:17) Variance and Standard Deviation Math Formulas for populations and samples.
A57: =ROWS(A$50:A57) -> 8 | B57: Calculate Sample Standard Deviation Long Hand and with STDEV.S for Data Set 3 (Supplier Days To Fill Order Data), were we ask the question: How reliable is a Supplier? | C57: (08:13) | M57: (08:13) Calculate Sample Standard Deviation Long Hand and with STDEV.S for Data Set 3 (Supplier Days To Fill Order Data), were we ask the question: How reliable is a Supplier?
A58: =ROWS(A$50:A58) -> 9 | B58: Alternative Formula for Sample Standard Deviation | C58: (16:45) | M58: (16:45) Alternative Formula for Sample Standard Deviation
A59: =ROWS(A$50:A59) -> 10 | B59: Mean Absolute Error Formula | C59: (17:05) | M59: (17:05) Mean Absolute Error Formula
A60: =ROWS(A$50:A60) -> 11 | B60: Calculate Sample Standard Deviation with STDEV.S for Data Set 1, (Hours Worked per Week Data) were we ask the question: How fairly does the mean represent its data points? | C60: (17:20) | M60: (17:20) Calculate Sample Standard Deviation with STDEV.S for Data Set 1, (Hours Worked per Week Data) were we ask the question: How fairly does the mean represent its data points?
A61: =ROWS(A$50:A61) -> 12 | B61: Calculate Sample Standard Deviation with STDEV.S for Set 2 (Seattle and Burien Gas Prices), were we ask the question: How volatile are Prices? | C61: (18:06) | M61: (18:06) Calculate Sample Standard Deviation with STDEV.S for Set 2 (Seattle and Burien Gas Prices), were we ask the question: How volatile are Prices?
A62: =ROWS(A$50:A62) -> 13 | B62: Coefficient of Variation | C62: (19:25) | M62: (19:25) Coefficient of Variation
A63: =ROWS(A$50:A63) -> 14 | B63: Using Descriptive Statistics feature to quickly calculate Numerical Measures like Mean, Median, Mode, Standard Deviation and more | C63: (23:25) | M63: (23:25) Using Descriptive Statistics feature to quickly calculate Numerical Measures like Mean, Median, Mode, Standard Deviation and more
A64: =ROWS(A$50:A64) -> 15 | B64: X-Y Scatter Chart to Visually Portray Variation or Dispersion or Spread in the Data. | C64: (24:52) | M64: (24:52) X-Y Scatter Chart to Visually Portray Variation or Dispersion or Spread in the Data.
A65: =ROWS(A$50:A65) -> 16 | B65: Summary of topics in video | C65: (25:09) | M65: (25:09) Summary of topics in video
A67: Video21: | B67: Excel 2013 Statistical Analysis #21: SKEW Function and Asymmetry in a Distribution of Data Points
A68: Number | B68: Topic In Video and minute mark in Video. | C68: Time In Video | M68: Text
A69: =ROWS(A$69:A69) -> 1 | B69: This video covers skew in a distribution of data points and the SKEW function. | C69: (00:08) | M69: This video covers skew in a distribution of data points and the SKEW function.
A71: Video22: | B71: Excel 2013 Statistical Analysis #22: Z-Score = # of Standard Deviations, Chebshev’s &Empirical Rule
A72: Number | B72: Topic In Video and minute mark in Video. | C72: Time In Video | M72: Text
A73: =ROWS(A$73:A73) -> 1 | B73: =TRIM(REPLACE(M73,1,SEARCH(")",M73)+1,"")) -> Calculate z score. Z Score is the Number of Standard Deviations a particular value is away from the mean. Deviation divided by Standard Deviation formula or STANDARDIZE function. | C73: =TRIM(LEFT(M73,SEARCH(")",M73))) -> (00:09) | M73: (00:09) Calculate z score. Z Score is the Number of Standard Deviations a particular value is away from the mean. Deviation divided by Standard Deviation formula or STANDARDIZE function.
A74: =ROWS(A$73:A74) -> 2 | B74: =TRIM(REPLACE(M74,1,SEARCH(")",M74)+1,"")) -> Chebshev’s Rule: 5 Examples | C74: =TRIM(LEFT(M74,SEARCH(")",M74))) -> (08:15) | M74: (08:15) Chebshev’s Rule: 5 Examples
A75: =ROWS(A$73:A75) -> 3 | B75: Empirical Rule: 12 Examples | C75: (14:03) | M75: (14:03) Empirical Rule: 12 Examples
A77: Video23: | B77: Excel 2013 Statistical Analysis #22: Z-Score = # of Standard Deviations, Chebshev’s &Empirical Rule
A78: Number | B78: Topic In Video and minute mark in Video. | C78: Time In Video | M78: Text
A79: =ROWS(A$79:A79) -> 1 | B79: =TRIM(REPLACE(M79,1,SEARCH(")",M79)+1,"")) -> Five Number Summary: Min, Quartile 1, Quartile 2, Quartile 3 and Max | C79: =TRIM(LEFT(M79,SEARCH(")",M79))) -> (00:09) | M79: (00:09) Five Number Summary: Min, Quartile 1, Quartile 2, Quartile 3 and Max
A80: =ROWS(A$79:A80) -> 2 | B80: =TRIM(REPLACE(M80,1,SEARCH(")",M80)+1,"")) -> Box Plots: Visual Summary of the Five Number Summary. How to calculate numbers with Excel and draw chart on paper | C80: =TRIM(LEFT(M80,SEARCH(")",M80))) -> (02:41) | M80: (02:41) Box Plots: Visual Summary of the Five Number Summary. How to calculate numbers with Excel and draw chart on paper
A81: =ROWS(A$79:A81) -> 3 | B81: +/- 3 Standard Deviation Outliers | C81: (07:55) | M81: (07:55) +/- 3 Standard Deviation Outliers
A82: =ROWS(A$79:A82) -> 4 | B82: ABS function to find outliers | C82: (08:37) | M82: (08:37) ABS function to find outliers
A83: =ROWS(A$79:A83) -> 5 | B83: +/- 3 Standard Deviation Outliers, COUNTIFS to count TRUE values | C83: (09:17) | M83: (09:17) +/- 3 Standard Deviation Outliers, COUNTIFS to count TRUE values
A84: =ROWS(A$79:A84) -> 6 | B84: +/- 3 Standard Deviation Outliers, Conditional Formatting to highlight Outliers | C84: (10:08) | M84: (10:08) +/- 3 Standard Deviation Outliers, Conditional Formatting to highlight Outliers
A86: Video24: | B86: Excel 2013 Statistical Analysis #24: Numerical Measures: Covariance and Correlation Coefficient
A87: Number | B87: Topic In Video and minute mark in Video. | C87: Time In Video | M87: Text
A88: =ROWS(A$88:A88) -> 1 | B88: =TRIM(REPLACE(M88,1,SEARCH(")",M88)+1,"")) -> Review of different X-Y Scatter | C88: =TRIM(LEFT(M88,SEARCH(")",M88))) -> (00:15) | M88: (00:15) Review of different X-Y Scatter
A89: =ROWS(A$88:A89) -> 2 | B89: =TRIM(REPLACE(M89,1,SEARCH(")",M89)+1,"")) -> Add Xbar Line and Ybar Line to X Y Scatter Chart to help interpret how Covariance is calculated and why the math behind the calculation makes sense | C89: =TRIM(LEFT(M89,SEARCH(")",M89))) -> (02:42) | M89: (02:42) Add Xbar Line and Ybar Line to X Y Scatter Chart to help interpret how Covariance is calculated and why the math behind the calculation makes sense
A90: =ROWS(A$88:A90) -> 3 | B90: Formulas and Calculations for Covariance and Correlation Coefficient (Long Hand) | C90: (08:36) | M90: (08:36) Formulas and Calculations for Covariance and Correlation Coefficient (Long Hand)
A91: =ROWS(A$88:A91) -> 4 | B91: COVARIANCE.S Excel function for calculation Sample Covariance | C91: (12:38) | M91: (12:38) COVARIANCE.S Excel function for calculation Sample Covariance
A92: =ROWS(A$88:A92) -> 5 | B92: Correlation Coefficient & PEARSON Excel function for calculation Correlation Coefficient | C92: (13:41) | M92: (13:41) Correlation Coefficient & PEARSON Excel function for calculation Correlation Coefficient
A93: =ROWS(A$88:A93) -> 6 | B93: CORREL Excel function for calculation Correlation Coefficient | C93: (16:11) | M93: (16:11) CORREL Excel function for calculation Correlation Coefficient
A94: =ROWS(A$88:A94) -> 7 | B94: Summary | C94: (18:50) | M94: (18:50) Summary

Sheet Keyboards
A1: Primary Key | B1: Action | C1: Keyboard Short Cut | D1: Category
A2: 1 | B2: Move the Active Worksheet up or down | C2: Ctrl + PageUp/PageDown | D2: Navigation
A3: 2 | B3: Put content in Cell and move selected Cell down | C3: Enter | D3: Entering Data in a Cell
A4: 3 | B4: Put content in Cell and keep Cell selected | C4: Ctrl + Enter | D4: Entering Data in a Cell
A5: 4 | B5: Undo | C5: Ctrl + Z | D5: Basic
A6: 5 | B6: Copy | C6: Ctrl + C | D6: Basic
A7: 6 | B7: Paste | C7: Ctrl + V | D7: Basic
A8: 7 | B8: Cut | C8: Ctrl + X | D8: Basic
A9: 8 | B9: Bold | C9: Ctrl + B | D9: Basic
A10: 9 | B10: Put Cell in Edit Mode | C10: F2 | D10: Formula Edit Mode Keys
A11: 10 | B11: Arrow to point to a formula Cell Reference | C11: Arrow Keys | D11: Formula Edit Mode Keys
A12: 11 | B12: SUM function | C12: Alt + = | D12: Formula Edit Mode Keys
A13: 12 | B13: Delete Cell content | C13: Delete | D13: Basic
A14: 13 | B14: Lock Cell Reference (make Absolute) | C14: F4 | D14: Formula Edit Mode Keys
A15: 14 | B15: Put content in Cell and move selected Cell to right | C15: Tab | D15: Entering Data in a Cell
A16: 15 | B16: Put content in Cell and move selected Cell to left | C16: Shift + Tab | D16: Entering Data in a Cell
A17: 16 | B17: Jump to bottom of data set (Current Range) | C17: Ctrl + Arrow | D17: Navigation
A18: 17 | B18: Select to bottom of data set (Current Range) | C18: Ctrl + Shift + Enter | D18: Formula Edit Mode Keys
A19: 18 | B19: Put content in Cell and move selected Cell up | C19: Shift + Enter | D19: Entering Data in a Cell
A20: 19 | B20: Jump Back to Active Cell | C20: Ctrl + Backspace | D20: Formula Edit Mode Keys
A21: 20 | B21: Open Create PivotTable dialog box | C21: Alt, N, V | D21: PivotTable
A22: 21 | B22: Format Chart Element with Task Pane | C22: Ctrl + 1 | D22: Chart
A23: 22 | B23: Open Format Cells dialog box | C23: Ctrl + 1 | D23: Format Cells
A24: 23 | B24: Jump to Cell A1 | C24: Ctrl + Home | D24: Navigation
A25: 24 | B25: Jump to last Cell used | C25: Ctrl + End | D25: Navigation
A26: 25 | B26: Open Control Panel | C26: Window + Pause/Break | D26: Window Key
A27: 26 | B27: Show Desktop | C27: Window + D or Window + M | D27: Window Key
A28: 27 | B28: Select Whole Table (Select Current Region) | C28: Ctrl + * (on Number Pad) or Ctrl + Shift + 8 | D28: Selection
A29: 28 | B29: Select Ranges not next to each other (noncontiguous ranges) | C29: Ctrl + Mouse Click | D29: Selection
A30: 29 | B30: Open Print Options and Print Preview view | C30: Ctrl + P | D30: Basic
A31: 30 | B31: Close Print Options and Print Preview view | C31: Esc | D31: Basic
A32: 31 | B32: New Workbook File | C32: Ctrl + N | D32: Basic
A33: 32 | B33: Save As Dialog Box | C33: F12 | D33: Basic
A34: 33 | B34: Find and Replace | C34: Ctrl + Home | D34: Basic
A35: 34

Sheet Notes
A1: Measures of Location:
A2: Average = Typical Value = Measure of central location
A3: "Typical Values" calculated so that we have one value that can represent all the data points.
A4: Mean
A5: Arithmetic Mean: Add them up and divide by the count
A6: Good for quantitative data when there are not extreme values - extreme values can make the mean look too big or too small (Median more representative of a typical value in that case)
A7: Use AVERAGE function
A8: Median
A9: Sort, then take the one in the middle. If count odd, take one in middle, if even, average middle two.
A10: Marks the point in the sorted list (an actual number) where 50% of the numbers are above and 50% of the numbers are below
A11: Good for quantitative data when there are extreme values (like house prices and salaries)
A12: Use MEDIAN function
A13: Mode
A14: One that occurs most frequently (can be bimodal, multimodal)
A15: Good for Categorical Data (Nominal and Ordinal)
A16: Use MODE.SNGL for quantitative data and COUNTIF or PivotTable for Categorical or quantitative data. MODE.SNGL will only show 1 mode if the data set is bi-modal or multi-modal. MODE.MULT can be used for multiple modes.
A17: Weighted Mean
A18: Fast way to calculate Mean when you have a Frequency Table or Relative Frequency Table
A19: Use SUMPRODUCT(Values, Weights)/SUM(Weights)
A20: Geometric Mean
A21: Often used when you have "Growth Rates" or "Rates of Change" | D21: "Rates of Change" and "Growth Rates" are synonyms
A22: Growth Rates or Rate of Change = % change from one period to the next
A23: Growth Factor = Growth Rate + 1 = Factor you can multiply by Begin Value to get End Value. Growth Factor ALWAYS >= 0
A24: MUST use Geometric Mean (not arithmetic mean) if you want the True "Average" Compounding Rate per Period
A25: Arithmetic Mean overestimates
A26: Arithmetic Mean is for additive processes; Geomean is for multiplicative processes
A27: In finance, when calculating End Values, use Geometric Mean; however, arithmetic mean is used in some situations like for Standard Deviation, Correlation, and other calculations that do not require True "Average" Compounding Rate per Period.
A28: Geometric Mean Formula 1:
A29: Use when you are given all the Growth Rates
A30: Written description: nth root of the product of n values (values = growth rates + 1, n = Number of Periods), then subtract 1
A31: In Excel use:
A32: GEOMEAN(RangeOfGrowthRates+1) = Growth Factor
A33: GEOMEAN(RangeOfGrowthRates+1)-1 = Growth Rates or Rate of Change
A34: Geometric Mean Formula 2:
A35: Use when you are given the Begin Value, End Value and the number of periods
A36: (EndValue/BegValue)^(1/NumberOfPeriods)-1
A37: RRI(NumberOfPeriods,BegValue, EndValue) or RRI(n,PV,FV)
A38: Percentiles/Quartiles
A39: Marker that divides the sorted data set and says what % are above and what % are below
A40: Percentiles
A41: Provides information about how the data are spread over an interval from smallest to largest value.
A42: Marks the point in the ascending sorted list (an actual number) where approximately X% of the numbers are below and approximately 1-X% of the numbers are above the marking point.
A43: For quantitative data without a lot of duplicates
A44: Use PERCENTILE.EXC function, which uses formula: P%*(n+1) to get the position
A45: Note: There is NOT just one way to calculate percentiles. Percentile calculations are estimations, this is why we use the word "approximate" when we talk about percentiles
A46: Quartiles
A47: Create 3 Value Marking Points to divide data set into 4 parts
A48: Use QUARTILE.EXC function
A49: Percentile Rank
A50: PERCENTRANK.EXC opposite of PERCENTILE.EXC. Whereas PERCENTILE.EXC calculates the marker value when you give it a P%, PERCENTRANK.EXC calculates P% when you give it a value.
A51: Rank
A52: Counting, 1st, 2nd, 3rd for "Biggest to Smallest" or "Smallest to Biggest"
A53: Use RANK.AVG or RANK.EQ functions
A55: Variability
A56: Dispersion
A57: Spread In Data
A58: How Spread Out Is Data?
A59: Are the Data Points Clustered Around the Mean?
A60: Does the Mean Fairly Represent the Data Points?
A61: Range
A62: Max - Min
A63: Simple to calculate. Sensitive to extreme values
A64: Interquartile Range
A65: Quartile 3 - Quartile 1
A66: The range for the middle 50% of the data. It overcomes the sensitivity to extreme values
A67: Deviation
A68: How far one datum is from the mean. "How far above or below the mean is the particular value?"
A69: "Deviation about the mean"
A70: For any data set, the sum of the deviations is always zero!!!! This is why mathematically, we either square (Variance or Standard Deviation) or take the absolute value (Mean Absolute Value)
A71: Variance
A72: A Numerical Measure that says how much variability there is in the data points
A73: Variance uses all the data points, not just some like Range and Interquartile Range
A74: Variance has squared units, which makes interpreting it difficult. Standard Deviation undoes the squared units and is thus easier to interpret and is more commonly used
A75: Use VAR.P function for population data and VAR.S for sample data.
A76: Standard Deviation = SD
A77: Standard Deviation uses all the data points, not just some like Range and Interquartile Range
A78: Standard Deviation does not have squared units (like Variance) and is thus easier to interpret; the standard deviation has the same units as the data!!
A79: Population SD = "little sigma" = s ; Sample SD = s
A80: The sample standard deviation is a point estimator of the population standard deviation
A81: Interpretation of Standard Deviation:
A82: A Numerical Measure that says how much variability there is in the data points
A83: Standard Deviation Is Like An Average Of The Deviations
A84: Standard Deviation tells us how fairly the mean represents its data points
A85: Standard Deviation tells us how clustered the data points are around the mean
A86: For financial assets standard deviation is a measure of risk or fluctuation in asset value
A87: Use STDEV.P function for population data and STDEV.S for sample data.
A88: Coefficient of Variation
A89: Coefficient of Variation converts the SD to SD per unit of Mean
A90: Formula = SD/Mean
A91: For every one unit of mean, what is the SD?
A92: If you add Percent Number Formatting, it shows SD as a percentage of Mean
A93: What percentage is SD in relation to the Mean?
A94: Use Coefficient Of Variation to compare:
A95: 1) Data in different units.
A96: or
A97: 2) Data in the same units, but the means are far apart.
A99: Distribution, Relative Location, Outliers
A100: Shape of Distribution
A101: Histograms
A102: Histograms show the shape of the distribution visually.
A103: A few short column heights to the left means skew negative of left
A104: A few tall column heights to the right means skew positive or right
A105: Bell shape or Symmetrical Shape indicates no skew
A106: Skew
A107: Skew measures the shape of the distribution
A108: Use SKEW function
A109: Left or Negative Skew
A110: A few small values pull the Mean down away from Median
A111: Mean usually less than Median
A112: Right or Positive Skew
A113: A few big values pull the Mean up away from Median
A114: Mean usually greater than Median
A115: Bell Shape or Symmetrical Shape - No Skew
A116: Mean and Median equal
A117: Relative Location =
A118: z Score = Standardized Value
A119: Z score measures the relative location of a particular x in the data set (as compared to the mean), in units of standard deviation.
A120: Z Score tells you "How Many Standard Deviations The Particular Value Is Away From The Mean". 1? -1? 1.5? 0?
A121: zi < 0, value below mean zi > 0, value above mean zi = 0, value is equal to mean
A122: Observations in 2 different data sets that have the same z-score are said to have the same relative location or the same number of standard deviations away from the mean.
A123: z = (Particular Value - Mean)/StandardDeviation = zi = (xi-Xbar)/s
A124: Use STANDARDIZE function
A125: Proportion of data values that lie between +/- a given number of standard deviations
A126: Chebyshev's Theorem
A127: Russian Mathematician, P.L. Chebyshev (1821-1894)
A128: Chebyshev's Theorem
A129: Allows us to make a statement about the proportion of data values that must be within a specified number of standard deviations of the mean. For example: 75% of the students must have a test score between 34 and 86
A130: Rule: At least (1 - 1/z^2) of the values in any data set will be within z standard deviations of the mean, where z is any value greater than 1.
A131: Real power of this Theorem: Applies to any data set regardless of the shape of the distribution of the data!
A132: At least 0.75, or 75.00%, of the data values must be within z = 2 standard deviations of the mean
A133: At least 0.89, or 89.00%, of the data values must be within z = 3 standard deviations of the mean
A134: At least 0.94, or 94.00%, of the data values must be within z = 4 standard deviations of the mean
A135: Empirical Rule:
A136: When data has a Symmetric Distribution or Normal Distribution or Bell Shaped Distribution, the Empirical Rule Can be sued to determine the percentage of data values that must be within a specified number of standard deviations of the mean
A137: Approximately 68% of the data values will be within 1 Standard Deviation of the Mean
A138: Approximately 95% of the data values will be within 2 Standard Deviations of the Mean
A139: Approximately 99% of the data values (almost all the data) will be within 3 Standard Deviations of Mean
A140: Detecting Outliers
A141: Outlier
A142: An outlier is an unusually small or unusually large value in a data set.
A143: +/- 3 Z Scores Outlier Rule
A144: A data value with a z-score less than -3 or greater than +3 might be considered an outlier.
A145: It might be: 1)an incorrectly recorded data value 2)a data value that was incorrectly included in the data set 3) a correctly recorded data value that belongs in the data set
A146: ABS is absolute Value function in Excel (Distance away from zero)
A147: 5 Number Summary
A148: 5 Number Summary Provides information like:
A149: Minimum Value
A150: Maximum Value
A151: Median
A152: Range, Max - Min
A153: Quartiles
A154: Interquartile Range = Qart 3 - Quart 1 = range for middle 50%
A155: Basis for building Box Plot
A156: Box Plots and Outliers Rule of 1.5
A157: Use 5 Number Summary and create hand draw chart Box Plot:
A158: 1) Horizontal Axis lists range of numbers from smallest to biggest
A159: 2) Box or rectangle is drawn with box ends at Quartile 1 and Quartile 2
A160: 3) Vertical line drawn at Quartile 2 (Median)
A161: 4) Vertical lines for Lower and Upper Limits that indicate that anything past is an Outlier. Lower Limit = Quartile 1 - 1.5*Interquartile Range, or 0. Upper Limit = Quartile 3 + 1.5*Interquartile Range **Although for this class we will use 1.5, other multiples can be used (see note on "5 Number & Box Blot" Worksheet
A162: 5) "Whiskers", lines, are drawn from Q1 to Min and Q3 to Max
A163: 6) Outliers can be drawn as an "X", "dot" or "small box"
A164: Example:
A167: Measures of Association or Linear Relationship Between 2 Variables
A168: Covariance
A169: Covariance measures the strength of the linear relationship between 2 variables. Positive values indicate a positive relationship; negative, a negative relationship
A170: Sample Covariance = sxy = (∑(xi - Xbar)*(yi - Ybar))/(n-1)
A171: Use COVARIANCE.S function
A172: Population Covariance = sxy = (∑(xi - µx)*(yi - µy))/N
A173: Use COVARIANCE.P function
A174: Understanding how Covariance works:
A175: Plot a Mean Line for X and a Mean Line for Y to divide chart into 4 quadrants
A176: When preponderance of the "X-Deviations Times Y-Deviations" are positive (X-Y markers are quadrant 1 and 3), the line will show a positive liner association or relationship: "As X Increases, Y Increase"
A177: When preponderance of the "X-Deviations Times Y-Deviations" are negative (X-Y markers are quadrant 2 and 4), the line will show a negative liner association or relationship: "As X Increases, Y decrease"
A178: When preponderance of the "X-Deviations Times Y-Deviations" are neither positive or negative (X-Y markers in all quadrants), the line will show no liner association or relationship
A179: Covariance measures the strength of the linear relationship between 2 variables, but has a problem with units. Because the value of covariance depends on units, we may get larger or smaller covariances simply because we change the units from inches to feet or feet to inches. To overcome this problem with units, we can divide the covariance by the product of the standard deviation to the x and y values, sx * sy , to get a relative measure of strength of association or relationship between 2 variables or a measure of strength per unit of standard deviation, sx * sy . This measure is called Correlation Coefficient
A180: Correlation Coefficient = Pearson Product Moment Correlation Coefficient
A181: Correlation Coefficient measure the strength and direction of linear association or relationship.
A182: Values range from -1, perfect negative linear relationship (all X-Y markers on regression line) to +1, perfect positive linear relationship (all X-Y markers on regression line)
A183: Values close to +1 show strong positive linear association/relationship Values close to -1 show strong negative linear association/relationship The closer to zero the weaker the relationship The closer the X-Y markers are to the regression line, the stronger the relationship The more the X-Y markers deviate from the regression line, the weaker the relationship
A184: Note: Because the Correlation Coefficient measure the strength and direction of a LINEAR relationship, not nonlinear relationships. If you get a correlation measure near zero, it may be true that there is a very weak linear relationship, but that does not say that there is not some other sort of non-linear relationship.
A185: Sample Correlation Coefficient = rxy = sxy /(sx * sy)
A186: Use PEARSON or CORREL functions
A187: Population Correlation Coefficient rxy = sxy /(sx * sy) , r is pronounced "Row"
A188: Use PEARSON or CORREL functions
A189: Sample Correlation Coefficient, rxy , is a point estimator of the Population Correlation Coefficient, rxy
A190: Correlation is not causation.
A192: Excel Notes:
A193: Descriptive Statistics Tool to quickly calculate many statistics quickly
A194: Data Ribbon Tab, Analysis group, Data Analysis button, select "Descriptive Statistics", in Input Range text box select column of values and Field Name, select dialog button for "Columns", check the check box for "Labels in First Row", select output location you want, check the check box for "Summary Statistics"
A195: This feature calculates many statistics quickly, but the output in not linked to the source data cells and will NOT update if source data changes, like formulas would
A196: Excel Box Plot Notes:
A197: 1) Calculate 5 number summary 2) Calculate the difference between each of the values: 1) Min - 0, 2) Q1 - MIN, 3) Q2 - Q1, 4) Q3 - Q3, 5) Max - Q3 3) Create Stacked Bar Chart 4) Switch Row and Column 5) Add fill = "No Fill" to 1st two parts of bar and last 6) Add Error Bar to 2nd part of bar with Minus / Custom / Negative = Quartile 1 - MIN 7) Add Error Bar to 4th part of bar with Plus / Custom / Positive = Max - Q3 8) Calculate Mean 9) Add Mean to Chart 10) Change that data point to X - Y Scatter 11) Edit Source data for X - Y Scatter and change X to Mean Value and Y to 1.

Sheet Location
A1: Test
A2: 31 | C2: You: | D2: 79
A3: 47
A4: 54 | C4: Are you above average?
A5: 55 | C5: Mean
A6: 57
A7: 58 | C7: ="Are you above the "&D8*100&"th percentile?" -> Are you above the 75th percentile?
A8: 60 | C8: ="Percentile Marker for "&TEXT(D8,"0%") -> Percentile Marker for 75% | D8: 0.75
A9: 61 | C9: ="Marker for "&D8*100&"th percentile:" -> Marker for 75th percentile:
A10: 63
A11: 68
A12: 68
A13: 68
A14: 72
A15: 76
A16: 78
A17: 79
A18: 84
A19: 89
A20: 91
A21: 95

Sheet Location (an)
A1: Test
A2: 31 | C2: You: | D2: 79
A3: 47
A4: 54 | C4: Are you above average?
A5: 55 | C5: Mean | D5: =AVERAGE(A2:A21) -> 67.7
A6: 57
A7: 58 | C7: ="Are you above the "&D8*100&"th percentile?" -> Are you above the 75th percentile?
A8: 60 | C8: ="Percentile Marker for "&TEXT(D8,"0%") -> Percentile Marker for 75% | D8: 0.75
A9: 61 | C9: ="Marker for "&D8*100&"th percentile:" -> Marker for 75th percentile: | D9: =_xlfn.PERCENTILE.EXC(A2:A21,D8) -> 78.75
A10: 63
A11: 68
A12: 68
A13: 68
A14: 72
A15: 76
A16: 78
A17: 79
A18: 84
A19: 89
A20: 91
A21: 95

Sheet Terms
A1: Population: The set of all elements of interest in a particular study
A2: Sample: A subset of the population
A3: Inferential Statistics: The process of using data obtained from a sample to make estimates and test hypotheses about the characteristics/attribute of a population
A4: If the measures are computed for data from a sample, they are called sample statistics.
A5: If the measures are computed for data from a population, they are called population parameters.
A6: In Statistical Inference, a sample statistic is referred to as the point estimator of the corresponding population parameter.
A7: Since it is usually impossible to get all the numbers for a population, we have to use sample statistics to reasonably estimate the population parameter!
A8: Example: calculate an sample average of number of salmon in Puget Sound and use it as the estimate of the population average of number of salmon in Puget Sound - "We can't count all the fish in the sea!!"
A10: More about Point estimation in chapter 7.

Sheet MeanPorS
A1: Particular X | B1: Population Data | D1: Particular X | E1: Sample Data
A2: X1 | B2: 15 | D2: X1 | E2: =INDEX($B$2:$B$16,(ROWS(E$2:E2)-1)*2+1) -> 15
A3: X2 | B3: 10 | D3: X2 | E3: =INDEX($B$2:$B$16,(ROWS(E$2:E3)-1)*2+1) -> 14
A4: X3 | B4: 14 | D4: X3 | E4: =INDEX($B$2:$B$16,(ROWS(E$2:E4)-1)*2+1) -> 14
A5: X4 | B5: 13 | D5: X4 | E5: =INDEX($B$2:$B$16,(ROWS(E$2:E5)-1)*2+1) -> 11
A6: X5 | B6: 14 | D6: X5 | E6: =INDEX($B$2:$B$16,(ROWS(E$2:E6)-1)*2+1) -> 10
A7: X6 | B7: 8 | D7: X6 | E7: =INDEX($B$2:$B$16,(ROWS(E$2:E7)-1)*2+1) -> 9 | G7: Xbar | H7: = | I7: Sample Mean | J7: "Xbar"
A8: X7 | B8: 11 | D8: X7 | E8: =INDEX($B$2:$B$16,(ROWS(E$2:E8)-1)*2+1) -> 9 | G8: xi | H8: = | I8: Particular Value | J8: "x sub i"
A9: X8 | B9: 11 | D9: X8 | E9: =INDEX($B$2:$B$16,(ROWS(E$2:E9)-1)*2+1) -> 6 | G9: ∑ | H9: = | I9: Greek Letter used for "adding" | J9: "Sigma"
A10: X9 | B10: 10 | G10: n | H10: = | I10: Count of sample items | J10: "n"
A11: X10 | B11: 13 | D11: Xbar =
A12: X11 | B12: 9
A13: X12 | B13: 11 | D13: =IF(E11="","","The Sample Statistic 'Sample Mean Xbar', "&DOLLAR(E11)&" is the point estimate of the Population Parameter 'Population Mean Mew'") -> 
A14: X13 | B14: 9
A15: X14 | B15: 9
A16: X15 | B16: 6
A18: Mew = μ = | G18: µ | H18: = | I18: Population Mean | J18: "Mew"
G19: xi | H19: = | I19: Particular Value | J19: "x sub i"
G20: ∑ | H20: = | I20: Greek Letter used for "adding" | J20: "Sigma"
G21: N | H21: = | I21: Count of population items | J21: "N"

Sheet MeanPorS (an)
A1: Particular X | B1: Population Data | D1: Particular X | E1: Sample Data
A2: X1 | B2: 15 | D2: X1 | E2: =INDEX($B$2:$B$16,(ROWS(E$2:E2)-1)*2+1) -> 15
A3: X2 | B3: 10 | D3: X2 | E3: =INDEX($B$2:$B$16,(ROWS(E$2:E3)-1)*2+1) -> 14
A4: X3 | B4: 14 | D4: X3 | E4: =INDEX($B$2:$B$16,(ROWS(E$2:E4)-1)*2+1) -> 14
A5: X4 | B5: 13 | D5: X4 | E5: =INDEX($B$2:$B$16,(ROWS(E$2:E5)-1)*2+1) -> 11
A6: X5 | B6: 14 | D6: X5 | E6: =INDEX($B$2:$B$16,(ROWS(E$2:E6)-1)*2+1) -> 10
A7: X6 | B7: 8 | D7: X6 | E7: =INDEX($B$2:$B$16,(ROWS(E$2:E7)-1)*2+1) -> 9 | G7: Xbar | H7: = | I7: Sample Mean | J7: "Xbar"
A8: X7 | B8: 11 | D8: X7 | E8: =INDEX($B$2:$B$16,(ROWS(E$2:E8)-1)*2+1) -> 9 | G8: xi | H8: = | I8: Particular Value | J8: "x sub i"
A9: X8 | B9: 11 | D9: X8 | E9: =INDEX($B$2:$B$16,(ROWS(E$2:E9)-1)*2+1) -> 6 | G9: ∑ | H9: = | I9: Greek Letter used for "adding" | J9: "Sigma"
A10: X9 | B10: 10 | G10: n | H10: = | I10: Count of sample items | J10: "n"
A11: X10 | B11: 13 | D11: Xbar = | E11: =AVERAGE(E2:E9) -> 11
A12: X11 | B12: 9
A13: X12 | B13: 11 | D13: =IF(E11="","","The Sample Statistic 'Sample Mean Xbar', "&DOLLAR(E11)&" is the point estimate of the Population Parameter 'Population Mean Mew'") -> The Sample Statistic 'Sample Mean Xbar', $11.00 is the point estimate of the Population Parameter 'Population Mean Mew'
A14: X13 | B14: 9
A15: X14 | B15: 9
A16: X15 | B16: 6
A18: Mew = μ = | B18: =AVERAGE(B2:B16) -> 10.86666667 | G18: µ | H18: = | I18: Population Mean | J18: "Mew"
G19: xi | H19: = | I19: Particular Value | J19: "x sub i"
G20: ∑ | H20: = | I20: Greek Letter used for "adding" | J20: "Sigma"
G21: N | H21: = | I21: Count of population items | J21: "N"

Sheet Mean
A10: Mean Test Scores | D10: Mean Weights (oz.)
A11: =IF(B10<>"","We can use this average to compare to our scores and gage how well we did.","") ->  | D11: =IF(E10<>"","We can use this average to help us estimate whether the machine is filling correctly.","") -> 
A13: Test Scores (Population) | D13: Weights (oz.) of Salad Bag from Filling Machine (Sample)
A14: 60 | D14: 10.8
A15: 68 | D15: 10.74
A16: 76 | D16: 10.32
A17: 84 | D17: 9.73
A18: 55 | D18: 9.15
A19: 63 | D19: 10.94
A20: 89 | D20: 10.83
A21: 31 | D21: 9.36
A22: 47 | D22: 10.42
A23: 68 | D23: 9.97
A24: 54 | D24: 10.23
A25: 58 | D25: 9.83
A26: 57 | D26: 10.41
A27: 61 | D27: 10.35
A28: 72 | D28: 9.87
A29: 91 | D29: 10.02
A30: 95 | D30: 9.45
A31: 68 | D31: 10.46
A32: 76 | D32: 10.8
A33: 76 | D33: 10.01

Sheet Mean (an)
A10: Mean Test Scores | B10: =AVERAGE(A14:A33) -> 67.45 | D10: Mean Weights (oz.) | E10: =AVERAGE(D14:D33) -> 10.1845
A11: =IF(B10<>"","We can use this average to compare to our scores and gage how well we did.","") -> We can use this average to compare to our scores and gage how well we did. | D11: =IF(E10<>"","We can use this average to help us estimate whether the machine is filling correctly.","") -> We can use this average to help us estimate whether the machine is filling correctly.
A13: Test Scores (Population) | D13: Weights (oz.) of Salad Bag from Filling Machine (Sample)
A14: 60 | D14: 10.8
A15: 68 | D15: 10.74
A16: 76 | D16: 10.32
A17: 84 | D17: 9.73
A18: 55 | D18: 9.15
A19: 63 | D19: 10.94
A20: 89 | D20: 10.83
A21: 31 | D21: 9.36
A22: 47 | D22: 10.42
A23: 68 | D23: 9.97
A24: 54 | D24: 10.23
A25: 58 | D25: 9.83
A26: 57 | D26: 10.41
A27: 61 | D27: 10.35
A28: 72 | D28: 9.87
A29: 91 | D29: 10.02
A30: 95 | D30: 9.45
A31: 68 | D31: 10.46
A32: 76 | D32: 10.8
A33: 76 | D33: 10.01

Sheet Median
A11: Mean House Price | I11: Mean Salary | M11: Median can be a better measure of central location when there are extreme values
A12: Median House Price | I12: Median Salary
A13: =IF(C12<>"","Median gives us a more representative 'typical value' to use in discussions and ads - because it is not affected by extreme values.","") ->  | I13: =IF(K12<>"","Median gives us a more representative 'typical value' to make your decision. As soon as you see that the mean is larger than the median, you know that a few large values are pulling the mean up.","") -> 
A15: House Prices | C15: House Prices | I15: Salaries at Accounting Firm | K15: Salaries at Accounting Firm
A16: 297873 | C16: 297873 | I16: 103332 | K16: 103332
A17: 170143 | C17: 170143 | I17: 120102 | K17: 120102
A18: 109159 | C18: 109159 | I18: 144354 | K18: 144354
A19: 277309 | C19: 277309 | I19: 138409 | K19: 138409
A20: 239136 | C20: 239136 | I20: 93949 | K20: 93949
A21: 114460 | C21: 114460 | I21: 59915 | K21: 59915
A22: 224649 | C22: 224649 | I22: 54594 | K22: 54594
A23: 99857 | C23: 99857 | I23: 92784 | K23: 92784
A24: 144686 | C24: 144686 | I24: 550250 | K24: 550250
A25: 193308 | C25: 193308 | I25: 59196 | K25: 59196
A26: 144244 | C26: 144244 | I26: 58072 | K26: 58072
A27: 118492 | C27: 118492 | I27: 51671 | K27: 51671
A28: 178708 | C28: 178708 | I28: 119001 | K28: 119001
A29: 750022 | C29: 750022 | I29: 126737 | K29: 126737
A30: 143400 | C30: 143400 | I30: 105127 | K30: 105127
A31: 201661 | C31: 201661 | I31: 139330 | K31: 139330
A32: 1258963 | C32: 1258963 | I32: 109151 | K32: 109151
A33: 198345 | C33: 198345 | I33: 119831 | K33: 119831
A34: 394136 | C34: 394136 | I34: 255800 | K34: 255800
A35: 2589657 | C35: 2589657 | I35: 790500 | K35: 790500
I36: 96842 | K36: 96842

Sheet Median (an)
A11: Mean House Price | C11: =AVERAGE(A16:A35) -> 392410.4 | I11: Mean Salary | K11: =AVERAGE(I16:I36) -> 161378.4286 | M11: Median can be a better measure of central location when there are extreme values
A12: Median House Price | C12: =MEDIAN(A16:A35) -> 195826.5 | D12: =AVERAGE(C25:C26) -> 195826.5 | I12: Median Salary | K12: =MEDIAN(I16:I36) -> 109151
A13: =IF(C12<>"","Median gives us a more representative 'typical value' to use in discussions and ads - because it is not affected by extreme values.","") -> Median gives us a more representative 'typical value' to use in discussions and ads - because it is not affected by extreme values. | I13: =IF(K12<>"","Median gives us a more representative 'typical value' to make your decision. As soon as you see that the mean is larger than the median, you know that a few large values are pulling the mean up.","") -> Median gives us a more representative 'typical value' to make your decision. As soon as you see that the mean is larger than the median, you know that a few large values are pulling the mean up.
A15: House Prices | C15: House Prices | I15: Salaries at Accounting Firm | K15: Salaries at Accounting Firm
A16: 297873 | C16: 99857 | I16: 103332 | K16: 51671
A17: 170143 | C17: 109159 | I17: 120102 | K17: 54594
A18: 109159 | C18: 114460 | I18: 144354 | K18: 58072
A19: 277309 | C19: 118492 | I19: 138409 | K19: 59196
A20: 239136 | C20: 143400 | I20: 93949 | K20: 59915
A21: 114460 | C21: 144244 | I21: 59915 | K21: 92784
A22: 224649 | C22: 144686 | I22: 54594 | K22: 93949
A23: 99857 | C23: 170143 | I23: 92784 | K23: 96842
A24: 144686 | C24: 178708 | I24: 550250 | K24: 103332
A25: 193308 | C25: 193308 | I25: 59196 | K25: 105127
A26: 144244 | C26: 198345 | I26: 58072 | K26: 109151
A27: 118492 | C27: 201661 | I27: 51671 | K27: 119001
A28: 178708 | C28: 224649 | I28: 119001 | K28: 119831
A29: 750022 | C29: 239136 | I29: 126737 | K29: 120102
A30: 143400 | C30: 277309 | I30: 105127 | K30: 126737
A31: 201661 | C31: 297873 | I31: 139330 | K31: 138409
A32: 1258963 | C32: 394136 | I32: 109151 | K32: 139330
A33: 198345 | C33: 750022 | I33: 119831 | K33: 144354
A34: 394136 | C34: 1258963 | I34: 255800 | K34: 255800
A35: 2589657 | C35: 2589657 | I35: 790500 | K35: 550250
I36: 96842 | K36: 790500

Sheet Mode
A12: Rate Your Professor | B12: Frequency
A13: Bad | C13: << Mode is one that occurs most frequently | G13: See this video for more about MODE.MULT
A14: Okay | G14: Excel Magic Trick 973: List Multiple MODEs in Excel 2007 or earlier: COUNTIF or PivotTable
A15: Good | G15: https://www.youtube.com/watch?v=NjV4BZZRAQY
A16: Great | D16: Mode For Test Data | G16: Excel Magic Trick 1118: MODE for Text Values, Extract Word That Occurs Most Frequently
A17: =IF(AND(B13:B16<>""),"With Nominal or Ordinal Data we have a way of calculating a 'Typical Value'.","") ->  | D17: =IF(E16<>"","MODE.SNGL will not tell you if there is more than one Mode. MODE.SNGL will just report the first one it encounters. A quick PivotTable will help reveal if there is more than one Mode.","") ->  | G17: https://www.youtube.com/watch?v=pki8C60Diz0
A19: Rate Your Professor | D19: Test Scores (Population)
A20: Okay | D20: 60 | G20: Scores on Quiz
A21: Good | D21: 68 | G21: 6
A22: Great | D22: 76 | G22: 3
A23: Bad | D23: 84 | G23: 5
A24: Bad | D24: 55 | G24: 3
A25: Bad | D25: 63 | G25: 0
A26: Bad | D26: 89 | G26: 1
A27: Good | D27: 31 | G27: 8
A28: Okay | D28: 47 | G28: 5
A29: Okay | D29: 68 | G29: 5
A30: Okay | D30: 54 | G30: 1
A31: Okay | D31: 58 | G31: 6
A32: Okay | D32: 57 | G32: 7
A33: Bad | D33: 61 | G33: 0
A34: Bad | D34: 72 | G34: 2
A35: Bad | D35: 91 | G35: 6
A36: Great | D36: 95 | G36: 7
A37: Good | D37: 68 | G37: 3
A38: Good | D38: 76 | G38: 4
A39: Bad | D39: 76 | G39: 9
G40: 7
G41: 1
G42: 4
G43: 3
G44: 6
G45: 7
G46: 8
G47: 10
G48: 5
G49: 2
G50: 7

Sheet Mode (an)
A12: Rate Your Professor | B12: Frequency
A13: Bad | B13: =COUNTIFS($A$20:$A$39,A13) -> 8 | C13: << Mode is one that occurs most frequently | G13: See this video for more about MODE.MULT
A14: Okay | B14: =COUNTIFS($A$20:$A$39,A14) -> 6 | G14: Excel Magic Trick 973: List Multiple MODEs in Excel 2007 or earlier: COUNTIF or PivotTable
A15: Good | B15: 4 | G15: https://www.youtube.com/watch?v=NjV4BZZRAQY
A16: Great | B16: 2 | D16: Mode For Test Data | E16: =_xlfn.MODE.SNGL(D20:D39) -> 68 | G16: Excel Magic Trick 1118: MODE for Text Values, Extract Word That Occurs Most Frequently
A17: =IF(AND(B13:B16<>""),"With Nominal or Ordinal Data we have a way of calculating a 'Typical Value'.","") -> With Nominal or Ordinal Data we have a way of calculating a 'Typical Value'. | D17: =IF(E16<>"","MODE.SNGL will not tell you if there is more than one Mode. MODE.SNGL will just report the first one it encounters. A quick PivotTable will help reveal if there is more than one Mode.","") -> MODE.SNGL will not tell you if there is more than one Mode. MODE.SNGL will just report the first one it encounters. A quick PivotTable will help reveal if there is more than one Mode. | G17: https://www.youtube.com/watch?v=pki8C60Diz0
A19: Rate Your Professor | D19: Test Scores (Population)
A20: Okay | D20: 60 | G20: Scores on Quiz
A21: Good | D21: 68 | G21: 6 | I21: Scores on Quiz | J21: Count of Scores on Quiz
A22: Great | D22: 76 | G22: 3 | I22: 0 | J22: 2
A23: Bad | D23: 84 | G23: 5 | I23: 1 | J23: 3
A24: Bad | D24: 55 | G24: 3 | I24: 2 | J24: 2
A25: Bad | D25: 63 | G25: 0 | I25: 3 | J25: 4
A26: Bad | D26: 89 | G26: 1 | I26: 4 | J26: 2
A27: Good | D27: 31 | G27: 8 | I27: 5 | J27: 4
A28: Okay | D28: 47 | G28: 5 | I28: 6 | J28: 4
A29: Okay | D29: 68 | G29: 5 | I29: 7 | J29: 5
A30: Okay | D30: 54 | G30: 1 | I30: 8 | J30: 2
A31: Okay | D31: 58 | G31: 6 | I31: 9 | J31: 1
A32: Okay | D32: 57 | G32: 7 | I32: 10 | J32: 1
A33: Bad | D33: 61 | G33: 0 | I33: Grand Total | J33: 30
A34: Bad | D34: 72 | G34: 2
A35: Bad | D35: 91 | G35: 6
A36: Great | D36: 95 | G36: 7
A37: Good | D37: 68 | G37: 3
A38: Good | D38: 76 | G38: 4
A39: Bad | D39: 76 | G39: 9
G40: 7
G41: 1
G42: 4
G43: 3
D44: Test Scores | E44: Count of Test Scores (Population) | G44: 6
D45: 31 | E45: 1 | G45: 7
D46: 47 | E46: 1 | G46: 8
D47: 54 | E47: 1 | G47: 10
D48: 55 | E48: 1 | G48: 5
D49: 57 | E49: 1 | G49: 2
D50: 58 | E50: 1 | G50: 7
D51: 60 | E51: 1
D52: 61 | E52: 1
D53: 63 | E53: 1
D54: 68 | E54: 3
D55: 72 | E55: 1
D56: 76 | E56: 3
D57: 84 | E57: 1
D58: 89 | E58: 1
D59: 91 | E59: 1
D60: 95 | E60: 1
D61: Grand Total | E61: 20

Sheet Skew
B1: Skew tells to which way the distribution is tilting. If the average is being pulled up by a few big values, the skew is positive, or to the right. If the average is being pulled down by a few small values, the skew is negative, or to the left. Range of Skew is between -3 and 3.
B2: If the Skew is 0, the Mean = Median = Mode = Normal or Bell Distribution
B3: We can use the SKEW function to calculate the Skew
H6: Xbar | I6: = | J6: Sample Mean | K6: "Xbar"
H7: xi | I7: = | J7: Particular Value | K7: "x sub i"
H8: ∑ | I8: = | J8: Greek Letter used for "adding" | K8: "Sigma"
H9: n | I9: = | J9: Count of sample items | K9: "n"
H10: s | I10: = | J10: Sample Standard Deviation | K10: "s"
B11: Moderate Skew | C11: No Skew | D11: Highly Skewed
B12: Negative (Left) Skew small values pull Mean down | C12: No Skew (Normal or Bell) Mean = Median = Mode | D12: Positive (Right) Skew big values pull Mean up
A13: count = n | B13: =COUNT(B21:B30) -> 10 | C13: =COUNT(C21:C30) -> 10 | D13: =COUNT(D21:D30) -> 10
A14: Skew | B14: =B13/((B13-1)*(B13-2))*SUMPRODUCT(((B21:B30-AVERAGE(B21:B30))/_xlfn.STDEV.S(B21:B30))^3) -> -0.640521768 | C14: =C13/((C13-1)*(C13-2))*SUMPRODUCT(((C21:C30-AVERAGE(C21:C30))/_xlfn.STDEV.S(C21:C30))^3) -> -0.01127728555 | D14: =D13/((D13-1)*(D13-2))*SUMPRODUCT(((D21:D30-AVERAGE(D21:D30))/_xlfn.STDEV.S(D21:D30))^3) -> 1.552490626
A15: Skew | B15: =SKEW(B21:B30) -> -0.640521768 | C15: -0.01127728555 | D15: 1.552490626
A16: Mean
A17: Median
A18: Mode
B19: Moderate Skew | C19: No Skew | D19: Highly Skewed
B20: Data 1 | C20: Data 2 | D20: Data 3
B21: 7 | C21: 7.9 | D21: 1
B22: 43 | C22: 15 | D22: 7
B23: 33 | C23: 11 | D23: 7
B24: 21 | C24: 21 | D24: 12
B25: 15 | C25: 25 | D25: 11
B26: 31 | C26: 25 | D26: 14
B27: 36 | C27: 27 | D27: 2
B28: 43 | C28: 35 | D28: 1.9
B29: 48 | C29: 38 | D29: 39
B30: 49 | C30: 41 | D30: 49
A32: Labels | B32: Frequency | C32: Frequency | D32: Frequency
A33: =A40&"-"&B40-1 -> 0-9 | B33: =FREQUENCY(B21:B30,B40:B44) -> 1 | C33: =FREQUENCY(C21:C30,C40:C44) -> 1 | D33: =FREQUENCY(D21:D30,D40:D44) -> 5
A34: =A41&"-"&B41-1 -> 10-19 | B34: 1 | C34: 2 | D34: 3
A35: =A42&"-"&B42-1 -> 20-29 | B35: 1 | C35: 4 | D35: 0
A36: =A43&"-"&B43-1 -> 30-39 | B36: 3 | C36: 2 | D36: 1
A37: =A44&"-"&B44-1 -> 40-49 | B37: 4 | C37: 1 | D37: 1
A39: Low | B39: Bins | C39: Bins | D39: Bins
A40: =B40-10 -> 0 | B40: 10 | C40: 10 | D40: 10
A41: =B41-10 -> 10 | B41: 20 | C41: 20 | D41: 20
A42: =B42-10 -> 20 | B42: 30 | C42: 30 | D42: 30
A43: =B43-10 -> 30 | B43: 40 | C43: 40 | D43: 40
A44: 40 | B44: 50 | C44: 50 | D44: 50

Sheet Skew (an)
B1: Skew tells to which way the distribution is tilting. If the average is being pulled up by a few big values, the skew is positive, or to the right. If the average is being pulled down by a few small values, the skew is negative, or to the left. Range of Skew is between -3 and 3.
B2: If the Skew is 0, the Mean = Median = Mode = Normal or Bell Distribution
B3: We can use the SKEW function to calculate the Skew
H6: Xbar | I6: = | J6: Sample Mean | K6: "Xbar"
H7: xi | I7: = | J7: Particular Value | K7: "x sub i"
H8: ∑ | I8: = | J8: Greek Letter used for "adding" | K8: "Sigma"
H9: n | I9: = | J9: Count of sample items | K9: "n"
H10: s | I10: = | J10: Sample Standard Deviation | K10: "s"
B11: Moderate Skew | C11: No Skew | D11: Highly Skewed
B12: Negative (Left) Skew small values pull Mean down | C12: No Skew (Normal or Bell) Mean = Median = Mode | D12: Positive (Right) Skew big values pull Mean up
A13: count = n | B13: =COUNT(B21:B30) -> 10 | C13: =COUNT(C21:C30) -> 10 | D13: =COUNT(D21:D30) -> 10
A14: Skew | B14: =B13/((B13-1)*(B13-2))*SUMPRODUCT(((B21:B30-AVERAGE(B21:B30))/_xlfn.STDEV.S(B21:B30))^3) -> -0.640521768 | C14: =C13/((C13-1)*(C13-2))*SUMPRODUCT(((C21:C30-AVERAGE(C21:C30))/_xlfn.STDEV.S(C21:C30))^3) -> -0.01127728555 | D14: =D13/((D13-1)*(D13-2))*SUMPRODUCT(((D21:D30-AVERAGE(D21:D30))/_xlfn.STDEV.S(D21:D30))^3) -> 1.552490626
A15: Skew | B15: =SKEW(B21:B30) -> -0.640521768 | C15: -0.01127728555 | D15: 1.552490626
A16: Mean | B16: =AVERAGE(B21:B30) -> 32.6 | C16: =AVERAGE(C21:C30) -> 24.59 | D16: 14.39
A17: Median | B17: =MEDIAN(B21:B30) -> 34.5 | C17: =MEDIAN(C21:C30) -> 25 | D17: 9
A18: Mode | B18: =_xlfn.MODE.SNGL(B21:B30) -> 43 | C18: =_xlfn.MODE.SNGL(C21:C30) -> 25 | D18: 7
B19: Moderate Skew | C19: No Skew | D19: Highly Skewed
B20: Data 1 | C20: Data 2 | D20: Data 3
B21: 7 | C21: 7.9 | D21: 1
B22: 43 | C22: 15 | D22: 7
B23: 33 | C23: 11 | D23: 7
B24: 21 | C24: 21 | D24: 12
B25: 15 | C25: 25 | D25: 11
B26: 31 | C26: 25 | D26: 14
B27: 36 | C27: 27 | D27: 2
B28: 43 | C28: 35 | D28: 1.9
B29: 48 | C29: 38 | D29: 39
B30: 49 | C30: 41 | D30: 49
A32: Labels | B32: Frequency | C32: Frequency | D32: Frequency
A33: =A40&"-"&B40-1 -> 0-9 | B33: =FREQUENCY(B21:B30,B40:B44) -> 1 | C33: =FREQUENCY(C21:C30,C40:C44) -> 1 | D33: =FREQUENCY(D21:D30,D40:D44) -> 5
A34: =A41&"-"&B41-1 -> 10-19 | B34: 1 | C34: 2 | D34: 3
A35: =A42&"-"&B42-1 -> 20-29 | B35: 1 | C35: 4 | D35: 0
A36: =A43&"-"&B43-1 -> 30-39 | B36: 3 | C36: 2 | D36: 1
A37: =A44&"-"&B44-1 -> 40-49 | B37: 4 | C37: 1 | D37: 1
A39: Low | B39: Bins | C39: Bins | D39: Bins
A40: =B40-10 -> 0 | B40: 10 | C40: 10 | D40: 10
A41: =B41-10 -> 10 | B41: 20 | C41: 20 | D41: 20
A42: =B42-10 -> 20 | B42: 30 | C42: 30 | D42: 30
A43: =B43-10 -> 30 | B43: 40 | C43: 40 | D43: 40
A44: 40 | B44: 50 | C44: 50 | D44: 50

Sheet Weighted Mean
A8: Quiz Scores (list of scores) | C8: Unique List of Quiz Scores, xi | D8: Frequency, wi | E8: wi * xi = M1
A9: 5 | C9: 5 | D9: =COUNTIFS($A$9:$A$20,C9) -> 2
A10: 6 | C10: 6 | D10: =COUNTIFS($A$9:$A$20,C10) -> 3
A11: 8 | C11: 8 | D11: 3
A12: 10 | C12: 10 | D12: 2
A13: 2 | C13: 2 | D13: 1 | G13: Xbar | H13: = | I13: Sample Mean | J13: "Xbar"
A14: 0 | C14: 0 | D14: 1 | G14: xi | H14: = | I14: Particular Value | J14: "x sub i"
A15: 5 | C15: Total | G15: wi | H15: = | I15: Particular Weight | J15: "w sub i"
A16: 6 | G16: ∑ | H16: = | I16: Greek Letter used for "adding" | J16: "Sigma"
A17: 8 | C17: Mean M1 | G17: n | H17: = | I17: Count of sample items | J17: "n"
A18: 6 | C18: Mean M2
A19: 10
A20: 8
A22: Mean

Sheet Weighted Mean (an)
A8: Quiz Scores (list of scores) | C8: Unique List of Quiz Scores, xi | D8: Frequency, wi | E8: wi * xi = M1
A9: 5 | C9: 5 | D9: =COUNTIFS($A$9:$A$20,C9) -> 2 | E9: =D9*C9 -> 10
A10: 6 | C10: 6 | D10: =COUNTIFS($A$9:$A$20,C10) -> 3 | E10: 18
A11: 8 | C11: 8 | D11: 3 | E11: 24
A12: 10 | C12: 10 | D12: 2 | E12: 20
A13: 2 | C13: 2 | D13: 1 | E13: 2 | G13: Xbar | H13: = | I13: Sample Mean | J13: "Xbar"
A14: 0 | C14: 0 | D14: 1 | E14: 0 | G14: xi | H14: = | I14: Particular Value | J14: "x sub i"
A15: 5 | C15: Total | D15: =SUM(D9:D14) -> 12 | E15: =SUM(E9:E14) -> 74 | G15: wi | H15: = | I15: Particular Weight | J15: "w sub i"
A16: 6 | G16: ∑ | H16: = | I16: Greek Letter used for "adding" | J16: "Sigma"
A17: 8 | C17: Mean M1 | D17: =E15/D15 -> 6.166666667 | G17: n | H17: = | I17: Count of sample items | J17: "n"
A18: 6 | C18: Mean M2 | D18: =SUMPRODUCT(C9:C14,D9:D14)/SUM(D9:D14) -> 6.166666667
A19: 10
A20: 8
A22: Mean | B22: =AVERAGE(A9:A20) -> 6.166666667

Sheet WM(2)
A1: Purchases Last Year of Quad Boomerangs | AA1: Price per Unit
A2: The Accounting Department needs the weighted average to calculate the End Inventory | AA2: =ROUND(43/2*(1+RANDBETWEEN(-20,30)/100),2) -> 22.79
A4: Date | B4: Quantity Purchased wi | C4: Price per Unit xi | D4: wi * xi = M1
A5: 2014-01-02 | B5: 108 | C5: 24.3 | F5: Weighted Average M1
A6: 2014-02-15 | B6: 72 | C6: 26.45 | F6: Weighted Average M2
A7: 2014-03-28 | B7: 120 | C7: 26.45 | F7: Units Sold in 2014 | G7: 865
A8: 2014-04-27 | B8: 108 | C8: 17.42 | F8: COGS
A9: 2014-05-19 | B9: 36 | C9: 26.02 | F9: End Inventory
A10: 2014-06-19 | B10: 96 | C10: 21.72
A11: 2014-07-22 | B11: 36 | C11: 20.64 | F11: Total | H11: Check
A12: 2014-09-04 | B12: 120 | C12: 25.37
A13: 2014-09-26 | B13: 36 | C13: 23.44
A14: 2014-11-03 | B14: 144 | C14: 21.72
A15: 2014-12-03 | B15: 144 | C15: 20.21
A16: Total | B16: =SUM(B5:B15) -> 1020
A19: Price per Unit | B19: Frequency | C19: Percent Frequency | D19: M3 | F19: Weighted Average M3
A20: 24.3 | B20: 108 | F20: Weighted Average M4
A21: 26.45 | B21: 72
A22: 26.45 | B22: 120 | F22: Chapter 5, they will call this sort of Weighted
A23: 17.42 | B23: 108 | F23: Average an "Expected Value"
A24: 26.02 | B24: 36
A25: 21.72 | B25: 96
A26: 20.64 | B26: 36
A27: 25.37 | B27: 120
A28: 23.44 | B28: 36
A29: 21.72 | B29: 144
A30: 20.21 | B30: 144
B31: =SUM(B20:B30) -> 1020

Sheet WM(2an)
A1: Purchases Last Year of Quad Boomerangs | AA1: Price per Unit
A2: The Accounting Department needs the weighted average to calculate the End Inventory | AA2: =ROUND(43/2*(1+RANDBETWEEN(-20,30)/100),2) -> 21.5
A4: Date | B4: Quantity Purchased wi | C4: Price per Unit xi | D4: wi * xi = M1
A5: 2014-01-02 | B5: 108 | C5: 24.3 | D5: =B5*C5 -> 2624.4 | F5: Weighted Average M1 | G5: =D16/B16 -> 22.81882353
A6: 2014-02-15 | B6: 72 | C6: 26.45 | D6: =B6*C6 -> 1904.4 | F6: Weighted Average M2 | G6: =SUMPRODUCT(C5:C15,B5:B15)/SUM(B5:B15) -> 22.81882353
A7: 2014-03-28 | B7: 120 | C7: 26.45 | D7: 3174 | F7: Units Sold in 2014 | G7: 865
A8: 2014-04-27 | B8: 108 | C8: 17.42 | D8: 1881.36 | F8: COGS | G8: =G7*G6 -> 19738.28235
A9: 2014-05-19 | B9: 36 | C9: 26.02 | D9: 936.72 | F9: End Inventory | G9: =(B16-G7)*G6 -> 3536.917647
A10: 2014-06-19 | B10: 96 | C10: 21.72 | D10: 2085.12
A11: 2014-07-22 | B11: 36 | C11: 20.64 | D11: 743.04 | F11: Total | G11: =SUM(G8:G9) -> 23275.2 | H11: Check
A12: 2014-09-04 | B12: 120 | C12: 25.37 | D12: 3044.4
A13: 2014-09-26 | B13: 36 | C13: 23.44 | D13: 843.84
A14: 2014-11-03 | B14: 144 | C14: 21.72 | D14: 3127.68
A15: 2014-12-03 | B15: 144 | C15: 20.21 | D15: 2910.24
A16: Total | B16: =SUM(B5:B15) -> 1020 | D16: =SUM(D5:D15) -> 23275.2
A19: Price per Unit | B19: Frequency | C19: Percent Frequency | D19: M3 | F19: Weighted Average M3 | G19: =D31 -> 22.81882353
A20: 24.3 | B20: 108 | C20: =B20/$B$31 -> 0.1058823529 | D20: =C20*A20 -> 2.572941176 | F20: Weighted Average M4 | G20: =SUMPRODUCT(A20:A30,C20:C30) -> 22.81882353
A21: 26.45 | B21: 72 | C21: =B21/$B$31 -> 0.07058823529 | D21: =C21*A21 -> 1.867058824
A22: 26.45 | B22: 120 | C22: 0.1176470588 | D22: 3.111764706 | F22: Chapter 5, they will call this sort of Weighted
A23: 17.42 | B23: 108 | C23: 0.1058823529 | D23: 1.844470588 | F23: Average an "Expected Value"
A24: 26.02 | B24: 36 | C24: 0.03529411765 | D24: 0.9183529412
A25: 21.72 | B25: 96 | C25: 0.09411764706 | D25: 2.044235294
A26: 20.64 | B26: 36 | C26: 0.03529411765 | D26: 0.7284705882
A27: 25.37 | B27: 120 | C27: 0.1176470588 | D27: 2.984705882
A28: 23.44 | B28: 36 | C28: 0.03529411765 | D28: 0.8272941176
A29: 21.72 | B29: 144 | C29: 0.1411764706 | D29: 3.066352941
A30: 20.21 | B30: 144 | C30: 0.1411764706 | D30: 2.853176471
B31: =SUM(B20:B30) -> 1020 | C31: =SUM(C20:C30) -> 1 | D31: =SUM(D20:D30) -> 22.81882353

Sheet GroupedDataMean
A1: Age | E1: Quantitative: Integer, COUNTIFS | P1: Increment For FD
A2: 21 | C2: Lower | D2: Upper | E2: Age | F2: Frequency | H2: Midpoint | N2: Min | P2: 19
A3: 57 | C3: 0 | D3: =C3+$P$2 -> 19 | E3: =C3&" - "&D3 -> 0 - 19 | F3: =COUNTIFS($A$2:$A$201,">="&C3,$A$2:$A$201,"<="&D3) -> 13 | H3: =AVERAGE(C3:D3) -> 9.5 | N3: =MIN($A$2:$A$201) -> 18
A4: 25 | C4: =D3+1 -> 20 | D4: =C4+$P$2 -> 39 | E4: =C4&" - "&D4 -> 20 - 39 | F4: =COUNTIFS($A$2:$A$201,">="&C4,$A$2:$A$201,"<="&D4) -> 110 | H4: =AVERAGE(C4:D4) -> 29.5 | N4: Max
A5: 38 | C5: =D4+1 -> 40 | D5: =C5+$P$2 -> 59 | E5: =C5&" - "&D5 -> 40 - 59 | F5: =COUNTIFS($A$2:$A$201,">="&C5,$A$2:$A$201,"<="&D5) -> 56 | H5: =AVERAGE(C5:D5) -> 49.5 | N5: =MAX($A$2:$A$201) -> 65
A6: 22 | C6: =D5+1 -> 60 | D6: =C6+$P$2 -> 79 | E6: =C6&" - "&D6 -> 60 - 79 | F6: =COUNTIFS($A$2:$A$201,">="&C6,$A$2:$A$201,"<="&D6) -> 21 | H6: =AVERAGE(C6:D6) -> 69.5
A7: 29 | E7: Total | F7: =SUM(F3:F6) -> 200
A8: 18
A9: 64 | E9: Average Age | F9: =AVERAGE(A2:A201) -> 37.08
A10: 27
A11: 22 | E11: Average Age from Grouped Data | F11: =SUMPRODUCT(F3:F6,H3:H6)/F7 -> 38
A12: 39 | E12: ** will not be the same as actual mean because we are
A13: 61 | E13: estimating the data points when we use midpoint for the
A14: 18 | E14: unknown data points
A15: 22
A16: 52
A17: 22
A18: 18
A19: 55
A20: 20
A21: 42
A22: 30
A23: 64
A24: 63
A25: 41
A26: 21
A27: 63
A28: 54
A29: 18
A30: 26
A31: 59
A32: 30
A33: 64
A34: 30
A35: 41
A36: 23
A37: 52
A38: 18
A39: 32
A40: 22
A41: 29
A42: 25
A43: 63
A44: 26
A45: 31
A46: 23
A47: 42
A48: 28
A49: 23
A50: 19
A51: 37
A52: 38
A53: 50
A54: 26
A55: 33
A56: 59
A57: 32
A58: 27
A59: 54
A60: 63
A61: 48
A62: 29
A63: 38
A64: 24
A65: 51
A66: 25
A67: 65
A68: 35
A69: 35
A70: 21
A71: 47
A72: 62
A73: 63
A74: 23
A75: 59
A76: 48
A77: 57
A78: 19
A79: 48
A80: 21
A81: 40
A82: 25
A83: 59
A84: 57
A85: 56
A86: 19
A87: 54
A88: 65
A89: 25
A90: 30
A91: 57
A92: 43
A93: 44
A94: 21
A95: 20
A96: 49
A97: 37
A98: 26
A99: 62
A100: 38
A101: 55
A102: 24
A103: 30
A104: 39
A105: 59
A106: 26
A107: 33
A108: 20
A109: 18
A110: 19
A111: 61
A112: 39
A113: 52
A114: 20
A115: 50
A116: 29
A117: 55
A118: 18
A119: 39
A120: 35
A121: 38
A122: 20
A123: 60
A124: 61
A125: 62
A126: 21
A127: 40
A128: 25
A129: 50
A130: 24
A131: 28
A132: 22
A133: 22
A134: 27
A135: 54
A136: 25
A137: 25
A138: 30
A139: 59
A140: 51
A141: 38
A142: 28
A143: 30
A144: 43
A145: 42
A146: 24
A147: 47
A148: 23
A149: 59
A150: 22
A151: 27
A152: 65
A153: 27
A154: 27
A155: 28
A156: 22
A157: 42
A158: 25
A159: 41
A160: 46
A161: 41
A162: 29
A163: 50
A164: 50
A165: 34
A166: 24
A167: 29
A168: 35
A169: 24
A170: 23
A171: 31
A172: 24
A173: 30
A174: 22
A175: 43
A176: 55
A177: 38
A178: 28
A179: 30
A180: 35
A181: 41
A182: 28
A183: 65
A184: 20
A185: 39
A186: 19
A187: 64
A188: 42
A189: 24
A190: 24
A191: 18
A192: 36
A193: 61
A194: 22
A195: 55
A196: 27
A197: 49
A198: 29
A199: 33
A200: 52
... 1 more rows

Sheet Trimmed Mean
A1: Remove 5% of smallest and largest values from data set. Then calculate the Mean
D2: trim | E2: 0.05
A3: No | B3: Salaries | D3: n = | E3: =COUNT(B4:B40) -> 37
A4: 1 | B4: 1020 | D4: # values to drop | E4: =E3*E2 -> 1.85
A5: 2 | B5: 1030 | D5: Round up to integer | E5: =ROUNDUP(E4,0) -> 2
A6: 3 | B6: 2150 | D6: Method 1
A7: 4 | B7: 2861 | D7: Trimmed Mean | E7: =AVERAGE(B6:B38) -> 3540.969697 | G7: =AVERAGE(B6:B38)
A8: 5 | B8: 2864
A9: 6 | B9: 2964
A10: 7 | B10: 2983 | D10: Method 2
A11: 8 | B11: 3087 | D11: Trimmed Mean | E11: =AVERAGE(OFFSET(B4,E5,,E3-E5*2)) -> 3540.969697 | G11: =AVERAGE(OFFSET(B4,E5,,E3-E5*2))
A12: 9 | B12: 3167
A13: 10 | B13: 3222 | D13: TRIMMED MEAN built-in Excel function does not do the same thing:
A14: 11 | B14: 3234 | D14: Method 3 | J14: =E2&"*"&E3 -> 0.05*37
A15: 12 | B15: 3267 | D15: Trimmed Mean | E15: =TRIMMEAN(B4:B40,E2) -> 3636.27027 | G15: =TRIMMEAN(B4:B40,E2) | J15: =E2*E3 -> 1.85 | K15: == > Rounds down to 0,
A16: 13 | B16: 3275 | K16: so no number excluded
A17: 14 | B17: 3283 | D17: **the calculated percentage is rounded down to the nearest multiple of 2
A18: 15 | B18: 3334 | D18: This measn in the example 1.85 gets rounded down to 0
A19: 16 | B19: 3336
A20: 17 | B20: 3337 | H20: No Values!!!!
A21: 18 | B21: 3440 | D21: =AVERAGE(B5:B39) -> 3573.771429 | E21: =AVERAGE(B6:B38) -> 3540.969697 | F21: =AVERAGE(B5:B38) -> 3467.117647 | G21: =AVERAGE(B6:B39) -> 3648.588235 | H21: =AVERAGE(B4:B40) -> 3636.27027
A22: 19 | B22: 3442 | D22: Note that, the specified percentage is the total percentage of values to be excluded. This percentage is divided by two, to get the number of values that are removed from each end of the range.
A23: 20 | B23: 3480 | D23: It should also be noted that, when Excel is calculating how many values to discard from the supplied array of values, the calculated percentage is rounded down to the nearest multiple of 2. For example, if you want to calculate the trimmed mean of an array of 10 values, then:
A24: 21 | B24: 3485 | D24: A percentage of 15%, is 1.5 values, which will be rounded down to 0 (i.e. no values are discarded from the array before calculating the mean)
A25: 22 | B25: 3509 | D25: A percentage of 20%, is 2 values, so 1 value will be discarded from each end of the range before calculating the mean of the remaining values
A26: 23 | B26: 3546 | D26: A percentage of 25%, is 2.5 values, which will be rounded down to 2 (i.e. 1 value will be discarded from each end of the range before calculating the mean of the remaining values)
A27: 24 | B27: 3609
A28: 25 | B28: 3626
A29: 26 | B29: 3628
A30: 27 | B30: 3633
A31: 28 | B31: 3658
A32: 29 | B32: 3796
A33: 30 | B33: 3814
A34: 31 | B34: 3875
A35: 32 | B35: 3901
A36: 33 | B36: 3946
A37: 34 | B37: 5900
A38: 35 | B38: 6200
A39: 36 | B39: 7200
A40: 37 | B40: 8440

Sheet Geometric Mean
I12: Growth Rate | J12: = | K12: Growth Rate or Rate of Change for period | L12: GR
I13: Growth Factor | J13: = | K13: Factor you can multiply by Beg to get End | L13: GR + 1
I14: n | J14: = | K14: Number Of Total Periods | L14: "n"
I15: Beg Value | J15: = | K15: Value at beginning of first period | L15: "Beg"
I16: End Value | J16: = | K16: Value at end of last period | L16: "End"
I28: FV | J28: FV
A29: Returns for MSFT stock: | I29: PV | J29: Beg
I30: Period Rate | J30: Geomean
A31: Date | B31: Adj Close | C31: % Change from Prev (Growth Rate) | D31: Growth Rate + 1 = Growth Factor | F31: Start | G31: =B45 -> 36.41 | I31: NumberOfPeriods | J31: n
A32: 2015-01-02 | B32: 46.23 | F32: End | G32: =B32 -> 46.23
A33: 2014-12-01 | B33: 46.45 | F33: Mean
A34: 2014-11-03 | B34: 47.81 | F34: Count, n
A35: 2014-10-01 | B35: 46.66 | F35: Prove it! | H35: =IF(ISNUMBER(G35),"Incorrect!","") ->  | I35: FV formula = Beg*(1+rate)^n
A36: 2014-09-02 | B36: 46.07 | H36: Arithmetic Mean overstates the return!
A37: 2014-08-01 | B37: 45.15 | H37: Arithmetic Mean is for additive processes
A38: 2014-07-01 | B38: 42.62 | H38: Geomean is for multiplicative processes
A39: 2014-06-02 | B39: 41.18 | F39: (GM1 = X1*X2*…Xn)^(1/n)-1
A40: 2014-05-01 | B40: 40.43 | F40: GeoMean, M1 | I40: Growth Factor
A41: 2014-04-01 | B41: 39.62 | F41: GeoMean, M1 | I41: Growth Rate
A42: 2014-03-03 | B42: 40.2 | F42: Count, n | I42: True "Average" Compounding Rate per Period
A43: 2014-02-03 | B43: 37.57 | F43: Prove it! | H43: =IF(ISNUMBER(G43),"Correct!","") ->  | I43: FV formula = Beg*(1+rate)^n
A44: 2014-01-02 | B44: 36.83 | I44: **Authors of our textbook do an admirable job of pointing this out, especially
A45: 2013-12-02 | B45: 36.41 | F45: (End/Beg)^(1/n)-1 | I45: given that some finance textbooks do not
F46: Start | G46: =G31 -> 36.41
F47: End | G47: =G32 -> 46.23
F48: Average Compound Factor
F49: Average Compound Rate | I49: GeoMean From Just Start and End and number of periods
F50: Average Compound Rate
F53: (GM1 = X1*X2*…Xn)^(1/n)-1
F54: GeoMean, single Cell Formula | G54: =GEOMEAN(B32:B44/B33:B45)-1 -> 0.01853784494 | I54: Must enter array formula with: Ctrl + Shift + Enter, then verify that curly brackets can be seen in formula bar.
F56: Year | G56: Investment
F57: 1999 | G57: 2500
F58: 2014 | G58: =G57*(1+0.067)^(F58-F57) -> 6613.118427
F60: Average Compounding Rate? | I60: (End/Beg)^(1/n)-1
F63: Population Growth | G63: Year | H63: % Change + 1
F64: 0.01 | G64: 2004
F65: 0.005 | G65: 2005
F66: 0.02 | G66: 2006
F67: 0.025 | G67: 2007
F69: Geomertic Mean

Sheet Geometric Mean (an)
I12: Growth Rate | J12: = | K12: Growth Rate or Rate of Change for period | L12: GR
I13: Growth Factor | J13: = | K13: Factor you can multiply by Beg to get End | L13: GR + 1
I14: n | J14: = | K14: Number Of Total Periods | L14: "n"
I15: Beg Value | J15: = | K15: Value at beginning of first period | L15: "Beg"
I16: End Value | J16: = | K16: Value at end of last period | L16: "End"
I28: FV | J28: FV
A29: Returns for MSFT stock: | I29: PV | J29: Beg
I30: Period Rate | J30: Geomean
A31: Date | B31: Adj Close | C31: % Change from Prev (Growth Rate) | D31: Growth Rate + 1 = Growth Factor | F31: Start | G31: =B45 -> 36.41 | I31: NumberOfPeriods | J31: n
A32: 2015-01-02 | B32: 46.23 | C32: =B32/B33-1 -> -0.004736275565 | D32: =1+C32 -> 0.9952637244 | F32: End | G32: =B32 -> 46.23
A33: 2014-12-01 | B33: 46.45 | C33: -0.02844593181 | D33: =1+C33 -> 0.9715540682 | F33: Mean | G33: =AVERAGE(C32:C44) -> 0.01885959509
A34: 2014-11-03 | B34: 47.81 | C34: 0.02464637805 | D34: 1.024646378 | F34: Count, n | G34: =COUNT(C32:C44) -> 13
A35: 2014-10-01 | B35: 46.66 | C35: 0.01280659865 | D35: 1.012806599 | F35: Prove it! | G35: =G31*(1+G33)^G34 -> 46.42020948 | H35: =IF(ISNUMBER(G35),"Incorrect!","") -> Incorrect! | I35: FV formula = Beg*(1+rate)^n
A36: 2014-09-02 | B36: 46.07 | C36: 0.0203765227 | D36: 1.020376523 | H36: Arithmetic Mean overstates the return!
A37: 2014-08-01 | B37: 45.15 | C37: 0.05936180197 | D37: 1.059361802 | H37: Arithmetic Mean is for additive processes
A38: 2014-07-01 | B38: 42.62 | C38: 0.03496843128 | D38: 1.034968431 | H38: Geomean is for multiplicative processes
A39: 2014-06-02 | B39: 41.18 | C39: 0.01855058125 | D39: 1.018550581 | F39: (GM1 = X1*X2*…Xn)^(1/n)-1
A40: 2014-05-01 | B40: 40.43 | C40: 0.02044422009 | D40: 1.02044422 | F40: GeoMean, M1 | G40: =GEOMEAN(D32:D44) -> 1.018537845 | I40: Growth Factor
A41: 2014-04-01 | B41: 39.62 | C41: -0.0144278607 | D41: 0.9855721393 | F41: GeoMean, M1 | G41: =GEOMEAN(D32:D44)-1 -> 0.01853784494 | I41: Growth Rate
A42: 2014-03-03 | B42: 40.2 | C42: 0.0700026617 | D42: 1.070002662 | F42: Count, n | G42: =COUNT(C32:C44) -> 13 | I42: True "Average" Compounding Rate per Period
A43: 2014-02-03 | B43: 37.57 | C43: 0.02009231605 | D43: 1.020092316 | F43: Prove it! | G43: =G31*(1+G41)^G42 -> 46.23 | H43: =IF(ISNUMBER(G43),"Correct!","") -> Correct! | I43: FV formula = Beg*(1+rate)^n
A44: 2014-01-02 | B44: 36.83 | C44: =B44/B45-1 -> 0.0115352925 | D44: 1.011535293 | I44: **Authors of our textbook do an admirable job of pointing this out, especially
A45: 2013-12-02 | B45: 36.41 | F45: (End/Beg)^(1/n)-1 | I45: given that some finance textbooks do not
F46: Start | G46: =G31 -> 36.41
F47: End | G47: =G32 -> 46.23
F48: Average Compound Factor | G48: =(G47/G46)^(1/G42) -> 1.018537845
F49: Average Compound Rate | G49: =(G47/G46)^(1/G42)-1 -> 0.01853784494 | I49: GeoMean From Just Start and End and number of periods
F50: Average Compound Rate | G50: =_xlfn.RRI(G42,G46,G47) -> 0.01853784494
F53: (GM1 = X1*X2*…Xn)^(1/n)-1
F54: GeoMean, single Cell Formula | G54: =GEOMEAN(B32:B44/B33:B45)-1 -> 0.01853784494 | I54: Must enter array formula with: Ctrl + Shift + Enter, then verify that curly brackets can be seen in formula bar.
F56: Year | G56: Investment
F57: 1999 | G57: 2500
F58: 2014 | G58: =G57*(1+0.067)^(F58-F57) -> 6613.118427
F60: Average Compounding Rate? | G60: =_xlfn.RRI(F58-F57,G57,G58) -> 0.067 | I60: (End/Beg)^(1/n)-1
F63: Population Growth | G63: Year | H63: % Change + 1
F64: 0.01 | G64: 2004 | H64: =1+F64 -> 1.01
F65: 0.005 | G65: 2005 | H65: =1+F65 -> 1.005
F66: 0.02 | G66: 2006 | H66: 1.02
F67: 0.025 | G67: 2007 | H67: 1.025
F69: Geomertic Mean | G69: =GEOMEAN(H64:H67)-1 -> 0.01496921102

Sheet PercentiileAndQuartile
A21: Number | B21: Name | C21: Entrance Exam Scores | H21: =14/18 -> 0.7777777778
A22: 1 | B22: Jo | C22: 12 | E22: Company Policy with percentile | F22: 0.75
A23: 2 | B23: Don | C23: 54 | E23: Count, n | H23: Percentiles
A24: 3 | B24: Bob | C24: 56 | E24: Position in List | H24: Formula for position = P%*(n+1)
A25: 4 | B25: Minny | C25: 62 | E25: ="How far between "&INDEX(A22:A39,MATCH(_xlfn.PERCENTILE.EXC(C22:C39,F22),C22:C39))&" & "&INDEX(A22:A39,MATCH(_xlfn.PERCENTILE.EXC(C22:C39,F22),C22:C39))+1&"?" -> How far between 14 & 15? | H25: =IF(ISNUMBER(F25),"<<== "&TEXT(F25,"0.00%")&" of the way through the interval","") -> 
A26: 5 | B26: Gigi | C26: 69 | E26: ="Difference between "&INDEX(A22:A39,MATCH(_xlfn.PERCENTILE.EXC(C22:C39,F22),C22:C39))&" & "&INDEX(A22:A39,MATCH(_xlfn.PERCENTILE.EXC(C22:C39,F22),C22:C39))+1 -> Difference between 14 & 15
A27: 6 | B27: Lim | C27: 72 | E27: ="How far from "&INDEX(A22:A39,MATCH(_xlfn.PERCENTILE.EXC(C22:C39,F22),C22:C39))&"?" -> How far from 14? | H27: =IF(ISNUMBER(F27),"<<== Actually how far through interval","") -> 
A28: 7 | B28: Chris | C28: 73 | E28: Percentile Marker | H28: =IF(ISNUMBER(F28),"<<== "&F28&" marks the point at which approx. ","") -> 
A29: 8 | B29: Shelia | C29: 74 | E29: Percentile Marker with PERCENTILE.EXC | H29: =IF(ISNUMBER(F28)," approx. "&TEXT(F22,"0.00%")&" of the values are below and","") -> 
A30: 9 | B30: Tommy | C30: 78 | H30: =IF(ISNUMBER(F28)," approx. "&TEXT(1-F22,"0.00%")&" of the values are above.","") -> 
A31: 10 | B31: Fran | C31: 82 | E31: Company Policy with quartile | F31: 3
A32: 11 | B32: Homer | C32: 83 | E32: Quartile Marker with QUARTILE.EXC
A33: 12 | B33: Tina | C33: 87
A34: 13 | B34: Sue | C34: 88 | E34: Your Score | F34: 89
A35: 14 | B35: Sioux | C35: 88 | E35: Percentile rank with PERCENTRANK.EXC
A36: 15 | B36: Chin | C36: 91 | E36: =IF(ISNUMBER(F35),"Reverse: you give it value and it calculates percentile","") -> 
A37: 16 | B37: Your Name | C37: 92
A38: 17 | B38: Tyrone | C38: 95
A39: 18 | B39: Karen | C39: 100
A41: Number | B41: Name | C41: Entrance Exam Scores
A42: 1 | B42: Jo | C42: 12 | E42: Company Policy with percentile | F42: 0.5 | G42: =9/18 -> 0.5
A43: 2 | B43: Don | C43: 54 | E43: Percentile Marker with PERCENTILE.EXC | H43: =IF(ISNUMBER(F43),"<<== "&F43&" marks the point at which approx. ","") -> 
A44: 3 | B44: Bob | C44: 56 | E44: Median = 50% Percentile Marker = "in the middle" | H44: =IF(ISNUMBER(F43)," approx. "&TEXT(F42,"0.00%")&" of the values are below and","") -> 
A45: 4 | B45: Minny | C45: 62 | E45: Average Middle Two | H45: =IF(ISNUMBER(F43)," approx. "&TEXT(1-F42,"0.00%")&" of the values are above.","") -> 
A46: 5 | B46: Gigi | C46: 69
A47: 6 | B47: Lim | C47: 72 | H47: Quartile
A48: 7 | B48: Chris | C48: 73 | E48: Quartile 1 | H48: 1
A49: 8 | B49: Shelia | C49: 74 | E49: Quartile 2 | H49: 2
A50: 9 | B50: Tommy | C50: 78 | E50: Quartile 3 | H50: 3
A51: 10 | B51: Fran | C51: 82
A52: 11 | B52: Homer | C52: 83
A53: 12 | B53: Tina | C53: 87
A54: 13 | B54: Sue | C54: 88
A55: 14 | B55: Sioux | C55: 88
A56: 15 | B56: Chin | C56: 91
A57: 16 | B57: Your Name | C57: 92
A58: 17 | B58: Tyrone | C58: 95
A59: 18 | B59: Karen | C59: 100
A61: Number | B61: Name | C61: Entrance Exam Scores | E61: Quintiles (5 parts with 4 markers): | H61: P%
A62: 1 | B62: Jo | C62: 12 | E62: Marker 1 | H62: 0.2
A63: 2 | B63: Don | C63: 54 | E63: Marker 2 | H63: 0.4
A64: 3 | B64: Bob | C64: 56 | E64: Marker 3 | H64: 0.6
A65: 4 | B65: Minny | C65: 62 | E65: Marker 4 | H65: 0.8
A66: 5 | B66: Gigi | C66: 69
A67: 6 | B67: Lim | C67: 72 | E67: Deciles (10 parts with 9 markers | H67: P%
A68: 7 | B68: Chris | C68: 73 | E68: Marker 1 | H68: 0.1
A69: 8 | B69: Shelia | C69: 74 | E69: Marker 2 | H69: 0.2
A70: 9 | B70: Tommy | C70: 78 | E70: Marker 3 | H70: 0.3
A71: 10 | B71: Fran | C71: 82 | E71: Marker 4 | H71: 0.4
A72: 11 | B72: Homer | C72: 83 | E72: Marker 5 | H72: 0.5
A73: 12 | B73: Tina | C73: 87 | E73: Marker 6 | H73: 0.6
A74: 13 | B74: Sue | C74: 88 | E74: Marker 7 | H74: 0.7
A75: 14 | B75: Sioux | C75: 88 | E75: Marker 8 | H75: 0.8
A76: 15 | B76: Chin | C76: 91 | E76: Marker 9 | H76: 0.9
A77: 16 | B77: Your Name | C77: 92
A78: 17 | B78: Tyrone | C78: 95
A79: 18 | B79: Karen | C79: 100
A81: Number | B81: Name | C81: Entrance Exam Scores | E81: Percentile Rank
A82: 1 | B82: Jo | C82: 12 | E82: =_xlfn.PERCENTRANK.EXC($C$82:$C$99,C82) -> 0.052
A83: 2 | B83: Don | C83: 54 | E83: =_xlfn.PERCENTRANK.EXC($C$82:$C$99,C83) -> 0.105
A84: 3 | B84: Bob | C84: 56 | E84: 0.157
A85: 4 | B85: Minny | C85: 62 | E85: 0.21
A86: 5 | B86: Gigi | C86: 69 | E86: 0.263
A87: 6 | B87: Lim | C87: 72 | E87: 0.315
A88: 7 | B88: Chris | C88: 73 | E88: 0.368
A89: 8 | B89: Shelia | C89: 74 | E89: 0.421
A90: 9 | B90: Tommy | C90: 78 | E90: 0.473
A91: 10 | B91: Fran | C91: 82 | E91: 0.526
A92: 11 | B92: Homer | C92: 83 | E92: 0.578
A93: 12 | B93: Tina | C93: 87 | E93: 0.631
A94: 13 | B94: Sue | C94: 88 | E94: 0.684
A95: 14 | B95: Sioux | C95: 88 | E95: 0.684
A96: 15 | B96: Chin | C96: 91 | E96: 0.789
A97: 16 | B97: Your Name | C97: 92 | E97: 0.842
A98: 17 | B98: Tyrone | C98: 95 | E98: 0.894
A99: 18 | B99: Karen | C99: 100 | E99: 0.947
A103: Number | B103: Name | C103: Entrance Exam Scores
A104: 1 | B104: Jo | C104: 12 | E104: Percentile | F104: 0.75 | H104: Video about another method for calculating percentile:
A105: 2 | B105: Don | C105: 54 | E105: PERCENTILE.EXC, exclude 1 and 0, where 1 = max and 0 = min | H105: Excel 2010 Statistics #27: Excel 2010 Functions for Percentile, Quartile and Rank
A106: 3 | B106: Bob | C106: 56 | E106: PERCENTILE.INC, include 1 and 0, where 1 = max and 0 = min | H106: https://www.youtube.com/watch?v=XllEMSjVGGk
A107: 4 | B107: Minny | C107: 62 | E107: **Algorithm for PERCENTILE.INC: Position = p*n+(1-p)
A108: 5 | B108: Gigi | C108: 69 | F108: PERCENTILE.INC | I108: PERCENTILE.EXC | L108: PERCENTILE.INC
A109: 6 | B109: Lim | C109: 72 | E109: Inclusive Example: | F109: Marker | G109: P% | I109: Marker | J109: P% | L109: Long Hand Formula:
A110: 7 | B110: Chris | C110: 73 | G110: 0 | J110: 0 | L110: =F104*COUNT($C$104:$C$121)+(1-F104) -> 13.75 | M110: <<== Position
A111: 8 | B111: Shelia | C111: 74 | G111: 0.25 | J111: 0.25 | L111: =C116+(C117-C116)*MOD(L110,1) -> 88 | M111: <<== Marker
A112: 9 | B112: Tommy | C112: 78 | G112: 0.5 | J112: 0.5
A113: 10 | B113: Fran | C113: 82 | G113: 0.75 | J113: 0.75
A114: 11 | B114: Homer | C114: 83 | G114: 1 | J114: 1
A115: 12 | B115: Tina | C115: 87
A116: 13 | B116: Sue | C116: 88 | F116: Marker | G116: Quartile
A117: 14 | B117: Sioux | C117: 88 | G117: 0
A118: 15 | B118: Chin | C118: 91 | G118: 1
A119: 16 | B119: Your Name | C119: 92 | G119: 2
A120: 17 | B120: Tyrone | C120: 95 | G120: 3
A121: 18 | B121: Karen | C121: 100 | G121: 4
A124: Entrance Exam Scores | E124: Function | F124: % | G124: Result
A125: 32 | E125: PERCENTILE.EXC | F125: 0.75
A126: 43 | E126: PERCENTILE.INC | F126: 0.75
A127: 86 | E127: QUARTILE.EXC | F127: 3
A128: 63 | E128: QUARTILE.INC | F128: 3
A129: 36 | E129: PERCENTRANK.EXC | F129: 74
A130: 36 | E130: PERCENTRANK.INC | F130: 74
A131: 52
A132: 88
A133: 51
A134: 89
A135: 44
A136: 39
A137: 10
A138: 74
A139: 82
A140: 20
A141: 14
A142: 43
A143: 10
A144: 41
A145: 44
A146: 86
A147: 89
A148: 78
A149: 30
A150: 8
A151: 13
A152: 4
A153: 38
A154: 83
A155: 70
A156: 37
A157: 69
A158: 86
A159: 63
A160: 23
A161: 20
A162: 23
A163: 61
A164: 60
A165: 93
A166: 75
A167: 29
A168: 11
A169: 29
A170: 2
A171: 25
A172: 94
A173: 73
A174: 56
A175: 6
A176: 33
A177: 27
A178: 64
A179: 5
A180: 72
A181: 87
A182: 2
A183: 33
A184: 48
A185: 12
A186: 57
A187: 42
A188: 41
A189: 89
A190: 63
A191: 26
A192: 78
A193: 86
A194: 60
A195: 34
A196: 7
A197: 39
A198: 10
A199: 94
A200: 47
A201: 71
A202: 29
A203: 16
A204: 72
A205: 45
A206: 1
A207: 10
A208: 81
A209: 51
A210: 78
A211: 20
A212: 32
A213: 60
A214: 82
A215: 64
A216: 77
A217: 68
A218: 43
A219: 8
A220: 83
A221: 15
A222: 79
A223: 65
A224: 74
A225: 2
A226: 78
A227: 59
A228: 79
... 388 more rows

Sheet PercentiileAndQuartile (an)
A21: Number | B21: Name | C21: Entrance Exam Scores
A22: 1 | B22: Jo | C22: 12 | E22: Company Policy with percentile | F22: 0.75 | G22: =14/18 -> 0.7777777778
A23: 2 | B23: Don | C23: 54 | E23: Count, n | F23: =COUNT(C22:C39) -> 18 | H23: Percentiles
A24: 3 | B24: Bob | C24: 56 | E24: Position in List | F24: =F22*(F23+1) -> 14.25 | H24: Formula for position = P%*(n+1)
A25: 4 | B25: Minny | C25: 62 | E25: ="How far between "&INDEX(A22:A39,MATCH(_xlfn.PERCENTILE.EXC(C22:C39,F22),C22:C39))&" & "&INDEX(A22:A39,MATCH(_xlfn.PERCENTILE.EXC(C22:C39,F22),C22:C39))+1&"?" -> How far between 14 & 15? | F25: =MOD(F24,1) -> 0.25 | H25: =IF(ISNUMBER(F25),"<<== "&TEXT(F25,"0.00%")&" of the way through the interval","") -> <<== 25.00% of the way through the interval
A26: 5 | B26: Gigi | C26: 69 | E26: ="Difference between "&INDEX(A22:A39,MATCH(_xlfn.PERCENTILE.EXC(C22:C39,F22),C22:C39))&" & "&INDEX(A22:A39,MATCH(_xlfn.PERCENTILE.EXC(C22:C39,F22),C22:C39))+1 -> Difference between 14 & 15 | F26: =C36-C35 -> 3
A27: 6 | B27: Lim | C27: 72 | E27: ="How far from "&INDEX(A22:A39,MATCH(_xlfn.PERCENTILE.EXC(C22:C39,F22),C22:C39))&"?" -> How far from 14? | F27: =F26*F25 -> 0.75 | H27: =IF(ISNUMBER(F27),"<<== Actually how far through interval","") -> <<== Actually how far through interval
A28: 7 | B28: Chris | C28: 73 | E28: Percentile Marker | F28: =C35+F27 -> 88.75 | H28: =IF(ISNUMBER(F28),"<<== "&F28&" marks the point at which approx. ","") -> <<== 88.75 marks the point at which approx.
A29: 8 | B29: Shelia | C29: 74 | E29: Percentile Marker with PERCENTILE.EXC | F29: =_xlfn.PERCENTILE.EXC(C22:C39,F22) -> 88.75 | H29: =IF(ISNUMBER(F28)," approx. "&TEXT(F22,"0.00%")&" of the values are below and","") -> approx. 75.00% of the values are below and
A30: 9 | B30: Tommy | C30: 78 | H30: =IF(ISNUMBER(F28)," approx. "&TEXT(1-F22,"0.00%")&" of the values are above.","") -> approx. 25.00% of the values are above.
A31: 10 | B31: Fran | C31: 82 | E31: Company Policy with quartile | F31: 3
A32: 11 | B32: Homer | C32: 83 | E32: Quartile Marker with QUARTILE.EXC | F32: =_xlfn.QUARTILE.EXC(C22:C39,F31) -> 88.75
A33: 12 | B33: Tina | C33: 87
A34: 13 | B34: Sue | C34: 88 | E34: Your Score | F34: 89
A35: 14 | B35: Sioux | C35: 88 | E35: Percentile rank with PERCENTRANK.EXC | F35: =_xlfn.PERCENTRANK.EXC(C22:C39,F34) -> 0.754
A36: 15 | B36: Chin | C36: 91 | E36: =IF(ISNUMBER(F35),"Reverse: you give it value and it calculates percentile","") -> Reverse: you give it value and it calculates percentile
A37: 16 | B37: Your Name | C37: 92
A38: 17 | B38: Tyrone | C38: 95
A39: 18 | B39: Karen | C39: 100
A41: Number | B41: Name | C41: Entrance Exam Scores
A42: 1 | B42: Jo | C42: 12 | E42: Company Policy with percentile | F42: 0.5 | G42: =9/18 -> 0.5
A43: 2 | B43: Don | C43: 54 | E43: Percentile Marker with PERCENTILE.EXC | F43: =_xlfn.PERCENTILE.EXC(C42:C59,F42) -> 80 | H43: =IF(ISNUMBER(F43),"<<== "&F43&" marks the point at which approx. ","") -> <<== 80 marks the point at which approx.
A44: 3 | B44: Bob | C44: 56 | E44: Median = 50% Percentile Marker = "in the middle" | F44: =MEDIAN(C42:C59) -> 80 | H44: =IF(ISNUMBER(F43)," approx. "&TEXT(F42,"0.00%")&" of the values are below and","") -> approx. 50.00% of the values are below and
A45: 4 | B45: Minny | C45: 62 | E45: Average Middle Two | F45: =AVERAGE(C50:C51) -> 80 | H45: =IF(ISNUMBER(F43)," approx. "&TEXT(1-F42,"0.00%")&" of the values are above.","") -> approx. 50.00% of the values are above.
A46: 5 | B46: Gigi | C46: 69
A47: 6 | B47: Lim | C47: 72 | H47: Quartile
A48: 7 | B48: Chris | C48: 73 | E48: Quartile 1 | F48: =_xlfn.QUARTILE.EXC($C$42:$C$59,H48) -> 67.25 | H48: 1
A49: 8 | B49: Shelia | C49: 74 | E49: Quartile 2 | F49: =_xlfn.QUARTILE.EXC($C$42:$C$59,H49) -> 80 | H49: 2
A50: 9 | B50: Tommy | C50: 78 | E50: Quartile 3 | F50: 88.75 | H50: 3
A51: 10 | B51: Fran | C51: 82
A52: 11 | B52: Homer | C52: 83
A53: 12 | B53: Tina | C53: 87
A54: 13 | B54: Sue | C54: 88
A55: 14 | B55: Sioux | C55: 88
A56: 15 | B56: Chin | C56: 91
A57: 16 | B57: Your Name | C57: 92
A58: 17 | B58: Tyrone | C58: 95
A59: 18 | B59: Karen | C59: 100
A61: Number | B61: Name | C61: Entrance Exam Scores | E61: Quintiles (5 parts with 4 markers): | H61: P%
A62: 1 | B62: Jo | C62: 12 | E62: Marker 1 | F62: =_xlfn.PERCENTILE.EXC($C$62:$C$79,H62) -> 60.8 | H62: 0.2
A63: 2 | B63: Don | C63: 54 | E63: Marker 2 | F63: =_xlfn.PERCENTILE.EXC($C$62:$C$79,H63) -> 73.6 | H63: 0.4
A64: 3 | B64: Bob | C64: 56 | E64: Marker 3 | F64: 84.6 | H64: 0.6
A65: 4 | B65: Minny | C65: 62 | E65: Marker 4 | F65: 91.2 | H65: 0.8
A66: 5 | B66: Gigi | C66: 69
A67: 6 | B67: Lim | C67: 72 | E67: Deciles (10 parts with 9 markers | H67: P%
A68: 7 | B68: Chris | C68: 73 | E68: Marker 1 | F68: =_xlfn.PERCENTILE.EXC($C$62:$C$79,H68) -> 49.8 | H68: 0.1
A69: 8 | B69: Shelia | C69: 74 | E69: Marker 2 | F69: =_xlfn.PERCENTILE.EXC($C$62:$C$79,H69) -> 60.8 | H69: 0.2
A70: 9 | B70: Tommy | C70: 78 | E70: Marker 3 | F70: 71.1 | H70: 0.3
A71: 10 | B71: Fran | C71: 82 | E71: Marker 4 | F71: 73.6 | H71: 0.4
A72: 11 | B72: Homer | C72: 83 | E72: Marker 5 | F72: 80 | H72: 0.5
A73: 12 | B73: Tina | C73: 87 | E73: Marker 6 | F73: 84.6 | H73: 0.6
A74: 13 | B74: Sue | C74: 88 | E74: Marker 7 | F74: 88 | H74: 0.7
A75: 14 | B75: Sioux | C75: 88 | E75: Marker 8 | F75: 91.2 | H75: 0.8
A76: 15 | B76: Chin | C76: 91 | E76: Marker 9 | F76: 95.5 | H76: 0.9
A77: 16 | B77: Your Name | C77: 92
A78: 17 | B78: Tyrone | C78: 95
A79: 18 | B79: Karen | C79: 100
A81: Number | B81: Name | C81: Entrance Exam Scores | E81: Percentile Rank
A82: 1 | B82: Jo | C82: 12 | E82: =_xlfn.PERCENTRANK.EXC($C$82:$C$99,C82) -> 0.052
A83: 2 | B83: Don | C83: 54 | E83: =_xlfn.PERCENTRANK.EXC($C$82:$C$99,C83) -> 0.105
A84: 3 | B84: Bob | C84: 56 | E84: 0.157
A85: 4 | B85: Minny | C85: 62 | E85: 0.21
A86: 5 | B86: Gigi | C86: 69 | E86: 0.263
A87: 6 | B87: Lim | C87: 72 | E87: 0.315
A88: 7 | B88: Chris | C88: 73 | E88: 0.368
A89: 8 | B89: Shelia | C89: 74 | E89: 0.421
A90: 9 | B90: Tommy | C90: 78 | E90: 0.473
A91: 10 | B91: Fran | C91: 82 | E91: 0.526
A92: 11 | B92: Homer | C92: 83 | E92: 0.578
A93: 12 | B93: Tina | C93: 87 | E93: 0.631
A94: 13 | B94: Sue | C94: 88 | E94: 0.684
A95: 14 | B95: Sioux | C95: 88 | E95: 0.684
A96: 15 | B96: Chin | C96: 91 | E96: 0.789
A97: 16 | B97: Your Name | C97: 92 | E97: 0.842
A98: 17 | B98: Tyrone | C98: 95 | E98: 0.894
A99: 18 | B99: Karen | C99: 100 | E99: 0.947
A103: Number | B103: Name | C103: Entrance Exam Scores
A104: 1 | B104: Jo | C104: 12 | E104: Percentile | F104: 0.75 | H104: Video about another method for calculating percentile:
A105: 2 | B105: Don | C105: 54 | E105: PERCENTILE.EXC, exclude 1 and 0, where 1 = max and 0 = min | F105: =_xlfn.PERCENTILE.EXC(C104:C121,F104) -> 88.75 | H105: Excel 2010 Statistics #27: Excel 2010 Functions for Percentile, Quartile and Rank
A106: 3 | B106: Bob | C106: 56 | E106: PERCENTILE.INC, include 1 and 0, where 1 = max and 0 = min | F106: =_xlfn.PERCENTILE.INC(C104:C121,F104) -> 88 | H106: https://www.youtube.com/watch?v=XllEMSjVGGk
A107: 4 | B107: Minny | C107: 62 | E107: **Algorithm for PERCENTILE.INC: Position = p*n+(1-p)
A108: 5 | B108: Gigi | C108: 69 | F108: PERCENTILE.INC | I108: PERCENTILE.EXC | L108: PERCENTILE.INC
A109: 6 | B109: Lim | C109: 72 | E109: Inclusive Example: | F109: Marker | G109: P% | I109: Marker | J109: P% | L109: Long Hand Formula:
A110: 7 | B110: Chris | C110: 73 | F110: =_xlfn.PERCENTILE.INC($C$104:$C$121,G110) -> 12 | G110: 0 | I110: =_xlfn.PERCENTILE.EXC($C$104:$C$121,J110) ->  | J110: 0 | L110: =F104*COUNT($C$104:$C$121)+(1-F104) -> 13.75 | M110: <<== Position
A111: 8 | B111: Shelia | C111: 74 | F111: =_xlfn.PERCENTILE.INC($C$104:$C$121,G111) -> 69.75 | G111: 0.25 | I111: =_xlfn.PERCENTILE.EXC($C$104:$C$121,J111) -> 67.25 | J111: 0.25 | L111: =C116+(C117-C116)*MOD(L110,1) -> 88 | M111: <<== Marker
A112: 9 | B112: Tommy | C112: 78 | F112: 80 | G112: 0.5 | I112: 80 | J112: 0.5
A113: 10 | B113: Fran | C113: 82 | F113: 88 | G113: 0.75 | I113: 88.75 | J113: 0.75
A114: 11 | B114: Homer | C114: 83 | F114: 100 | G114: 1 | J114: 1
A115: 12 | B115: Tina | C115: 87
A116: 13 | B116: Sue | C116: 88 | F116: Marker | G116: Quartile
A117: 14 | B117: Sioux | C117: 88 | F117: =_xlfn.QUARTILE.INC($C$104:$C$121,G117) -> 12 | G117: 0
A118: 15 | B118: Chin | C118: 91 | F118: =_xlfn.QUARTILE.INC($C$104:$C$121,G118) -> 69.75 | G118: 1
A119: 16 | B119: Your Name | C119: 92 | F119: 80 | G119: 2
A120: 17 | B120: Tyrone | C120: 95 | F120: 88 | G120: 3
A121: 18 | B121: Karen | C121: 100 | F121: 100 | G121: 4
A124: Entrance Exam Scores | E124: Function | F124: % | G124: Result
A125: 32 | E125: PERCENTILE.EXC | F125: 0.75 | G125: =_xlfn.PERCENTILE.EXC($A$125:$A$614,F125) -> 76
A126: 43 | E126: PERCENTILE.INC | F126: 0.75 | G126: =_xlfn.PERCENTILE.INC($A$125:$A$614,F126) -> 76
A127: 86 | E127: QUARTILE.EXC | F127: 3 | G127: =_xlfn.QUARTILE.EXC($A$125:$A$614,F127) -> 76
A128: 63 | E128: QUARTILE.INC | F128: 3 | G128: =_xlfn.QUARTILE.INC($A$125:$A$614,F128) -> 76
A129: 36 | E129: PERCENTRANK.EXC | F129: 74 | G129: =_xlfn.PERCENTRANK.EXC($A$125:$A$614,F129) -> 0.686
A130: 36 | E130: PERCENTRANK.INC | F130: 74 | G130: =_xlfn.PERCENTRANK.INC($A$125:$A$614,F130) -> 0.687
A131: 52
A132: 88
A133: 51
A134: 89
A135: 44
A136: 39
A137: 10
A138: 74
A139: 82
A140: 20
A141: 14
A142: 43
A143: 10
A144: 41
A145: 44
A146: 86
A147: 89
A148: 78
A149: 30
A150: 8
A151: 13
A152: 4
A153: 38
A154: 83
A155: 70
A156: 37
A157: 69
A158: 86
A159: 63
A160: 23
A161: 20
A162: 23
A163: 61
A164: 60
A165: 93
A166: 75
A167: 29
A168: 11
A169: 29
A170: 2
A171: 25
A172: 94
A173: 73
A174: 56
A175: 6
A176: 33
A177: 27
A178: 64
A179: 5
A180: 72
A181: 87
A182: 2
A183: 33
A184: 48
A185: 12
A186: 57
A187: 42
A188: 41
A189: 89
A190: 63
A191: 26
A192: 78
A193: 86
A194: 60
A195: 34
A196: 7
A197: 39
A198: 10
A199: 94
A200: 47
A201: 71
A202: 29
A203: 16
A204: 72
A205: 45
A206: 1
A207: 10
A208: 81
A209: 51
A210: 78
A211: 20
A212: 32
A213: 60
A214: 82
A215: 64
A216: 77
A217: 68
A218: 43
A219: 8
A220: 83
A221: 15
A222: 79
A223: 65
A224: 74
A225: 2
A226: 78
A227: 59
A228: 79
... 388 more rows

Sheet Rank
A1: Sales Reps | B1: Sales | C1: RANK.EQ | D1: Percentile Rank | F1: RANK.AVE
A2: Sioux | B2: 57635
A3: Chris | B3: 77866
A4: Sue | B4: 72926
A5: Phil | B5: 61073
A6: Herb | B6: 76079
A7: Tina | B7: 76363
A8: Luong | B8: 72097
A9: Fred | B9: 56871
A10: Chin | B10: 74487
A11: Choi | B11: =B10 -> 74487
A13: RANK.EQ deals with ties as equal, RANK.AVE deals with ties by averaging the positional values; ex: (4+5)/2 = 4.5
A14: RANK.EQ or RANK.AVE function: ref is all the values, number is the particular value to rank, 0 = big to small (order)
A15: Screen shot of Rank & Percentile Excel tool:

Sheet Stock (hidden)
A1: Based on Average Returns, which stock do you prefer?
A3: Year | B3: Stock Returns A | C3: Stock Returns B
A4: 2001 | B4: 0.05 | C4: 0.02
A5: =A4+1 -> 2002 | B5: 0.1 | C5: 0.04
A6: 2003 | B6: 0.12 | C6: 0.035
A7: 2004 | B7: 0.17 | C7: 0.055
A8: 2005 | B8: 0.19 | C8: 0.04
A9: 2006 | B9: 0.01 | C9: 0.042
A10: 2007 | B10: -0.15 | C10: 0.043
A11: 2008 | B11: -0.03 | C11: 0.047
A12: 2009 | B12: 0.124 | C12: 0.05
A13: 2010 | B13: 0.055 | C13: 0.051
A14: 2011 | B14: 0.1 | C14: 0.03
A15: 2012 | B15: 0.065 | C15: 0.029
A16: 2013 | B16: -0.02 | C16: 0.046
A17: 2014 | B17: -0.22 | C17: 0.049
A18: 2015 | B18: 0.15 | C18: 0.041
A19: GeoMean | B19: =GEOMEAN(B4:B18+1)-1 -> 0.04116996113 | C19: =GEOMEAN(C4:C18+1)-1 -> 0.04115980256
A37: X | B37: =B3 -> Stock Returns A | D37: X | E37: =C3 -> Stock Returns B
A38: =B4 -> 0.05 | B38: 0.2 | D38: =C4 -> 0.02 | E38: 0.7
A39: 0.1 | B39: 0.2 | D39: 0.04 | E39: 0.7
A40: 0.12 | B40: 0.2 | D40: 0.035 | E40: 0.7
A41: 0.17 | B41: 0.2 | D41: 0.055 | E41: 0.7
A42: 0.19 | B42: 0.2 | D42: 0.04 | E42: 0.7
A43: 0.01 | B43: 0.2 | D43: 0.042 | E43: 0.7
A44: -0.15 | B44: 0.2 | D44: 0.043 | E44: 0.7
A45: -0.03 | B45: 0.2 | D45: 0.047 | E45: 0.7
A46: 0.124 | B46: 0.2 | D46: 0.05 | E46: 0.7
A47: 0.055 | B47: 0.2 | D47: 0.051 | E47: 0.7
A48: 0.1 | B48: 0.2 | D48: 0.03 | E48: 0.7
A49: 0.065 | B49: 0.2 | D49: 0.029 | E49: 0.7
A50: -0.02 | B50: 0.2 | D50: 0.046 | E50: 0.7
A51: -0.22 | B51: 0.2 | D51: 0.049 | E51: 0.7
A52: 0.15 | B52: 0.2 | D52: 0.041 | E52: 0.7
A54: X | B54: Average Stock A | D54: X | E54: Average Stock B
A55: =B19 -> 0.04116996113 | B55: 0.35 | D55: =C19 -> 0.04115980256 | E55: 0.9
A59: Lower | B59: Upper | C59: Return Bins | D59: RF Stock A | E59: RF Stock B
A60: -0.25 | B60: =A60+0.05 -> -0.2 | C60: =TEXT(A60,"0%")&CHAR(10)&"up to"&CHAR(10)&TEXT(B60,"0%") -> -25% up to -20% | D60: =COUNTIFS(B$4:B$18,">="&$A60,B$4:B$18,"<"&$B60)/$B$71 -> 0.06666666667 | E60: =COUNTIFS(C$4:C$18,">="&$A60,C$4:C$18,"<"&$B60)/$B$71 -> 0
A61: =B60 -> -0.2 | B61: -0.15 | C61: =TEXT(A61,"0%")&CHAR(10)&"up to"&CHAR(10)&TEXT(B61,"0%") -> -20% up to -15% | D61: 0 | E61: 0
A62: -0.15 | B62: -0.1 | C62: -15% up to -10% | D62: 0.06666666667 | E62: 0
A63: -0.1 | B63: -0.05 | C63: -10% up to -5% | D63: 0 | E63: 0
A64: -0.05 | B64: 0 | C64: -5% up to 0% | D64: 0.1333333333 | E64: 0
A65: 0 | B65: 0.05 | C65: 0% up to 5% | D65: 0.06666666667 | E65: 0.8
A66: 0.05 | B66: 0.1 | C66: 5% up to 10% | D66: 0.2 | E66: 0.2
A67: 0.1 | B67: 0.15 | C67: 10% up to 15% | D67: 0.2666666667 | E67: 0
A68: 0.15 | B68: 0.2 | C68: 15% up to 20% | D68: 0.2 | E68: 0
A69: 0.2 | B69: 0.25 | C69: 20% up to 25% | D69: 0 | E69: 0
A71: Count | B71: =COUNT(A4:A18) -> 15

Sheet Rank (an)
A1: Sales Reps | B1: Sales | C1: RANK.EQ | D1: Percentile Rank | F1: RANK.AVE | I1: Point | J1: Sales | K1: Rank | L1: Percent
A2: Sioux | B2: 57635 | C2: =_xlfn.RANK.EQ(B2,$B$2:$B$11,0) -> 9 | D2: =_xlfn.PERCENTRANK.INC($B$2:$B$11,B2) -> 0.111 | F2: =_xlfn.RANK.AVG(B2,$B$2:$B$11,0) -> 9 | I2: 2 | J2: 77866 | K2: 1 | L2: 1
A3: Chris | B3: 77866 | C3: =_xlfn.RANK.EQ(B3,$B$2:$B$11,0) -> 1 | D3: =_xlfn.PERCENTRANK.INC($B$2:$B$11,B3) -> 1 | F3: =_xlfn.RANK.AVG(B3,$B$2:$B$11,0) -> 1 | I3: 6 | J3: 76363 | K3: 2 | L3: 0.888
A4: Sue | B4: 72926 | C4: 6 | D4: 0.444 | F4: 6 | I4: 5 | J4: 76079 | K4: 3 | L4: 0.777
A5: Phil | B5: 61073 | C5: 8 | D5: 0.222 | F5: 8 | I5: 9 | J5: 74487 | K5: 4 | L5: 0.555
A6: Herb | B6: 76079 | C6: 3 | D6: 0.777 | F6: 3 | I6: 10 | J6: 74487 | K6: 4 | L6: 0.555
A7: Tina | B7: 76363 | C7: 2 | D7: 0.888 | F7: 2 | I7: 3 | J7: 72926 | K7: 6 | L7: 0.444
A8: Luong | B8: 72097 | C8: 7 | D8: 0.333 | F8: 7 | I8: 7 | J8: 72097 | K8: 7 | L8: 0.333
A9: Fred | B9: 56871 | C9: 10 | D9: 0 | F9: 10 | I9: 4 | J9: 61073 | K9: 8 | L9: 0.222
A10: Chin | B10: 74487 | C10: 4 | D10: 0.555 | F10: 4.5 | I10: 1 | J10: 57635 | K10: 9 | L10: 0.111
A11: Choi | B11: =B10 -> 74487 | C11: 4 | D11: 0.555 | F11: 4.5 | I11: 8 | J11: 56871 | K11: 10 | L11: 0
A13: RANK.EQ deals with ties as equal, RANK.AVE deals with ties by averaging the positional values; ex: (4+5)/2 = 4.5
A14: RANK.EQ or RANK.AVE function: ref is all the values, number is the particular value to rank, 0 = big to small (order)
A15: Screen shot of Rank & Percentile Excel tool:

Sheet V(1)
A1: Which Mean More Fairly Represents Its Data Points?
A3: Month | B3: # of Hours/Week worked Job 1 | C3: # of Hours/Week worked Job 2
A4: 2014-03-16 | B4: 55 | C4: 35
A5: =A4+7 -> 2014-03-23 | B5: 25 | C5: 34
A6: =A5+7 -> 2014-03-30 | B6: 62 | C6: 36
A7: 2014-04-06 | B7: 15 | C7: 37
A8: 2014-04-13 | B8: 34 | C8: 43
A9: 2014-04-20 | B9: 19 | C9: 32
A10: 2014-04-27 | B10: 38 | C10: 33
A11: 2014-05-04 | B11: 29 | C11: 35
A12: 2014-05-11 | B12: 64 | C12: 36
A13: 2014-05-18 | B13: 31 | C13: 37
A14: 2014-05-25 | B14: 59 | C14: 35
A15: 2014-06-01 | B15: 12 | C15: 39
A16: 2014-06-08 | B16: 15 | C16: 32
A17: 2014-06-15 | B17: 42 | C17: 31
A18: 2014-06-22 | B18: 25 | C18: 30
A19: Mean | B19: =AVERAGE(B4:B18) -> 35 | C19: 35
A44: X | B44: =B3 -> # of Hours/Week worked Job 1 | D44: X | E44: =C3 -> # of Hours/Week worked Job 2
A45: =B4 -> 55 | B45: 0.2 | D45: =C4 -> 35 | E45: 0.7
A46: 25 | B46: 0.2 | D46: 34 | E46: 0.7
A47: 62 | B47: 0.2 | D47: 36 | E47: 0.7
A48: 15 | B48: 0.2 | D48: 37 | E48: 0.7
A49: 34 | B49: 0.2 | D49: 43 | E49: 0.7
A50: 19 | B50: 0.2 | D50: 32 | E50: 0.7
A51: 38 | B51: 0.2 | D51: 33 | E51: 0.7
A52: 29 | B52: 0.2 | D52: 35 | E52: 0.7
A53: 64 | B53: 0.2 | D53: 36 | E53: 0.7
A54: 31 | B54: 0.2 | D54: 37 | E54: 0.7
A55: 59 | B55: 0.2 | D55: 35 | E55: 0.7
A56: 12 | B56: 0.2 | D56: 39 | E56: 0.7
A57: 15 | B57: 0.2 | D57: 32 | E57: 0.7
A58: 42 | B58: 0.2 | D58: 31 | E58: 0.7
A59: 25 | B59: 0.2 | D59: 30 | E59: 0.7
A61: X | B61: Ave Hours/Week Job 1 | D61: X | E61: Ave Hours/Week Job 2
A62: =B19 -> 35 | B62: 0.35 | D62: =C19 -> 35 | E62: 0.9
A66: Lower | B66: Upper | C66: Hour Bins | D66: RF Job 1 | E66: RF Job 2
A67: 10 | B67: =A67+10 -> 20 | C67: =A67&" up to "&B67 -> 10 up to 20 | D67: =COUNTIFS(B$4:B$18,">="&$A67,B$4:B$18,"<"&$B67)/$B$74 -> 0.2666666667 | E67: 0
A68: =B67 -> 20 | B68: =A68+10 -> 30 | C68: 20 up to 30 | D68: 0.2 | E68: 0
A69: =B68 -> 30 | B69: =A69+10 -> 40 | C69: 30 up to 40 | D69: 0.2 | E69: 0.9333333333
A70: 40 | B70: 50 | C70: 40 up to 50 | D70: 0.06666666667 | E70: 0.06666666667
A71: 50 | B71: 60 | C71: 50 up to 60 | D71: 0.1333333333 | E71: 0
A72: 60 | B72: 70 | C72: 60 up to 70 | D72: 0.1333333333 | E72: 0
A74: Count | B74: =COUNT(A4:A18) -> 15

Sheet V(2)
A1: Where are gas prices more volatile? | Y1: Gas Prices Burien | Z1: Gas Prices Seattle
Y2: =ROUND(CHOOSE(RANDBETWEEN(1,3),RANDBETWEEN(204,349),RANDBETWEEN(227,279),_xlfn.NORM.INV(RAND(),239,5))/100,2) -> 2.68 | Z2: =ROUND(CHOOSE(RANDBETWEEN(1,3),RANDBETWEEN(199,389),RANDBETWEEN(217,299),_xlfn.NORM.INV(RAND(),249,7))/100,2) -> 3.24
A3: Sample | B3: Gas Prices Burien | C3: Gas Prices Seattle
A4: Sample 1 | B4: 3.01 | C4: 3.86
A5: Sample 2 | B5: 2.35 | C5: 2.93
A6: Sample 3 | B6: 2.47 | C6: 2.42
A7: Sample 4 | B7: 2.48 | C7: 1.99
A8: Sample 5 | B8: 2.28 | C8: 2.51
A9: Sample 6 | B9: 2.6 | C9: 2.6
A10: Sample 7 | B10: 3.31 | C10: 2.52
A11: Sample 8 | B11: 2.37 | C11: 2.48
A12: Sample 9 | B12: 2.52 | C12: 2.46
A13: Sample 10 | B13: 2.5 | C13: 2.44
A14: Sample 11 | B14: 2.37 | C14: 2.42
A15: Sample 12 | B15: 3.01 | C15: 3.56
A16: Sample 13 | B16: 2.36 | C16: 2.39
A17: Sample 14 | B17: 2.45 | C17: 2.79
A18: Sample 15 | B18: 2.38 | C18: 2.58
A19: Xbar | B19: =AVERAGE(B4:B18) -> 2.564 | C19: 2.663333333
A40: X | B40: =B3 -> Gas Prices Burien | D40: X | E40: =C3 -> Gas Prices Seattle
A41: =B4 -> 3.01 | B41: 0.2 | D41: =C4 -> 3.86 | E41: 0.7
A42: 2.35 | B42: 0.2 | D42: 2.93 | E42: 0.7
A43: 2.47 | B43: 0.2 | D43: 2.42 | E43: 0.7
A44: 2.48 | B44: 0.2 | D44: 1.99 | E44: 0.7
A45: 2.28 | B45: 0.2 | D45: 2.51 | E45: 0.7
A46: 2.6 | B46: 0.2 | D46: 2.6 | E46: 0.7
A47: 3.31 | B47: 0.2 | D47: 2.52 | E47: 0.7
A48: 2.37 | B48: 0.2 | D48: 2.48 | E48: 0.7
A49: 2.52 | B49: 0.2 | D49: 2.46 | E49: 0.7
A50: 2.5 | B50: 0.2 | D50: 2.44 | E50: 0.7
A51: 2.37 | B51: 0.2 | D51: 2.42 | E51: 0.7
A52: 3.01 | B52: 0.2 | D52: 3.56 | E52: 0.7
A53: 2.36 | B53: 0.2 | D53: 2.39 | E53: 0.7
A54: 2.45 | B54: 0.2 | D54: 2.79 | E54: 0.7
A55: 2.38 | B55: 0.2 | D55: 2.58 | E55: 0.7
A57: X | B57: ="Mean "&B40 -> Mean Gas Prices Burien | D57: X | E57: ="Mean "&E40 -> Mean Gas Prices Seattle
A58: =B19 -> 2.564 | B58: 0.35 | D58: =C19 -> 2.663333333 | E58: 0.9
A62: Lower | B62: Upper | C62: Return Bins | D62: RF Stock A | E62: RF Stock B
A63: 1.8 | B63: =A63+0.2 -> 2 | C63: =TEXT(A63,"$0.00")&CHAR(10)&"up to"&CHAR(10)&TEXT(B63,"$0.00") -> $1.80 up to $2.00 | D63: =COUNTIFS(B$4:B$18,">="&$A63,B$4:B$18,"<"&$B63)/$B$75 -> 0 | E63: 0.06666666667
A64: =B63 -> 2 | B64: =A64+0.2 -> 2.2 | C64: =TEXT(A64,"$0.00")&CHAR(10)&"up to"&CHAR(10)&TEXT(B64,"$0.00") -> $2.00 up to $2.20 | D64: 0 | E64: 0
A65: 2.2 | B65: 2.4 | C65: $2.20 up to $2.40 | D65: 0.4 | E65: 0.06666666667
A66: 2.4 | B66: 2.6 | C66: $2.40 up to $2.60 | D66: 0.3333333333 | E66: 0.5333333333
A67: 2.6 | B67: 2.8 | C67: $2.60 up to $2.80 | D67: 0.06666666667 | E67: 0.1333333333
A68: 2.8 | B68: 3 | C68: $2.80 up to $3.00 | D68: 0 | E68: 0.06666666667
A69: 3 | B69: 3.2 | C69: $3.00 up to $3.20 | D69: 0.1333333333 | E69: 0
A70: 3.2 | B70: 3.4 | C70: $3.20 up to $3.40 | D70: 0.06666666667 | E70: 0
A71: =B70 -> 3.4 | B71: 3.6 | C71: $3.40 up to $3.60 | D71: =COUNTIFS(B$4:B$18,">="&$A71,B$4:B$18,"<"&$B71)/$B$75 -> 0 | E71: =COUNTIFS(C$4:C$18,">="&$A71,C$4:C$18,"<"&$B71)/$B$75 -> 0.06666666667
A72: 3.6 | B72: 3.8 | C72: $3.60 up to $3.80 | D72: 0 | E72: 0
A73: 3.8 | B73: 4 | C73: $3.80 up to $4.00 | D73: 0 | E73: 0.06666666667
A75: Count | B75: =COUNTA(A4:A18) -> 15

Sheet V(3)
A1: Based on Average Days To Fill Order, which supplier is more reliable?
A3: Order # | B3: Days to fill order Banderson's | C3: Days to fill order Plywood & Floor
A4: Order 1 | B4: 4 | C4: 10
A5: Order 2 | B5: 6 | C5: 11
A6: Order 3 | B6: 12 | C6: 9
A7: Order 4 | B7: 11 | C7: 9
A8: Order 5 | B8: 13 | C8: 10
A9: Order 6 | B9: 16 | C9: 8
A10: Order 7 | B10: 5 | C10: 9
A11: Order 8 | B11: 8 | C11: 10
A12: Order 9 | B12: 9 | C12: 10
A13: Order 10 | B13: 6 | C13: 9
A14: Order 11 | B14: 8 | C14: 8
A15: Order 12 | B15: 6 | C15: 9
A16: Order 13 | B16: 12 | C16: 6
A17: Order 14 | B17: 6 | C17: 8
A18: Order 15 | B18: 13 | C18: 9
A19: Mean | B19: =AVERAGE(B4:B18) -> 9 | C19: 9
A48: X | B48: =B3 -> Days to fill order Banderson's | D48: X | E48: =C3 -> Days to fill order Plywood & Floor
A49: =B4 -> 4 | B49: 0.2 | D49: =C4 -> 10 | E49: 0.7
A50: 6 | B50: 0.2 | D50: 11 | E50: 0.7
A51: 12 | B51: 0.2 | D51: 9 | E51: 0.7
A52: 11 | B52: 0.2 | D52: 9 | E52: 0.7
A53: 13 | B53: 0.2 | D53: 10 | E53: 0.7
A54: 16 | B54: 0.2 | D54: 8 | E54: 0.7
A55: 5 | B55: 0.2 | D55: 9 | E55: 0.7
A56: 8 | B56: 0.2 | D56: 10 | E56: 0.7
A57: 9 | B57: 0.2 | D57: 10 | E57: 0.7
A58: 6 | B58: 0.2 | D58: 9 | E58: 0.7
A59: 8 | B59: 0.2 | D59: 8 | E59: 0.7
A60: 6 | B60: 0.2 | D60: 9 | E60: 0.7
A61: 12 | B61: 0.2 | D61: 6 | E61: 0.7
A62: 6 | B62: 0.2 | D62: 8 | E62: 0.7
A63: 13 | B63: 0.2 | D63: 9 | E63: 0.7
A65: X | B65: Ave Days To Fill Order, Banderson's | D65: X | E65: Ave Days To Fill Order, Plywood & Floor
A66: =B19 -> 9 | B66: 0.35 | D66: =C19 -> 9 | E66: 0.9
A69: Days | B69: RF Banderson's | C69: RF Plywood & Floor
A70: 4 | B70: =COUNTIFS(B$4:B$18,$A70)/$B$85 -> 0.06666666667 | C70: 0
A71: 5 | B71: 0.06666666667 | C71: 0
A72: 6 | B72: 0.2666666667 | C72: 0.06666666667
A73: 7 | B73: 0 | C73: 0
A74: 8 | B74: 0.1333333333 | C74: 0.2
A75: 9 | B75: 0.06666666667 | C75: 0.4
A76: 10 | B76: 0 | C76: 0.2666666667
A77: 11 | B77: 0.06666666667 | C77: 0.06666666667
A78: 12 | B78: 0.1333333333 | C78: 0
A79: 13 | B79: 0.1333333333 | C79: 0
A80: 14 | B80: 0 | C80: 0
A81: 15 | B81: 0 | C81: 0
A82: 16 | B82: 0.06666666667 | C82: 0
A83: Total | B83: =SUM(B70:B82) -> 1 | C83: =SUM(C70:C82) -> 1
A85: Count | B85: =COUNTA(A4:A18) -> 15

Sheet V(4)
A1: Variability
A2: Dispersion
A3: Spread In Data
A4: How Spread Out Is Data?
A5: Are the Data Points Clustered Around the Mean?
A6: Does the Mean Fairly Represent the Data Points?
A7: Visually Portray Variability
A8: Create X-Y Scatter Diagram
C10: X | D10: Mean Days for S 1 | F10: X | G10: Mean Days for S 2
A11: Mean | C11: =AVERAGE(C14:C28) -> 9 | F11: =AVERAGE(F14:F28) -> 9
A13: Order # | C13: X | D13: Days to fill order Banderson's | F13: X | G13: Days to fill order Plywood & Floor
A14: Order 1 | C14: 4 | F14: 10
A15: Order 2 | C15: 6 | F15: 11
A16: Order 3 | C16: 12 | F16: 9
A17: Order 4 | C17: 11 | F17: 9
A18: Order 5 | C18: 13 | F18: 10
A19: Order 6 | C19: 16 | F19: 8
A20: Order 7 | C20: 5 | F20: 9
A21: Order 8 | C21: 8 | F21: 10
A22: Order 9 | C22: 9 | F22: 10
A23: Order 10 | C23: 6 | F23: 9
A24: Order 11 | C24: 8 | F24: 8
A25: Order 12 | C25: 6 | F25: 9
A26: Order 13 | C26: 12 | F26: 6
A27: Order 14 | C27: 6 | F27: 8
A28: Order 15 | C28: 13 | F28: 9 | G28: 1

Sheet V(4an)
A1: Variability
A2: Dispersion
A3: Spread In Data
A4: How Spread Out Is Data?
A5: Are the Data Points Clustered Around the Mean?
A6: Does the Mean Fairly Represent the Data Points?
A7: Visually Portray Variability
A8: Create X-Y Scatter Diagram
C10: X | D10: Mean Days for S 1 | F10: X | G10: Mean Days for S 2
A11: Mean | C11: =AVERAGE(C14:C28) -> 9 | D11: 0.75 | F11: =AVERAGE(F14:F28) -> 9 | G11: 1.25
A13: Order # | C13: X | D13: Days to fill order Banderson's | F13: X | G13: Days to fill order Plywood & Floor
A14: Order 1 | C14: 4 | D14: 0.5 | F14: 10 | G14: 1
A15: Order 2 | C15: 6 | D15: 0.5 | F15: 11 | G15: 1
A16: Order 3 | C16: 12 | D16: 0.5 | F16: 9 | G16: 1
A17: Order 4 | C17: 11 | D17: 0.5 | F17: 9 | G17: 1
A18: Order 5 | C18: 13 | D18: 0.5 | F18: 10 | G18: 1
A19: Order 6 | C19: 16 | D19: 0.5 | F19: 8 | G19: 1
A20: Order 7 | C20: 5 | D20: 0.5 | F20: 9 | G20: 1
A21: Order 8 | C21: 8 | D21: 0.5 | F21: 10 | G21: 1
A22: Order 9 | C22: 9 | D22: 0.5 | F22: 10 | G22: 1
A23: Order 10 | C23: 6 | D23: 0.5 | F23: 9 | G23: 1
A24: Order 11 | C24: 8 | D24: 0.5 | F24: 8 | G24: 1
A25: Order 12 | C25: 6 | D25: 0.5 | F25: 9 | G25: 1
A26: Order 13 | C26: 12 | D26: 0.5 | F26: 6 | G26: 1
A27: Order 14 | C27: 6 | D27: 0.5 | F27: 8 | G27: 1
A28: Order 15 | C28: 13 | D28: 0.5 | F28: 9 | G28: 1

Sheet V(5)
A15: Order # | B15: Days to fill order Banderson's | C15: Days to fill order Plywood & Floor | E15: Range
A16: Order 1 | B16: 4 | C16: 10 | E16: Max - Min
A17: Order 2 | B17: 6 | C17: 11 | E17: Simple to calculate. It is very sensitive to the smallest and largest data values (extreme values).
A18: Order 3 | B18: 12 | C18: 9
A19: Order 4 | B19: 11 | C19: 9 | F19: =B15 -> Days to fill order Banderson's | G19: =C15 -> Days to fill order Plywood & Floor
A20: Order 5 | B20: 13 | C20: 10 | E20: Max
A21: Order 6 | B21: 16 | C21: 8 | E21: Min
A22: Order 7 | B22: 5 | C22: 9 | E22: Range
A23: Order 8 | B23: 8 | C23: 10
A24: Order 9 | B24: 9 | C24: 10 | E24: Interquartile Range
A25: Order 10 | B25: 6 | C25: 9 | E25: Quartile 3 - Quartile 1
A26: Order 11 | B26: 8 | C26: 8 | E26: The range for the middle 50% of the data. It overcomes the sensitivity to extreme data values.
A27: Order 12 | B27: 6 | C27: 9
A28: Order 13 | B28: 12 | C28: 6 | E28: ="Quartile "&H28 -> Quartile 1 | H28: 1
A29: Order 14 | B29: 6 | C29: 8 | E29: ="Quartile "&H29 -> Quartile 3 | H29: 3
A30: Order 15 | B30: 13 | C30: 9 | E30: Interquartile Range
A31: Mean | B31: =AVERAGE(B16:B30) -> 9 | C31: 9

Sheet V(5an)
A15: Order # | B15: Days to fill order Banderson's | C15: Days to fill order Plywood & Floor | E15: Range
A16: Order 1 | B16: 4 | C16: 10 | E16: Max - Min
A17: Order 2 | B17: 6 | C17: 11 | E17: Simple to calculate. It is very sensitive to the smallest and largest data values (extreme values).
A18: Order 3 | B18: 12 | C18: 9
A19: Order 4 | B19: 11 | C19: 9 | F19: =B15 -> Days to fill order Banderson's | G19: =C15 -> Days to fill order Plywood & Floor
A20: Order 5 | B20: 13 | C20: 10 | E20: Max | F20: =MAX(B16:B30) -> 16 | G20: =MAX(C16:C30) -> 11
A21: Order 6 | B21: 16 | C21: 8 | E21: Min | F21: =MIN(B16:B30) -> 4 | G21: =MIN(C16:C30) -> 6
A22: Order 7 | B22: 5 | C22: 9 | E22: Range | F22: =F20-F21 -> 12 | G22: 5
A23: Order 8 | B23: 8 | C23: 10
A24: Order 9 | B24: 9 | C24: 10 | E24: Interquartile Range
A25: Order 10 | B25: 6 | C25: 9 | E25: Quartile 3 - Quartile 1
A26: Order 11 | B26: 8 | C26: 8 | E26: The range for the middle 50% of the data. It overcomes the sensitivity to extreme data values.
A27: Order 12 | B27: 6 | C27: 9
A28: Order 13 | B28: 12 | C28: 6 | E28: ="Quartile "&H28 -> Quartile 1 | F28: =_xlfn.QUARTILE.EXC(B$16:B$30,$H28) -> 6 | G28: =_xlfn.QUARTILE.EXC(C$16:C$30,$H28) -> 8 | H28: 1
A29: Order 14 | B29: 6 | C29: 8 | E29: ="Quartile "&H29 -> Quartile 3 | F29: =_xlfn.QUARTILE.EXC(B$16:B$30,$H29) -> 12 | G29: =_xlfn.QUARTILE.EXC(C$16:C$30,$H29) -> 10 | H29: 3
A30: Order 15 | B30: 13 | C30: 9 | E30: Interquartile Range | F30: =F29-F28 -> 6 | G30: 2
A31: Mean | B31: =AVERAGE(B16:B30) -> 9 | C31: 9

Sheet V(6)
A1: Variability
A2: Dispersion
A3: Spread In Data
A4: How Spread Out Is Data?
A5: Are the Data Points Clustered Around the Mean?
A6: Does the Mean Fairly Represent the Data Points?
A7: Range
A8: Max - Min
A9: Simple to calculate. Sensitive to extreme values
A10: Interquartile Range
A11: Quartile 3 - Quartile 1 | K11: These two not required for this class:
A12: The range for the middle 50% of the data. It overcomes the sensitivity to extreme values
A13: Deviation | K13: Alternative for variability measure called Mean Absolute Error
A14: How far one datum is from the mean. "How far above or below the mean is the particular value?"
A15: "Deviation about the mean"
A16: For any data set, the sum of the deviations is always zero!!!! This is why mathematically, we either square (Variance or Standard Deviation) or take the absolute value (Mean Absolute Value)
A17: Variance
A18: A Numerical Measure that says how much variability there is in the data points
A19: Variance uses all the data points, not just some like Range and Interquartile Range
A20: Variance has squared units, which makes interpreting it difficult. Standard Deviation undoes the squared units and is thus easier to interpret and is more commonly used | K20: ALTERNATIVE TO CALCULATE Sample SD
A21: Use STDEV. Function
A22: Standard Deviation = SD
A23: Standard Deviation uses all the data points, not just some like Range and Interquartile Range
A24: Standard Deviation does not have squared units (like Variance) and is thus easier to interpret; the standard deviation has the same units as the data!!
A25: Population SD = "little sigma" = s ; Sample SD = s | E25: Xbar | F25: = | G25: Sample Mean | H25: "Xbar"
A26: The sample standard deviation is a point estimator of the population standard deviation | E26: µ | F26: = | G26: Population Mean | H26: "Mew"
A27: Interpretation of Standard Deviation: | E27: s | F27: = | G27: Sample Standard Deviation | H27: "s"
A28: A Numerical Measure that says how much variability there is in the data points | E28: s | F28: = | G28: Sample Standard Deviation | H28: "sigma"
A29: Standard Deviation Is Like An Average Of The Deviations | E29: xi | F29: = | G29: Particular Value | H29: "x sub i"
A30: Standard Deviation tells us how fairly the mean represents its data points | E30: ∑ | F30: = | G30: Greek Letter used for "adding" | H30: "Sigma"
A31: Standard Deviation tells us how clustered the data points are around the mean | E31: n | F31: = | G31: Count of sample items | H31: "n"
A32: For financial assets standard deviation is a measure of risk or fluctuation in asset value | E32: N | F32: = | G32: Count of population items | H32: "n"

Sheet V(7)
A1: Deviation
A2: How far one datum is from the mean
A3: Sample Standard Deviation
A4: A Numerical Measure that says how much variability there is in the data points
A5: Standard Deviation Is Like An Average Of The Deviations
A6: Standard Deviation tells us how fairly the mean represents its data points
A7: Standard Deviation tells us how clustered the data points are around the mean
A9: Based on Average Days to Fill Order, which Supplier do you prefer? It is hard to know, without looking at the volatility of past delivery times.
A10: Count
A11: Count -1 | F11: Sample data divided by just the count underestimates
A12: Mean = Xbar | F12: What minus one does: 10/5 = 2, but 10/(5-1) = 2.5
A13: Order # | B13: Days to fill order Banderson's, xi | C13: Deviation Xi - Xbar | D13: Deviation ^2 (Xi - Xbar)^2 | E13: Days to fill order Plywood & Floor | F13: Deviation Xi - Xbar | G13: Deviation ^2 (Xi - Xbar)^2
A14: Order 1 | B14: 4 | E14: 10
A15: Order 2 | B15: 6 | E15: 11
A16: Order 3 | B16: 12 | E16: 9
A17: Order 4 | B17: 11 | E17: 9
A18: Order 5 | B18: 13 | E18: 10
A19: Order 6 | B19: 16 | E19: 8
A20: Order 7 | B20: 5 | E20: 9
A21: Order 8 | B21: 8 | E21: 10
A22: Order 9 | B22: 9 | E22: 10
A23: Order 10 | B23: 6 | E23: 9
A24: Order 11 | B24: 8 | E24: 8
A25: Order 12 | B25: 6 | E25: 9
A26: Order 13 | B26: 12 | E26: 6
A27: Order 14 | B27: 6 | E27: 8
A28: Order 15 | B28: 13 | E28: 9
B29: Total
A30: Sum Deviations ALWAYS = 0!
A31: Why we have to square!!!
B32: Sample Variance = s2 | H32: Units are squared
B33: Sample Variance = s2 | H33: VAR.S (Variance for Sample)
B34: Sample Standard Deviation = s | H34: Square root to get back to same unit
H35: STDEV.S (Standard Deviation for Sample)
H36: The sample SD, s, is a point estimator of the population SD, sigma σ
H37: Which mean more fairly represents its data points?
A62: ALTERNATIVE TO CALCULATE Sample SD
A68: Count | B68: =COUNT(B72:B86) -> 15 | E68: =COUNT(E72:E86) -> 15
A69: Count -1 | B69: =B68-1 -> 14 | E69: =E68-1 -> 14
A70: Mean = Xbar | B70: =AVERAGE(B72:B86) -> 9 | E70: =AVERAGE(E72:E86) -> 9
A71: Order # | B71: Days to fill order Banderson's, xi | C71: xi^2 | E71: Days to fill order Plywood & Floor | F71: xi^2
A72: Order 1 | B72: 4 | C72: =B72^2 -> 16 | E72: 10 | F72: =E72^2 -> 100
A73: Order 2 | B73: 6 | C73: 36 | E73: 11 | F73: 121
A74: Order 3 | B74: 12 | C74: 144 | E74: 9 | F74: 81
A75: Order 4 | B75: 11 | C75: 121 | E75: 9 | F75: 81
A76: Order 5 | B76: 13 | C76: 169 | E76: 10 | F76: 100
A77: Order 6 | B77: 16 | C77: 256 | E77: 8 | F77: 64
A78: Order 7 | B78: 5 | C78: 25 | E78: 9 | F78: 81
A79: Order 8 | B79: 8 | C79: 64 | E79: 10 | F79: 100
A80: Order 9 | B80: 9 | C80: 81 | E80: 10 | F80: 100
A81: Order 10 | B81: 6 | C81: 36 | E81: 9 | F81: 81
A82: Order 11 | B82: 8 | C82: 64 | E82: 8 | F82: 64
A83: Order 12 | B83: 6 | C83: 36 | E83: 9 | F83: 81
A84: Order 13 | B84: 12 | C84: 144 | E84: 6 | F84: 36
A85: Order 14 | B85: 6 | C85: 36 | E85: 8 | F85: 64
A86: Order 15 | B86: 13 | C86: 169 | E86: 9 | F86: 81
B88: Total | C88: =SUM(C72:C86) -> 1397 | E88: Total | F88: =SUM(F72:F86) -> 1235
B89: s | C89: =SQRT((C88-B68*B70^2)/B69) -> 3.605551275 | E89: s | F89: =SQRT((F88-E68*E70^2)/E69) -> 1.195228609
A92: Alternative for variability measure called Mean Absolute Error
A97: Count | B97: =COUNT(B100:B114) -> 15 | E97: =COUNT(E100:E114) -> 15
A98: Mean = Xbar | B98: =AVERAGE(B100:B114) -> 9 | E98: =AVERAGE(E100:E114) -> 9
A99: Order # | B99: Days to fill order Banderson's, xi | C99: ABS(Xi - Xbar) | E99: Days to fill order Plywood & Floor | F99: ABS(Xi - Xbar)
A100: Order 1 | B100: 4 | C100: =ABS(B100-B$98) -> 5 | E100: 10 | F100: =ABS(E100-E$98) -> 1
A101: Order 2 | B101: 6 | C101: 3 | E101: 11 | F101: 2
A102: Order 3 | B102: 12 | C102: 3 | E102: 9 | F102: 0
A103: Order 4 | B103: 11 | C103: 2 | E103: 9 | F103: 0
A104: Order 5 | B104: 13 | C104: 4 | E104: 10 | F104: 1
A105: Order 6 | B105: 16 | C105: 7 | E105: 8 | F105: 1
A106: Order 7 | B106: 5 | C106: 4 | E106: 9 | F106: 0
A107: Order 8 | B107: 8 | C107: 1 | E107: 10 | F107: 1
A108: Order 9 | B108: 9 | C108: 0 | E108: 10 | F108: 1
A109: Order 10 | B109: 6 | C109: 3 | E109: 9 | F109: 0
A110: Order 11 | B110: 8 | C110: 1 | E110: 8 | F110: 1
A111: Order 12 | B111: 6 | C111: 3 | E111: 9 | F111: 0
A112: Order 13 | B112: 12 | C112: 3 | E112: 6 | F112: 3
A113: Order 14 | B113: 6 | C113: 3 | E113: 8 | F113: 1
A114: Order 15 | B114: 13 | C114: 4 | E114: 9 | F114: 0
B116: Total | C116: =SUM(C100:C114) -> 46 | E116: Total | F116: =SUM(F100:F114) -> 12
B117: s | C117: =C116/B97 -> 3.066666667 | E117: s | F117: =F116/E97 -> 0.8
C118: =AVEDEV(B100:B114 ) -> 3.066666667 | F118: =AVEDEV(E100:E114 ) -> 0.8 | G118: AVEDEV (Mean Absolute Error or Average Absolute Deviations)
A123: Which Mean More Fairly Represents Its Data Points?
A125: Month | B125: # of Hours/Week worked Job 1 | C125: # of Hours/Week worked Job 2
A126: 2014-03-16 | B126: 55 | C126: 35
A127: =A126+7 -> 2014-03-23 | B127: 25 | C127: 34
A128: =A127+7 -> 2014-03-30 | B128: 62 | C128: 36
A129: 2014-04-06 | B129: 15 | C129: 37
A130: 2014-04-13 | B130: 34 | C130: 43
A131: 2014-04-20 | B131: 19 | C131: 32
A132: 2014-04-27 | B132: 38 | C132: 33
A133: 2014-05-04 | B133: 29 | C133: 35
A134: 2014-05-11 | B134: 64 | C134: 36
A135: 2014-05-18 | B135: 31 | C135: 37
A136: 2014-05-25 | B136: 59 | C136: 35
A137: 2014-06-01 | B137: 12 | C137: 39
A138: 2014-06-08 | B138: 15 | C138: 32
A139: 2014-06-15 | B139: 42 | C139: 31
A140: 2014-06-22 | B140: 25 | C140: 30
A141: Mean | B141: =AVERAGE(B126:B140) -> 35 | C141: 35
A143: Sample SD
A146: Where are gas prices more volatile?
A148: Sample | B148: Gas Prices Burien | C148: Gas Prices Seattle
A149: Sample 1 | B149: 3.01 | C149: 3.86
A150: Sample 2 | B150: 2.35 | C150: 2.93
A151: Sample 3 | B151: 2.47 | C151: 2.42
A152: Sample 4 | B152: 2.48 | C152: 1.99
A153: Sample 5 | B153: 2.28 | C153: 2.51
A154: Sample 6 | B154: 2.6 | C154: 2.6
A155: Sample 7 | B155: 3.31 | C155: 2.52
A156: Sample 8 | B156: 2.37 | C156: 2.48
A157: Sample 9 | B157: 2.52 | C157: 2.46
A158: Sample 10 | B158: 2.5 | C158: 2.44
A159: Sample 11 | B159: 2.37 | C159: 2.42
A160: Sample 12 | B160: 3.01 | C160: 3.56
A161: Sample 13 | B161: 2.36 | C161: 2.39
A162: Sample 14 | B162: 2.45 | C162: 2.79
A163: Sample 15 | B163: 2.38 | C163: 2.58
A164: Xbar | B164: =AVERAGE(B149:B163) -> 2.564 | C164: 2.663333333
A166: Sample SD

Sheet V(7an)
A1: Deviation
A2: How far one datum is from the mean
A3: Sample Standard Deviation
A4: A Numerical Measure that says how much variability there is in the data points
A5: Standard Deviation Is Like An Average Of The Deviations
A6: Standard Deviation tells us how fairly the mean represents its data points
A7: Standard Deviation tells us how clustered the data points are around the mean
A9: Based on Average Days to Fill Order, which Supplier do you prefer? It is hard to know, without looking at the volatility of past delivery times.
A10: Count | B10: =COUNT(B14:B28) -> 15 | E10: =COUNT(E14:E28) -> 15
A11: Count -1 | B11: =B10-1 -> 14 | E11: =E10-1 -> 14 | F11: Sample data divided by just the count underestimates
A12: Mean = Xbar | B12: =AVERAGE(B14:B28) -> 9 | E12: =AVERAGE(E14:E28) -> 9 | F12: What minus one does: 10/5 = 2, but 10/(5-1) = 2.5
A13: Order # | B13: Days to fill order Banderson's, xi | C13: Deviation Xi - Xbar | D13: Deviation ^2 (Xi - Xbar)^2 | E13: Days to fill order Plywood & Floor | F13: Deviation Xi - Xbar | G13: Deviation ^2 (Xi - Xbar)^2
A14: Order 1 | B14: 4 | C14: =B14-B$12 -> -5 | D14: =C14^2 -> 25 | E14: 10 | F14: =E14-E$12 -> 1 | G14: =F14^2 -> 1
A15: Order 2 | B15: 6 | C15: -3 | D15: 9 | E15: 11 | F15: 2 | G15: 4
A16: Order 3 | B16: 12 | C16: 3 | D16: 9 | E16: 9 | F16: 0 | G16: 0
A17: Order 4 | B17: 11 | C17: 2 | D17: 4 | E17: 9 | F17: 0 | G17: 0
A18: Order 5 | B18: 13 | C18: 4 | D18: 16 | E18: 10 | F18: 1 | G18: 1
A19: Order 6 | B19: 16 | C19: 7 | D19: 49 | E19: 8 | F19: -1 | G19: 1
A20: Order 7 | B20: 5 | C20: -4 | D20: 16 | E20: 9 | F20: 0 | G20: 0
A21: Order 8 | B21: 8 | C21: -1 | D21: 1 | E21: 10 | F21: 1 | G21: 1
A22: Order 9 | B22: 9 | C22: 0 | D22: 0 | E22: 10 | F22: 1 | G22: 1
A23: Order 10 | B23: 6 | C23: -3 | D23: 9 | E23: 9 | F23: 0 | G23: 0
A24: Order 11 | B24: 8 | C24: -1 | D24: 1 | E24: 8 | F24: -1 | G24: 1
A25: Order 12 | B25: 6 | C25: -3 | D25: 9 | E25: 9 | F25: 0 | G25: 0
A26: Order 13 | B26: 12 | C26: 3 | D26: 9 | E26: 6 | F26: -3 | G26: 9
A27: Order 14 | B27: 6 | C27: -3 | D27: 9 | E27: 8 | F27: -1 | G27: 1
A28: Order 15 | B28: 13 | C28: 4 | D28: 16 | E28: 9 | F28: 0 | G28: 0
B29: Total | C29: =SUM(C14:C28) -> 0 | D29: =SUM(D14:D28) -> 182 | F29: =SUM(F14:F28) -> 0 | G29: =SUM(G14:G28) -> 20
A30: Sum Deviations ALWAYS = 0!
A31: Why we have to square!!!
B32: Sample Variance = s2 | D32: =D29/B11 -> 13 | G32: =G29/E11 -> 1.428571429 | H32: Units are squared
B33: Sample Variance = s2 | D33: =_xlfn.VAR.S(B14:B28) -> 13 | G33: =_xlfn.VAR.S(E14:E28) -> 1.428571429 | H33: VAR.S (Variance for Sample)
B34: Sample Standard Deviation = s | D34: =SQRT(D32) -> 3.605551275 | G34: =SQRT(G32) -> 1.195228609 | H34: Square root to get back to same unit
D35: =_xlfn.STDEV.S(B14:B28) -> 3.605551275 | G35: =_xlfn.STDEV.S(E14:E28) -> 1.195228609 | H35: STDEV.S (Standard Deviation for Sample)
H36: The sample SD, s, is a point estimator of the population SD, sigma σ
H37: Which mean more fairly represents its data points?
A62: ALTERNATIVE TO CALCULATE Sample SD
A68: Count | B68: =COUNT(B72:B86) -> 15 | E68: =COUNT(E72:E86) -> 15
A69: Count -1 | B69: =B68-1 -> 14 | E69: =E68-1 -> 14
A70: Mean = Xbar | B70: =AVERAGE(B72:B86) -> 9 | E70: =AVERAGE(E72:E86) -> 9
A71: Order # | B71: Days to fill order Banderson's, xi | C71: xi^2 | E71: Days to fill order Plywood & Floor | F71: xi^2
A72: Order 1 | B72: 4 | C72: =B72^2 -> 16 | E72: 10 | F72: =E72^2 -> 100
A73: Order 2 | B73: 6 | C73: 36 | E73: 11 | F73: 121
A74: Order 3 | B74: 12 | C74: 144 | E74: 9 | F74: 81
A75: Order 4 | B75: 11 | C75: 121 | E75: 9 | F75: 81
A76: Order 5 | B76: 13 | C76: 169 | E76: 10 | F76: 100
A77: Order 6 | B77: 16 | C77: 256 | E77: 8 | F77: 64
A78: Order 7 | B78: 5 | C78: 25 | E78: 9 | F78: 81
A79: Order 8 | B79: 8 | C79: 64 | E79: 10 | F79: 100
A80: Order 9 | B80: 9 | C80: 81 | E80: 10 | F80: 100
A81: Order 10 | B81: 6 | C81: 36 | E81: 9 | F81: 81
A82: Order 11 | B82: 8 | C82: 64 | E82: 8 | F82: 64
A83: Order 12 | B83: 6 | C83: 36 | E83: 9 | F83: 81
A84: Order 13 | B84: 12 | C84: 144 | E84: 6 | F84: 36
A85: Order 14 | B85: 6 | C85: 36 | E85: 8 | F85: 64
A86: Order 15 | B86: 13 | C86: 169 | E86: 9 | F86: 81
B88: Total | C88: =SUM(C72:C86) -> 1397 | E88: Total | F88: =SUM(F72:F86) -> 1235
B89: s | C89: =SQRT((C88-B68*B70^2)/B69) -> 3.605551275 | E89: s | F89: =SQRT((F88-E68*E70^2)/E69) -> 1.195228609
A92: Alternative for variability measure called Mean Absolute Error
A97: Count | B97: =COUNT(B100:B114) -> 15 | E97: =COUNT(E100:E114) -> 15
A98: Mean = Xbar | B98: =AVERAGE(B100:B114) -> 9 | E98: =AVERAGE(E100:E114) -> 9
A99: Order # | B99: Days to fill order Banderson's, xi | C99: ABS(Xi - Xbar) | E99: Days to fill order Plywood & Floor | F99: ABS(Xi - Xbar)
A100: Order 1 | B100: 4 | C100: =ABS(B100-B$98) -> 5 | E100: 10 | F100: =ABS(E100-E$98) -> 1
A101: Order 2 | B101: 6 | C101: 3 | E101: 11 | F101: 2
A102: Order 3 | B102: 12 | C102: 3 | E102: 9 | F102: 0
A103: Order 4 | B103: 11 | C103: 2 | E103: 9 | F103: 0
A104: Order 5 | B104: 13 | C104: 4 | E104: 10 | F104: 1
A105: Order 6 | B105: 16 | C105: 7 | E105: 8 | F105: 1
A106: Order 7 | B106: 5 | C106: 4 | E106: 9 | F106: 0
A107: Order 8 | B107: 8 | C107: 1 | E107: 10 | F107: 1
A108: Order 9 | B108: 9 | C108: 0 | E108: 10 | F108: 1
A109: Order 10 | B109: 6 | C109: 3 | E109: 9 | F109: 0
A110: Order 11 | B110: 8 | C110: 1 | E110: 8 | F110: 1
A111: Order 12 | B111: 6 | C111: 3 | E111: 9 | F111: 0
A112: Order 13 | B112: 12 | C112: 3 | E112: 6 | F112: 3
A113: Order 14 | B113: 6 | C113: 3 | E113: 8 | F113: 1
A114: Order 15 | B114: 13 | C114: 4 | E114: 9 | F114: 0
B116: Total | C116: =SUM(C100:C114) -> 46 | E116: Total | F116: =SUM(F100:F114) -> 12
B117: s | C117: =C116/B97 -> 3.066666667 | E117: s | F117: =F116/E97 -> 0.8
C118: =AVEDEV(B100:B114 ) -> 3.066666667 | F118: =AVEDEV(E100:E114 ) -> 0.8 | G118: AVEDEV (Mean Absolute Error or Average Absolute Deviations)
A123: Which Mean More Fairly Represents Its Data Points?
A125: Month | B125: # of Hours/Week worked Job 1 | C125: # of Hours/Week worked Job 2
A126: 2014-03-16 | B126: 55 | C126: 35
A127: =A126+7 -> 2014-03-23 | B127: 25 | C127: 34
A128: =A127+7 -> 2014-03-30 | B128: 62 | C128: 36
A129: 2014-04-06 | B129: 15 | C129: 37
A130: 2014-04-13 | B130: 34 | C130: 43
A131: 2014-04-20 | B131: 19 | C131: 32
A132: 2014-04-27 | B132: 38 | C132: 33
A133: 2014-05-04 | B133: 29 | C133: 35
A134: 2014-05-11 | B134: 64 | C134: 36
A135: 2014-05-18 | B135: 31 | C135: 37
A136: 2014-05-25 | B136: 59 | C136: 35
A137: 2014-06-01 | B137: 12 | C137: 39
A138: 2014-06-08 | B138: 15 | C138: 32
A139: 2014-06-15 | B139: 42 | C139: 31
A140: 2014-06-22 | B140: 25 | C140: 30
A141: Mean | B141: =AVERAGE(B126:B140) -> 35 | C141: 35
A143: Sample SD
A146: Where are gas prices more volatile?
A148: Sample | B148: Gas Prices Burien | C148: Gas Prices Seattle
A149: Sample 1 | B149: 3.01 | C149: 3.86
A150: Sample 2 | B150: 2.35 | C150: 2.93
A151: Sample 3 | B151: 2.47 | C151: 2.42
A152: Sample 4 | B152: 2.48 | C152: 1.99
A153: Sample 5 | B153: 2.28 | C153: 2.51
A154: Sample 6 | B154: 2.6 | C154: 2.6
A155: Sample 7 | B155: 3.31 | C155: 2.52
A156: Sample 8 | B156: 2.37 | C156: 2.48
A157: Sample 9 | B157: 2.52 | C157: 2.46
A158: Sample 10 | B158: 2.5 | C158: 2.44
A159: Sample 11 | B159: 2.37 | C159: 2.42
A160: Sample 12 | B160: 3.01 | C160: 3.56
A161: Sample 13 | B161: 2.36 | C161: 2.39
A162: Sample 14 | B162: 2.45 | C162: 2.79
A163: Sample 15 | B163: 2.38 | C163: 2.58
A164: Xbar | B164: =AVERAGE(B149:B163) -> 2.564 | C164: 2.663333333
A166: Sample SD

Sheet V(8)
B1: Set 1 | S1: Create 1 | T1: Create 2 | U1: Sample1 | V1: Sample2
A2: Mean | B2: =AVERAGE(A11:A33) -> 15.58695652 | S2: =ROUND(CHOOSE(RANDBETWEEN(1,3),RANDBETWEEN(1100,2400),RANDBETWEEN(1300,1650),_xlfn.NORM.INV(RAND(),1325,100))/100,2) -> 16.47 | T2: =ROUND(CHOOSE(RANDBETWEEN(1,3),RANDBETWEEN(1000,3200),RANDBETWEEN(1200,1950),_xlfn.NORM.INV(RAND(),1325,250))/100,2) -> 15.31 | U2: =INDEX(C$11:C$114,RANDBETWEEN(1,COUNTA(C$11:C$114))) -> 16.31 | V2: =INDEX(B$115:B$140,RANDBETWEEN(1,COUNTA(B$115:B$140))) -> 
A3: Median | B3: =MEDIAN(A11:A33) -> 14.08
A4: Mode | B4: =_xlfn.MODE.SNGL(A11:A33) -> 22.12
A5: Sample Standard Deviation = s | B5: =_xlfn.STDEV.S(A11:A33) -> 3.530874775 | C5: STDEV.S | D5: ="In Excel you can use the function:"&CHAR(10)&C5&CHAR(10)&"for calculating "&A5 -> In Excel you can use the function: STDEV.S for calculating Sample Standard Deviation = s
A6: Population Standard Deviation = σ | B6: =_xlfn.STDEV.P(C$11:C$114) -> 3.652441101 | C6: STDEV.P | D6: ="In Excel you can use the function:"&CHAR(10)&C6&CHAR(10)&"for calculating "&A6 -> In Excel you can use the function: STDEV.P for calculating Population Standard Deviation = σ
A8: Wage Data
A10: Sample1 | C10: Population 1
A11: 22.35 | C11: 15.35
A12: 14.01 | C12: 32.16
A13: 15.2 | C13: 12.55
A14: 18.3 | C14: 13.74
A15: 13.63 | C15: 22.35
A16: 14.08 | C16: 15.4
A17: 15.44 | C17: 14.3
A18: 10.75 | C18: 14.79
A19: 14.67 | C19: 20.94
A20: 11.29 | C20: 11.91
A21: 15.02 | C21: 12.4
A22: 17.97 | C22: 12.05
A23: 22.12 | C23: 18.11
A24: 22.12 | C24: 14.83
A25: 20.68 | C25: 13.93
A26: 13.21 | C26: 11.66
A27: 18.74 | C27: 12.69
A28: 13.66 | C28: 14.01
A29: 12.94 | C29: 12.52
A30: 12.94 | C30: 14.35
A31: 13.34 | C31: 15.2
A32: 13.68 | C32: 12.68
A33: 12.36 | C33: 12.32
C34: 15.65
C35: 18.02
C36: 14.55
C37: 18.3
C38: 13.63
C39: 17.47
C40: 15.62
C41: 13.71
C42: 14.87
C43: 14.08
C44: 13.03
C45: 20.51
C46: 12.73
C47: 15.66
C48: 13.58
C49: 15.89
C50: 15.44
C51: 14.65
C52: 14.37
C53: 10.75
C54: 11.99
C55: 18.63
C56: 14.67
C57: 11.29
C58: 15.66
C59: 14.32
C60: 26.81
C61: 14.03
C62: 15.02
C63: 14.93
C64: 16.16
C65: 21.79
C66: 15.49
C67: 19.85
C68: 12.75
C69: 17.97
C70: 10.97
C71: 22.12
C72: 20.68
C73: 20.68
C74: 14.3
C75: 16.13
C76: 12.41
C77: 22.53
C78: 21.66
C79: 19.08
C80: 14.88
C81: 22.52
C82: 20.97
C83: 15.42
C84: 11.46
C85: 13.03
C86: 14.53
C87: 17.21
C88: 12.68
C89: 12.02
C90: 13.21
C91: 18.74
C92: 15.89
C93: 13.42
C94: 13.66
C95: 13.11
C96: 15.93
C97: 15.01
C98: 12.94
C99: 16.31
C100: 12.87
C101: 13.71
C102: 20.43
C103: 13.44
C104: 15.94
C105: 14.32
C106: 15.22
C107: 22.59
C108: 12.32
C109: 13.34
C110: 14.52
C111: 23.7
C112: 13.21
C113: 13.68
C114: 12.36

Sheet V(9)
A19: Compare Relative Variability (Dispersion) in Two Distributions
A21: Mean bonus paid per employee = Xbar | B21: 2000 | D21: Mean years worked = Xbar | E21: 15
A22: Standard Deviation = s | B22: 755 | D22: Standard Deviation = s | E22: 3
A23: Coefficient of Variance | D23: Coefficient of Variance
A25: There is more variability relative to the mean in the distribution of bonus paid compared with the distribution of years worked
A26: *Notice here that the units cancel out
A29: Mean Wage Data City 1 | D29: Mean Wage Data City 2
A30: Standard Deviation, Wage Data City 1 | D30: Standard Deviation, Wage Data City 2
A31: Coefficient of Variance | D31: Coefficient of Variance
A33: Wage sample in City 1 | D33: Wage sample in City 2
A34: 12.54 | D34: 25.5
A35: 15.68 | D35: 23.68
A36: 19.58 | D36: 78.25
A37: 25.71 | D37: 25.12
A38: 45.68 | D38: 12.5
A39: 15.69 | D39: 19.85
A40: 14.78 | D40: 45.54
A41: 35.5 | D41: 35.98
A42: 19.57 | D42: 15.24
A43: 18.71 | D43: 110
A44: 35.45 | D44: 28.58
A45: 12.75 | D45: 35.21

Sheet V(9an)
A19: Compare Relative Variability (Dispersion) in Two Distributions
A21: Mean bonus paid per employee = Xbar | B21: 2000 | D21: Mean years worked = Xbar | E21: 15
A22: Standard Deviation = s | B22: 755 | D22: Standard Deviation = s | E22: 3
A23: Coefficient of Variance | B23: =B22/B21 -> 0.3775 | D23: Coefficient of Variance | E23: =E22/E21 -> 0.2
A25: There is more variability relative to the mean in the distribution of bonus paid compared with the distribution of years worked
A26: *Notice here that the units cancel out
A29: Mean Wage Data City 1 | B29: =AVERAGE(A34:A45) -> 22.63666667 | D29: Mean Wage Data City 2 | E29: =AVERAGE(D34:D45) -> 37.95416667
A30: Standard Deviation, Wage Data City 1 | B30: =_xlfn.STDEV.S(A34:A45) -> 10.71244504 | D30: Standard Deviation, Wage Data City 2 | E30: =_xlfn.STDEV.S(D34:D45) -> 28.58223652
A31: Coefficient of Variance | B31: =B30/B29 -> 0.4732342089 | D31: Coefficient of Variance | E31: =E30/E29 -> 0.7530724301
A33: Wage sample in City 1 | D33: Wage sample in City 2
A34: 12.54 | D34: 25.5
A35: 15.68 | D35: 23.68
A36: 19.58 | D36: 78.25
A37: 25.71 | D37: 25.12
A38: 45.68 | D38: 12.5
A39: 15.69 | D39: 19.85
A40: 14.78 | D40: 45.54
A41: 35.5 | D41: 35.98
A42: 19.57 | D42: 15.24
A43: 18.71 | D43: 110
A44: 35.45 | D44: 28.58
A45: 12.75 | D45: 35.21

Sheet V(10)
A1: Number of Days to Fill Order for Custom Birch Plywood for boomerang manufacturer
B3: Banderson's | C3: Plywood & Floor
B4: 4 | C4: 10 | H4: Days | I4: ="Count for "&B3 -> Count for Banderson's | J4: ="Count for "&C3 -> Count for Plywood & Floor
B5: 6 | C5: 11 | H5: 4 | I5: =COUNTIFS(B$4:B$18,$H5) -> 1 | J5: =-COUNTIFS(C$4:C$18,$H5) -> 0
B6: 12 | C6: 9 | H6: 5 | I6: 1 | J6: 0
B7: 11 | C7: 9 | H7: 6 | I7: 4 | J7: -1
B8: 13 | C8: 10 | H8: 7 | I8: 0 | J8: 0
B9: 16 | C9: 8 | H9: 8 | I9: 2 | J9: -3
B10: 5 | C10: 9 | H10: 9 | I10: 1 | J10: -6
B11: 8 | C11: 10 | H11: 10 | I11: 0 | J11: -4
B12: 9 | C12: 10 | H12: 11 | I12: 1 | J12: -1
B13: 6 | C13: 9 | H13: 12 | I13: 2 | J13: 0
B14: 8 | C14: 8 | H14: 13 | I14: 2 | J14: 0
B15: 6 | C15: 9 | H15: 14 | I15: 0 | J15: 0
B16: 12 | C16: 6 | H16: 15 | I16: 0 | J16: 0
B17: 6 | C17: 8 | H17: 16 | I17: 1 | J17: 0
B18: 13 | C18: 9
E19: Units | H19: Total | I19: =COUNT(B4:B18) -> 15
A20: Xbar | B20: =AVERAGE(B4:B18) -> 9 | C20: =AVERAGE(C4:C18) -> 9 | E20: Days
A21: Max | B21: =MAX(B4:B18) -> 16 | C21: 11 | E21: Days
A22: Min | B22: =MIN(B4:B18) -> 4 | C22: 6 | E22: Days
A23: Range | B23: =B21-B22 -> 12 | C23: 5 | E23: Days
A24: Sample SD = s | B24: =_xlfn.STDEV.S(B4:B18) -> 3.605551275 | C24: 1.195228609 | E24: Days
A26: Although they both deliver in an average of 9 days, Banderson's has a standard deviation of
A27: about 3.5 days and Plywood and Floor has a standard deviation of about 1.2 days.
A28: For planning business activities, a smaller standard Deviation (average deviation) is more
A29: helpful and reliable.
A30: A smaller standard deviation indicates that there is less variation in the number of
A31: days it will take to deliver the custom birch plywood.
A35: =B3 -> Banderson's | B35: =REPT("*",COUNTIFS($B$4:$B$18,B37)) -> * | C35: * | D35: **** | F35: ** | G35: * | I35: * | J35: ** | K35: ** | N35: *
A36: =C3 -> Plywood & Floor | B36: =REPT("*",COUNTIFS($C$4:$C$18,B37)) ->  | C36: =REPT("*",COUNTIFS($C$4:$C$18,C37)) ->  | D36: * | F36: *** | G36: ****** | H36: **** | I36: *
A37: Days To Fill Order | B37: 4 | C37: 5 | D37: 6 | E37: 7 | F37: 8 | G37: 9 | H37: 10 | I37: 11 | J37: 12 | K37: 13 | L37: 14 | M37: 15 | N37: 16

Sheet DS
A1: Sample of 200 sales from www.boomerangs.com. Use Descriptive Statistics to reveal patterns in raw data.
A3: No. | B3: Date | C3: Coupon | D3: Payment Method | E3: Region | F3: Price | G3: Units | H3: Amount of Transaction (Revenue) | I3: Product (Boomerang Name) | J3: Customer Age | K3: Range (Flight out meters)
A4: 1 | B4: 2015-05-22 | C4: Coupon | D4: Mastercard | E4: West | F4: 22.95 | G4: 2 | H4: 45.9 | I4: Carlota | J4: 21 | K4: 20
A5: 2 | B5: 2015-06-29 | C5: Coupon | D5: Mastercard | E5: West | F5: 19.95 | G5: 1 | H5: 19.95 | I5: Yanaki | J5: 57 | K5: 25
A6: 3 | B6: 2015-11-05 | C6: No Coupon | D6: Mastercard | E6: East | F6: 21.95 | G6: 1 | H6: 21.95 | I6: Aspen | J6: 25 | K6: 22
A7: 4 | B7: 2015-08-31 | C7: No Coupon | D7: American Express | E7: West | F7: 19.95 | G7: 1 | H7: 19.95 | I7: Yanaki | J7: 38 | K7: 25
A8: 5 | B8: 2015-05-30 | C8: Coupon | D8: Visa | E8: West | F8: 19.95 | G8: 4 | H8: 79.8 | I8: Yanaki | J8: 22 | K8: 25
A9: 6 | B9: 2015-10-05 | C9: Coupon | D9: PayPal | E9: South | F9: 19.95 | G9: 4 | H9: 79.8 | I9: Yanaki | J9: 29 | K9: 25
A10: 7 | B10: 2015-03-22 | C10: Coupon | D10: Visa | E10: West | F10: 19.95 | G10: 3 | H10: 59.85 | I10: Yanaki | J10: 18 | K10: 25
A11: 8 | B11: 2015-06-14 | C11: No Coupon | D11: Discover | E11: West | F11: 19.95 | G11: 7 | H11: 139.65 | I11: Yanaki | J11: 64 | K11: 25
A12: 9 | B12: 2015-05-09 | C12: No Coupon | D12: American Express | E12: West | F12: 19.95 | G12: 6 | H12: 119.7 | I12: Yanaki | J12: 27 | K12: 25
A13: 10 | B13: 2015-08-28 | C13: No Coupon | D13: Visa | E13: West | F13: 21.95 | G13: 2 | H13: 43.9 | I13: Aspen | J13: 22 | K13: 22
A14: 11 | B14: 2015-11-30 | C14: Coupon | D14: PayPal | E14: Mid West | F14: 21.95 | G14: 2 | H14: 43.9 | I14: Aspen | J14: 39 | K14: 22
A15: 12 | B15: 2015-09-13 | C15: No Coupon | D15: Mastercard | E15: Mid West | F15: 19.95 | G15: 5 | H15: 99.75 | I15: Yanaki | J15: 61 | K15: 25
A16: 13 | B16: 2015-10-23 | C16: No Coupon | D16: Visa | E16: Mid West | F16: 22.95 | G16: 5 | H16: 114.75 | I16: Carlota | J16: 18 | K16: 20
A17: 14 | B17: 2015-09-19 | C17: No Coupon | D17: PayPal | E17: West | F17: 22.95 | G17: 4 | H17: 91.8 | I17: Carlota | J17: 22 | K17: 20
A18: 15 | B18: 2015-09-20 | C18: No Coupon | D18: American Express | E18: Mid West | F18: 22.95 | G18: 5 | H18: 114.75 | I18: Carlota | J18: 52 | K18: 20
A19: 16 | B19: 2015-01-18 | C19: Coupon | D19: Visa | E19: West | F19: 22.95 | G19: 1 | H19: 22.95 | I19: Carlota | J19: 22 | K19: 20
A20: 17 | B20: 2015-07-28 | C20: No Coupon | D20: Discover | E20: West | F20: 24.95 | G20: 5 | H20: 124.75 | I20: Sunset | J20: 18 | K20: 35
A21: 18 | B21: 2015-06-06 | C21: No Coupon | D21: PayPal | E21: South | F21: 19.95 | G21: 1 | H21: 19.95 | I21: Yanaki | J21: 55 | K21: 25
A22: 19 | B22: 2015-01-30 | C22: No Coupon | D22: PayPal | E22: East | F22: 21.95 | G22: 4 | H22: 87.8 | I22: Aspen | J22: 20 | K22: 22
A23: 20 | B23: 2015-10-09 | C23: Coupon | D23: PayPal | E23: Mid West | F23: 22.95 | G23: 1 | H23: 22.95 | I23: Carlota | J23: 42 | K23: 20
A24: 21 | B24: 2015-07-04 | C24: No Coupon | D24: PayPal | E24: South | F24: 29.95 | G24: 10 | H24: 299.5 | I24: Delicate Arch | J24: 30 | K24: 45
A25: 22 | B25: 2015-11-08 | C25: Coupon | D25: Visa | E25: Mid West | F25: 19.95 | G25: 1 | H25: 19.95 | I25: Yanaki | J25: 64 | K25: 25
A26: 23 | B26: 2015-06-09 | C26: Coupon | D26: PayPal | E26: Mid West | F26: 19.95 | G26: 5 | H26: 99.75 | I26: Yanaki | J26: 63 | K26: 25
A27: 24 | B27: 2015-03-17 | C27: Coupon | D27: Mastercard | E27: South | F27: 19.95 | G27: 2 | H27: 39.9 | I27: Yanaki | J27: 41 | K27: 25
A28: 25 | B28: 2015-04-07 | C28: No Coupon | D28: Visa | E28: East | F28: 21.95 | G28: 3 | H28: 65.85 | I28: Aspen | J28: 21 | K28: 22
A29: 26 | B29: 2015-01-05 | C29: No Coupon | D29: PayPal | E29: East | F29: 24.95 | G29: 1 | H29: 24.95 | I29: Sunset | J29: 63 | K29: 35
A30: 27 | B30: 2015-07-22 | C30: No Coupon | D30: American Express | E30: West | F30: 21.95 | G30: 1 | H30: 21.95 | I30: Aspen | J30: 54 | K30: 22
A31: 28 | B31: 2015-11-12 | C31: No Coupon | D31: American Express | E31: West | F31: 19.95 | G31: 1 | H31: 19.95 | I31: Yanaki | J31: 18 | K31: 25
A32: 29 | B32: 2015-05-11 | C32: No Coupon | D32: Discover | E32: West | F32: 22.95 | G32: 4 | H32: 91.8 | I32: Carlota | J32: 26 | K32: 20
A33: 30 | B33: 2015-04-14 | C33: No Coupon | D33: PayPal | E33: Mid West | F33: 21.95 | G33: 3 | H33: 65.85 | I33: Aspen | J33: 59 | K33: 22
A34: 31 | B34: 2015-08-11 | C34: No Coupon | D34: Discover | E34: West | F34: 19.95 | G34: 2 | H34: 39.9 | I34: Yanaki | J34: 30 | K34: 25
A35: 32 | B35: 2015-11-14 | C35: No Coupon | D35: Visa | E35: West | F35: 21.95 | G35: 2 | H35: 43.9 | I35: Aspen | J35: 64 | K35: 22
A36: 33 | B36: 2015-01-21 | C36: No Coupon | D36: PayPal | E36: West | F36: 21.95 | G36: 3 | H36: 65.85 | I36: Aspen | J36: 30 | K36: 22
A37: 34 | B37: 2015-04-12 | C37: Coupon | D37: American Express | E37: West | F37: 21.95 | G37: 2 | H37: 43.9 | I37: Aspen | J37: 41 | K37: 22
A38: 35 | B38: 2015-06-04 | C38: Coupon | D38: Mastercard | E38: South | F38: 19.95 | G38: 5 | H38: 99.75 | I38: Yanaki | J38: 23 | K38: 25
A39: 36 | B39: 2015-10-19 | C39: Coupon | D39: Visa | E39: West | F39: 29.95 | G39: 1 | H39: 29.95 | I39: Delicate Arch | J39: 52 | K39: 45
A40: 37 | B40: 2015-09-07 | C40: No Coupon | D40: PayPal | E40: West | F40: 21.95 | G40: 3 | H40: 65.85 | I40: Aspen | J40: 18 | K40: 22
A41: 38 | B41: 2015-09-19 | C41: No Coupon | D41: PayPal | E41: West | F41: 22.95 | G41: 1 | H41: 22.95 | I41: Carlota | J41: 32 | K41: 20
A42: 39 | B42: 2015-01-17 | C42: Coupon | D42: American Express | E42: Mid West | F42: 19.95 | G42: 1 | H42: 19.95 | I42: Yanaki | J42: 22 | K42: 25
A43: 40 | B43: 2015-03-15 | C43: Coupon | D43: PayPal | E43: South | F43: 19.95 | G43: 5 | H43: 99.75 | I43: Yanaki | J43: 29 | K43: 25
A44: 41 | B44: 2015-12-16 | C44: No Coupon | D44: Mastercard | E44: Mid West | F44: 24.95 | G44: 5 | H44: 124.75 | I44: Bellen | J44: 25 | K44: 30
A45: 42 | B45: 2015-07-08 | C45: No Coupon | D45: PayPal | E45: West | F45: 21.95 | G45: 1 | H45: 21.95 | I45: Aspen | J45: 63 | K45: 22
A46: 43 | B46: 2015-05-13 | C46: No Coupon | D46: Mastercard | E46: Mid West | F46: 24.95 | G46: 7 | H46: 174.65 | I46: Sunset | J46: 26 | K46: 35
A47: 44 | B47: 2015-03-03 | C47: Coupon | D47: Discover | E47: West | F47: 29.95 | G47: 1 | H47: 29.95 | I47: Delicate Arch | J47: 31 | K47: 45
A48: 45 | B48: 2015-04-30 | C48: No Coupon | D48: PayPal | E48: Mid West | F48: 29.95 | G48: 5 | H48: 149.75 | I48: Delicate Arch | J48: 23 | K48: 45
A49: 46 | B49: 2015-07-11 | C49: Coupon | D49: PayPal | E49: Mid West | F49: 29.95 | G49: 1 | H49: 29.95 | I49: Delicate Arch | J49: 42 | K49: 45
A50: 47 | B50: 2015-03-22 | C50: Coupon | D50: Visa | E50: East | F50: 22.95 | G50: 2 | H50: 45.9 | I50: Carlota | J50: 28 | K50: 20
A51: 48 | B51: 2015-08-27 | C51: No Coupon | D51: Visa | E51: West | F51: 22.95 | G51: 7 | H51: 160.65 | I51: Carlota | J51: 23 | K51: 20
A52: 49 | B52: 2015-11-16 | C52: No Coupon | D52: Mastercard | E52: Mid West | F52: 22.95 | G52: 7 | H52: 160.65 | I52: Carlota | J52: 19 | K52: 20
A53: 50 | B53: 2015-01-26 | C53: Coupon | D53: Visa | E53: West | F53: 19.95 | G53: 6 | H53: 119.7 | I53: Yanaki | J53: 37 | K53: 25
A54: 51 | B54: 2015-05-06 | C54: No Coupon | D54: Mastercard | E54: East | F54: 21.95 | G54: 2 | H54: 43.9 | I54: Aspen | J54: 38 | K54: 22
A55: 52 | B55: 2015-03-18 | C55: Coupon | D55: Mastercard | E55: Mid West | F55: 19.95 | G55: 6 | H55: 119.7 | I55: Yanaki | J55: 50 | K55: 25
A56: 53 | B56: 2015-04-16 | C56: No Coupon | D56: Discover | E56: West | F56: 21.95 | G56: 3 | H56: 65.85 | I56: Aspen | J56: 26 | K56: 22
A57: 54 | B57: 2015-01-05 | C57: No Coupon | D57: PayPal | E57: South | F57: 22.95 | G57: 1 | H57: 22.95 | I57: Carlota | J57: 33 | K57: 20
A58: 55 | B58: 2015-11-09 | C58: No Coupon | D58: PayPal | E58: Mid West | F58: 21.95 | G58: 3 | H58: 65.85 | I58: Aspen | J58: 59 | K58: 22
A59: 56 | B59: 2015-07-29 | C59: No Coupon | D59: Visa | E59: Mid West | F59: 21.95 | G59: 5 | H59: 109.75 | I59: Aspen | J59: 32 | K59: 22
A60: 57 | B60: 2015-12-07 | C60: No Coupon | D60: Visa | E60: Mid West | F60: 22.95 | G60: 5 | H60: 114.75 | I60: Carlota | J60: 27 | K60: 20
A61: 58 | B61: 2015-11-22 | C61: Coupon | D61: American Express | E61: West | F61: 24.95 | G61: 10 | H61: 249.5 | I61: Bellen | J61: 54 | K61: 30
A62: 59 | B62: 2015-01-10 | C62: No Coupon | D62: PayPal | E62: West | F62: 21.95 | G62: 5 | H62: 109.75 | I62: Aspen | J62: 63 | K62: 22
A63: 60 | B63: 2015-06-01 | C63: No Coupon | D63: Visa | E63: East | F63: 22.95 | G63: 5 | H63: 114.75 | I63: Carlota | J63: 48 | K63: 20
A64: 61 | B64: 2015-05-02 | C64: No Coupon | D64: American Express | E64: East | F64: 22.95 | G64: 5 | H64: 114.75 | I64: Carlota | J64: 29 | K64: 20
A65: 62 | B65: 2015-06-13 | C65: Coupon | D65: Visa | E65: West | F65: 29.95 | G65: 4 | H65: 119.8 | I65: Delicate Arch | J65: 38 | K65: 45
A66: 63 | B66: 2015-02-16 | C66: Coupon | D66: Mastercard | E66: East | F66: 29.95 | G66: 1 | H66: 29.95 | I66: Delicate Arch | J66: 24 | K66: 45
A67: 64 | B67: 2015-08-02 | C67: No Coupon | D67: Visa | E67: West | F67: 22.95 | G67: 5 | H67: 114.75 | I67: Carlota | J67: 51 | K67: 20
A68: 65 | B68: 2015-11-01 | C68: Coupon | D68: Mastercard | E68: West | F68: 29.95 | G68: 7 | H68: 209.65 | I68: Delicate Arch | J68: 25 | K68: 45
A69: 66 | B69: 2015-11-08 | C69: No Coupon | D69: Visa | E69: West | F69: 22.95 | G69: 5 | H69: 114.75 | I69: Carlota | J69: 65 | K69: 20
A70: 67 | B70: 2015-08-17 | C70: No Coupon | D70: PayPal | E70: Mid West | F70: 19.95 | G70: 3 | H70: 59.85 | I70: Yanaki | J70: 35 | K70: 25
A71: 68 | B71: 2015-09-27 | C71: No Coupon | D71: Mastercard | E71: East | F71: 24.95 | G71: 5 | H71: 124.75 | I71: Sunset | J71: 35 | K71: 35
A72: 69 | B72: 2015-01-09 | C72: No Coupon | D72: Visa | E72: Mid West | F72: 19.95 | G72: 2 | H72: 39.9 | I72: Yanaki | J72: 21 | K72: 25
A73: 70 | B73: 2015-10-10 | C73: No Coupon | D73: Mastercard | E73: West | F73: 24.95 | G73: 5 | H73: 124.75 | I73: Sunset | J73: 47 | K73: 35
A74: 71 | B74: 2015-12-31 | C74: No Coupon | D74: Discover | E74: East | F74: 24.95 | G74: 1 | H74: 24.95 | I74: Sunset | J74: 62 | K74: 35
A75: 72 | B75: 2015-12-06 | C75: No Coupon | D75: PayPal | E75: East | F75: 22.95 | G75: 1 | H75: 22.95 | I75: Carlota | J75: 63 | K75: 20
A76: 73 | B76: 2015-03-18 | C76: No Coupon | D76: American Express | E76: Mid West | F76: 24.95 | G76: 10 | H76: 249.5 | I76: Bellen | J76: 23 | K76: 30
A77: 74 | B77: 2015-03-22 | C77: No Coupon | D77: Visa | E77: South | F77: 19.95 | G77: 3 | H77: 59.85 | I77: Yanaki | J77: 59 | K77: 25
A78: 75 | B78: 2015-09-14 | C78: Coupon | D78: Visa | E78: West | F78: 21.95 | G78: 2 | H78: 43.9 | I78: Aspen | J78: 48 | K78: 22
A79: 76 | B79: 2015-02-09 | C79: No Coupon | D79: Mastercard | E79: South | F79: 19.95 | G79: 1 | H79: 19.95 | I79: Yanaki | J79: 57 | K79: 25
A80: 77 | B80: 2015-03-24 | C80: No Coupon | D80: Discover | E80: Mid West | F80: 29.95 | G80: 1 | H80: 29.95 | I80: Delicate Arch | J80: 19 | K80: 45
A81: 78 | B81: 2015-07-28 | C81: Coupon | D81: Mastercard | E81: Mid West | F81: 19.95 | G81: 1 | H81: 19.95 | I81: Yanaki | J81: 48 | K81: 25
A82: 79 | B82: 2015-08-26 | C82: Coupon | D82: Mastercard | E82: South | F82: 21.95 | G82: 3 | H82: 65.85 | I82: Aspen | J82: 21 | K82: 22
A83: 80 | B83: 2015-03-05 | C83: No Coupon | D83: American Express | E83: West | F83: 22.95 | G83: 1 | H83: 22.95 | I83: Carlota | J83: 40 | K83: 20
A84: 81 | B84: 2015-08-18 | C84: No Coupon | D84: Visa | E84: Mid West | F84: 19.95 | G84: 4 | H84: 79.8 | I84: Yanaki | J84: 25 | K84: 25
A85: 82 | B85: 2015-11-02 | C85: Coupon | D85: Mastercard | E85: South | F85: 19.95 | G85: 4 | H85: 79.8 | I85: Yanaki | J85: 59 | K85: 25
A86: 83 | B86: 2015-12-19 | C86: No Coupon | D86: Visa | E86: West | F86: 22.95 | G86: 5 | H86: 114.75 | I86: Carlota | J86: 57 | K86: 20
A87: 84 | B87: 2015-07-05 | C87: Coupon | D87: Discover | E87: West | F87: 22.95 | G87: 1 | H87: 22.95 | I87: Carlota | J87: 56 | K87: 20
A88: 85 | B88: 2015-04-16 | C88: No Coupon | D88: Visa | E88: West | F88: 19.95 | G88: 1 | H88: 19.95 | I88: Yanaki | J88: 19 | K88: 25
A89: 86 | B89: 2015-12-23 | C89: No Coupon | D89: Visa | E89: Mid West | F89: 21.95 | G89: 5 | H89: 109.75 | I89: Aspen | J89: 54 | K89: 22
A90: 87 | B90: 2015-05-29 | C90: No Coupon | D90: PayPal | E90: Mid West | F90: 29.95 | G90: 2 | H90: 59.9 | I90: Delicate Arch | J90: 65 | K90: 45
A91: 88 | B91: 2015-05-01 | C91: Coupon | D91: PayPal | E91: West | F91: 21.95 | G91: 2 | H91: 43.9 | I91: Aspen | J91: 25 | K91: 22
A92: 89 | B92: 2015-07-03 | C92: No Coupon | D92: American Express | E92: West | F92: 19.95 | G92: 2 | H92: 39.9 | I92: Yanaki | J92: 30 | K92: 25
A93: 90 | B93: 2015-08-12 | C93: No Coupon | D93: Mastercard | E93: West | F93: 29.95 | G93: 7 | H93: 209.65 | I93: Delicate Arch | J93: 57 | K93: 45
A94: 91 | B94: 2015-06-21 | C94: Coupon | D94: PayPal | E94: West | F94: 19.95 | G94: 1 | H94: 19.95 | I94: Yanaki | J94: 43 | K94: 25
A95: 92 | B95: 2015-12-15 | C95: No Coupon | D95: Mastercard | E95: South | F95: 19.95 | G95: 4 | H95: 79.8 | I95: Yanaki | J95: 44 | K95: 25
A96: 93 | B96: 2015-05-25 | C96: No Coupon | D96: PayPal | E96: East | F96: 24.95 | G96: 5 | H96: 124.75 | I96: Bellen | J96: 21 | K96: 30
A97: 94 | B97: 2015-03-23 | C97: No Coupon | D97: PayPal | E97: West | F97: 24.95 | G97: 1 | H97: 24.95 | I97: Bellen | J97: 20 | K97: 30
A98: 95 | B98: 2015-01-22 | C98: Coupon | D98: Visa | E98: West | F98: 22.95 | G98: 7 | H98: 160.65 | I98: Carlota | J98: 49 | K98: 20
A99: 96 | B99: 2015-09-26 | C99: No Coupon | D99: Mastercard | E99: South | F99: 21.95 | G99: 3 | H99: 65.85 | I99: Aspen | J99: 37 | K99: 22
A100: 97 | B100: 2015-12-27 | C100: No Coupon | D100: PayPal | E100: West | F100: 22.95 | G100: 6 | H100: 137.7 | I100: Carlota | J100: 69 | K100: 20
A101: 98 | B101: 2015-07-24 | C101: No Coupon | D101: Mastercard | E101: East | F101: 29.95 | G101: 1 | H101: 29.95 | I101: Delicate Arch | J101: 62 | K101: 45
A102: 99 | B102: 2015-04-27 | C102: No Coupon | D102: PayPal | E102: West | F102: 19.95 | G102: 6 | H102: 119.7 | I102: Yanaki | J102: 38 | K102: 25
A103: 100 | B103: 2015-05-07 | C103: No Coupon | D103: Visa | E103: West | F103: 19.95 | G103: 1 | H103: 19.95 | I103: Yanaki | J103: 55 | K103: 25
A104: 101 | B104: 2015-03-03 | C104: Coupon | D104: American Express | E104: East | F104: 19.95 | G104: 2 | H104: 39.9 | I104: Yanaki | J104: 24 | K104: 25
A105: 102 | B105: 2015-03-23 | C105: No Coupon | D105: PayPal | E105: Mid West | F105: 22.95 | G105: 5 | H105: 114.75 | I105: Carlota | J105: 30 | K105: 20
A106: 103 | B106: 2015-12-05 | C106: Coupon | D106: Visa | E106: Mid West | F106: 21.95 | G106: 1 | H106: 21.95 | I106: Aspen | J106: 39 | K106: 22
A107: 104 | B107: 2015-11-11 | C107: Coupon | D107: PayPal | E107: South | F107: 29.95 | G107: 6 | H107: 179.7 | I107: Delicate Arch | J107: 59 | K107: 45
A108: 105 | B108: 2015-04-13 | C108: No Coupon | D108: Discover | E108: East | F108: 19.95 | G108: 2 | H108: 39.9 | I108: Yanaki | J108: 26 | K108: 25
A109: 106 | B109: 2015-12-13 | C109: No Coupon | D109: Visa | E109: Mid West | F109: 24.95 | G109: 1 | H109: 24.95 | I109: Sunset | J109: 33 | K109: 35
A110: 107 | B110: 2015-10-05 | C110: No Coupon | D110: Visa | E110: West | F110: 24.95 | G110: 4 | H110: 99.8 | I110: Bellen | J110: 20 | K110: 30
A111: 108 | B111: 2015-01-02 | C111: No Coupon | D111: Visa | E111: West | F111: 21.95 | G111: 4 | H111: 87.8 | I111: Aspen | J111: 18 | K111: 22
A112: 109 | B112: 2015-11-04 | C112: Coupon | D112: PayPal | E112: East | F112: 19.95 | G112: 2 | H112: 39.9 | I112: Yanaki | J112: 19 | K112: 25
A113: 110 | B113: 2015-04-29 | C113: No Coupon | D113: PayPal | E113: West | F113: 21.95 | G113: 3 | H113: 65.85 | I113: Aspen | J113: 61 | K113: 22
A114: 111 | B114: 2015-10-02 | C114: Coupon | D114: PayPal | E114: East | F114: 19.95 | G114: 10 | H114: 199.5 | I114: Yanaki | J114: 39 | K114: 25
A115: 112 | B115: 2015-12-26 | C115: Coupon | D115: Discover | E115: West | F115: 21.95 | G115: 1 | H115: 21.95 | I115: Aspen | J115: 52 | K115: 22
A116: 113 | B116: 2015-11-05 | C116: No Coupon | D116: Visa | E116: West | F116: 24.95 | G116: 5 | H116: 124.75 | I116: Sunset | J116: 20 | K116: 35
A117: 114 | B117: 2015-11-15 | C117: No Coupon | D117: Visa | E117: West | F117: 29.95 | G117: 1 | H117: 29.95 | I117: Delicate Arch | J117: 50 | K117: 45
A118: 115 | B118: 2015-06-27 | C118: Coupon | D118: PayPal | E118: South | F118: 21.95 | G118: 1 | H118: 21.95 | I118: Aspen | J118: 29 | K118: 22
A119: 116 | B119: 2015-04-21 | C119: No Coupon | D119: Visa | E119: West | F119: 29.95 | G119: 4 | H119: 119.8 | I119: Delicate Arch | J119: 55 | K119: 45
A120: 117 | B120: 2015-09-25 | C120: No Coupon | D120: American Express | E120: West | F120: 29.95 | G120: 3 | H120: 89.85 | I120: Delicate Arch | J120: 18 | K120: 45
A121: 118 | B121: 2015-01-24 | C121: Coupon | D121: Mastercard | E121: Mid West | F121: 21.95 | G121: 3 | H121: 65.85 | I121: Aspen | J121: 39 | K121: 22
A122: 119 | B122: 2015-01-04 | C122: No Coupon | D122: Visa | E122: South | F122: 22.95 | G122: 4 | H122: 91.8 | I122: Carlota | J122: 35 | K122: 20
A123: 120 | B123: 2015-05-06 | C123: Coupon | D123: American Express | E123: South | F123: 24.95 | G123: 6 | H123: 149.7 | I123: Bellen | J123: 38 | K123: 30
A124: 121 | B124: 2015-06-22 | C124: No Coupon | D124: Visa | E124: East | F124: 19.95 | G124: 3 | H124: 59.85 | I124: Yanaki | J124: 20 | K124: 25
A125: 122 | B125: 2015-07-12 | C125: No Coupon | D125: Discover | E125: Mid West | F125: 21.95 | G125: 6 | H125: 131.7 | I125: Aspen | J125: 60 | K125: 22
A126: 123 | B126: 2015-05-03 | C126: No Coupon | D126: Visa | E126: Mid West | F126: 24.95 | G126: 2 | H126: 49.9 | I126: Sunset | J126: 61 | K126: 35
A127: 124 | B127: 2015-03-09 | C127: Coupon | D127: PayPal | E127: West | F127: 21.95 | G127: 2 | H127: 43.9 | I127: Aspen | J127: 67 | K127: 22
A128: 125 | B128: 2015-03-02 | C128: No Coupon | D128: Visa | E128: Mid West | F128: 19.95 | G128: 1 | H128: 19.95 | I128: Yanaki | J128: 21 | K128: 25
A129: 126 | B129: 2015-03-28 | C129: No Coupon | D129: Discover | E129: South | F129: 21.95 | G129: 1 | H129: 21.95 | I129: Aspen | J129: 40 | K129: 22
A130: 127 | B130: 2015-01-15 | C130: No Coupon | D130: Visa | E130: West | F130: 24.95 | G130: 1 | H130: 24.95 | I130: Bellen | J130: 25 | K130: 30
A131: 128 | B131: 2015-11-18 | C131: No Coupon | D131: Mastercard | E131: West | F131: 19.95 | G131: 2 | H131: 39.9 | I131: Yanaki | J131: 50 | K131: 25
A132: 129 | B132: 2015-03-27 | C132: No Coupon | D132: Visa | E132: West | F132: 24.95 | G132: 1 | H132: 24.95 | I132: Bellen | J132: 24 | K132: 30
A133: 130 | B133: 2015-08-11 | C133: Coupon | D133: PayPal | E133: West | F133: 22.95 | G133: 5 | H133: 114.75 | I133: Carlota | J133: 28 | K133: 20
A134: 131 | B134: 2015-12-24 | C134: No Coupon | D134: Visa | E134: Mid West | F134: 19.95 | G134: 6 | H134: 119.7 | I134: Yanaki | J134: 22 | K134: 25
A135: 132 | B135: 2015-11-27 | C135: No Coupon | D135: PayPal | E135: West | F135: 21.95 | G135: 2 | H135: 43.9 | I135: Aspen | J135: 22 | K135: 22
A136: 133 | B136: 2015-03-12 | C136: No Coupon | D136: Visa | E136: West | F136: 24.95 | G136: 1 | H136: 24.95 | I136: Bellen | J136: 27 | K136: 30
A137: 134 | B137: 2015-09-16 | C137: Coupon | D137: Visa | E137: West | F137: 24.95 | G137: 7 | H137: 174.65 | I137: Sunset | J137: 54 | K137: 35
A138: 135 | B138: 2015-02-01 | C138: No Coupon | D138: Mastercard | E138: West | F138: 24.95 | G138: 1 | H138: 24.95 | I138: Bellen | J138: 25 | K138: 30
A139: 136 | B139: 2015-07-03 | C139: No Coupon | D139: Visa | E139: Mid West | F139: 24.95 | G139: 2 | H139: 49.9 | I139: Sunset | J139: 25 | K139: 35
A140: 137 | B140: 2015-08-30 | C140: No Coupon | D140: PayPal | E140: East | F140: 19.95 | G140: 1 | H140: 19.95 | I140: Yanaki | J140: 30 | K140: 25
A141: 138 | B141: 2015-09-18 | C141: Coupon | D141: Mastercard | E141: South | F141: 19.95 | G141: 2 | H141: 39.9 | I141: Yanaki | J141: 59 | K141: 25
A142: 139 | B142: 2015-11-24 | C142: No Coupon | D142: Visa | E142: West | F142: 22.95 | G142: 2 | H142: 45.9 | I142: Carlota | J142: 51 | K142: 20
A143: 140 | B143: 2015-12-22 | C143: No Coupon | D143: Visa | E143: West | F143: 29.95 | G143: 6 | H143: 179.7 | I143: Delicate Arch | J143: 38 | K143: 45
A144: 141 | B144: 2015-04-23 | C144: No Coupon | D144: PayPal | E144: South | F144: 22.95 | G144: 7 | H144: 160.65 | I144: Carlota | J144: 28 | K144: 20
A145: 142 | B145: 2015-11-18 | C145: Coupon | D145: Discover | E145: West | F145: 21.95 | G145: 1 | H145: 21.95 | I145: Aspen | J145: 30 | K145: 22
A146: 143 | B146: 2015-10-28 | C146: No Coupon | D146: Visa | E146: South | F146: 24.95 | G146: 5 | H146: 124.75 | I146: Bellen | J146: 43 | K146: 30
A147: 144 | B147: 2015-08-14 | C147: No Coupon | D147: PayPal | E147: West | F147: 29.95 | G147: 3 | H147: 89.85 | I147: Delicate Arch | J147: 42 | K147: 45
A148: 145 | B148: 2015-05-05 | C148: No Coupon | D148: Visa | E148: Mid West | F148: 24.95 | G148: 2 | H148: 49.9 | I148: Bellen | J148: 24 | K148: 30
A149: 146 | B149: 2015-08-25 | C149: Coupon | D149: Visa | E149: Mid West | F149: 22.95 | G149: 1 | H149: 22.95 | I149: Carlota | J149: 47 | K149: 20
A150: 147 | B150: 2015-10-25 | C150: No Coupon | D150: PayPal | E150: Mid West | F150: 19.95 | G150: 1 | H150: 19.95 | I150: Yanaki | J150: 23 | K150: 25
A151: 148 | B151: 2015-07-31 | C151: No Coupon | D151: PayPal | E151: East | F151: 19.95 | G151: 5 | H151: 99.75 | I151: Yanaki | J151: 59 | K151: 25
A152: 149 | B152: 2015-07-25 | C152: Coupon | D152: Mastercard | E152: West | F152: 22.95 | G152: 4 | H152: 91.8 | I152: Carlota | J152: 22 | K152: 20
A153: 150 | B153: 2015-09-30 | C153: Coupon | D153: Visa | E153: Mid West | F153: 24.95 | G153: 2 | H153: 49.9 | I153: Bellen | J153: 27 | K153: 30
A154: 151 | B154: 2015-10-03 | C154: No Coupon | D154: Discover | E154: East | F154: 21.95 | G154: 1 | H154: 21.95 | I154: Aspen | J154: 65 | K154: 22
A155: 152 | B155: 2015-04-01 | C155: No Coupon | D155: Mastercard | E155: Mid West | F155: 22.95 | G155: 2 | H155: 45.9 | I155: Carlota | J155: 27 | K155: 20
A156: 153 | B156: 2015-12-15 | C156: No Coupon | D156: American Express | E156: East | F156: 22.95 | G156: 1 | H156: 22.95 | I156: Carlota | J156: 27 | K156: 20
A157: 154 | B157: 2015-01-07 | C157: No Coupon | D157: PayPal | E157: West | F157: 22.95 | G157: 2 | H157: 45.9 | I157: Carlota | J157: 28 | K157: 20
A158: 155 | B158: 2015-07-23 | C158: Coupon | D158: PayPal | E158: West | F158: 24.95 | G158: 1 | H158: 24.95 | I158: Bellen | J158: 22 | K158: 30
A159: 156 | B159: 2015-03-16 | C159: No Coupon | D159: PayPal | E159: East | F159: 19.95 | G159: 2 | H159: 39.9 | I159: Yanaki | J159: 42 | K159: 25
A160: 157 | B160: 2015-12-04 | C160: No Coupon | D160: American Express | E160: East | F160: 29.95 | G160: 6 | H160: 179.7 | I160: Delicate Arch | J160: 25 | K160: 45
A161: 158 | B161: 2015-01-08 | C161: Coupon | D161: Mastercard | E161: West | F161: 21.95 | G161: 1 | H161: 21.95 | I161: Aspen | J161: 41 | K161: 22
A162: 159 | B162: 2015-06-02 | C162: Coupon | D162: PayPal | E162: West | F162: 24.95 | G162: 1 | H162: 24.95 | I162: Bellen | J162: 46 | K162: 30
A163: 160 | B163: 2015-08-18 | C163: No Coupon | D163: Discover | E163: West | F163: 24.95 | G163: 3 | H163: 74.85 | I163: Sunset | J163: 41 | K163: 35
A164: 161 | B164: 2015-04-24 | C164: No Coupon | D164: Mastercard | E164: West | F164: 19.95 | G164: 4 | H164: 79.8 | I164: Yanaki | J164: 29 | K164: 25
A165: 162 | B165: 2015-12-01 | C165: No Coupon | D165: Visa | E165: Mid West | F165: 19.95 | G165: 1 | H165: 19.95 | I165: Yanaki | J165: 50 | K165: 25
A166: 163 | B166: 2015-12-31 | C166: Coupon | D166: Visa | E166: Mid West | F166: 22.95 | G166: 1 | H166: 22.95 | I166: Carlota | J166: 50 | K166: 20
A167: 164 | B167: 2015-04-30 | C167: Coupon | D167: PayPal | E167: Mid West | F167: 22.95 | G167: 2 | H167: 45.9 | I167: Carlota | J167: 34 | K167: 20
A168: 165 | B168: 2015-03-16 | C168: Coupon | D168: American Express | E168: West | F168: 21.95 | G168: 3 | H168: 65.85 | I168: Aspen | J168: 24 | K168: 22
A169: 166 | B169: 2015-01-28 | C169: No Coupon | D169: Mastercard | E169: West | F169: 19.95 | G169: 7 | H169: 139.65 | I169: Yanaki | J169: 29 | K169: 25
A170: 167 | B170: 2015-08-03 | C170: No Coupon | D170: Mastercard | E170: Mid West | F170: 22.95 | G170: 1 | H170: 22.95 | I170: Carlota | J170: 35 | K170: 20
A171: 168 | B171: 2015-11-11 | C171: No Coupon | D171: Visa | E171: West | F171: 19.95 | G171: 2 | H171: 39.9 | I171: Yanaki | J171: 24 | K171: 25
A172: 169 | B172: 2015-12-13 | C172: Coupon | D172: Visa | E172: South | F172: 21.95 | G172: 5 | H172: 109.75 | I172: Aspen | J172: 23 | K172: 22
A173: 170 | B173: 2015-03-27 | C173: No Coupon | D173: PayPal | E173: Mid West | F173: 22.95 | G173: 7 | H173: 160.65 | I173: Carlota | J173: 31 | K173: 20
A174: 171 | B174: 2015-10-08 | C174: Coupon | D174: PayPal | E174: Mid West | F174: 24.95 | G174: 2 | H174: 49.9 | I174: Bellen | J174: 24 | K174: 30
A175: 172 | B175: 2015-08-03 | C175: No Coupon | D175: Visa | E175: Mid West | F175: 22.95 | G175: 1 | H175: 22.95 | I175: Carlota | J175: 30 | K175: 20
A176: 173 | B176: 2015-03-10 | C176: Coupon | D176: Visa | E176: West | F176: 22.95 | G176: 2 | H176: 45.9 | I176: Carlota | J176: 22 | K176: 20
A177: 174 | B177: 2015-03-02 | C177: No Coupon | D177: Visa | E177: East | F177: 22.95 | G177: 3 | H177: 68.85 | I177: Carlota | J177: 43 | K177: 20
A178: 175 | B178: 2015-01-26 | C178: No Coupon | D178: Visa | E178: West | F178: 22.95 | G178: 10 | H178: 229.5 | I178: Carlota | J178: 55 | K178: 20
A179: 176 | B179: 2015-05-06 | C179: No Coupon | D179: American Express | E179: West | F179: 29.95 | G179: 1 | H179: 29.95 | I179: Delicate Arch | J179: 38 | K179: 45
A180: 177 | B180: 2015-03-10 | C180: Coupon | D180: Visa | E180: West | F180: 19.95 | G180: 2 | H180: 39.9 | I180: Yanaki | J180: 28 | K180: 25
A181: 178 | B181: 2015-11-18 | C181: Coupon | D181: PayPal | E181: Mid West | F181: 21.95 | G181: 2 | H181: 43.9 | I181: Aspen | J181: 30 | K181: 22
A182: 179 | B182: 2015-01-30 | C182: Coupon | D182: Discover | E182: West | F182: 19.95 | G182: 1 | H182: 19.95 | I182: Yanaki | J182: 35 | K182: 25
A183: 180 | B183: 2015-07-02 | C183: No Coupon | D183: Visa | E183: West | F183: 29.95 | G183: 2 | H183: 59.9 | I183: Delicate Arch | J183: 41 | K183: 45
A184: 181 | B184: 2015-10-13 | C184: Coupon | D184: Discover | E184: East | F184: 19.95 | G184: 5 | H184: 99.75 | I184: Yanaki | J184: 28 | K184: 25
A185: 182 | B185: 2015-02-07 | C185: No Coupon | D185: Discover | E185: Mid West | F185: 24.95 | G185: 7 | H185: 174.65 | I185: Bellen | J185: 65 | K185: 30
A186: 183 | B186: 2015-06-05 | C186: No Coupon | D186: Mastercard | E186: West | F186: 21.95 | G186: 3 | H186: 65.85 | I186: Aspen | J186: 20 | K186: 22
A187: 184 | B187: 2015-11-02 | C187: No Coupon | D187: Visa | E187: Mid West | F187: 24.95 | G187: 5 | H187: 124.75 | I187: Sunset | J187: 39 | K187: 35
A188: 185 | B188: 2015-12-13 | C188: No Coupon | D188: Visa | E188: East | F188: 21.95 | G188: 4 | H188: 87.8 | I188: Aspen | J188: 19 | K188: 22
A189: 186 | B189: 2015-10-23 | C189: No Coupon | D189: Visa | E189: West | F189: 22.95 | G189: 10 | H189: 229.5 | I189: Carlota | J189: 64 | K189: 20
A190: 187 | B190: 2015-12-22 | C190: Coupon | D190: PayPal | E190: South | F190: 19.95 | G190: 5 | H190: 99.75 | I190: Yanaki | J190: 42 | K190: 25
A191: 188 | B191: 2015-08-21 | C191: Coupon | D191: PayPal | E191: Mid West | F191: 19.95 | G191: 1 | H191: 19.95 | I191: Yanaki | J191: 24 | K191: 25
A192: 189 | B192: 2015-08-28 | C192: Coupon | D192: PayPal | E192: Mid West | F192: 19.95 | G192: 1 | H192: 19.95 | I192: Yanaki | J192: 24 | K192: 25
A193: 190 | B193: 2015-06-20 | C193: No Coupon | D193: American Express | E193: Mid West | F193: 24.95 | G193: 4 | H193: 99.8 | I193: Bellen | J193: 18 | K193: 30
A194: 191 | B194: 2015-04-30 | C194: Coupon | D194: Mastercard | E194: East | F194: 24.95 | G194: 1 | H194: 24.95 | I194: Bellen | J194: 36 | K194: 30
A195: 192 | B195: 2015-10-14 | C195: No Coupon | D195: Mastercard | E195: Mid West | F195: 22.95 | G195: 5 | H195: 114.75 | I195: Carlota | J195: 61 | K195: 20
A196: 193 | B196: 2015-08-04 | C196: No Coupon | D196: Visa | E196: West | F196: 19.95 | G196: 3 | H196: 59.85 | I196: Yanaki | J196: 22 | K196: 25
A197: 194 | B197: 2015-10-28 | C197: Coupon | D197: PayPal | E197: West | F197: 21.95 | G197: 2 | H197: 43.9 | I197: Aspen | J197: 55 | K197: 22
A198: 195 | B198: 2015-11-04 | C198: No Coupon | D198: American Express | E198: West | F198: 24.95 | G198: 3 | H198: 74.85 | I198: Sunset | J198: 27 | K198: 35
A199: 196 | B199: 2015-01-05 | C199: No Coupon | D199: PayPal | E199: Mid West | F199: 19.95 | G199: 1 | H199: 19.95 | I199: Yanaki | J199: 49 | K199: 25
A200: 197 | B200: 2015-12-11 | C200: Coupon | D200: Visa | E200: West | F200: 22.95 | G200: 1 | H200: 22.95 | I200: Carlota | J200: 29 | K200: 20
A201: 198 | B201: 2015-07-18 | C201: No Coupon | D201: PayPal | E201: West | F201: 21.95 | G201: 7 | H201: 153.65 | I201: Aspen | J201: 33 | K201: 22
... 2 more rows

Sheet DS (an)
A1: Sample of 200 sales from www.boomerangs.com. Use Descriptive Statistics to reveal patterns in raw data.
A3: No. | B3: Date | C3: Coupon | D3: Payment Method | E3: Region | F3: Price | G3: Units | H3: Amount of Transaction (Revenue) | I3: Product (Boomerang Name) | J3: Customer Age | K3: Range (Flight out meters) | N3: Amount of Transaction (Revenue)
A4: 1 | B4: 2015-05-22 | C4: Coupon | D4: Mastercard | E4: West | F4: 22.95 | G4: 2 | H4: 45.9 | I4: Carlota | J4: 21 | K4: 20
A5: 2 | B5: 2015-06-29 | C5: Coupon | D5: Mastercard | E5: West | F5: 19.95 | G5: 1 | H5: 19.95 | I5: Yanaki | J5: 57 | K5: 25 | N5: Mean | O5: 75.05775
A6: 3 | B6: 2015-11-05 | C6: No Coupon | D6: Mastercard | E6: East | F6: 21.95 | G6: 1 | H6: 21.95 | I6: Aspen | J6: 25 | K6: 22 | N6: Standard Error | O6: 3.924790589
A7: 4 | B7: 2015-08-31 | C7: No Coupon | D7: American Express | E7: West | F7: 19.95 | G7: 1 | H7: 19.95 | I7: Yanaki | J7: 38 | K7: 25 | N7: Median | O7: 59.85
A8: 5 | B8: 2015-05-30 | C8: Coupon | D8: Visa | E8: West | F8: 19.95 | G8: 4 | H8: 79.8 | I8: Yanaki | J8: 22 | K8: 25 | N8: Mode | O8: 19.95
A9: 6 | B9: 2015-10-05 | C9: Coupon | D9: PayPal | E9: South | F9: 19.95 | G9: 4 | H9: 79.8 | I9: Yanaki | J9: 29 | K9: 25 | N9: Standard Deviation | O9: 55.50492081
A10: 7 | B10: 2015-03-22 | C10: Coupon | D10: Visa | E10: West | F10: 19.95 | G10: 3 | H10: 59.85 | I10: Yanaki | J10: 18 | K10: 25 | N10: Sample Variance | O10: 3080.796234
A11: 8 | B11: 2015-06-14 | C11: No Coupon | D11: Discover | E11: West | F11: 19.95 | G11: 7 | H11: 139.65 | I11: Yanaki | J11: 64 | K11: 25 | N11: Kurtosis | O11: 1.386185116
A12: 9 | B12: 2015-05-09 | C12: No Coupon | D12: American Express | E12: West | F12: 19.95 | G12: 6 | H12: 119.7 | I12: Yanaki | J12: 27 | K12: 25 | N12: Skewness | O12: 1.214194177
A13: 10 | B13: 2015-08-28 | C13: No Coupon | D13: Visa | E13: West | F13: 21.95 | G13: 2 | H13: 43.9 | I13: Aspen | J13: 22 | K13: 22 | N13: Range | O13: 279.55
A14: 11 | B14: 2015-11-30 | C14: Coupon | D14: PayPal | E14: Mid West | F14: 21.95 | G14: 2 | H14: 43.9 | I14: Aspen | J14: 39 | K14: 22 | N14: Minimum | O14: 19.95
A15: 12 | B15: 2015-09-13 | C15: No Coupon | D15: Mastercard | E15: Mid West | F15: 19.95 | G15: 5 | H15: 99.75 | I15: Yanaki | J15: 61 | K15: 25 | N15: Maximum | O15: 299.5
A16: 13 | B16: 2015-10-23 | C16: No Coupon | D16: Visa | E16: Mid West | F16: 22.95 | G16: 5 | H16: 114.75 | I16: Carlota | J16: 18 | K16: 20 | N16: Sum | O16: 15011.55
A17: 14 | B17: 2015-09-19 | C17: No Coupon | D17: PayPal | E17: West | F17: 22.95 | G17: 4 | H17: 91.8 | I17: Carlota | J17: 22 | K17: 20 | N17: Count | O17: 200
A18: 15 | B18: 2015-09-20 | C18: No Coupon | D18: American Express | E18: Mid West | F18: 22.95 | G18: 5 | H18: 114.75 | I18: Carlota | J18: 52 | K18: 20 | N18: Largest(2) | O18: 249.5
A19: 16 | B19: 2015-01-18 | C19: Coupon | D19: Visa | E19: West | F19: 22.95 | G19: 1 | H19: 22.95 | I19: Carlota | J19: 22 | K19: 20 | N19: Smallest(2) | O19: 19.95
A20: 17 | B20: 2015-07-28 | C20: No Coupon | D20: Discover | E20: West | F20: 24.95 | G20: 5 | H20: 124.75 | I20: Sunset | J20: 18 | K20: 35
A21: 18 | B21: 2015-06-06 | C21: No Coupon | D21: PayPal | E21: South | F21: 19.95 | G21: 1 | H21: 19.95 | I21: Yanaki | J21: 55 | K21: 25
A22: 19 | B22: 2015-01-30 | C22: No Coupon | D22: PayPal | E22: East | F22: 21.95 | G22: 4 | H22: 87.8 | I22: Aspen | J22: 20 | K22: 22
A23: 20 | B23: 2015-10-09 | C23: Coupon | D23: PayPal | E23: Mid West | F23: 22.95 | G23: 1 | H23: 22.95 | I23: Carlota | J23: 42 | K23: 20
A24: 21 | B24: 2015-07-04 | C24: No Coupon | D24: PayPal | E24: South | F24: 29.95 | G24: 10 | H24: 299.5 | I24: Delicate Arch | J24: 30 | K24: 45
A25: 22 | B25: 2015-11-08 | C25: Coupon | D25: Visa | E25: Mid West | F25: 19.95 | G25: 1 | H25: 19.95 | I25: Yanaki | J25: 64 | K25: 25
A26: 23 | B26: 2015-06-09 | C26: Coupon | D26: PayPal | E26: Mid West | F26: 19.95 | G26: 5 | H26: 99.75 | I26: Yanaki | J26: 63 | K26: 25
A27: 24 | B27: 2015-03-17 | C27: Coupon | D27: Mastercard | E27: South | F27: 19.95 | G27: 2 | H27: 39.9 | I27: Yanaki | J27: 41 | K27: 25
A28: 25 | B28: 2015-04-07 | C28: No Coupon | D28: Visa | E28: East | F28: 21.95 | G28: 3 | H28: 65.85 | I28: Aspen | J28: 21 | K28: 22
A29: 26 | B29: 2015-01-05 | C29: No Coupon | D29: PayPal | E29: East | F29: 24.95 | G29: 1 | H29: 24.95 | I29: Sunset | J29: 63 | K29: 35
A30: 27 | B30: 2015-07-22 | C30: No Coupon | D30: American Express | E30: West | F30: 21.95 | G30: 1 | H30: 21.95 | I30: Aspen | J30: 54 | K30: 22
A31: 28 | B31: 2015-11-12 | C31: No Coupon | D31: American Express | E31: West | F31: 19.95 | G31: 1 | H31: 19.95 | I31: Yanaki | J31: 18 | K31: 25
A32: 29 | B32: 2015-05-11 | C32: No Coupon | D32: Discover | E32: West | F32: 22.95 | G32: 4 | H32: 91.8 | I32: Carlota | J32: 26 | K32: 20
A33: 30 | B33: 2015-04-14 | C33: No Coupon | D33: PayPal | E33: Mid West | F33: 21.95 | G33: 3 | H33: 65.85 | I33: Aspen | J33: 59 | K33: 22
A34: 31 | B34: 2015-08-11 | C34: No Coupon | D34: Discover | E34: West | F34: 19.95 | G34: 2 | H34: 39.9 | I34: Yanaki | J34: 30 | K34: 25
A35: 32 | B35: 2015-11-14 | C35: No Coupon | D35: Visa | E35: West | F35: 21.95 | G35: 2 | H35: 43.9 | I35: Aspen | J35: 64 | K35: 22
A36: 33 | B36: 2015-01-21 | C36: No Coupon | D36: PayPal | E36: West | F36: 21.95 | G36: 3 | H36: 65.85 | I36: Aspen | J36: 30 | K36: 22
A37: 34 | B37: 2015-04-12 | C37: Coupon | D37: American Express | E37: West | F37: 21.95 | G37: 2 | H37: 43.9 | I37: Aspen | J37: 41 | K37: 22
A38: 35 | B38: 2015-06-04 | C38: Coupon | D38: Mastercard | E38: South | F38: 19.95 | G38: 5 | H38: 99.75 | I38: Yanaki | J38: 23 | K38: 25
A39: 36 | B39: 2015-10-19 | C39: Coupon | D39: Visa | E39: West | F39: 29.95 | G39: 1 | H39: 29.95 | I39: Delicate Arch | J39: 52 | K39: 45
A40: 37 | B40: 2015-09-07 | C40: No Coupon | D40: PayPal | E40: West | F40: 21.95 | G40: 3 | H40: 65.85 | I40: Aspen | J40: 18 | K40: 22
A41: 38 | B41: 2015-09-19 | C41: No Coupon | D41: PayPal | E41: West | F41: 22.95 | G41: 1 | H41: 22.95 | I41: Carlota | J41: 32 | K41: 20
A42: 39 | B42: 2015-01-17 | C42: Coupon | D42: American Express | E42: Mid West | F42: 19.95 | G42: 1 | H42: 19.95 | I42: Yanaki | J42: 22 | K42: 25
A43: 40 | B43: 2015-03-15 | C43: Coupon | D43: PayPal | E43: South | F43: 19.95 | G43: 5 | H43: 99.75 | I43: Yanaki | J43: 29 | K43: 25
A44: 41 | B44: 2015-12-16 | C44: No Coupon | D44: Mastercard | E44: Mid West | F44: 24.95 | G44: 5 | H44: 124.75 | I44: Bellen | J44: 25 | K44: 30
A45: 42 | B45: 2015-07-08 | C45: No Coupon | D45: PayPal | E45: West | F45: 21.95 | G45: 1 | H45: 21.95 | I45: Aspen | J45: 63 | K45: 22
A46: 43 | B46: 2015-05-13 | C46: No Coupon | D46: Mastercard | E46: Mid West | F46: 24.95 | G46: 7 | H46: 174.65 | I46: Sunset | J46: 26 | K46: 35
A47: 44 | B47: 2015-03-03 | C47: Coupon | D47: Discover | E47: West | F47: 29.95 | G47: 1 | H47: 29.95 | I47: Delicate Arch | J47: 31 | K47: 45
A48: 45 | B48: 2015-04-30 | C48: No Coupon | D48: PayPal | E48: Mid West | F48: 29.95 | G48: 5 | H48: 149.75 | I48: Delicate Arch | J48: 23 | K48: 45
A49: 46 | B49: 2015-07-11 | C49: Coupon | D49: PayPal | E49: Mid West | F49: 29.95 | G49: 1 | H49: 29.95 | I49: Delicate Arch | J49: 42 | K49: 45
A50: 47 | B50: 2015-03-22 | C50: Coupon | D50: Visa | E50: East | F50: 22.95 | G50: 2 | H50: 45.9 | I50: Carlota | J50: 28 | K50: 20
A51: 48 | B51: 2015-08-27 | C51: No Coupon | D51: Visa | E51: West | F51: 22.95 | G51: 7 | H51: 160.65 | I51: Carlota | J51: 23 | K51: 20
A52: 49 | B52: 2015-11-16 | C52: No Coupon | D52: Mastercard | E52: Mid West | F52: 22.95 | G52: 7 | H52: 160.65 | I52: Carlota | J52: 19 | K52: 20
A53: 50 | B53: 2015-01-26 | C53: Coupon | D53: Visa | E53: West | F53: 19.95 | G53: 6 | H53: 119.7 | I53: Yanaki | J53: 37 | K53: 25
A54: 51 | B54: 2015-05-06 | C54: No Coupon | D54: Mastercard | E54: East | F54: 21.95 | G54: 2 | H54: 43.9 | I54: Aspen | J54: 38 | K54: 22
A55: 52 | B55: 2015-03-18 | C55: Coupon | D55: Mastercard | E55: Mid West | F55: 19.95 | G55: 6 | H55: 119.7 | I55: Yanaki | J55: 50 | K55: 25
A56: 53 | B56: 2015-04-16 | C56: No Coupon | D56: Discover | E56: West | F56: 21.95 | G56: 3 | H56: 65.85 | I56: Aspen | J56: 26 | K56: 22
A57: 54 | B57: 2015-01-05 | C57: No Coupon | D57: PayPal | E57: South | F57: 22.95 | G57: 1 | H57: 22.95 | I57: Carlota | J57: 33 | K57: 20
A58: 55 | B58: 2015-11-09 | C58: No Coupon | D58: PayPal | E58: Mid West | F58: 21.95 | G58: 3 | H58: 65.85 | I58: Aspen | J58: 59 | K58: 22
A59: 56 | B59: 2015-07-29 | C59: No Coupon | D59: Visa | E59: Mid West | F59: 21.95 | G59: 5 | H59: 109.75 | I59: Aspen | J59: 32 | K59: 22
A60: 57 | B60: 2015-12-07 | C60: No Coupon | D60: Visa | E60: Mid West | F60: 22.95 | G60: 5 | H60: 114.75 | I60: Carlota | J60: 27 | K60: 20
A61: 58 | B61: 2015-11-22 | C61: Coupon | D61: American Express | E61: West | F61: 24.95 | G61: 10 | H61: 249.5 | I61: Bellen | J61: 54 | K61: 30
A62: 59 | B62: 2015-01-10 | C62: No Coupon | D62: PayPal | E62: West | F62: 21.95 | G62: 5 | H62: 109.75 | I62: Aspen | J62: 63 | K62: 22
A63: 60 | B63: 2015-06-01 | C63: No Coupon | D63: Visa | E63: East | F63: 22.95 | G63: 5 | H63: 114.75 | I63: Carlota | J63: 48 | K63: 20
A64: 61 | B64: 2015-05-02 | C64: No Coupon | D64: American Express | E64: East | F64: 22.95 | G64: 5 | H64: 114.75 | I64: Carlota | J64: 29 | K64: 20
A65: 62 | B65: 2015-06-13 | C65: Coupon | D65: Visa | E65: West | F65: 29.95 | G65: 4 | H65: 119.8 | I65: Delicate Arch | J65: 38 | K65: 45
A66: 63 | B66: 2015-02-16 | C66: Coupon | D66: Mastercard | E66: East | F66: 29.95 | G66: 1 | H66: 29.95 | I66: Delicate Arch | J66: 24 | K66: 45
A67: 64 | B67: 2015-08-02 | C67: No Coupon | D67: Visa | E67: West | F67: 22.95 | G67: 5 | H67: 114.75 | I67: Carlota | J67: 51 | K67: 20
A68: 65 | B68: 2015-11-01 | C68: Coupon | D68: Mastercard | E68: West | F68: 29.95 | G68: 7 | H68: 209.65 | I68: Delicate Arch | J68: 25 | K68: 45
A69: 66 | B69: 2015-11-08 | C69: No Coupon | D69: Visa | E69: West | F69: 22.95 | G69: 5 | H69: 114.75 | I69: Carlota | J69: 65 | K69: 20
A70: 67 | B70: 2015-08-17 | C70: No Coupon | D70: PayPal | E70: Mid West | F70: 19.95 | G70: 3 | H70: 59.85 | I70: Yanaki | J70: 35 | K70: 25
A71: 68 | B71: 2015-09-27 | C71: No Coupon | D71: Mastercard | E71: East | F71: 24.95 | G71: 5 | H71: 124.75 | I71: Sunset | J71: 35 | K71: 35
A72: 69 | B72: 2015-01-09 | C72: No Coupon | D72: Visa | E72: Mid West | F72: 19.95 | G72: 2 | H72: 39.9 | I72: Yanaki | J72: 21 | K72: 25
A73: 70 | B73: 2015-10-10 | C73: No Coupon | D73: Mastercard | E73: West | F73: 24.95 | G73: 5 | H73: 124.75 | I73: Sunset | J73: 47 | K73: 35
A74: 71 | B74: 2015-12-31 | C74: No Coupon | D74: Discover | E74: East | F74: 24.95 | G74: 1 | H74: 24.95 | I74: Sunset | J74: 62 | K74: 35
A75: 72 | B75: 2015-12-06 | C75: No Coupon | D75: PayPal | E75: East | F75: 22.95 | G75: 1 | H75: 22.95 | I75: Carlota | J75: 63 | K75: 20
A76: 73 | B76: 2015-03-18 | C76: No Coupon | D76: American Express | E76: Mid West | F76: 24.95 | G76: 10 | H76: 249.5 | I76: Bellen | J76: 23 | K76: 30
A77: 74 | B77: 2015-03-22 | C77: No Coupon | D77: Visa | E77: South | F77: 19.95 | G77: 3 | H77: 59.85 | I77: Yanaki | J77: 59 | K77: 25
A78: 75 | B78: 2015-09-14 | C78: Coupon | D78: Visa | E78: West | F78: 21.95 | G78: 2 | H78: 43.9 | I78: Aspen | J78: 48 | K78: 22
A79: 76 | B79: 2015-02-09 | C79: No Coupon | D79: Mastercard | E79: South | F79: 19.95 | G79: 1 | H79: 19.95 | I79: Yanaki | J79: 57 | K79: 25
A80: 77 | B80: 2015-03-24 | C80: No Coupon | D80: Discover | E80: Mid West | F80: 29.95 | G80: 1 | H80: 29.95 | I80: Delicate Arch | J80: 19 | K80: 45
A81: 78 | B81: 2015-07-28 | C81: Coupon | D81: Mastercard | E81: Mid West | F81: 19.95 | G81: 1 | H81: 19.95 | I81: Yanaki | J81: 48 | K81: 25
A82: 79 | B82: 2015-08-26 | C82: Coupon | D82: Mastercard | E82: South | F82: 21.95 | G82: 3 | H82: 65.85 | I82: Aspen | J82: 21 | K82: 22
A83: 80 | B83: 2015-03-05 | C83: No Coupon | D83: American Express | E83: West | F83: 22.95 | G83: 1 | H83: 22.95 | I83: Carlota | J83: 40 | K83: 20
A84: 81 | B84: 2015-08-18 | C84: No Coupon | D84: Visa | E84: Mid West | F84: 19.95 | G84: 4 | H84: 79.8 | I84: Yanaki | J84: 25 | K84: 25
A85: 82 | B85: 2015-11-02 | C85: Coupon | D85: Mastercard | E85: South | F85: 19.95 | G85: 4 | H85: 79.8 | I85: Yanaki | J85: 59 | K85: 25
A86: 83 | B86: 2015-12-19 | C86: No Coupon | D86: Visa | E86: West | F86: 22.95 | G86: 5 | H86: 114.75 | I86: Carlota | J86: 57 | K86: 20
A87: 84 | B87: 2015-07-05 | C87: Coupon | D87: Discover | E87: West | F87: 22.95 | G87: 1 | H87: 22.95 | I87: Carlota | J87: 56 | K87: 20
A88: 85 | B88: 2015-04-16 | C88: No Coupon | D88: Visa | E88: West | F88: 19.95 | G88: 1 | H88: 19.95 | I88: Yanaki | J88: 19 | K88: 25
A89: 86 | B89: 2015-12-23 | C89: No Coupon | D89: Visa | E89: Mid West | F89: 21.95 | G89: 5 | H89: 109.75 | I89: Aspen | J89: 54 | K89: 22
A90: 87 | B90: 2015-05-29 | C90: No Coupon | D90: PayPal | E90: Mid West | F90: 29.95 | G90: 2 | H90: 59.9 | I90: Delicate Arch | J90: 65 | K90: 45
A91: 88 | B91: 2015-05-01 | C91: Coupon | D91: PayPal | E91: West | F91: 21.95 | G91: 2 | H91: 43.9 | I91: Aspen | J91: 25 | K91: 22
A92: 89 | B92: 2015-07-03 | C92: No Coupon | D92: American Express | E92: West | F92: 19.95 | G92: 2 | H92: 39.9 | I92: Yanaki | J92: 30 | K92: 25
A93: 90 | B93: 2015-08-12 | C93: No Coupon | D93: Mastercard | E93: West | F93: 29.95 | G93: 7 | H93: 209.65 | I93: Delicate Arch | J93: 57 | K93: 45
A94: 91 | B94: 2015-06-21 | C94: Coupon | D94: PayPal | E94: West | F94: 19.95 | G94: 1 | H94: 19.95 | I94: Yanaki | J94: 43 | K94: 25
A95: 92 | B95: 2015-12-15 | C95: No Coupon | D95: Mastercard | E95: South | F95: 19.95 | G95: 4 | H95: 79.8 | I95: Yanaki | J95: 44 | K95: 25
A96: 93 | B96: 2015-05-25 | C96: No Coupon | D96: PayPal | E96: East | F96: 24.95 | G96: 5 | H96: 124.75 | I96: Bellen | J96: 21 | K96: 30
A97: 94 | B97: 2015-03-23 | C97: No Coupon | D97: PayPal | E97: West | F97: 24.95 | G97: 1 | H97: 24.95 | I97: Bellen | J97: 20 | K97: 30
A98: 95 | B98: 2015-01-22 | C98: Coupon | D98: Visa | E98: West | F98: 22.95 | G98: 7 | H98: 160.65 | I98: Carlota | J98: 49 | K98: 20
A99: 96 | B99: 2015-09-26 | C99: No Coupon | D99: Mastercard | E99: South | F99: 21.95 | G99: 3 | H99: 65.85 | I99: Aspen | J99: 37 | K99: 22
A100: 97 | B100: 2015-12-27 | C100: No Coupon | D100: PayPal | E100: West | F100: 22.95 | G100: 6 | H100: 137.7 | I100: Carlota | J100: 69 | K100: 20
A101: 98 | B101: 2015-07-24 | C101: No Coupon | D101: Mastercard | E101: East | F101: 29.95 | G101: 1 | H101: 29.95 | I101: Delicate Arch | J101: 62 | K101: 45
A102: 99 | B102: 2015-04-27 | C102: No Coupon | D102: PayPal | E102: West | F102: 19.95 | G102: 6 | H102: 119.7 | I102: Yanaki | J102: 38 | K102: 25
A103: 100 | B103: 2015-05-07 | C103: No Coupon | D103: Visa | E103: West | F103: 19.95 | G103: 1 | H103: 19.95 | I103: Yanaki | J103: 55 | K103: 25
A104: 101 | B104: 2015-03-03 | C104: Coupon | D104: American Express | E104: East | F104: 19.95 | G104: 2 | H104: 39.9 | I104: Yanaki | J104: 24 | K104: 25
A105: 102 | B105: 2015-03-23 | C105: No Coupon | D105: PayPal | E105: Mid West | F105: 22.95 | G105: 5 | H105: 114.75 | I105: Carlota | J105: 30 | K105: 20
A106: 103 | B106: 2015-12-05 | C106: Coupon | D106: Visa | E106: Mid West | F106: 21.95 | G106: 1 | H106: 21.95 | I106: Aspen | J106: 39 | K106: 22
A107: 104 | B107: 2015-11-11 | C107: Coupon | D107: PayPal | E107: South | F107: 29.95 | G107: 6 | H107: 179.7 | I107: Delicate Arch | J107: 59 | K107: 45
A108: 105 | B108: 2015-04-13 | C108: No Coupon | D108: Discover | E108: East | F108: 19.95 | G108: 2 | H108: 39.9 | I108: Yanaki | J108: 26 | K108: 25
A109: 106 | B109: 2015-12-13 | C109: No Coupon | D109: Visa | E109: Mid West | F109: 24.95 | G109: 1 | H109: 24.95 | I109: Sunset | J109: 33 | K109: 35
A110: 107 | B110: 2015-10-05 | C110: No Coupon | D110: Visa | E110: West | F110: 24.95 | G110: 4 | H110: 99.8 | I110: Bellen | J110: 20 | K110: 30
A111: 108 | B111: 2015-01-02 | C111: No Coupon | D111: Visa | E111: West | F111: 21.95 | G111: 4 | H111: 87.8 | I111: Aspen | J111: 18 | K111: 22
A112: 109 | B112: 2015-11-04 | C112: Coupon | D112: PayPal | E112: East | F112: 19.95 | G112: 2 | H112: 39.9 | I112: Yanaki | J112: 19 | K112: 25
A113: 110 | B113: 2015-04-29 | C113: No Coupon | D113: PayPal | E113: West | F113: 21.95 | G113: 3 | H113: 65.85 | I113: Aspen | J113: 61 | K113: 22
A114: 111 | B114: 2015-10-02 | C114: Coupon | D114: PayPal | E114: East | F114: 19.95 | G114: 10 | H114: 199.5 | I114: Yanaki | J114: 39 | K114: 25
A115: 112 | B115: 2015-12-26 | C115: Coupon | D115: Discover | E115: West | F115: 21.95 | G115: 1 | H115: 21.95 | I115: Aspen | J115: 52 | K115: 22
A116: 113 | B116: 2015-11-05 | C116: No Coupon | D116: Visa | E116: West | F116: 24.95 | G116: 5 | H116: 124.75 | I116: Sunset | J116: 20 | K116: 35
A117: 114 | B117: 2015-11-15 | C117: No Coupon | D117: Visa | E117: West | F117: 29.95 | G117: 1 | H117: 29.95 | I117: Delicate Arch | J117: 50 | K117: 45
A118: 115 | B118: 2015-06-27 | C118: Coupon | D118: PayPal | E118: South | F118: 21.95 | G118: 1 | H118: 21.95 | I118: Aspen | J118: 29 | K118: 22
A119: 116 | B119: 2015-04-21 | C119: No Coupon | D119: Visa | E119: West | F119: 29.95 | G119: 4 | H119: 119.8 | I119: Delicate Arch | J119: 55 | K119: 45
A120: 117 | B120: 2015-09-25 | C120: No Coupon | D120: American Express | E120: West | F120: 29.95 | G120: 3 | H120: 89.85 | I120: Delicate Arch | J120: 18 | K120: 45
A121: 118 | B121: 2015-01-24 | C121: Coupon | D121: Mastercard | E121: Mid West | F121: 21.95 | G121: 3 | H121: 65.85 | I121: Aspen | J121: 39 | K121: 22
A122: 119 | B122: 2015-01-04 | C122: No Coupon | D122: Visa | E122: South | F122: 22.95 | G122: 4 | H122: 91.8 | I122: Carlota | J122: 35 | K122: 20
A123: 120 | B123: 2015-05-06 | C123: Coupon | D123: American Express | E123: South | F123: 24.95 | G123: 6 | H123: 149.7 | I123: Bellen | J123: 38 | K123: 30
A124: 121 | B124: 2015-06-22 | C124: No Coupon | D124: Visa | E124: East | F124: 19.95 | G124: 3 | H124: 59.85 | I124: Yanaki | J124: 20 | K124: 25
A125: 122 | B125: 2015-07-12 | C125: No Coupon | D125: Discover | E125: Mid West | F125: 21.95 | G125: 6 | H125: 131.7 | I125: Aspen | J125: 60 | K125: 22
A126: 123 | B126: 2015-05-03 | C126: No Coupon | D126: Visa | E126: Mid West | F126: 24.95 | G126: 2 | H126: 49.9 | I126: Sunset | J126: 61 | K126: 35
A127: 124 | B127: 2015-03-09 | C127: Coupon | D127: PayPal | E127: West | F127: 21.95 | G127: 2 | H127: 43.9 | I127: Aspen | J127: 67 | K127: 22
A128: 125 | B128: 2015-03-02 | C128: No Coupon | D128: Visa | E128: Mid West | F128: 19.95 | G128: 1 | H128: 19.95 | I128: Yanaki | J128: 21 | K128: 25
A129: 126 | B129: 2015-03-28 | C129: No Coupon | D129: Discover | E129: South | F129: 21.95 | G129: 1 | H129: 21.95 | I129: Aspen | J129: 40 | K129: 22
A130: 127 | B130: 2015-01-15 | C130: No Coupon | D130: Visa | E130: West | F130: 24.95 | G130: 1 | H130: 24.95 | I130: Bellen | J130: 25 | K130: 30
A131: 128 | B131: 2015-11-18 | C131: No Coupon | D131: Mastercard | E131: West | F131: 19.95 | G131: 2 | H131: 39.9 | I131: Yanaki | J131: 50 | K131: 25
A132: 129 | B132: 2015-03-27 | C132: No Coupon | D132: Visa | E132: West | F132: 24.95 | G132: 1 | H132: 24.95 | I132: Bellen | J132: 24 | K132: 30
A133: 130 | B133: 2015-08-11 | C133: Coupon | D133: PayPal | E133: West | F133: 22.95 | G133: 5 | H133: 114.75 | I133: Carlota | J133: 28 | K133: 20
A134: 131 | B134: 2015-12-24 | C134: No Coupon | D134: Visa | E134: Mid West | F134: 19.95 | G134: 6 | H134: 119.7 | I134: Yanaki | J134: 22 | K134: 25
A135: 132 | B135: 2015-11-27 | C135: No Coupon | D135: PayPal | E135: West | F135: 21.95 | G135: 2 | H135: 43.9 | I135: Aspen | J135: 22 | K135: 22
A136: 133 | B136: 2015-03-12 | C136: No Coupon | D136: Visa | E136: West | F136: 24.95 | G136: 1 | H136: 24.95 | I136: Bellen | J136: 27 | K136: 30
A137: 134 | B137: 2015-09-16 | C137: Coupon | D137: Visa | E137: West | F137: 24.95 | G137: 7 | H137: 174.65 | I137: Sunset | J137: 54 | K137: 35
A138: 135 | B138: 2015-02-01 | C138: No Coupon | D138: Mastercard | E138: West | F138: 24.95 | G138: 1 | H138: 24.95 | I138: Bellen | J138: 25 | K138: 30
A139: 136 | B139: 2015-07-03 | C139: No Coupon | D139: Visa | E139: Mid West | F139: 24.95 | G139: 2 | H139: 49.9 | I139: Sunset | J139: 25 | K139: 35
A140: 137 | B140: 2015-08-30 | C140: No Coupon | D140: PayPal | E140: East | F140: 19.95 | G140: 1 | H140: 19.95 | I140: Yanaki | J140: 30 | K140: 25
A141: 138 | B141: 2015-09-18 | C141: Coupon | D141: Mastercard | E141: South | F141: 19.95 | G141: 2 | H141: 39.9 | I141: Yanaki | J141: 59 | K141: 25
A142: 139 | B142: 2015-11-24 | C142: No Coupon | D142: Visa | E142: West | F142: 22.95 | G142: 2 | H142: 45.9 | I142: Carlota | J142: 51 | K142: 20
A143: 140 | B143: 2015-12-22 | C143: No Coupon | D143: Visa | E143: West | F143: 29.95 | G143: 6 | H143: 179.7 | I143: Delicate Arch | J143: 38 | K143: 45
A144: 141 | B144: 2015-04-23 | C144: No Coupon | D144: PayPal | E144: South | F144: 22.95 | G144: 7 | H144: 160.65 | I144: Carlota | J144: 28 | K144: 20
A145: 142 | B145: 2015-11-18 | C145: Coupon | D145: Discover | E145: West | F145: 21.95 | G145: 1 | H145: 21.95 | I145: Aspen | J145: 30 | K145: 22
A146: 143 | B146: 2015-10-28 | C146: No Coupon | D146: Visa | E146: South | F146: 24.95 | G146: 5 | H146: 124.75 | I146: Bellen | J146: 43 | K146: 30
A147: 144 | B147: 2015-08-14 | C147: No Coupon | D147: PayPal | E147: West | F147: 29.95 | G147: 3 | H147: 89.85 | I147: Delicate Arch | J147: 42 | K147: 45
A148: 145 | B148: 2015-05-05 | C148: No Coupon | D148: Visa | E148: Mid West | F148: 24.95 | G148: 2 | H148: 49.9 | I148: Bellen | J148: 24 | K148: 30
A149: 146 | B149: 2015-08-25 | C149: Coupon | D149: Visa | E149: Mid West | F149: 22.95 | G149: 1 | H149: 22.95 | I149: Carlota | J149: 47 | K149: 20
A150: 147 | B150: 2015-10-25 | C150: No Coupon | D150: PayPal | E150: Mid West | F150: 19.95 | G150: 1 | H150: 19.95 | I150: Yanaki | J150: 23 | K150: 25
A151: 148 | B151: 2015-07-31 | C151: No Coupon | D151: PayPal | E151: East | F151: 19.95 | G151: 5 | H151: 99.75 | I151: Yanaki | J151: 59 | K151: 25
A152: 149 | B152: 2015-07-25 | C152: Coupon | D152: Mastercard | E152: West | F152: 22.95 | G152: 4 | H152: 91.8 | I152: Carlota | J152: 22 | K152: 20
A153: 150 | B153: 2015-09-30 | C153: Coupon | D153: Visa | E153: Mid West | F153: 24.95 | G153: 2 | H153: 49.9 | I153: Bellen | J153: 27 | K153: 30
A154: 151 | B154: 2015-10-03 | C154: No Coupon | D154: Discover | E154: East | F154: 21.95 | G154: 1 | H154: 21.95 | I154: Aspen | J154: 65 | K154: 22
A155: 152 | B155: 2015-04-01 | C155: No Coupon | D155: Mastercard | E155: Mid West | F155: 22.95 | G155: 2 | H155: 45.9 | I155: Carlota | J155: 27 | K155: 20
A156: 153 | B156: 2015-12-15 | C156: No Coupon | D156: American Express | E156: East | F156: 22.95 | G156: 1 | H156: 22.95 | I156: Carlota | J156: 27 | K156: 20
A157: 154 | B157: 2015-01-07 | C157: No Coupon | D157: PayPal | E157: West | F157: 22.95 | G157: 2 | H157: 45.9 | I157: Carlota | J157: 28 | K157: 20
A158: 155 | B158: 2015-07-23 | C158: Coupon | D158: PayPal | E158: West | F158: 24.95 | G158: 1 | H158: 24.95 | I158: Bellen | J158: 22 | K158: 30
A159: 156 | B159: 2015-03-16 | C159: No Coupon | D159: PayPal | E159: East | F159: 19.95 | G159: 2 | H159: 39.9 | I159: Yanaki | J159: 42 | K159: 25
A160: 157 | B160: 2015-12-04 | C160: No Coupon | D160: American Express | E160: East | F160: 29.95 | G160: 6 | H160: 179.7 | I160: Delicate Arch | J160: 25 | K160: 45
A161: 158 | B161: 2015-01-08 | C161: Coupon | D161: Mastercard | E161: West | F161: 21.95 | G161: 1 | H161: 21.95 | I161: Aspen | J161: 41 | K161: 22
A162: 159 | B162: 2015-06-02 | C162: Coupon | D162: PayPal | E162: West | F162: 24.95 | G162: 1 | H162: 24.95 | I162: Bellen | J162: 46 | K162: 30
A163: 160 | B163: 2015-08-18 | C163: No Coupon | D163: Discover | E163: West | F163: 24.95 | G163: 3 | H163: 74.85 | I163: Sunset | J163: 41 | K163: 35
A164: 161 | B164: 2015-04-24 | C164: No Coupon | D164: Mastercard | E164: West | F164: 19.95 | G164: 4 | H164: 79.8 | I164: Yanaki | J164: 29 | K164: 25
A165: 162 | B165: 2015-12-01 | C165: No Coupon | D165: Visa | E165: Mid West | F165: 19.95 | G165: 1 | H165: 19.95 | I165: Yanaki | J165: 50 | K165: 25
A166: 163 | B166: 2015-12-31 | C166: Coupon | D166: Visa | E166: Mid West | F166: 22.95 | G166: 1 | H166: 22.95 | I166: Carlota | J166: 50 | K166: 20
A167: 164 | B167: 2015-04-30 | C167: Coupon | D167: PayPal | E167: Mid West | F167: 22.95 | G167: 2 | H167: 45.9 | I167: Carlota | J167: 34 | K167: 20
A168: 165 | B168: 2015-03-16 | C168: Coupon | D168: American Express | E168: West | F168: 21.95 | G168: 3 | H168: 65.85 | I168: Aspen | J168: 24 | K168: 22
A169: 166 | B169: 2015-01-28 | C169: No Coupon | D169: Mastercard | E169: West | F169: 19.95 | G169: 7 | H169: 139.65 | I169: Yanaki | J169: 29 | K169: 25
A170: 167 | B170: 2015-08-03 | C170: No Coupon | D170: Mastercard | E170: Mid West | F170: 22.95 | G170: 1 | H170: 22.95 | I170: Carlota | J170: 35 | K170: 20
A171: 168 | B171: 2015-11-11 | C171: No Coupon | D171: Visa | E171: West | F171: 19.95 | G171: 2 | H171: 39.9 | I171: Yanaki | J171: 24 | K171: 25
A172: 169 | B172: 2015-12-13 | C172: Coupon | D172: Visa | E172: South | F172: 21.95 | G172: 5 | H172: 109.75 | I172: Aspen | J172: 23 | K172: 22
A173: 170 | B173: 2015-03-27 | C173: No Coupon | D173: PayPal | E173: Mid West | F173: 22.95 | G173: 7 | H173: 160.65 | I173: Carlota | J173: 31 | K173: 20
A174: 171 | B174: 2015-10-08 | C174: Coupon | D174: PayPal | E174: Mid West | F174: 24.95 | G174: 2 | H174: 49.9 | I174: Bellen | J174: 24 | K174: 30
A175: 172 | B175: 2015-08-03 | C175: No Coupon | D175: Visa | E175: Mid West | F175: 22.95 | G175: 1 | H175: 22.95 | I175: Carlota | J175: 30 | K175: 20
A176: 173 | B176: 2015-03-10 | C176: Coupon | D176: Visa | E176: West | F176: 22.95 | G176: 2 | H176: 45.9 | I176: Carlota | J176: 22 | K176: 20
A177: 174 | B177: 2015-03-02 | C177: No Coupon | D177: Visa | E177: East | F177: 22.95 | G177: 3 | H177: 68.85 | I177: Carlota | J177: 43 | K177: 20
A178: 175 | B178: 2015-01-26 | C178: No Coupon | D178: Visa | E178: West | F178: 22.95 | G178: 10 | H178: 229.5 | I178: Carlota | J178: 55 | K178: 20
A179: 176 | B179: 2015-05-06 | C179: No Coupon | D179: American Express | E179: West | F179: 29.95 | G179: 1 | H179: 29.95 | I179: Delicate Arch | J179: 38 | K179: 45
A180: 177 | B180: 2015-03-10 | C180: Coupon | D180: Visa | E180: West | F180: 19.95 | G180: 2 | H180: 39.9 | I180: Yanaki | J180: 28 | K180: 25
A181: 178 | B181: 2015-11-18 | C181: Coupon | D181: PayPal | E181: Mid West | F181: 21.95 | G181: 2 | H181: 43.9 | I181: Aspen | J181: 30 | K181: 22
A182: 179 | B182: 2015-01-30 | C182: Coupon | D182: Discover | E182: West | F182: 19.95 | G182: 1 | H182: 19.95 | I182: Yanaki | J182: 35 | K182: 25
A183: 180 | B183: 2015-07-02 | C183: No Coupon | D183: Visa | E183: West | F183: 29.95 | G183: 2 | H183: 59.9 | I183: Delicate Arch | J183: 41 | K183: 45
A184: 181 | B184: 2015-10-13 | C184: Coupon | D184: Discover | E184: East | F184: 19.95 | G184: 5 | H184: 99.75 | I184: Yanaki | J184: 28 | K184: 25
A185: 182 | B185: 2015-02-07 | C185: No Coupon | D185: Discover | E185: Mid West | F185: 24.95 | G185: 7 | H185: 174.65 | I185: Bellen | J185: 65 | K185: 30
A186: 183 | B186: 2015-06-05 | C186: No Coupon | D186: Mastercard | E186: West | F186: 21.95 | G186: 3 | H186: 65.85 | I186: Aspen | J186: 20 | K186: 22
A187: 184 | B187: 2015-11-02 | C187: No Coupon | D187: Visa | E187: Mid West | F187: 24.95 | G187: 5 | H187: 124.75 | I187: Sunset | J187: 39 | K187: 35
A188: 185 | B188: 2015-12-13 | C188: No Coupon | D188: Visa | E188: East | F188: 21.95 | G188: 4 | H188: 87.8 | I188: Aspen | J188: 19 | K188: 22
A189: 186 | B189: 2015-10-23 | C189: No Coupon | D189: Visa | E189: West | F189: 22.95 | G189: 10 | H189: 229.5 | I189: Carlota | J189: 64 | K189: 20
A190: 187 | B190: 2015-12-22 | C190: Coupon | D190: PayPal | E190: South | F190: 19.95 | G190: 5 | H190: 99.75 | I190: Yanaki | J190: 42 | K190: 25
A191: 188 | B191: 2015-08-21 | C191: Coupon | D191: PayPal | E191: Mid West | F191: 19.95 | G191: 1 | H191: 19.95 | I191: Yanaki | J191: 24 | K191: 25
A192: 189 | B192: 2015-08-28 | C192: Coupon | D192: PayPal | E192: Mid West | F192: 19.95 | G192: 1 | H192: 19.95 | I192: Yanaki | J192: 24 | K192: 25
A193: 190 | B193: 2015-06-20 | C193: No Coupon | D193: American Express | E193: Mid West | F193: 24.95 | G193: 4 | H193: 99.8 | I193: Bellen | J193: 18 | K193: 30
A194: 191 | B194: 2015-04-30 | C194: Coupon | D194: Mastercard | E194: East | F194: 24.95 | G194: 1 | H194: 24.95 | I194: Bellen | J194: 36 | K194: 30
A195: 192 | B195: 2015-10-14 | C195: No Coupon | D195: Mastercard | E195: Mid West | F195: 22.95 | G195: 5 | H195: 114.75 | I195: Carlota | J195: 61 | K195: 20
A196: 193 | B196: 2015-08-04 | C196: No Coupon | D196: Visa | E196: West | F196: 19.95 | G196: 3 | H196: 59.85 | I196: Yanaki | J196: 22 | K196: 25
A197: 194 | B197: 2015-10-28 | C197: Coupon | D197: PayPal | E197: West | F197: 21.95 | G197: 2 | H197: 43.9 | I197: Aspen | J197: 55 | K197: 22
A198: 195 | B198: 2015-11-04 | C198: No Coupon | D198: American Express | E198: West | F198: 24.95 | G198: 3 | H198: 74.85 | I198: Sunset | J198: 27 | K198: 35
A199: 196 | B199: 2015-01-05 | C199: No Coupon | D199: PayPal | E199: Mid West | F199: 19.95 | G199: 1 | H199: 19.95 | I199: Yanaki | J199: 49 | K199: 25
A200: 197 | B200: 2015-12-11 | C200: Coupon | D200: Visa | E200: West | F200: 22.95 | G200: 1 | H200: 22.95 | I200: Carlota | J200: 29 | K200: 20
A201: 198 | B201: 2015-07-18 | C201: No Coupon | D201: PayPal | E201: West | F201: 21.95 | G201: 7 | H201: 153.65 | I201: Aspen | J201: 33 | K201: 22
... 2 more rows

Sheet Skew (2)
B1: Skew tells to which way the distribution is tilting. If the average is being pulled up by a few big values, the skew is positive, or to the right. If the average is being pulled down by a few small values, the skew is negative, or to the left.
B2: If the Skew is 0, the Mean = Median = Mode = Normal or Bell Distribution
B3: We can use the SKEW function to calculate the Skew
H6: Xbar | I6: = | J6: Sample Mean | K6: "Xbar"
H7: xi | I7: = | J7: Particular Value | K7: "x sub i"
H8: ∑ | I8: = | J8: Greek Letter used for "adding" | K8: "Sigma"
H9: n | I9: = | J9: Count of sample items | K9: "n"
H10: s | I10: = | J10: Sample Standard Deviation | K10: "s"
B11: Moderate Skew | C11: No Skew | D11: Highly Skewed
B12: Negative (Left) Skew small values pull Mean down | C12: No Skew (Normal or Bell) Mean = Median = Mode | D12: Positive (Right) Skew big values pull Mean up
A13: count = n | B13: =COUNT(B21:B30) -> 10 | C13: =COUNT(C21:C30) -> 10 | D13: =COUNT(D21:D30) -> 10
A14: Skew | B14: =B13/((B13-1)*(B13-2))*SUMPRODUCT(((B21:B30-AVERAGE(B21:B30))/_xlfn.STDEV.S(B21:B30))^3) -> -0.640521768 | C14: =C13/((C13-1)*(C13-2))*SUMPRODUCT(((C21:C30-AVERAGE(C21:C30))/_xlfn.STDEV.S(C21:C30))^3) -> -0.01127728555 | D14: =D13/((D13-1)*(D13-2))*SUMPRODUCT(((D21:D30-AVERAGE(D21:D30))/_xlfn.STDEV.S(D21:D30))^3) -> 1.552490626
A15: Skew
A16: Mean | B16: =AVERAGE(B21:B30) -> 32.6 | C16: =AVERAGE(C21:C30) -> 24.59 | D16: 14.39
A17: Median | B17: =MEDIAN(B21:B30) -> 34.5 | C17: =MEDIAN(C21:C30) -> 25 | D17: 9
A18: Mode | B18: =_xlfn.MODE.SNGL(B21:B30) -> 43 | C18: =_xlfn.MODE.SNGL(C21:C30) -> 25 | D18: 7
B19: Moderate Skew | C19: No Skew | D19: Highly Skewed
B20: Data 1 | C20: Data 2 | D20: Data 3
B21: 7 | C21: 7.9 | D21: 1
B22: 43 | C22: 15 | D22: 7
B23: 33 | C23: 11 | D23: 7
B24: 21 | C24: 21 | D24: 12
B25: 15 | C25: 25 | D25: 11
B26: 31 | C26: 25 | D26: 14
B27: 36 | C27: 27 | D27: 2
B28: 43 | C28: 35 | D28: 1.9
B29: 48 | C29: 38 | D29: 39
B30: 49 | C30: 41 | D30: 49
A32: Labels | B32: Frequency | C32: Frequency | D32: Frequency
A33: =A40&"-"&B40-1 -> 0-9 | B33: =FREQUENCY(B21:B30,B40:B44) -> 1 | C33: =FREQUENCY(C21:C30,C40:C44) -> 1 | D33: =FREQUENCY(D21:D30,D40:D44) -> 5
A34: =A41&"-"&B41-1 -> 10-19 | B34: 1 | C34: 2 | D34: 3
A35: =A42&"-"&B42-1 -> 20-29 | B35: 1 | C35: 4 | D35: 0
A36: =A43&"-"&B43-1 -> 30-39 | B36: 3 | C36: 2 | D36: 1
A37: =A44&"-"&B44-1 -> 40-49 | B37: 4 | C37: 1 | D37: 1
A39: Low | B39: Bins | C39: Bins | D39: Bins
A40: =B40-10 -> 0 | B40: 10 | C40: 10 | D40: 10
A41: =B41-10 -> 10 | B41: 20 | C41: 20 | D41: 20
A42: =B42-10 -> 20 | B42: 30 | C42: 30 | D42: 30
A43: =B43-10 -> 30 | B43: 40 | C43: 40 | D43: 40
A44: 40 | B44: 50 | C44: 50 | D44: 50

Sheet Skew (2an)
B1: Skew tells to which way the distribution is tilting. If the average is being pulled up by a few big values, the skew is positive, or to the right. If the average is being pulled down by a few small values, the skew is negative, or to the left.
B2: If the Skew is 0, the Mean = Median = Mode = Normal or Bell Distribution
B3: We can use the SKEW function to calculate the Skew
H6: Xbar | I6: = | J6: Sample Mean | K6: "Xbar"
H7: xi | I7: = | J7: Particular Value | K7: "x sub i"
H8: ∑ | I8: = | J8: Greek Letter used for "adding" | K8: "Sigma"
H9: n | I9: = | J9: Count of sample items | K9: "n"
H10: s | I10: = | J10: Sample Standard Deviation | K10: "s"
B11: Moderate Skew | C11: No Skew | D11: Highly Skewed
B12: Negative (Left) Skew small values pull Mean down | C12: No Skew (Normal or Bell) Mean = Median = Mode | D12: Positive (Right) Skew big values pull Mean up
A13: count = n | B13: =COUNT(B21:B30) -> 10 | C13: =COUNT(C21:C30) -> 10 | D13: =COUNT(D21:D30) -> 10
A14: Skew | B14: =B13/((B13-1)*(B13-2))*SUMPRODUCT(((B21:B30-AVERAGE(B21:B30))/_xlfn.STDEV.S(B21:B30))^3) -> -0.640521768 | C14: =C13/((C13-1)*(C13-2))*SUMPRODUCT(((C21:C30-AVERAGE(C21:C30))/_xlfn.STDEV.S(C21:C30))^3) -> -0.01127728555 | D14: =D13/((D13-1)*(D13-2))*SUMPRODUCT(((D21:D30-AVERAGE(D21:D30))/_xlfn.STDEV.S(D21:D30))^3) -> 1.552490626
A15: Skew | B15: =SKEW(B21:B30) -> -0.640521768 | C15: =SKEW(C21:C30) -> -0.01127728555 | D15: 1.552490626
A16: Mean | B16: =AVERAGE(B21:B30) -> 32.6 | C16: =AVERAGE(C21:C30) -> 24.59 | D16: 14.39
A17: Median | B17: =MEDIAN(B21:B30) -> 34.5 | C17: =MEDIAN(C21:C30) -> 25 | D17: 9
A18: Mode | B18: =_xlfn.MODE.SNGL(B21:B30) -> 43 | C18: =_xlfn.MODE.SNGL(C21:C30) -> 25 | D18: 7
B19: Moderate Skew | C19: No Skew | D19: Highly Skewed
B20: Data 1 | C20: Data 2 | D20: Data 3
B21: 7 | C21: 7.9 | D21: 1
B22: 43 | C22: 15 | D22: 7
B23: 33 | C23: 11 | D23: 7
B24: 21 | C24: 21 | D24: 12
B25: 15 | C25: 25 | D25: 11
B26: 31 | C26: 25 | D26: 14
B27: 36 | C27: 27 | D27: 2
B28: 43 | C28: 35 | D28: 1.9
B29: 48 | C29: 38 | D29: 39
B30: 49 | C30: 41 | D30: 49
A32: Labels | B32: Frequency | C32: Frequency | D32: Frequency
A33: =A40&"-"&B40-1 -> 0-9 | B33: =FREQUENCY(B21:B30,B40:B44) -> 1 | C33: =FREQUENCY(C21:C30,C40:C44) -> 1 | D33: =FREQUENCY(D21:D30,D40:D44) -> 5
A34: =A41&"-"&B41-1 -> 10-19 | B34: 1 | C34: 2 | D34: 3
A35: =A42&"-"&B42-1 -> 20-29 | B35: 1 | C35: 4 | D35: 0
A36: =A43&"-"&B43-1 -> 30-39 | B36: 3 | C36: 2 | D36: 1
A37: =A44&"-"&B44-1 -> 40-49 | B37: 4 | C37: 1 | D37: 1
A39: Low | B39: Bins | C39: Bins | D39: Bins
A40: =B40-10 -> 0 | B40: 10 | C40: 10 | D40: 10
A41: =B41-10 -> 10 | B41: 20 | C41: 20 | D41: 20
A42: =B42-10 -> 20 | B42: 30 | C42: 30 | D42: 30
A43: =B43-10 -> 30 | B43: 40 | C43: 40 | D43: 40
A44: 40 | B44: 50 | C44: 50 | D44: 50

Sheet Skew (3)

Sheet S(L)
A1: For Quantitative Data, Create Frequency Distribution and Histogram | O1: Other Examples of Skew Left/Negative:
O2: Death Rates
O4: Skew
O5: =SKEW(A7:A47) -> -1.388051986
A6: Tests Scores often Skewed Left - a few small values will tend to pull the Average (Mean) down | C6: COUNT function = No. in Sample = n = | D6: =COUNT(A7:A47) -> 41
A7: =IF(MOD(ROW(),4),RANDBETWEEN(65,100),RANDBETWEEN(0,100)) -> 82 | C7: MAX function | D7: =MAX(A7:A47) -> 98
A8: 1 | C8: MIN function | D8: =MIN(A7:A47) -> 1
A9: 88 | C9: ="Range = (MAX - MIN) = "&D7&" - "&D8&" =" -> Range = (MAX - MIN) = 98 - 1 = | D9: =D7-D8 -> 97
A10: 69 | C10: # of Classes = k = | D10: 7 | E10: This is a judgment call (the art side of statistics)
A11: 94 | C11: ="Is 2^"&D10&" ("&2^D10&") >= "&D6 -> Is 2^7 (128) >= 41 | D11: =2^D10>=D6 -> TRUE
A12: 60 | C12: ="Approximate Class Width = Range/k = "&D9&"/"&D10&" =" -> Approximate Class Width = Range/k = 97/7 = | D12: =(D7-D8)/D10 -> 13.85714286
A13: 69 | C13: Class width = | D13: 15 | E13: This is a judgment call (the art side of statistics)
A14: 90 | C14: ="Actual Range for Classes = ClassWidth*k = "&D13&"*"&D10&" =" -> Actual Range for Classes = ClassWidth*k = 15*7 = | D14: =D13*D10 -> 105
A15: 84 | C15: Lower Limit of First Class (look at MIN then estimate) | D15: 0 | E15: This is a judgment call (the art side of statistics)
A16: 89 | O16: Skew
A17: 71 | F17: Class | G17: Frequency | H17: % Frequency | O17: =SKEW(A53:A93) -> 0.07607369308
A18: 75 | D18: =D15 -> 0 | E18: =D18+D$13 -> 15 | F18: =D18&" up to "&E18 -> 0 up to 15 | G18: =COUNTIF($A$7:$A$47,"<"&E18)-COUNTIF($A$7:$A$47,"<"&D18) -> 5 | H18: =G18/G$25 -> 0.1219512195
A19: 95 | D19: =E18 -> 15 | E19: 30 | F19: 15 up to 30 | G19: 0 | H19: 0
A20: 30 | D20: 30 | E20: 45 | F20: 30 up to 45 | G20: 2 | H20: 0.0487804878
A21: 68 | D21: 45 | E21: 60 | F21: 45 up to 60 | G21: 0 | H21: 0
A22: 78 | D22: 60 | E22: 75 | F22: 60 up to 75 | G22: 12 | H22: 0.2926829268
A23: 97 | D23: 75 | E23: 90 | F23: 75 up to 90 | G23: 12 | H23: 0.2926829268
A24: 5 | D24: 90 | E24: 105 | F24: 90 up to 105 | G24: 10 | H24: 0.243902439
A25: 75 | G25: =SUM(G18:G24) -> 41 | H25: =SUM(H18:H24) -> 1
A26: 69
A27: 70
A28: 35
A29: 76
A30: 75
A31: 77
A32: 14
A33: 74
A34: 91
A35: 91
A36: 97
A37: 68
A38: 66
A39: 76
A40: 3
A41: 66
A42: 98
A43: 68
A44: 10
A45: 95
A46: 95
A47: 83
A52: Tests Scores can be bi-modal | C52: COUNT function = No. in Sample = n = | D52: =COUNT(A53:A93) -> 41
A53: =CHOOSE(RANDBETWEEN(1,5),RANDBETWEEN(0,30),RANDBETWEEN(0,30),RANDBETWEEN(60,100),RANDBETWEEN(60,100),RANDBETWEEN(0,100)) -> 22 | C53: MAX function | D53: =MAX(A53:A93) -> 98
A54: 27 | C54: MIN function | D54: =MIN(A53:A93) -> 1
A55: 28 | C55: ="Range = (MAX - MIN) = "&D53&" - "&D54&" =" -> Range = (MAX - MIN) = 98 - 1 = | D55: =D53-D54 -> 97
A56: 60 | C56: # of Classes = k = | D56: 7 | E56: This is a judgment call (the art side of statistics)
A57: 7 | C57: ="Is 2^"&D56&" ("&2^D56&") >= "&D52 -> Is 2^7 (128) >= 41 | D57: =2^D56>=D52 -> TRUE
A58: 23 | C58: ="Approximate Class Width = Range/k = "&D55&"/"&D56&" =" -> Approximate Class Width = Range/k = 97/7 = | D58: =(D53-D54)/D56 -> 13.85714286
A59: 11 | C59: Class width = | D59: 15 | E59: This is a judgment call (the art side of statistics)
A60: 1 | C60: ="Actual Range for Classes = ClassWidth*k = "&D59&"*"&D56&" =" -> Actual Range for Classes = ClassWidth*k = 15*7 = | D60: =D59*D56 -> 105
A61: 1 | C61: Lower Limit of First Class (look at MIN then estimate) | D61: 0 | E61: This is a judgment call (the art side of statistics)
A62: 14
A63: 61 | F63: Class | G63: Frequency | H63: % Frequency
A64: 80 | D64: =D61 -> 0 | E64: =D64+D$59 -> 15 | F64: =D64&" up to "&E64 -> 0 up to 15 | G64: =COUNTIF($A$53:$A$93,"<"&E64)-COUNTIF($A$53:$A$93,"<"&D64) -> 8 | H64: =G64/G$25 -> 0.1951219512
A65: 60 | D65: =E64 -> 15 | E65: 30 | F65: 15 up to 30 | G65: 12 | H65: 0.2926829268
A66: 86 | D66: 30 | E66: 45 | F66: 30 up to 45 | G66: 1 | H66: 0.0243902439
A67: 24 | D67: 45 | E67: 60 | F67: 45 up to 60 | G67: 0 | H67: 0
A68: 80 | D68: 60 | E68: 75 | F68: 60 up to 75 | G68: 10 | H68: 0.243902439
A69: 3 | D69: 75 | E69: 90 | F69: 75 up to 90 | G69: 8 | H69: 0.1951219512
A70: 69 | D70: 90 | E70: 105 | F70: 90 up to 105 | G70: 2 | H70: 0.0487804878
A71: 95 | G71: =SUM(G64:G70) -> 41 | H71: =SUM(H64:H70) -> 1
A72: 19
A73: 82
A74: 23
A75: 65
A76: 84
A77: 72
A78: 98
A79: 9
A80: 65
A81: 71
A82: 74
A83: 77
A84: 31
A85: 21
A86: 85
A87: 24
A88: 80
A89: 24
A90: 4
A91: 25
A92: 29
A93: 67

Sheet S(B)
A1: For Quantitative Data, Create Frequency Distribution and Histogram | R1: Notes for Bell Shaped Curve:
R2: Few population distributions have a Bell Shape, but some are close:
R3: Human height & weight
R4: Cereal box weight
R5: SAT scores
A6: Human Height often Close to Symmetrical - bell shape - high in the middle and tapering off in both directions | C6: COUNT function = No. in Sample = n = | D6: =COUNT(A7:A47) -> 41
A7: =IF(MOD(ROW(),4),RANDBETWEEN(450,650)/100,RANDBETWEEN(200,820)/100) -> 5.94 | C7: MAX function | D7: =MAX(A7:A47) -> 7.88 | R7: Skew
A8: 7.32 | C8: MIN function | D8: =MIN(A7:A47) -> 2.38 | R8: =SKEW(A7:A47) -> -0.9449761028
A9: 6.31 | C9: ="Range = (MAX - MIN) = "&D7&" - "&D8&" =" -> Range = (MAX - MIN) = 7.88 - 2.38 = | D9: =D7-D8 -> 5.5
A10: 5.48 | C10: # of Classes = k = | D10: 7 | E10: This is a judgment call (the art side of statistics)
A11: 6.03 | C11: ="Is 2^"&D10&" ("&2^D10&") >= "&D6 -> Is 2^7 (128) >= 41 | D11: =2^D10>=D6 -> TRUE
A12: 6.74 | C12: ="Approximate Class Width = Range/k = "&D9&"/"&D10&" =" -> Approximate Class Width = Range/k = 5.5/7 = | D12: =(D7-D8)/D10 -> 0.7857142857
A13: 5.99 | C13: Class width = | D13: 1 | E13: This is a judgment call (the art side of statistics)
A14: 6.29 | C14: ="Actual Range for Classes = ClassWidth*k = "&D13&"*"&D10&" =" -> Actual Range for Classes = ClassWidth*k = 1*7 = | D14: =D13*D10 -> 7
A15: 6.26 | C15: Lower Limit of First Class (look at MIN then estimate) | D15: 2 | E15: This is a judgment call (the art side of statistics)
A16: 4.56
A17: 4.5 | F17: Class | G17: Frequency | H17: % Frequency
A18: 5.45 | D18: =D15 -> 2 | E18: =D18+D$13 -> 3 | F18: =D18&" up to "&E18 -> 2 up to 3 | G18: =COUNTIF($A$7:$A$47,"<"&E18)-COUNTIF($A$7:$A$47,"<"&D18) -> 1 | H18: =G18/G$25 -> 0.0243902439
A19: 5.9 | D19: =E18 -> 3 | E19: 4 | F19: 3 up to 4 | G19: 2 | H19: 0.0487804878
A20: 4.98 | D20: 4 | E20: 5 | F20: 4 up to 5 | G20: 5 | H20: 0.1219512195
A21: 5.35 | D21: 5 | E21: 6 | F21: 5 up to 6 | G21: 20 | H21: 0.487804878
A22: 5.9 | D22: 6 | E22: 7 | F22: 6 up to 7 | G22: 11 | H22: 0.2682926829
A23: 5.72 | D23: 7 | E23: 8 | F23: 7 up to 8 | G23: 2 | H23: 0.0487804878
A24: 6.85 | D24: 8 | E24: 9 | F24: 8 up to 9 | G24: 0 | H24: 0
A25: 5.62 | G25: =SUM(G18:G24) -> 41 | H25: =SUM(H18:H24) -> 1
A26: 4.79
A27: 4.91
A28: 3.46
A29: 5.05
A30: 5.9
A31: 5.72
A32: 5.42
A33: 5.96
A34: 5.58
A35: 6.22
A36: 2.38
A37: 6.28
A38: 6.49
A39: 5.34
A40: 3.31
A41: 5.41
A42: 5.39
A43: 5.09
A44: 7.88
A45: 6.28
A46: 6.06
A47: 5.78

Sheet S(R)
A1: For Quantitative Data, Create Frequency Distribution and Histogram | Q1: Notes about Skew Right:
Q2: House Prices
Q3: Data Entry Errors
Q4: Manufacturing Defects
Q5: Salaries
A6: House Prices ($) often Skewed Right - a few small values will tend to pull the Average (Mean) down | C6: COUNT function = No. in Sample = n = | D6: =COUNT(A7:A47) -> 41 | Q6: All these examples start at zero and have no theoretical upper limit, but
A7: =IF(MOD(ROW(),7),RANDBETWEEN(95000,500000),RANDBETWEEN(450000,1000000)) -> 743605 | C7: MAX function | D7: =MAX(A7:A47) -> 916654 | Q7: the likelihood of getting a high value is low: thus positive/right skew
A8: 486638 | C8: MIN function | D8: =MIN(A7:A47) -> 100849
A9: 315193 | C9: ="Range = (MAX - MIN) = "&D7&" - "&D8&" =" -> Range = (MAX - MIN) = 916654 - 100849 = | D9: =D7-D8 -> 815805
A10: 230357 | C10: # of Classes = k = | D10: 7 | E10: This is a judgment call (the art side of statistics) | R10: Skew:
A11: 121042 | C11: ="Is 2^"&D10&" ("&2^D10&") >= "&D6 -> Is 2^7 (128) >= 41 | D11: =2^D10>=D6 -> TRUE | R11: =SKEW(A7:A47) -> 1.268535099
A12: 499226 | C12: ="Approximate Class Width = Range/k = "&D9&"/"&D10&" =" -> Approximate Class Width = Range/k = 815805/7 = | D12: =(D7-D8)/D10 -> 116543.5714
A13: 343588 | C13: Class width = | D13: 150000 | E13: This is a judgment call (the art side of statistics)
A14: 900930 | C14: ="Actual Range for Classes = ClassWidth*k = "&D13&"*"&D10&" =" -> Actual Range for Classes = ClassWidth*k = 150000*7 = | D14: =D13*D10 -> 1050000
A15: 273808 | C15: Lower Limit of First Class (look at MIN then estimate) | D15: 0 | E15: This is a judgment call (the art side of statistics)
A16: 288003
A17: 332110 | F17: Class | G17: Frequency | H17: % Frequency
A18: 391537 | D18: =D15 -> 0 | E18: =D18+D$13 -> 150000 | F18: =DOLLAR(D18,0)&" up to "&DOLLAR(E18,0) -> $0 up to $150,000 | G18: =COUNTIF($A$7:$A$47,"<"&E18)-COUNTIF($A$7:$A$47,"<"&D18) -> 5 | H18: =G18/G$25 -> 0.1219512195
A19: 114204 | D19: =E18 -> 150000 | E19: 300000 | F19: $150,000 up to $300,000 | G19: 13 | H19: 0.3170731707
A20: 266647 | D20: 300000 | E20: 450000 | F20: $300,000 up to $450,000 | G20: 13 | H20: 0.3170731707
A21: 534171 | D21: 450000 | E21: 600000 | F21: $450,000 up to $600,000 | G21: 6 | H21: 0.1463414634
A22: 383153 | D22: 600000 | E22: 750000 | F22: $600,000 up to $750,000 | G22: 2 | H22: 0.0487804878
A23: 259118 | D23: 750000 | E23: 900000 | F23: $750,000 up to $900,000 | G23: 0 | H23: 0
A24: 424325 | D24: 900000 | E24: 1050000 | F24: $900,000 up to $1,050,000 | G24: 2 | H24: 0.0487804878
A25: 351026 | G25: =SUM(G18:G24) -> 41 | H25: =SUM(H18:H24) -> 1
A26: 321276
A27: 261231
A28: 916654
A29: 309443
A30: 147339
A31: 453002
A32: 409312
A33: 361713
A34: 442028
A35: 484071
A36: 100849
A37: 265056
A38: 212674
A39: 412454
A40: 192448
A41: 182694
A42: 689910
A43: 231906
A44: 182276
A45: 107531
A46: 468327
A47: 198080

Sheet S(HR)
A1: For Quantitative Data, Create Frequency Distribution and Histogram
A6: Amount Spent at Department Store ($) often Highly Skewed Right - a few small values will tend to pull the Average (Mean) down | C6: COUNT function = No. in Sample = n = | D6: =COUNT(A7:A47) -> 41
A7: =IF(MOD(ROW(),8),RANDBETWEEN(0,750),RANDBETWEEN(0,8000)) -> 300 | C7: MAX function | D7: =MAX(A7:A47) -> 6644
A8: 987 | C8: MIN function | D8: =MIN(A7:A47) -> 14
A9: 400 | C9: ="Range = (MAX - MIN) = "&D7&" - "&D8&" =" -> Range = (MAX - MIN) = 6644 - 14 = | D9: =D7-D8 -> 6630
A10: 158 | C10: # of Classes = k = | D10: 7 | E10: This is a judgment call (the art side of statistics)
A11: 210 | C11: ="Is 2^"&D10&" ("&2^D10&") >= "&D6 -> Is 2^7 (128) >= 41 | D11: =2^D10>=D6 -> TRUE
A12: 559 | C12: ="Approximate Class Width = Range/k = "&D9&"/"&D10&" =" -> Approximate Class Width = Range/k = 6630/7 = | D12: =(D7-D8)/D10 -> 947.1428571
A13: 325 | C13: Class width = | D13: 250 | E13: This is a judgment call (the art side of statistics)
A14: 325 | C14: ="Actual Range for Classes = ClassWidth*k = "&D13&"*"&D10&" =" -> Actual Range for Classes = ClassWidth*k = 250*7 = | D14: =D13*D10 -> 1750
A15: 94 | C15: Lower Limit of First Class (look at MIN then estimate) | D15: 0 | E15: This is a judgment call (the art side of statistics)
A16: 3937 | C16: Last 2 range | D16: 3500
A17: 385 | F17: Class | G17: Frequency | H17: % Frequency
A18: 62 | D18: =D15 -> 0 | E18: =D18+D$13 -> 250 | F18: =DOLLAR(D18,0)&" up to "&DOLLAR(E18,0) -> $0 up to $250 | G18: =COUNTIF($A$7:$A$47,"<"&E18)-COUNTIF($A$7:$A$47,"<"&D18) -> 16 | H18: =G18/G$25 -> 0.3902439024
A19: 482 | D19: =E18 -> 250 | E19: =D19+D$13 -> 500 | F19: $250 up to $500 | G19: 10 | H19: 0.243902439
A20: 62 | D20: 500 | E20: =D20+D$13 -> 750 | F20: $500 up to $750 | G20: 10 | H20: 0.243902439
A21: 63 | D21: 750 | E21: =D21+D$13 -> 1000 | F21: $750 up to $1,000 | G21: 2 | H21: 0.0487804878
A22: 25 | D22: 1000 | E22: =D22+D$13 -> 1250 | F22: $1,000 up to $1,250 | G22: 0 | H22: 0
A23: 213 | D23: 1250 | E23: =D23+D$16 -> 4750 | F23: $1,250 up to $4,750 | G23: 2 | H23: 0.0487804878
A24: 754 | D24: 4750 | E24: =D24+D$16 -> 8250 | F24: $4,750 up to $8,250 | G24: 1 | H24: 0.0243902439
A25: 295 | G25: =SUM(G18:G24) -> 41 | H25: =SUM(H18:H24) -> 1
A26: 537
A27: 511
A28: 579
A29: 53
A30: 599
A31: 29
A32: 2992
A33: 475
A34: 662
A35: 190
A36: 667
A37: 14
A38: 59
A39: 259
A40: 6644
A41: 159
A42: 539
A43: 650
A44: 165
A45: 505
A46: 243
A47: 374

Sheet z(1)
Q1: x | R1: Calculus Test Scores | T1: x | U1: Xbar | W1: s | Y1: z | AA1: x | AB1: Your Score | AD1: Label for Mean | AE1: Label for Your Score | AH1: x | AI1: History Test Scores | AK1: x | AL1: Xbar | AN1: s | AP1: z | AR1: x | AS1: Bro's Score | AU1: Label for Mean | AV1: Label for Your Score
Q2: 74 | R2: 0.5 | T2: =ROUND(AVERAGE(Q2:Q26),0) -> 76 | U2: 1 | W2: =ROUND(_xlfn.STDEV.S(Q2:Q26),0) -> 7 | Y2: 1 | AA2: =ROUND(T2+Y2*W2,0) -> 83 | AB2: 1 | AD2: =U1&" = "&T2&CHAR(10)&W1&" = "&W2 -> Xbar = 76 s = 7 | AE2: =AB1&" = "&AA2&CHAR(10)&" "&Y2&" SD Above Mean" -> Your Score = 83 1 SD Above Mean | AH2: 91 | AI2: 0.5 | AK2: =ROUND(AVERAGE(AH2:AH26),0) -> 91 | AL2: 1 | AN2: =ROUND(_xlfn.STDEV.S(AH2:AH26),0) -> 4 | AP2: 1.25 | AR2: =ROUND(AK2-AP2*AN2,0) -> 86 | AS2: 1 | AU2: =AL1&" = "&AK2&CHAR(10)&AN1&" = "&AN2 -> Xbar = 91 s = 4 | AV2: =AS1&" = "&AR2&CHAR(10)&" "&AP2&" SD Below Mean" -> Bro's Score = 86 1.25 SD Below Mean
Q3: 70 | R3: 0.5 | AH3: 87 | AI3: 0.5
Q4: 80 | R4: 0.5 | AH4: 91 | AI4: 0.5
Q5: 78 | R5: 0.5 | AH5: 99 | AI5: 0.5
Q6: 84 | R6: 0.5 | AH6: 86 | AI6: 0.5
Q7: 83 | R7: 0.5 | AH7: 87 | AI7: 0.5
Q8: 76 | R8: 0.5 | AH8: 93 | AI8: 0.5
Q9: 57 | R9: 0.5 | AH9: 91 | AI9: 0.5
Q10: 75 | R10: 0.5 | AH10: 93 | AI10: 0.5
Q11: 80 | R11: 0.5 | AH11: 92 | AI11: 0.5
Q12: 76 | R12: 0.5 | AH12: 88 | AI12: 0.5
Q13: 78 | R13: 0.5 | AH13: 95 | AI13: 0.5
Q14: 70 | R14: 0.5 | AH14: 88 | AI14: 0.5
I15: Xbar | J15: = | K15: Sample Mean | L15: "Xbar" | Q15: 71 | R15: 0.5 | AH15: 91 | AI15: 0.5
I16: xi | J16: = | K16: Particular Value | L16: "x sub i" | Q16: 80 | R16: 0.5 | AH16: 92 | AI16: 0.5
I17: s | J17: = | K17: Sample Standard Deviation | L17: "s" | Q17: 76 | R17: 0.5 | AH17: 92 | AI17: 0.5
I18: z | J18: = | K18: Number of Standard Deviations Away From Xbar | L18: "z" | Q18: 72 | R18: 0.5 | AH18: 87 | AI18: 0.5
Q19: 74 | R19: 0.5 | AH19: 89 | AI19: 0.5
A20: Who did better? You or your Brother? | Q20: 76 | R20: 0.5 | AH20: 81 | AI20: 0.5
A21: Your Calculus Test score, Xi = | B21: =AA2 -> 83 | D21: =IF(B25="","",FIXED(B25,2)&" standard deviations "&IF(B25>0,"above","below")&" the mean") ->  | Q21: 87 | R21: 0.5 | AH21: 92 | AI21: 0.5
A22: Mean for Calculus Test, Xbar = | B22: =T2 -> 76 | D22: =IF(B25="","","Relative location of a particular x in the data set (as compared to the mean),") ->  | Q22: 72 | R22: 0.5 | AH22: 93 | AI22: 0.5
A23: Standard Deviation for Calculus Test, s = | B23: =W2 -> 7 | D23: =IF(B25="",""," in units of standard deviation.") ->  | Q23: 85 | R23: 0.5 | AH23: 97 | AI23: 0.5
A24: z = (x - Xbar)/s = | Q24: 77 | R24: 0.5 | AH24: 96 | AI24: 0.5
A25: STANDARDIZE function | Q25: 63 | R25: 0.5 | AH25: 87 | AI25: 0.5
A26: Brother's History Test score, Xi = | B26: =AR2 -> 86 | D26: =IF(B30="","",FIXED(B30,2)&" standard deviations "&IF(B30>0,"above","below")&" the mean") ->  | Q26: 92 | R26: 0.5 | AH26: 87 | AI26: 0.5
A27: Mean for History Test, Xbar = | B27: =AK2 -> 91 | D27: =IF(B30="","","Relative location of a particular x in the data set (as compared to the mean),") -> 
A28: Standard Deviation for History Test, s = | B28: =AN2 -> 4 | D28: =IF(B30="",""," in units of standard deviation.") -> 
A29: z = (x - Xbar)/s =
A30: STANDARDIZE function
A31: Joe's Calculus Test score, Xi = | B31: =T2 -> 76
A32: z score

Sheet z(1an)
Q1: x | R1: Calculus Test Scores | T1: x | U1: Xbar | W1: s | Y1: z | AA1: x | AB1: Your Score | AD1: Label for Mean | AE1: Label for Your Score | AH1: x | AI1: History Test Scores | AK1: x | AL1: Xbar | AN1: s | AP1: z | AR1: x | AS1: Bro's Score | AU1: Label for Mean | AV1: Label for Your Score
Q2: 74 | R2: 0.5 | T2: =ROUND(AVERAGE(Q2:Q26),0) -> 76 | U2: 1 | W2: =ROUND(_xlfn.STDEV.S(Q2:Q26),0) -> 7 | Y2: 1 | AA2: =ROUND(T2+Y2*W2,0) -> 83 | AB2: 1 | AD2: =U1&" = "&T2&CHAR(10)&W1&" = "&W2 -> Xbar = 76 s = 7 | AE2: =AB1&" = "&AA2&CHAR(10)&" "&Y2&" SD Above Mean" -> Your Score = 83 1 SD Above Mean | AH2: 91 | AI2: 0.5 | AK2: =ROUND(AVERAGE(AH2:AH26),0) -> 91 | AL2: 1 | AN2: =ROUND(_xlfn.STDEV.S(AH2:AH26),0) -> 4 | AP2: 1.25 | AR2: =ROUND(AK2-AP2*AN2,0) -> 86 | AS2: 1 | AU2: =AL1&" = "&AK2&CHAR(10)&AN1&" = "&AN2 -> Xbar = 91 s = 4 | AV2: =AS1&" = "&AR2&CHAR(10)&" "&AP2&" SD Below Mean" -> Bro's Score = 86 1.25 SD Below Mean
Q3: 70 | R3: 0.5 | AH3: 87 | AI3: 0.5
Q4: 80 | R4: 0.5 | AH4: 91 | AI4: 0.5
Q5: 78 | R5: 0.5 | AH5: 99 | AI5: 0.5
Q6: 84 | R6: 0.5 | AH6: 86 | AI6: 0.5
Q7: 83 | R7: 0.5 | AH7: 87 | AI7: 0.5
Q8: 76 | R8: 0.5 | AH8: 93 | AI8: 0.5
Q9: 57 | R9: 0.5 | AH9: 91 | AI9: 0.5
Q10: 75 | R10: 0.5 | AH10: 93 | AI10: 0.5
Q11: 80 | R11: 0.5 | AH11: 92 | AI11: 0.5
Q12: 76 | R12: 0.5 | AH12: 88 | AI12: 0.5
Q13: 78 | R13: 0.5 | AH13: 95 | AI13: 0.5
Q14: 70 | R14: 0.5 | AH14: 88 | AI14: 0.5
I15: Xbar | J15: = | K15: Sample Mean | L15: "Xbar" | Q15: 71 | R15: 0.5 | AH15: 91 | AI15: 0.5
I16: xi | J16: = | K16: Particular Value | L16: "x sub i" | Q16: 80 | R16: 0.5 | AH16: 92 | AI16: 0.5
I17: s | J17: = | K17: Sample Standard Deviation | L17: "s" | Q17: 76 | R17: 0.5 | AH17: 92 | AI17: 0.5
I18: z | J18: = | K18: Number of Standard Deviations Away From Xbar | L18: "z" | Q18: 72 | R18: 0.5 | AH18: 87 | AI18: 0.5
Q19: 74 | R19: 0.5 | AH19: 89 | AI19: 0.5
A20: Who did better? You or your Brother? | Q20: 76 | R20: 0.5 | AH20: 81 | AI20: 0.5
A21: Your Calculus Test score, Xi = | B21: =AA2 -> 83 | D21: =IF(B25="","",FIXED(B25,2)&" standard deviations "&IF(B25>0,"above","below")&" the mean") -> 1.00 standard deviations above the mean | Q21: 87 | R21: 0.5 | AH21: 92 | AI21: 0.5
A22: Mean for Calculus Test, Xbar = | B22: =T2 -> 76 | D22: =IF(B25="","","Relative location of a particular x in the data set (as compared to the mean),") -> Relative location of a particular x in the data set (as compared to the mean), | Q22: 72 | R22: 0.5 | AH22: 93 | AI22: 0.5
A23: Standard Deviation for Calculus Test, s = | B23: =W2 -> 7 | D23: =IF(B25="",""," in units of standard deviation.") -> in units of standard deviation. | Q23: 85 | R23: 0.5 | AH23: 97 | AI23: 0.5
A24: z = (x - Xbar)/s = | B24: =(B21-B22)/B23 -> 1 | Q24: 77 | R24: 0.5 | AH24: 96 | AI24: 0.5
A25: STANDARDIZE function | B25: =STANDARDIZE(B21,B22,B23) -> 1 | Q25: 63 | R25: 0.5 | AH25: 87 | AI25: 0.5
A26: Brother's History Test score, Xi = | B26: =AR2 -> 86 | D26: =IF(B30="","",FIXED(B30,2)&" standard deviations "&IF(B30>0,"above","below")&" the mean") -> -1.25 standard deviations below the mean | Q26: 92 | R26: 0.5 | AH26: 87 | AI26: 0.5
A27: Mean for History Test, Xbar = | B27: =AK2 -> 91 | D27: =IF(B30="","","Relative location of a particular x in the data set (as compared to the mean),") -> Relative location of a particular x in the data set (as compared to the mean),
A28: Standard Deviation for History Test, s = | B28: =AN2 -> 4 | D28: =IF(B30="",""," in units of standard deviation.") -> in units of standard deviation.
A29: z = (x - Xbar)/s = | B29: =(B26-B27)/B28 -> -1.25
A30: STANDARDIZE function | B30: =STANDARDIZE(B26,B27,B28) -> -1.25
A31: Joe's Calculus Test score, Xi = | B31: =T2 -> 76
A32: z score | B32: =(B31-B22)/B23 -> 0

Sheet z(2)
A1: ="Test Score, Xbar = "&FIXED(B2,0)&", s = "&FIXED(B3,0) -> Test Score, Xbar = 60, s = 13 | L1: =CHOOSE(RANDBETWEEN(1,7),ROUND(_xlfn.NORM.INV(RAND(),55,15),0),ROUND(_xlfn.NORM.INV(RAND(),75,8),0),ROUND(_xlfn.NORM.INV(RAND(),45,8),0),ROUND(_xlfn.NORM.INV(RAND(),60,8),0),RANDBETWEEN(1,100),RANDBETWEEN(30,95),RANDBETWEEN(5,39)) -> 59
A2: Xbar | B2: =ROUNDDOWN(AVERAGE(A6:A105),0) -> 60
A3: s | B3: =ROUNDDOWN(_xlfn.STDEV.P(A6:A105),0) -> 13 | K3: =B2+B3*2 -> 86 | L3: =B2-17*2 -> 26 | M3: =COUNTIFS(A6:A105,">="&L3,A6:A105,"<"&K3)/COUNTA(A6:A105) -> 0.96
A5: Test 1 Scores | B5: z | D5: Lower | E5: Upper | F5: Category | G5: Frequency | K5: =1-1/2^2 -> 0.75
A6: 68 | D6: 0 | E6: =D6+10 -> 10 | F6: =D6&CHAR(10)&"up to"&CHAR(10)&E6 -> 0 up to 10 | G6: =COUNTIFS(A$6:A$105,">="&D6,A$6:A$105,"<"&E6) -> 0
A7: 58 | D7: =E6 -> 10 | E7: =D7+10 -> 20 | F7: =D7&CHAR(10)&"up to"&CHAR(10)&E7 -> 10 up to 20 | G7: 0
A8: 74 | D8: =E7 -> 20 | E8: =D8+10 -> 30 | F8: 20 up to 30 | G8: 0
A9: 53 | D9: 30 | E9: 40 | F9: 30 up to 40 | G9: 8
A10: 70 | D10: 40 | E10: 50 | F10: 40 up to 50 | G10: 6
A11: 62 | D11: 50 | E11: 60 | F11: 50 up to 60 | G11: 33
A12: 55 | D12: 60 | E12: 70 | F12: 60 up to 70 | G12: 33
A13: 60 | D13: 70 | E13: 80 | F13: 70 up to 80 | G13: 7
A14: 39 | D14: =E13 -> 80 | E14: =D14+10 -> 90 | F14: 80 up to 90 | G14: 10
A15: 61 | D15: 90 | E15: 100 | F15: 90 up to 100 | G15: 3
A16: 62 | D16: =E15 -> 100 | E16: =D16+10 -> 110 | F16: 100 up to 110 | G16: 0
A17: 34
A18: 57
A19: 65
A20: 70
A21: 31
A22: 58
A23: 40
A24: 62
A25: 52
A26: 61
A27: 53
A28: 60
A29: 50
A30: 56
A31: 67
A32: 57
A33: 59
A34: 81
A35: 84
A36: 55
A37: 32
A38: 63
A39: 56
A40: 57
A41: 63
A42: 66
A43: 76
A44: 32
A45: 40
A46: 67
A47: 57
A48: 58
A49: 61
A50: 63
A51: 67
A52: 58
A53: 57
A54: 65
A55: 46
A56: 62
A57: 59
A58: 45
A59: 84
A60: 68
A61: 80
A62: 89
A63: 55
A64: 91
A65: 74
A66: 50
A67: 60
A68: 60
A69: 84
A70: 58
A71: 92
A72: 85
A73: 57
A74: 82
A75: 80
A76: 61
A77: 68
A78: 55
A79: 37
A80: 59
A81: 61
A82: 62
A83: 30
A84: 58
A85: 84
A86: 59
A87: 58
A88: 41
A89: 72
A90: 79
A91: 67
A92: 63
A93: 56
A94: 63
A95: 58
A96: 59
A97: 37
A98: 62
A99: 55
A100: 41
A101: 92
A102: 60
A103: 63
A104: 57
A105: 63

Sheet z(2an)
A1: ="Test Score, Xbar = "&FIXED(B2,0)&", s = "&FIXED(B3,0) -> Test Score, Xbar = 60, s = 13 | L1: =CHOOSE(RANDBETWEEN(1,7),ROUND(_xlfn.NORM.INV(RAND(),55,15),0),ROUND(_xlfn.NORM.INV(RAND(),75,8),0),ROUND(_xlfn.NORM.INV(RAND(),45,8),0),ROUND(_xlfn.NORM.INV(RAND(),60,8),0),RANDBETWEEN(1,100),RANDBETWEEN(30,95),RANDBETWEEN(5,39)) -> 43
A2: Xbar | B2: =ROUNDDOWN(AVERAGE(A6:A105),0) -> 60
A3: s | B3: =ROUNDDOWN(_xlfn.STDEV.P(A6:A105),0) -> 13 | K3: =B2+B3*2 -> 86 | L3: =B2-17*2 -> 26 | M3: =COUNTIFS(A6:A105,">="&L3,A6:A105,"<"&K3)/COUNTA(A6:A105) -> 0.96
A5: Test 1 Scores | B5: z | D5: Lower | E5: Upper | F5: Category | G5: Frequency | K5: =1-1/2^2 -> 0.75
A6: 68 | B6: =(A6-$B$2)/$B$3 -> 0.6153846154 | D6: 0 | E6: =D6+10 -> 10 | F6: =D6&CHAR(10)&"up to"&CHAR(10)&E6 -> 0 up to 10 | G6: =COUNTIFS(A$6:A$105,">="&D6,A$6:A$105,"<"&E6) -> 0
A7: 58 | B7: =(A7-$B$2)/$B$3 -> -0.1538461538 | D7: =E6 -> 10 | E7: =D7+10 -> 20 | F7: =D7&CHAR(10)&"up to"&CHAR(10)&E7 -> 10 up to 20 | G7: 0
A8: 74 | B8: 1.076923077 | D8: =E7 -> 20 | E8: =D8+10 -> 30 | F8: 20 up to 30 | G8: 0
A9: 53 | B9: -0.5384615385 | D9: 30 | E9: 40 | F9: 30 up to 40 | G9: 8
A10: 70 | B10: 0.7692307692 | D10: 40 | E10: 50 | F10: 40 up to 50 | G10: 6
A11: 62 | B11: 0.1538461538 | D11: 50 | E11: 60 | F11: 50 up to 60 | G11: 33
A12: 55 | B12: -0.3846153846 | D12: 60 | E12: 70 | F12: 60 up to 70 | G12: 33
A13: 60 | B13: 0 | D13: 70 | E13: 80 | F13: 70 up to 80 | G13: 7
A14: 39 | B14: -1.615384615 | D14: =E13 -> 80 | E14: =D14+10 -> 90 | F14: 80 up to 90 | G14: 10
A15: 61 | B15: 0.07692307692 | D15: 90 | E15: 100 | F15: 90 up to 100 | G15: 3
A16: 62 | B16: 0.1538461538 | D16: =E15 -> 100 | E16: =D16+10 -> 110 | F16: 100 up to 110 | G16: 0
A17: 34 | B17: -2
A18: 57 | B18: -0.2307692308
A19: 65 | B19: 0.3846153846
A20: 70 | B20: 0.7692307692
A21: 31 | B21: -2.230769231
A22: 58 | B22: -0.1538461538
A23: 40 | B23: -1.538461538
A24: 62 | B24: 0.1538461538
A25: 52 | B25: -0.6153846154
A26: 61 | B26: 0.07692307692
A27: 53 | B27: -0.5384615385
A28: 60 | B28: 0
A29: 50 | B29: -0.7692307692
A30: 56 | B30: -0.3076923077
A31: 67 | B31: 0.5384615385
A32: 57 | B32: -0.2307692308
A33: 59 | B33: -0.07692307692
A34: 81 | B34: 1.615384615
A35: 84 | B35: 1.846153846
A36: 55 | B36: -0.3846153846
A37: 32 | B37: -2.153846154
A38: 63 | B38: 0.2307692308
A39: 56 | B39: -0.3076923077
A40: 57 | B40: -0.2307692308
A41: 63 | B41: 0.2307692308
A42: 66 | B42: 0.4615384615
A43: 76 | B43: 1.230769231
A44: 32 | B44: -2.153846154
A45: 40 | B45: -1.538461538
A46: 67 | B46: 0.5384615385
A47: 57 | B47: -0.2307692308
A48: 58 | B48: -0.1538461538
A49: 61 | B49: 0.07692307692
A50: 63 | B50: 0.2307692308
A51: 67 | B51: 0.5384615385
A52: 58 | B52: -0.1538461538
A53: 57 | B53: -0.2307692308
A54: 65 | B54: 0.3846153846
A55: 46 | B55: -1.076923077
A56: 62 | B56: 0.1538461538
A57: 59 | B57: -0.07692307692
A58: 45 | B58: -1.153846154
A59: 84 | B59: 1.846153846
A60: 68 | B60: 0.6153846154
A61: 80 | B61: 1.538461538
A62: 89 | B62: 2.230769231
A63: 55 | B63: -0.3846153846
A64: 91 | B64: 2.384615385
A65: 74 | B65: 1.076923077
A66: 50 | B66: -0.7692307692
A67: 60 | B67: 0
A68: 60 | B68: 0
A69: 84 | B69: 1.846153846
A70: 58 | B70: -0.1538461538
A71: 92 | B71: =(A71-$B$2)/$B$3 -> 2.461538462
A72: 85 | B72: 1.923076923
A73: 57 | B73: -0.2307692308
A74: 82 | B74: 1.692307692
A75: 80 | B75: 1.538461538
A76: 61 | B76: 0.07692307692
A77: 68 | B77: 0.6153846154
A78: 55 | B78: -0.3846153846
A79: 37 | B79: -1.769230769
A80: 59 | B80: -0.07692307692
A81: 61 | B81: 0.07692307692
A82: 62 | B82: 0.1538461538
A83: 30 | B83: -2.307692308
A84: 58 | B84: -0.1538461538
A85: 84 | B85: 1.846153846
A86: 59 | B86: -0.07692307692
A87: 58 | B87: -0.1538461538
A88: 41 | B88: -1.461538462
A89: 72 | B89: 0.9230769231
A90: 79 | B90: 1.461538462
A91: 67 | B91: 0.5384615385
A92: 63 | B92: 0.2307692308
A93: 56 | B93: -0.3076923077
A94: 63 | B94: 0.2307692308
A95: 58 | B95: -0.1538461538
A96: 59 | B96: -0.07692307692
A97: 37 | B97: -1.769230769
A98: 62 | B98: 0.1538461538
A99: 55 | B99: -0.3846153846
A100: 41 | B100: -1.461538462
A101: 92 | B101: 2.461538462
A102: 60 | B102: 0
A103: 63 | B103: 0.2307692308
A104: 57 | B104: -0.2307692308
A105: 63 | B105: 0.2307692308

Sheet z(3)
A1: Xbar (inches) | B1: =ROUND(AVERAGE(A5:A90),0) -> 71 | O1: Min | P1: =MIN(A5:A90) -> 61
A2: s (inches) | B2: =ROUND(_xlfn.STDEV.P(A5:A90),0) -> 4 | O2: Miax | P2: =MAX(A5:A90) -> 83
A4: Heights of Students in Class (inches) | B4: z | O4: Category | P4: Frequency
A5: 73 | O5: 61 | P5: =COUNTIFS(A$5:A$90,O5) -> 1
A6: 68 | O6: 62 | P6: 0
A7: 77 | O7: 63 | P7: 1
A8: 75 | O8: 64 | P8: 2
A9: 61 | O9: 65 | P9: 3
A10: 78 | O10: 66 | P10: 3
A11: 69 | O11: 67 | P11: 5
A12: 70 | O12: 68 | P12: 5
A13: 75 | O13: 69 | P13: 6
A14: 73 | O14: 70 | P14: 8
A15: 71 | O15: 71 | P15: 10
A16: 70 | O16: 72 | P16: 9
A17: 72 | O17: 73 | P17: 8
A18: 69 | O18: 74 | P18: 6
A19: 79 | O19: 75 | P19: 6
A20: 71 | O20: 76 | P20: 4
A21: 67 | O21: 77 | P21: 4
A22: 73 | O22: 78 | P22: 1
A23: 63 | O23: 79 | P23: 2
A24: 74 | O24: 80 | P24: 0
A25: 76 | O25: 81 | P25: 1
A26: 65 | O26: 82 | P26: 0
A27: 75 | O27: 83 | P27: 1
A28: 72
A29: 76
A30: 71
A31: 70
A32: 64
A33: 74
A34: 83
A35: 65
A36: 74
A37: 67
A38: 72
A39: 71
A40: 68
A41: 74
A42: 73
A43: 70
A44: 74
A45: 76
A46: 69
A47: 71
A48: 72
A49: 77
A50: 66
A51: 77
A52: 70
A53: 64
A54: 66
A55: 70
A56: 71
A57: 70
A58: 72
A59: 68
A60: 71
A61: 70
A62: 75
A63: 67
A64: 69
A65: 75
A66: 67
A67: 73
A68: 72
A69: 79
A70: 71
A71: 74
A72: 68
A73: 72
A74: 72
A75: 67
A76: 71
A77: 76
A78: 73
A79: 69
A80: 71
A81: 73
A82: 68
A83: 73
A84: 65
A85: 69
A86: 72
A87: 66
A88: 75
A89: 81
A90: 77

Sheet z(3an)
A1: Xbar (inches) | B1: =ROUND(AVERAGE(A5:A90),0) -> 71 | O1: Min | P1: =MIN(A5:A90) -> 61
A2: s (inches) | B2: =ROUND(_xlfn.STDEV.P(A5:A90),0) -> 4 | O2: Miax | P2: =MAX(A5:A90) -> 83
A4: Heights of Students in Class (inches) | B4: z | O4: Category | P4: Frequency
A5: 73 | B5: =(A5-$B$1)/$B$2 -> 0.5 | O5: 61 | P5: =COUNTIFS(A$5:A$90,O5) -> 1
A6: 68 | B6: =(A6-$B$1)/$B$2 -> -0.75 | O6: 62 | P6: 0
A7: 77 | B7: 1.5 | O7: 63 | P7: 1
A8: 75 | B8: 1 | O8: 64 | P8: 2
A9: 61 | B9: -2.5 | O9: 65 | P9: 3
A10: 78 | B10: 1.75 | O10: 66 | P10: 3
A11: 69 | B11: -0.5 | O11: 67 | P11: 5
A12: 70 | B12: -0.25 | O12: 68 | P12: 5
A13: 75 | B13: 1 | O13: 69 | P13: 6
A14: 73 | B14: 0.5 | O14: 70 | P14: 8
A15: 71 | B15: 0 | O15: 71 | P15: 10
A16: 70 | B16: -0.25 | O16: 72 | P16: 9
A17: 72 | B17: 0.25 | O17: 73 | P17: 8
A18: 69 | B18: -0.5 | O18: 74 | P18: 6
A19: 79 | B19: 2 | O19: 75 | P19: 6
A20: 71 | B20: 0 | O20: 76 | P20: 4
A21: 67 | B21: -1 | O21: 77 | P21: 4
A22: 73 | B22: 0.5 | O22: 78 | P22: 1
A23: 63 | B23: -2 | O23: 79 | P23: 2
A24: 74 | B24: 0.75 | O24: 80 | P24: 0
A25: 76 | B25: 1.25 | O25: 81 | P25: 1
A26: 65 | B26: -1.5 | O26: 82 | P26: 0
A27: 75 | B27: 1 | O27: 83 | P27: 1
A28: 72 | B28: 0.25
A29: 76 | B29: 1.25
A30: 71 | B30: 0
A31: 70 | B31: -0.25
A32: 64 | B32: -1.75
A33: 74 | B33: 0.75
A34: 83 | B34: 3
A35: 65 | B35: -1.5
A36: 74 | B36: 0.75
A37: 67 | B37: -1
A38: 72 | B38: 0.25
A39: 71 | B39: 0
A40: 68 | B40: -0.75
A41: 74 | B41: 0.75
A42: 73 | B42: 0.5
A43: 70 | B43: -0.25
A44: 74 | B44: 0.75
A45: 76 | B45: 1.25
A46: 69 | B46: -0.5
A47: 71 | B47: 0
A48: 72 | B48: 0.25
A49: 77 | B49: 1.5
A50: 66 | B50: -1.25
A51: 77 | B51: 1.5
A52: 70 | B52: -0.25
A53: 64 | B53: -1.75
A54: 66 | B54: -1.25
A55: 70 | B55: -0.25
A56: 71 | B56: 0
A57: 70 | B57: -0.25
A58: 72 | B58: 0.25
A59: 68 | B59: -0.75
A60: 71 | B60: 0
A61: 70 | B61: -0.25
A62: 75 | B62: 1
A63: 67 | B63: -1
A64: 69 | B64: -0.5
A65: 75 | B65: 1
A66: 67 | B66: -1
A67: 73 | B67: 0.5
A68: 72 | B68: 0.25
A69: 79 | B69: 2
A70: 71 | B70: =(A70-$B$1)/$B$2 -> 0
A71: 74 | B71: 0.75
A72: 68 | B72: -0.75
A73: 72 | B73: 0.25
A74: 72 | B74: 0.25
A75: 67 | B75: -1
A76: 71 | B76: 0
A77: 76 | B77: 1.25
A78: 73 | B78: 0.5
A79: 69 | B79: -0.5
A80: 71 | B80: 0
A81: 73 | B81: 0.5
A82: 68 | B82: -0.75
A83: 73 | B83: 0.5
A84: 65 | B84: -1.5
A85: 69 | B85: -0.5
A86: 72 | B86: 0.25
A87: 66 | B87: -1.25
A88: 75 | B88: 1
A89: 81 | B89: 2.5
A90: 77 | B90: 1.5

Sheet Chebyshev
A26: Test Mean | B26: ='z(2)'!$B$2 -> 60
A27: Test SD | B27: ='z(2)'!$B$3 -> 13
A29: We want to know what proportion of test scores must lie between +/- 2 SD of the Mean?
A30: z | B30: 2
A31: Proportion | C31: =IF(ISNUMBER(B31),"At least "&TEXT(B31,"0.0%")&", of the data values must be within +/- "&B30&" SD of the Mean","") -> 
A32: Given the Proportions from Chebyshev's Theorem, what are the low and high values?
A33: Low
A34: High | C34: =IF(ISNUMBER(B34),"At least "&TEXT(B31,"0.0%")&", of the data values must be within "&B33&" and "&B34,"") -> 
A35: We want to know what proportion of test scores must lie between +/- 2 SD of the Mean?
A36: z | B36: 3
A37: Proportion | C37: =IF(ISNUMBER(B37),"At least "&TEXT(B37,"0.0%")&", of the data values must be within +/- "&B36&" SD of the Mean","") -> 
A38: Given the Proportions from Chebyshev's Theorem, what are the low and high values?
A39: Low
A40: High | C40: =IF(ISNUMBER(B40),"At least "&TEXT(B37,"0.0%")&", of the data values must be within "&B39&" and "&B40,"") -> 
A44: ="According to Chebyshev's Theorem, at least what percent of any data set will be within "&B45&" standard deviation of the mean?" -> According to Chebyshev's Theorem, at least what percent of any data set will be within 1.8 standard deviation of the mean?
A45: z = | B45: 1.8
A46: Percent: | C46: =IF(B46="","","Accoring to Chebyshev's Theorem, at least "&TEXT(B46,"0.00%")&" of any data set will be within +/- 1.8 standard deviation of the mean.") -> 
A67: Chebyshev's Theorem: Proportion of data values that lie between +/- a given number of standard deviations
A68: Rule: At least (1 - 1/z^2) of the values in any data set will be within z standard deviations of the mean, where z is any value greater than 1.
A69: Real power of this Theorem: Applies to any data set regardless of the shape of the distribution of the data!
A70: Chebyshev's Theorem:
A71: At least 0.75, or 75.00%, of the data values must be within z = 2 standard deviations of the mean
A72: At least 0.89, or 89.00%, of the data values must be within z = 3 standard deviations of the mean
A73: At least 0.94, or 94.00%, of the data values must be within z = 4 standard deviations of the mean

Sheet Chebyshev (an)
A26: Test Mean | B26: ='z(2)'!$B$2 -> 60
A27: Test SD | B27: ='z(2)'!$B$3 -> 13
A29: We want to know what proportion of test scores must lie between +/- 2 SD of the Mean?
A30: z | B30: 2
A31: Proportion | B31: =1-1/B30^2 -> 0.75 | C31: =IF(ISNUMBER(B31),"At least "&TEXT(B31,"0.0%")&", of the data values must be within +/- "&B30&" SD of the Mean","") -> At least 75.0%, of the data values must be within +/- 2 SD of the Mean
A32: Given the Proportions from Chebyshev's Theorem, what are the low and high values?
A33: Low | B33: =B26-B30*B27 -> 34
A34: High | B34: =B26+B30*B27 -> 86 | C34: =IF(ISNUMBER(B34),"At least "&TEXT(B31,"0.0%")&", of the data values must be within "&B33&" and "&B34,"") -> At least 75.0%, of the data values must be within 34 and 86
A35: We want to know what proportion of test scores must lie between +/- 2 SD of the Mean?
A36: z | B36: 3
A37: Proportion | B37: =1-1/B36^2 -> 0.8888888889 | C37: =IF(ISNUMBER(B37),"At least "&TEXT(B37,"0.0%")&", of the data values must be within +/- "&B36&" SD of the Mean","") -> At least 88.9%, of the data values must be within +/- 3 SD of the Mean
A38: Given the Proportions from Chebyshev's Theorem, what are the low and high values?
A39: Low | B39: =B26-B36*B27 -> 21
A40: High | B40: =B26+B36*B27 -> 99 | C40: =IF(ISNUMBER(B40),"At least "&TEXT(B37,"0.0%")&", of the data values must be within "&B39&" and "&B40,"") -> At least 88.9%, of the data values must be within 21 and 99
A44: ="According to Chebyshev's Theorem, at least what percent of any data set will be within "&B45&" standard deviation of the mean?" -> According to Chebyshev's Theorem, at least what percent of any data set will be within 1.8 standard deviation of the mean?
A45: z = | B45: 1.8
A46: Percent: | B46: =1-1/B45^2 -> 0.6913580247 | C46: =IF(B46="","","Accoring to Chebyshev's Theorem, at least "&TEXT(B46,"0.00%")&" of any data set will be within +/- 1.8 standard deviation of the mean.") -> Accoring to Chebyshev's Theorem, at least 69.14% of any data set will be within +/- 1.8 standard deviation of the mean.
A67: Chebyshev's Theorem: Proportion of data values that lie between +/- a given number of standard deviations
A68: Rule: At least (1 - 1/z^2) of the values in any data set will be within z standard deviations of the mean, where z is any value greater than 1.
A69: Real power of this Theorem: Applies to any data set regardless of the shape of the distribution of the data!
A70: Chebyshev's Theorem:
A71: At least 0.75, or 75.00%, of the data values must be within z = 2 standard deviations of the mean
A72: At least 0.89, or 89.00%, of the data values must be within z = 3 standard deviations of the mean
A73: At least 0.94, or 94.00%, of the data values must be within z = 4 standard deviations of the mean

Sheet Empirical Rule
A29: Empirical Rule:
A30: About 99.0% of the values will lie between +/- 3 SD
A31: About 95.0% of the values will lie between +/- 2 SD
A32: About 68.0% of the values will lie between +/- 1 SD
A34: Mean Height | B34: ='z(3)'!B1 -> 71 | D34: *assuming population distribution is bell shaped.
A35: SD | B35: ='z(3)'!B2 -> 4
A36: 68% of the values lie between what two values? | J36: 0.68 | K36: heights
A37: z | B37: 1
A38: Lower
A39: Upper | C39: =IF(ISNUMBER(B39),"About "&TEXT(J36,"0%")&" of the "&K36&" will be between "&TEXT(B38,"0\""")&" and "&TEXT(B39,"0\"""),"") -> 
A40: 95% of the values lie between what two values? | J40: 0.95 | K40: heights
A41: z | B41: 2
A42: Lower
A43: Upper | C43: =IF(ISNUMBER(B43),"About "&TEXT(J40,"0%")&" of the "&K40&" will be between "&TEXT(B42,"0\""")&" and "&TEXT(B43,"0\"""),"") -> 
A44: 99% of the values lie between what two values? | J44: 0.99 | K44: heights
A45: z | B45: 3
A46: Lower
A47: Upper | C47: =IF(ISNUMBER(B47),"About "&TEXT(J44,"0%")&" of the "&K44&" will be between "&TEXT(B46,"0\""")&" and "&TEXT(B47,"0\"""),"") -> 
A49: Empirical Rule:
A50: About 99.0% of the values will lie between +/- 3 SD
A51: About 95.0% of the values will lie between +/- 2 SD
A52: About 68.0% of the values will lie between +/- 1 SD
A54: Mean Gas Price | B54: 2.31 | D54: *assuming population distribution is bell shaped. | I54: Chapter 6 and later we will be using this rule to check reasonableness of peoples claims.
A55: SD | B55: 0.12
A56: 68% of the values lie between what two values? | J56: 0.68 | K56: prices
A57: z | B57: 1
A58: Lower
A59: Upper | C59: =IF(ISNUMBER(B59),"About "&TEXT(J56,"0%")&" of the "&K56&" will be between "&TEXT(B58,"$0.00")&" and "&TEXT(B59,"$0.00"),"") -> 
A60: 95% of the values lie between what two values? | J60: 0.95 | K60: prices
A61: z | B61: 2
A62: Lower
A63: Upper | C63: =IF(ISNUMBER(B63),"About "&TEXT(J60,"0%")&" of the "&K60&" will be between "&TEXT(B62,"$0.00")&" and "&TEXT(B63,"$0.00"),"") -> 
A64: 99% of the values lie between what two values? | J64: 0.99 | K64: prices
A65: z | B65: 3
A66: Lower
A67: Upper | C67: =IF(ISNUMBER(B67),"About "&TEXT(J64,"0%")&" of the "&K64&" will be between "&TEXT(B66,"$0.00")&" and "&TEXT(B67,"$0.00"),"") -> 
A69: Empirical Rule:
A70: About 99.0% of the values will lie between +/- 3 SD
A71: About 95.0% of the values will lie between +/- 2 SD
A72: About 68.0% of the values will lie between +/- 1 SD
A74: Mean Cereal Box Weight | B74: 32 | C74: oz. | D74: *assuming population distribution is bell shaped. | I74: Chapter 6 and later we will be using this rule to check whether production machines are filling correctly
A75: SD | B75: 0.35 | C75: oz.
A76: 68% of the values lie between what two values? | J76: 0.68 | K76: weight
A77: z | B77: 1
A78: Lower
A79: Upper | C79: =IF(ISNUMBER(B79),"About "&TEXT(J76,"0%")&" of the "&K76&" will be between "&TEXT(B78,"0.00 oz.")&" and "&TEXT(B79,"0.00 oz."),"") -> 
A80: 95% of the values lie between what two values? | J80: 0.95 | K80: weight
A81: z | B81: 2
A82: Lower
A83: Upper | C83: =IF(ISNUMBER(B83),"About "&TEXT(J80,"0%")&" of the "&K80&" will be between "&TEXT(B82,"0.00 oz.")&" and "&TEXT(B83,"0.00 oz."),"") -> 
A84: 95% of the values lie between what two values? | J84: 0.99 | K84: weight
A85: z | B85: 3
A86: Lower
A87: Upper | C87: =IF(ISNUMBER(B87),"About "&TEXT(J84,"0%")&" of the "&K84&" will be between "&TEXT(B86,"0.00 oz.")&" and "&TEXT(B87,"0.00 oz."),"") -> 
A90: Empirical Rule Areas:
A91: SD | B91: % | C91: 1/2 area
A92: +/- 1 SD | B92: 0.68
A93: +/- 2 SD | B93: 0.95
A94: +/- 3 SD | B94: 0.99
A96: Mean Gas Price | B96: 2.31
A97: SD | B97: 0.12
A98: ="What is the probability of getting a gas price between "&DOLLAR(B99)&" and "&DOLLAR(B100)&"?" -> What is the probability of getting a gas price between $2.31 and $2.55?
A99: Lower | B99: 2.31
A100: Upper | B100: =B96+B97*2 -> 2.55
A101: ="z "&A99 -> z Lower
A102: ="z "&A100 -> z Upper | M102: =_xlfn.NORM.S.DIST(B102,1)-_xlfn.NORM.S.DIST(B101,1) -> 0
A103: probability | C103: =IF(ISNUMBER(B103),"The probability of getting a gas price between "&DOLLAR(B99)&" and "&DOLLAR(B100)&" is approximately "&TEXT(B103,"0.0%"),"") -> 
A104: ="What is the probability of getting a gas price between "&DOLLAR(B105)&" and "&DOLLAR(B106)&"?" -> What is the probability of getting a gas price between $2.07 and $2.43?
A105: Lower | B105: =B96-B97*2 -> 2.07
A106: Upper | B106: =B96+B97*1 -> 2.43
A107: ="z "&A105 -> z Lower
A108: ="z "&A106 -> z Upper | M108: =_xlfn.NORM.S.DIST(B108,1)-_xlfn.NORM.S.DIST(B107,1) -> 0
A109: probability | C109: =IF(ISNUMBER(B109),"The probability of getting a gas price between "&DOLLAR(B105)&" and "&DOLLAR(B106)&" is approximately "&TEXT(B109,"0.0%"),"") -> 
A110: ="What is the probability of getting a gas price above "&DOLLAR(B111) -> What is the probability of getting a gas price above $2.19
A111: Lower | B111: =B96-B97 -> 2.19
A112: ="z "&A111 -> z Lower | M112: =1-_xlfn.NORM.S.DIST(B112,1) -> 0.5
A113: probability | C113: =IF(ISNUMBER(B113),"The probability of getting a gas price above "&DOLLAR(B111)&" is approximately "&TEXT(B113,"0.0%"),"") -> 

Sheet HeightChart (hidden)
E1: Xbar | F1: ='z(3)'!B1 -> 71 | J1: z | K1: List of x | M1: X | N1: X = Hieght | U1: z | V1: X | W1: ="Line"&U2 -> Line-3 | Z1: Normal Distribution | AC1: =Z1&", "&Z2&", "&Z3&", "&Z4 -> Normal Distribution, Bell Shaped Distribution, Gaussian Distribution, Symmetrical Distribution
E2: s | F2: ='z(3)'!B2 -> 4 | J2: -3 | K2: =$F$1+J2*$F$2 -> 59 | M2: z | N2: z = # of SD from Mean | U2: -3 | V2: 90 | W2: 0 | Z2: Bell Shaped Distribution
J3: -2 | K3: =$F$1+J3*$F$2 -> 63 | M3: Label | N3: =N1&CHAR(10)&N2 -> X = Hieght z = # of SD from Mean | U3: -3 | V3: 90 | W3: 0.15 | Z3: Gaussian Distribution
E4: SD | F4: 3 | G4: 2 | H4: 1 | J4: -1 | K4: 67 | U4: z | V4: X | W4: ="Line"&U5 -> Line-2 | Z4: Symmetrical Distribution
E5: Label | F5: =TEXT(TRUNC(F6,2),"0.0%") -> 99.0% | G5: =TEXT(TRUNC(G6,2),"0.0%") -> 95.0% | H5: 68.0% | J5: 0 | K5: 71 | U5: -2 | V5: =$F$1+U5*$F$2 -> 63 | W5: 0
E6: Area | F6: =_xlfn.NORM.S.DIST(F4,1)-_xlfn.NORM.S.DIST(-F4,1) -> 0.9973002039 | G6: =_xlfn.NORM.S.DIST(G4,1)-_xlfn.NORM.S.DIST(-G4,1) -> 0.9544997361 | H6: =_xlfn.NORM.S.DIST(H4,1)-_xlfn.NORM.S.DIST(-H4,1) -> 0.6826894921 | J6: 1 | K6: 75 | U6: -2 | V6: =$F$1+U6*$F$2 -> 63 | W6: 0.12
E7: Lower | F7: =$F$1-F$4*$F$2 -> 59 | G7: =$F$1-G$4*$F$2 -> 63 | H7: =$F$1-H$4*$F$2 -> 67 | J7: 2 | K7: 79 | U7: z | V7: X | W7: ="Line"&U8 -> Line-1
E8: Upper | F8: =$F$1+F$4*$F$2 -> 83 | G8: =$F$1+G$4*$F$2 -> 79 | H8: =$F$1+H$4*$F$2 -> 75 | J8: 3 | K8: 83 | U8: -1 | V8: =$F$1+U8*$F$2 -> 67 | W8: 0
U9: -1 | V9: =$F$1+U9*$F$2 -> 67 | W9: 0.11
A10: z | B10: x | C10: z Chart | D10: x Chart | E10: All Area Under Curve = 100% = All Possibilities. Each half = 50%. | F10: ="About "&TEXT(TRUNC(F6,2),"0.0%")&" of the values will lie between +/- "&F4&" SD, or between "&ROUND(F7,0)&" and "&ROUND(F8,0)&" inches" -> About 99.0% of the values will lie between +/- 3 SD, or between 59 and 83 inches | G10: ="About "&TEXT(TRUNC(G6,2),"0.0%")&" of the values will lie between +/- "&G4&" SD, or between "&ROUND(G7,0)&" and "&ROUND(G8,0)&" inches" -> About 95.0% of the values will lie between +/- 2 SD, or between 63 and 79 inches | H10: ="About "&TEXT(TRUNC(H6,2),"0.0%")&" of the values will lie between +/- "&H4&" SD, or between "&ROUND(H7,0)&" and "&ROUND(H8,0)&" inches" -> About 68.0% of the values will lie between +/- 1 SD, or between 67 and 75 inches | I10: ="Mean = "&F1&", where z = 0" -> Mean = 71, where z = 0 | U10: z | V10: X | W10: ="Line"&U11 -> Line0
A11: =(INT(B11)-$F$1)/$F$2 -> -7.75 | B11: =INT((ROWS(B$11:B11)-1)/20)+40+0.05*MOD(ROWS(B$11:B11)-1,20) -> 40 | C11: =IF(AND(A11<>A10,INT(A11)=A11),A11,"") ->  | D11: =IF(INT(B11)=B11,B11,"") -> 40 | E11: =_xlfn.NORM.DIST(B11,$F$1,$F$2,0) -> 9.045736128e-15 | F11: =IF(AND($B11>=F$7,$B11<=F$8),E11,"") ->  | I11: =IF(AND(B11>=$F$1-0.2,B11<=$F$1+0.2),E11,"") ->  | U11: 0 | V11: =$F$1+U11*$F$2 -> 71 | W11: 0
A12: =(INT(B12)-$F$1)/$F$2 -> -7.75 | B12: =INT((ROWS(B$11:B12)-1)/20)+40+0.05*MOD(ROWS(B$11:B12)-1,20) -> 40.05 | C12: =IF(AND(A12<>A11,INT(A12)=A12),A12,"") ->  | E12: 9.96511382e-15 | U12: 0 | V12: 71 | W12: 1.2
A13: -7.75 | B13: =INT((ROWS(B$11:B13)-1)/20)+40+0.05*MOD(ROWS(B$11:B13)-1,20) -> 40.1 | E13: 1.097621875e-14 | U13: 0 | V13: 71
A14: -7.75 | B14: =INT((ROWS(B$11:B14)-1)/20)+40+0.05*MOD(ROWS(B$11:B14)-1,20) -> 40.15 | E14: 1.2088026e-14 | U14: 0 | V14: 71
A15: -7.75 | B15: =INT((ROWS(B$11:B15)-1)/20)+40+0.05*MOD(ROWS(B$11:B15)-1,20) -> 40.2 | E15: 1.331037093e-14 | U15: 0 | V15: 71
A16: -7.75 | B16: =INT((ROWS(B$11:B16)-1)/20)+40+0.05*MOD(ROWS(B$11:B16)-1,20) -> 40.25 | E16: 1.465402989e-14 | U16: 0 | V16: 71
A17: -7.75 | B17: =INT((ROWS(B$11:B17)-1)/20)+40+0.05*MOD(ROWS(B$11:B17)-1,20) -> 40.3 | E17: 1.613080827e-14 | U17: 0 | V17: 71
A18: -7.75 | B18: =INT((ROWS(B$11:B18)-1)/20)+40+0.05*MOD(ROWS(B$11:B18)-1,20) -> 40.35 | E18: 1.775363663e-14 | U18: 0 | V18: 71
A19: -7.75 | B19: =INT((ROWS(B$11:B19)-1)/20)+40+0.05*MOD(ROWS(B$11:B19)-1,20) -> 40.4 | E19: 1.953667563e-14 | U19: 0 | V19: 71
A20: -7.75 | B20: =INT((ROWS(B$11:B20)-1)/20)+40+0.05*MOD(ROWS(B$11:B20)-1,20) -> 40.45 | E20: 2.149543046e-14 | U20: 0 | V20: 71
A21: -7.75 | B21: =INT((ROWS(B$11:B21)-1)/20)+40+0.05*MOD(ROWS(B$11:B21)-1,20) -> 40.5 | E21: 2.36468757e-14 | U21: 0 | V21: 71
A22: -7.75 | B22: =INT((ROWS(B$11:B22)-1)/20)+40+0.05*MOD(ROWS(B$11:B22)-1,20) -> 40.55 | E22: 2.600959155e-14 | U22: 0 | V22: 71
A23: -7.75 | B23: =INT((ROWS(B$11:B23)-1)/20)+40+0.05*MOD(ROWS(B$11:B23)-1,20) -> 40.6 | E23: 2.860391225e-14 | U23: 0 | V23: 71
A24: -7.75 | B24: =INT((ROWS(B$11:B24)-1)/20)+40+0.05*MOD(ROWS(B$11:B24)-1,20) -> 40.65 | E24: 3.145208811e-14 | U24: 0 | V24: 71
A25: -7.75 | B25: =INT((ROWS(B$11:B25)-1)/20)+40+0.05*MOD(ROWS(B$11:B25)-1,20) -> 40.7 | E25: 3.457846193e-14 | U25: 0 | V25: 71
A26: -7.75 | B26: =INT((ROWS(B$11:B26)-1)/20)+40+0.05*MOD(ROWS(B$11:B26)-1,20) -> 40.75 | E26: 3.800966143e-14 | U26: 0 | V26: 71
A27: -7.75 | B27: =INT((ROWS(B$11:B27)-1)/20)+40+0.05*MOD(ROWS(B$11:B27)-1,20) -> 40.8 | E27: 4.177480893e-14 | U27: 0 | V27: 71
A28: -7.75 | B28: =INT((ROWS(B$11:B28)-1)/20)+40+0.05*MOD(ROWS(B$11:B28)-1,20) -> 40.85 | E28: 4.590574973e-14 | U28: 0 | V28: 71
A29: -7.75 | B29: =INT((ROWS(B$11:B29)-1)/20)+40+0.05*MOD(ROWS(B$11:B29)-1,20) -> 40.9 | E29: 5.0437301e-14 | U29: 0 | V29: 71
A30: -7.75 | B30: =INT((ROWS(B$11:B30)-1)/20)+40+0.05*MOD(ROWS(B$11:B30)-1,20) -> 40.95 | E30: 5.540752282e-14 | U30: 0 | V30: 71
A31: -7.5 | B31: =INT((ROWS(B$11:B31)-1)/20)+40+0.05*MOD(ROWS(B$11:B31)-1,20) -> 41 | D31: 41 | E31: 6.085801333e-14 | F31: =IF(AND($B31>=F$7,$B31<=F$8),E31,"") ->  | U31: 0 | V31: 71
A32: -7.5 | B32: =INT((ROWS(B$11:B32)-1)/20)+40+0.05*MOD(ROWS(B$11:B32)-1,20) -> 41.05 | E32: 6.683423008e-14 | U32: 0 | V32: 71
A33: -7.5 | B33: =INT((ROWS(B$11:B33)-1)/20)+40+0.05*MOD(ROWS(B$11:B33)-1,20) -> 41.1 | E33: 7.338583993e-14 | U33: 0 | V33: 71
A34: -7.5 | B34: =INT((ROWS(B$11:B34)-1)/20)+40+0.05*MOD(ROWS(B$11:B34)-1,20) -> 41.15 | E34: 8.056709984e-14 | U34: 0 | V34: 71
A35: -7.5 | B35: =INT((ROWS(B$11:B35)-1)/20)+40+0.05*MOD(ROWS(B$11:B35)-1,20) -> 41.2 | E35: 8.843727119e-14 | U35: 0 | V35: 71
A36: -7.5 | B36: =INT((ROWS(B$11:B36)-1)/20)+40+0.05*MOD(ROWS(B$11:B36)-1,20) -> 41.25 | E36: 9.706107073e-14 | U36: 0 | V36: 71
A37: -7.5 | B37: =INT((ROWS(B$11:B37)-1)/20)+40+0.05*MOD(ROWS(B$11:B37)-1,20) -> 41.3 | E37: 1.06509161e-13 | U37: 0 | V37: 71
A38: -7.5 | B38: =INT((ROWS(B$11:B38)-1)/20)+40+0.05*MOD(ROWS(B$11:B38)-1,20) -> 41.35 | E38: 1.16858684e-13 | U38: 0 | V38: 71
A39: -7.5 | B39: =INT((ROWS(B$11:B39)-1)/20)+40+0.05*MOD(ROWS(B$11:B39)-1,20) -> 41.4 | E39: 1.281938409e-13 | U39: 0 | V39: 71
A40: -7.5 | B40: =INT((ROWS(B$11:B40)-1)/20)+40+0.05*MOD(ROWS(B$11:B40)-1,20) -> 41.45 | E40: 1.406065235e-13 | U40: 0 | V40: 71
A41: -7.5 | B41: =INT((ROWS(B$11:B41)-1)/20)+40+0.05*MOD(ROWS(B$11:B41)-1,20) -> 41.5 | E41: 1.541969992e-13 | U41: 0 | V41: 71
A42: -7.5 | B42: =INT((ROWS(B$11:B42)-1)/20)+40+0.05*MOD(ROWS(B$11:B42)-1,20) -> 41.55 | E42: 1.690746571e-13 | U42: 0 | V42: 71
A43: -7.5 | B43: =INT((ROWS(B$11:B43)-1)/20)+40+0.05*MOD(ROWS(B$11:B43)-1,20) -> 41.6 | E43: 1.853588175e-13 | U43: 0 | V43: =$F$1+U43*$F$2 -> 71
A44: -7.5 | B44: =INT((ROWS(B$11:B44)-1)/20)+40+0.05*MOD(ROWS(B$11:B44)-1,20) -> 41.65 | E44: 2.031796119e-13 | U44: 0 | V44: 71
A45: -7.5 | B45: =INT((ROWS(B$11:B45)-1)/20)+40+0.05*MOD(ROWS(B$11:B45)-1,20) -> 41.7 | E45: 2.226789394e-13 | U45: 0 | V45: 71
A46: -7.5 | B46: =INT((ROWS(B$11:B46)-1)/20)+40+0.05*MOD(ROWS(B$11:B46)-1,20) -> 41.75 | E46: 2.440115049e-13 | U46: 0 | V46: 71
A47: -7.5 | B47: =INT((ROWS(B$11:B47)-1)/20)+40+0.05*MOD(ROWS(B$11:B47)-1,20) -> 41.8 | E47: 2.673459468e-13 | U47: 0 | V47: 71
A48: -7.5 | B48: =INT((ROWS(B$11:B48)-1)/20)+40+0.05*MOD(ROWS(B$11:B48)-1,20) -> 41.85 | E48: 2.928660612e-13 | U48: 0 | V48: 71
A49: -7.5 | B49: =INT((ROWS(B$11:B49)-1)/20)+40+0.05*MOD(ROWS(B$11:B49)-1,20) -> 41.9 | E49: 3.207721316e-13 | U49: 0 | V49: 71
A50: -7.5 | B50: =INT((ROWS(B$11:B50)-1)/20)+40+0.05*MOD(ROWS(B$11:B50)-1,20) -> 41.95 | E50: 3.512823709e-13 | U50: 0 | V50: 71
A51: -7.25 | B51: =INT((ROWS(B$11:B51)-1)/20)+40+0.05*MOD(ROWS(B$11:B51)-1,20) -> 42 | D51: 42 | E51: 3.846344876e-13 | F51: =IF(AND($B51>=F$7,$B51<=F$8),E51,"") ->  | U51: 0 | V51: 71
A52: -7.25 | B52: =INT((ROWS(B$11:B52)-1)/20)+40+0.05*MOD(ROWS(B$11:B52)-1,20) -> 42.05 | E52: 4.210873842e-13 | U52: 0 | V52: 71
A53: -7.25 | B53: =INT((ROWS(B$11:B53)-1)/20)+40+0.05*MOD(ROWS(B$11:B53)-1,20) -> 42.1 | E53: 4.609229999e-13 | U53: 0 | V53: 71
A54: -7.25 | B54: =INT((ROWS(B$11:B54)-1)/20)+40+0.05*MOD(ROWS(B$11:B54)-1,20) -> 42.15 | E54: 5.044483095e-13 | U54: 0 | V54: 71
A55: -7.25 | B55: =INT((ROWS(B$11:B55)-1)/20)+40+0.05*MOD(ROWS(B$11:B55)-1,20) -> 42.2 | E55: 5.519974908e-13 | U55: 0 | V55: 71
A56: -7.25 | B56: =INT((ROWS(B$11:B56)-1)/20)+40+0.05*MOD(ROWS(B$11:B56)-1,20) -> 42.25 | E56: 6.039342749e-13 | U56: 0 | V56: 71
A57: -7.25 | B57: =INT((ROWS(B$11:B57)-1)/20)+40+0.05*MOD(ROWS(B$11:B57)-1,20) -> 42.3 | E57: 6.606544936e-13 | U57: 0 | V57: 71
A58: -7.25 | B58: =INT((ROWS(B$11:B58)-1)/20)+40+0.05*MOD(ROWS(B$11:B58)-1,20) -> 42.35 | E58: 7.225888409e-13 | U58: 0 | V58: 71
A59: -7.25 | B59: =INT((ROWS(B$11:B59)-1)/20)+40+0.05*MOD(ROWS(B$11:B59)-1,20) -> 42.4 | E59: 7.902058654e-13 | U59: 0 | V59: 71
A60: -7.25 | B60: =INT((ROWS(B$11:B60)-1)/20)+40+0.05*MOD(ROWS(B$11:B60)-1,20) -> 42.45 | E60: 8.640152124e-13 | U60: 0 | V60: 71
A61: -7.25 | B61: =INT((ROWS(B$11:B61)-1)/20)+40+0.05*MOD(ROWS(B$11:B61)-1,20) -> 42.5 | E61: 9.445711364e-13 | U61: 0 | V61: 71
A62: -7.25 | B62: =INT((ROWS(B$11:B62)-1)/20)+40+0.05*MOD(ROWS(B$11:B62)-1,20) -> 42.55 | E62: 1.032476305e-12 | U62: 0 | V62: 71
A63: -7.25 | B63: =INT((ROWS(B$11:B63)-1)/20)+40+0.05*MOD(ROWS(B$11:B63)-1,20) -> 42.6 | E63: 1.128385919e-12 | U63: 0 | V63: 71
A64: -7.25 | B64: =INT((ROWS(B$11:B64)-1)/20)+40+0.05*MOD(ROWS(B$11:B64)-1,20) -> 42.65 | E64: 1.233012173e-12 | U64: 0 | V64: 71
A65: -7.25 | B65: =INT((ROWS(B$11:B65)-1)/20)+40+0.05*MOD(ROWS(B$11:B65)-1,20) -> 42.7 | E65: 1.347129081e-12 | U65: 0 | V65: 71
A66: -7.25 | B66: =INT((ROWS(B$11:B66)-1)/20)+40+0.05*MOD(ROWS(B$11:B66)-1,20) -> 42.75 | E66: 1.471577709e-12 | U66: 0 | V66: 71
A67: -7.25 | B67: =INT((ROWS(B$11:B67)-1)/20)+40+0.05*MOD(ROWS(B$11:B67)-1,20) -> 42.8 | E67: 1.607271823e-12 | U67: 0 | V67: 71
A68: -7.25 | B68: =INT((ROWS(B$11:B68)-1)/20)+40+0.05*MOD(ROWS(B$11:B68)-1,20) -> 42.85 | E68: 1.755204013e-12 | U68: 0 | V68: 71
A69: -7.25 | B69: =INT((ROWS(B$11:B69)-1)/20)+40+0.05*MOD(ROWS(B$11:B69)-1,20) -> 42.9 | E69: 1.91645231e-12 | U69: 0 | V69: 71
A70: -7.25 | B70: =INT((ROWS(B$11:B70)-1)/20)+40+0.05*MOD(ROWS(B$11:B70)-1,20) -> 42.95 | E70: 2.092187348e-12 | U70: 0 | V70: =$F$1+U70*$F$2 -> 71
A71: -7 | B71: =INT((ROWS(B$11:B71)-1)/20)+40+0.05*MOD(ROWS(B$11:B71)-1,20) -> 43 | C71: -7 | D71: 43 | E71: 2.283680102e-12 | F71: =IF(AND($B71>=F$7,$B71<=F$8),E71,"") ->  | U71: 0 | V71: 71
A72: -7 | B72: =INT((ROWS(B$11:B72)-1)/20)+40+0.05*MOD(ROWS(B$11:B72)-1,20) -> 43.05 | E72: 2.492310263e-12 | U72: 0 | V72: 71
A73: -7 | B73: =INT((ROWS(B$11:B73)-1)/20)+40+0.05*MOD(ROWS(B$11:B73)-1,20) -> 43.1 | E73: 2.719575281e-12 | U73: 0 | V73: 71
A74: -7 | B74: =INT((ROWS(B$11:B74)-1)/20)+40+0.05*MOD(ROWS(B$11:B74)-1,20) -> 43.15 | E74: 2.967100154e-12 | U74: 0 | V74: 71
A75: -7 | B75: =INT((ROWS(B$11:B75)-1)/20)+40+0.05*MOD(ROWS(B$11:B75)-1,20) -> 43.2 | D75: =IF(INT(B75)=B75,B75,"") ->  | E75: =_xlfn.NORM.DIST(B75,$F$1,$F$2,0) -> 3.236647985e-12 | I75: =IF(AND(B75>=$F$1-0.2,B75<=$F$1+0.2),E75,"") ->  | U75: 0 | V75: 71
A76: =(INT(B76)-$F$1)/$F$2 -> -7 | B76: =INT((ROWS(B$11:B76)-1)/20)+40+0.05*MOD(ROWS(B$11:B76)-1,20) -> 43.25 | C76: =IF(AND(A76<>A75,INT(A76)=A76),A76,"") ->  | E76: 3.530131409e-12 | U76: 0 | V76: 71
A77: -7 | B77: =INT((ROWS(B$11:B77)-1)/20)+40+0.05*MOD(ROWS(B$11:B77)-1,20) -> 43.3 | E77: 3.849624925e-12 | U77: 0 | V77: 71
A78: -7 | B78: =INT((ROWS(B$11:B78)-1)/20)+40+0.05*MOD(ROWS(B$11:B78)-1,20) -> 43.35 | E78: 4.197378218e-12 | U78: 0 | V78: 71
A79: -7 | B79: =INT((ROWS(B$11:B79)-1)/20)+40+0.05*MOD(ROWS(B$11:B79)-1,20) -> 43.4 | E79: 4.575830543e-12 | U79: 0 | V79: 71
A80: -7 | B80: =INT((ROWS(B$11:B80)-1)/20)+40+0.05*MOD(ROWS(B$11:B80)-1,20) -> 43.45 | E80: 4.987626257e-12 | U80: 0 | V80: 71
A81: -7 | B81: =INT((ROWS(B$11:B81)-1)/20)+40+0.05*MOD(ROWS(B$11:B81)-1,20) -> 43.5 | E81: 5.435631589e-12 | U81: 0 | V81: 71
A82: -7 | B82: =INT((ROWS(B$11:B82)-1)/20)+40+0.05*MOD(ROWS(B$11:B82)-1,20) -> 43.55 | E82: 5.922952731e-12 | U82: 0 | V82: 71
A83: -7 | B83: =INT((ROWS(B$11:B83)-1)/20)+40+0.05*MOD(ROWS(B$11:B83)-1,20) -> 43.6 | E83: 6.452955362e-12 | U83: 0 | V83: 71
A84: -7 | B84: =INT((ROWS(B$11:B84)-1)/20)+40+0.05*MOD(ROWS(B$11:B84)-1,20) -> 43.65 | E84: 7.029285723e-12 | U84: 0 | V84: 71
A85: -7 | B85: =INT((ROWS(B$11:B85)-1)/20)+40+0.05*MOD(ROWS(B$11:B85)-1,20) -> 43.7 | E85: 7.655893333e-12 | U85: 0 | V85: 71
A86: -7 | B86: =INT((ROWS(B$11:B86)-1)/20)+40+0.05*MOD(ROWS(B$11:B86)-1,20) -> 43.75 | E86: 8.337055501e-12 | U86: 0 | V86: 71
A87: -7 | B87: =INT((ROWS(B$11:B87)-1)/20)+40+0.05*MOD(ROWS(B$11:B87)-1,20) -> 43.8 | E87: 9.077403754e-12 | U87: 0 | V87: 71
A88: -7 | B88: =INT((ROWS(B$11:B88)-1)/20)+40+0.05*MOD(ROWS(B$11:B88)-1,20) -> 43.85 | E88: 9.881952331e-12 | U88: 0 | V88: 71
A89: -7 | B89: =INT((ROWS(B$11:B89)-1)/20)+40+0.05*MOD(ROWS(B$11:B89)-1,20) -> 43.9 | E89: 1.075612889e-11 | U89: 0 | V89: 71
A90: -7 | B90: =INT((ROWS(B$11:B90)-1)/20)+40+0.05*MOD(ROWS(B$11:B90)-1,20) -> 43.95 | E90: 1.170580762e-11 | U90: 0 | V90: 71
A91: -6.75 | B91: =INT((ROWS(B$11:B91)-1)/20)+40+0.05*MOD(ROWS(B$11:B91)-1,20) -> 44 | D91: 44 | E91: 1.27373449e-11 | F91: =IF(AND($B91>=F$7,$B91<=F$8),E91,"") ->  | U91: 0 | V91: 71
A92: -6.75 | B92: =INT((ROWS(B$11:B92)-1)/20)+40+0.05*MOD(ROWS(B$11:B92)-1,20) -> 44.05 | E92: 1.385761771e-11 | U92: 0 | V92: 71
A93: -6.75 | B93: =INT((ROWS(B$11:B93)-1)/20)+40+0.05*MOD(ROWS(B$11:B93)-1,20) -> 44.1 | E93: 1.507406506e-11 | U93: 0 | V93: 71
A94: -6.75 | B94: =INT((ROWS(B$11:B94)-1)/20)+40+0.05*MOD(ROWS(B$11:B94)-1,20) -> 44.15 | E94: 1.639473254e-11 | U94: 0 | V94: 71
A95: -6.75 | B95: =INT((ROWS(B$11:B95)-1)/20)+40+0.05*MOD(ROWS(B$11:B95)-1,20) -> 44.2 | E95: 1.782832031e-11 | U95: 0 | V95: 71
A96: -6.75 | B96: =INT((ROWS(B$11:B96)-1)/20)+40+0.05*MOD(ROWS(B$11:B96)-1,20) -> 44.25 | E96: 1.93842348e-11 | U96: 0 | V96: 71
A97: -6.75 | B97: =INT((ROWS(B$11:B97)-1)/20)+40+0.05*MOD(ROWS(B$11:B97)-1,20) -> 44.3 | E97: 2.107264432e-11 | U97: 0 | V97: 71
A98: -6.75 | B98: =INT((ROWS(B$11:B98)-1)/20)+40+0.05*MOD(ROWS(B$11:B98)-1,20) -> 44.35 | E98: 2.290453891e-11 | U98: 0 | V98: 71
A99: -6.75 | B99: =INT((ROWS(B$11:B99)-1)/20)+40+0.05*MOD(ROWS(B$11:B99)-1,20) -> 44.4 | E99: 2.489179476e-11 | U99: 0 | V99: 71
A100: -6.75 | B100: =INT((ROWS(B$11:B100)-1)/20)+40+0.05*MOD(ROWS(B$11:B100)-1,20) -> 44.45 | E100: 2.704724351e-11 | U100: 0 | V100: 71
A101: -6.75 | B101: =INT((ROWS(B$11:B101)-1)/20)+40+0.05*MOD(ROWS(B$11:B101)-1,20) -> 44.5 | E101: 2.938474675e-11 | U101: 0 | V101: 71
A102: -6.75 | B102: =INT((ROWS(B$11:B102)-1)/20)+40+0.05*MOD(ROWS(B$11:B102)-1,20) -> 44.55 | E102: 3.191927619e-11 | U102: 0 | V102: 71
A103: -6.75 | B103: =INT((ROWS(B$11:B103)-1)/20)+40+0.05*MOD(ROWS(B$11:B103)-1,20) -> 44.6 | E103: 3.466699985e-11 | U103: 0 | V103: 71
A104: -6.75 | B104: =INT((ROWS(B$11:B104)-1)/20)+40+0.05*MOD(ROWS(B$11:B104)-1,20) -> 44.65 | E104: 3.764537469e-11 | U104: 0 | V104: 71
A105: -6.75 | B105: =INT((ROWS(B$11:B105)-1)/20)+40+0.05*MOD(ROWS(B$11:B105)-1,20) -> 44.7 | E105: 4.087324619e-11 | U105: 0 | V105: 71
A106: -6.75 | B106: =INT((ROWS(B$11:B106)-1)/20)+40+0.05*MOD(ROWS(B$11:B106)-1,20) -> 44.75 | E106: 4.437095535e-11 | U106: 0 | V106: 71
A107: -6.75 | B107: =INT((ROWS(B$11:B107)-1)/20)+40+0.05*MOD(ROWS(B$11:B107)-1,20) -> 44.8 | E107: 4.81604537e-11 | U107: 0 | V107: 71
A108: -6.75 | B108: =INT((ROWS(B$11:B108)-1)/20)+40+0.05*MOD(ROWS(B$11:B108)-1,20) -> 44.85 | E108: 5.226542678e-11 | U108: 0 | V108: 71
A109: -6.75 | B109: =INT((ROWS(B$11:B109)-1)/20)+40+0.05*MOD(ROWS(B$11:B109)-1,20) -> 44.9 | E109: 5.671142682e-11 | U109: 0 | V109: 71
A110: -6.75 | B110: =INT((ROWS(B$11:B110)-1)/20)+40+0.05*MOD(ROWS(B$11:B110)-1,20) -> 44.95 | E110: 6.152601519e-11 | U110: 0 | V110: 71
A111: -6.5 | B111: =INT((ROWS(B$11:B111)-1)/20)+40+0.05*MOD(ROWS(B$11:B111)-1,20) -> 45 | D111: 45 | E111: 6.673891537e-11 | F111: =IF(AND($B111>=F$7,$B111<=F$8),E111,"") ->  | U111: 0 | V111: 71
A112: -6.5 | B112: =INT((ROWS(B$11:B112)-1)/20)+40+0.05*MOD(ROWS(B$11:B112)-1,20) -> 45.05 | E112: 7.238217711e-11 | U112: 0 | V112: 71
A113: -6.5 | B113: =INT((ROWS(B$11:B113)-1)/20)+40+0.05*MOD(ROWS(B$11:B113)-1,20) -> 45.1 | E113: 7.849035269e-11 | U113: 0 | V113: 71
A114: -6.5 | B114: =INT((ROWS(B$11:B114)-1)/20)+40+0.05*MOD(ROWS(B$11:B114)-1,20) -> 45.15 | E114: 8.5100686e-11 | U114: 0 | V114: 71
A115: -6.5 | B115: =INT((ROWS(B$11:B115)-1)/20)+40+0.05*MOD(ROWS(B$11:B115)-1,20) -> 45.2 | E115: 9.22533154e-11 | U115: 0 | V115: 71
A116: -6.5 | B116: =INT((ROWS(B$11:B116)-1)/20)+40+0.05*MOD(ROWS(B$11:B116)-1,20) -> 45.25 | E116: 9.999149142e-11 | U116: 0 | V116: 71
A117: -6.5 | B117: =INT((ROWS(B$11:B117)-1)/20)+40+0.05*MOD(ROWS(B$11:B117)-1,20) -> 45.3 | E117: 1.083618101e-10 | U117: 0 | V117: 71
A118: -6.5 | B118: =INT((ROWS(B$11:B118)-1)/20)+40+0.05*MOD(ROWS(B$11:B118)-1,20) -> 45.35 | E118: 1.174144633e-10 | U118: 0 | V118: 71
A119: -6.5 | B119: =INT((ROWS(B$11:B119)-1)/20)+40+0.05*MOD(ROWS(B$11:B119)-1,20) -> 45.4 | E119: 1.27203507e-10 | U119: 0 | V119: 71
A120: -6.5 | B120: =INT((ROWS(B$11:B120)-1)/20)+40+0.05*MOD(ROWS(B$11:B120)-1,20) -> 45.45 | E120: 1.377871491e-10 | U120: 0 | V120: 71
A121: -6.5 | B121: =INT((ROWS(B$11:B121)-1)/20)+40+0.05*MOD(ROWS(B$11:B121)-1,20) -> 45.5 | E121: 1.492280573e-10 | U121: 0 | V121: 71
A122: -6.5 | B122: =INT((ROWS(B$11:B122)-1)/20)+40+0.05*MOD(ROWS(B$11:B122)-1,20) -> 45.55 | E122: 1.615936897e-10 | U122: 0 | V122: 71
A123: -6.5 | B123: =INT((ROWS(B$11:B123)-1)/20)+40+0.05*MOD(ROWS(B$11:B123)-1,20) -> 45.6 | E123: 1.749566487e-10 | U123: 0 | V123: 71
A124: -6.5 | B124: =INT((ROWS(B$11:B124)-1)/20)+40+0.05*MOD(ROWS(B$11:B124)-1,20) -> 45.65 | E124: 1.893950597e-10 | U124: 0 | V124: 71
A125: -6.5 | B125: =INT((ROWS(B$11:B125)-1)/20)+40+0.05*MOD(ROWS(B$11:B125)-1,20) -> 45.7 | E125: 2.049929773e-10 | U125: 0 | V125: 71
A126: -6.5 | B126: =INT((ROWS(B$11:B126)-1)/20)+40+0.05*MOD(ROWS(B$11:B126)-1,20) -> 45.75 | E126: 2.218408198e-10 | U126: 0 | V126: 71
A127: -6.5 | B127: =INT((ROWS(B$11:B127)-1)/20)+40+0.05*MOD(ROWS(B$11:B127)-1,20) -> 45.8 | E127: 2.400358343e-10 | U127: 0 | V127: 71
A128: -6.5 | B128: =INT((ROWS(B$11:B128)-1)/20)+40+0.05*MOD(ROWS(B$11:B128)-1,20) -> 45.85 | E128: 2.59682595e-10 | U128: 0 | V128: 71
A129: -6.5 | B129: =INT((ROWS(B$11:B129)-1)/20)+40+0.05*MOD(ROWS(B$11:B129)-1,20) -> 45.9 | E129: 2.808935359e-10 | U129: 0 | V129: 71
A130: -6.5 | B130: =INT((ROWS(B$11:B130)-1)/20)+40+0.05*MOD(ROWS(B$11:B130)-1,20) -> 45.95 | E130: 3.03789521e-10 | U130: 0 | V130: 71
A131: -6.25 | B131: =INT((ROWS(B$11:B131)-1)/20)+40+0.05*MOD(ROWS(B$11:B131)-1,20) -> 46 | D131: 46 | E131: 3.285004545e-10 | F131: =IF(AND($B131>=F$7,$B131<=F$8),E131,"") ->  | U131: 0 | V131: 71
A132: -6.25 | B132: =INT((ROWS(B$11:B132)-1)/20)+40+0.05*MOD(ROWS(B$11:B132)-1,20) -> 46.05 | E132: 3.551659328e-10 | U132: 0 | V132: 71
A133: -6.25 | B133: =INT((ROWS(B$11:B133)-1)/20)+40+0.05*MOD(ROWS(B$11:B133)-1,20) -> 46.1 | E133: 3.839359422e-10 | U133: 0 | V133: 71
A134: -6.25 | B134: =INT((ROWS(B$11:B134)-1)/20)+40+0.05*MOD(ROWS(B$11:B134)-1,20) -> 46.15 | E134: 4.149716052e-10 | U134: 0 | V134: =$F$1+U134*$F$2 -> 71
A135: -6.25 | B135: =INT((ROWS(B$11:B135)-1)/20)+40+0.05*MOD(ROWS(B$11:B135)-1,20) -> 46.2 | E135: 4.48445977e-10 | U135: 0 | V135: 71
A136: -6.25 | B136: =INT((ROWS(B$11:B136)-1)/20)+40+0.05*MOD(ROWS(B$11:B136)-1,20) -> 46.25 | E136: 4.845448984e-10 | U136: 0 | V136: 71
A137: -6.25 | B137: =INT((ROWS(B$11:B137)-1)/20)+40+0.05*MOD(ROWS(B$11:B137)-1,20) -> 46.3 | E137: 5.234679059e-10 | U137: 0 | V137: 71
A138: -6.25 | B138: =INT((ROWS(B$11:B138)-1)/20)+40+0.05*MOD(ROWS(B$11:B138)-1,20) -> 46.35 | E138: 5.654292044e-10 | U138: 0 | V138: 71
A139: -6.25 | B139: =INT((ROWS(B$11:B139)-1)/20)+40+0.05*MOD(ROWS(B$11:B139)-1,20) -> 46.4 | D139: =IF(INT(B139)=B139,B139,"") ->  | E139: =_xlfn.NORM.DIST(B139,$F$1,$F$2,0) -> 6.106587067e-10 | I139: =IF(AND(B139>=$F$1-0.2,B139<=$F$1+0.2),E139,"") ->  | U139: 0 | V139: 71
A140: =(INT(B140)-$F$1)/$F$2 -> -6.25 | B140: =INT((ROWS(B$11:B140)-1)/20)+40+0.05*MOD(ROWS(B$11:B140)-1,20) -> 46.45 | C140: =IF(AND(A140<>A139,INT(A140)=A140),A140,"") ->  | E140: 6.594031427e-10 | U140: 0 | V140: 71
A141: -6.25 | B141: =INT((ROWS(B$11:B141)-1)/20)+40+0.05*MOD(ROWS(B$11:B141)-1,20) -> 46.5 | E141: 7.119272446e-10 | U141: 0 | V141: 71
A142: -6.25 | B142: =INT((ROWS(B$11:B142)-1)/20)+40+0.05*MOD(ROWS(B$11:B142)-1,20) -> 46.55 | E142: 7.685150117e-10 | U142: 0 | V142: 71
A143: -6.25 | B143: =INT((ROWS(B$11:B143)-1)/20)+40+0.05*MOD(ROWS(B$11:B143)-1,20) -> 46.6 | E143: 8.294710609e-10 | U143: 0 | V143: 71
A144: -6.25 | B144: =INT((ROWS(B$11:B144)-1)/20)+40+0.05*MOD(ROWS(B$11:B144)-1,20) -> 46.65 | E144: 8.951220669e-10 | U144: 0 | V144: 71
A145: -6.25 | B145: =INT((ROWS(B$11:B145)-1)/20)+40+0.05*MOD(ROWS(B$11:B145)-1,20) -> 46.7 | E145: 9.658183003e-10 | U145: 0 | V145: 71
A146: -6.25 | B146: =INT((ROWS(B$11:B146)-1)/20)+40+0.05*MOD(ROWS(B$11:B146)-1,20) -> 46.75 | E146: 1.041935267e-09 | U146: 0 | V146: 71
A147: -6.25 | B147: =INT((ROWS(B$11:B147)-1)/20)+40+0.05*MOD(ROWS(B$11:B147)-1,20) -> 46.8 | E147: 1.123875458e-09 | U147: 0 | V147: 71
A148: -6.25 | B148: =INT((ROWS(B$11:B148)-1)/20)+40+0.05*MOD(ROWS(B$11:B148)-1,20) -> 46.85 | E148: 1.212070213e-09 | U148: 0 | V148: 71
A149: -6.25 | B149: =INT((ROWS(B$11:B149)-1)/20)+40+0.05*MOD(ROWS(B$11:B149)-1,20) -> 46.9 | E149: 1.306981713e-09 | U149: 0 | V149: 71
A150: -6.25 | B150: =INT((ROWS(B$11:B150)-1)/20)+40+0.05*MOD(ROWS(B$11:B150)-1,20) -> 46.95 | E150: 1.409105094e-09 | U150: 0 | V150: 71
A151: -6 | B151: =INT((ROWS(B$11:B151)-1)/20)+40+0.05*MOD(ROWS(B$11:B151)-1,20) -> 47 | C151: -6 | D151: 47 | E151: 1.518970712e-09 | F151: =IF(AND($B151>=F$7,$B151<=F$8),E151,"") ->  | U151: 0 | V151: 71
A152: -6 | B152: =INT((ROWS(B$11:B152)-1)/20)+40+0.05*MOD(ROWS(B$11:B152)-1,20) -> 47.05 | E152: 1.63714655e-09 | U152: 0 | V152: 71
A153: -6 | B153: =INT((ROWS(B$11:B153)-1)/20)+40+0.05*MOD(ROWS(B$11:B153)-1,20) -> 47.1 | E153: 1.764240776e-09 | U153: 0 | V153: 71
A154: -6 | B154: =INT((ROWS(B$11:B154)-1)/20)+40+0.05*MOD(ROWS(B$11:B154)-1,20) -> 47.15 | E154: 1.900904485e-09 | U154: 0 | V154: 71
A155: -6 | B155: =INT((ROWS(B$11:B155)-1)/20)+40+0.05*MOD(ROWS(B$11:B155)-1,20) -> 47.2 | E155: 2.047834601e-09 | U155: 0 | V155: 71
A156: -6 | B156: =INT((ROWS(B$11:B156)-1)/20)+40+0.05*MOD(ROWS(B$11:B156)-1,20) -> 47.25 | E156: 2.205776978e-09 | U156: 0 | V156: 71
A157: -6 | B157: =INT((ROWS(B$11:B157)-1)/20)+40+0.05*MOD(ROWS(B$11:B157)-1,20) -> 47.3 | E157: 2.375529696e-09 | U157: 0 | V157: 71
A158: -6 | B158: =INT((ROWS(B$11:B158)-1)/20)+40+0.05*MOD(ROWS(B$11:B158)-1,20) -> 47.35 | E158: 2.557946575e-09 | U158: 0 | V158: 71
A159: -6 | B159: =INT((ROWS(B$11:B159)-1)/20)+40+0.05*MOD(ROWS(B$11:B159)-1,20) -> 47.4 | E159: 2.753940906e-09 | U159: 0 | V159: 71
A160: -6 | B160: =INT((ROWS(B$11:B160)-1)/20)+40+0.05*MOD(ROWS(B$11:B160)-1,20) -> 47.45 | E160: 2.964489427e-09 | U160: 0 | V160: 71
A161: -6 | B161: =INT((ROWS(B$11:B161)-1)/20)+40+0.05*MOD(ROWS(B$11:B161)-1,20) -> 47.5 | E161: 3.190636551e-09 | U161: 0 | V161: 71
A162: -6 | B162: =INT((ROWS(B$11:B162)-1)/20)+40+0.05*MOD(ROWS(B$11:B162)-1,20) -> 47.55 | E162: 3.433498862e-09 | U162: 0 | V162: 71
A163: -6 | B163: =INT((ROWS(B$11:B163)-1)/20)+40+0.05*MOD(ROWS(B$11:B163)-1,20) -> 47.6 | E163: 3.694269897e-09 | U163: 0 | V163: 71
A164: -6 | B164: =INT((ROWS(B$11:B164)-1)/20)+40+0.05*MOD(ROWS(B$11:B164)-1,20) -> 47.65 | E164: 3.974225227e-09 | U164: 0 | V164: 71
A165: -6 | B165: =INT((ROWS(B$11:B165)-1)/20)+40+0.05*MOD(ROWS(B$11:B165)-1,20) -> 47.7 | E165: 4.274727863e-09 | U165: 0 | V165: 71
A166: -6 | B166: =INT((ROWS(B$11:B166)-1)/20)+40+0.05*MOD(ROWS(B$11:B166)-1,20) -> 47.75 | E166: 4.597233997e-09 | U166: 0 | V166: 71
A167: -6 | B167: =INT((ROWS(B$11:B167)-1)/20)+40+0.05*MOD(ROWS(B$11:B167)-1,20) -> 47.8 | E167: 4.943299102e-09 | U167: 0 | V167: 71
A168: -6 | B168: =INT((ROWS(B$11:B168)-1)/20)+40+0.05*MOD(ROWS(B$11:B168)-1,20) -> 47.85 | E168: 5.314584414e-09 | U168: 0 | V168: 71
A169: -6 | B169: =INT((ROWS(B$11:B169)-1)/20)+40+0.05*MOD(ROWS(B$11:B169)-1,20) -> 47.9 | E169: 5.71286382e-09 | U169: 0 | V169: 71
A170: -6 | B170: =INT((ROWS(B$11:B170)-1)/20)+40+0.05*MOD(ROWS(B$11:B170)-1,20) -> 47.95 | E170: 6.140031163e-09 | U170: 0 | V170: 71
A171: -5.75 | B171: =INT((ROWS(B$11:B171)-1)/20)+40+0.05*MOD(ROWS(B$11:B171)-1,20) -> 48 | D171: 48 | E171: 6.598108009e-09 | F171: =IF(AND($B171>=F$7,$B171<=F$8),E171,"") ->  | U171: 0 | V171: 71
A172: -5.75 | B172: =INT((ROWS(B$11:B172)-1)/20)+40+0.05*MOD(ROWS(B$11:B172)-1,20) -> 48.05 | E172: 7.089251882e-09 | U172: 0 | V172: 71
A173: -5.75 | B173: =INT((ROWS(B$11:B173)-1)/20)+40+0.05*MOD(ROWS(B$11:B173)-1,20) -> 48.1 | E173: 7.615765013e-09 | U173: 0 | V173: 71
A174: -5.75 | B174: =INT((ROWS(B$11:B174)-1)/20)+40+0.05*MOD(ROWS(B$11:B174)-1,20) -> 48.15 | E174: 8.180103617e-09 | U174: 0 | V174: 71
A175: -5.75 | B175: =INT((ROWS(B$11:B175)-1)/20)+40+0.05*MOD(ROWS(B$11:B175)-1,20) -> 48.2 | E175: 8.784887737e-09 | U175: 0 | V175: 71
A176: -5.75 | B176: =INT((ROWS(B$11:B176)-1)/20)+40+0.05*MOD(ROWS(B$11:B176)-1,20) -> 48.25 | E176: 9.432911688e-09 | U176: 0 | V176: 71
A177: -5.75 | B177: =INT((ROWS(B$11:B177)-1)/20)+40+0.05*MOD(ROWS(B$11:B177)-1,20) -> 48.3 | E177: 1.012715513e-08 | U177: 0 | V177: 71
A178: -5.75 | B178: =INT((ROWS(B$11:B178)-1)/20)+40+0.05*MOD(ROWS(B$11:B178)-1,20) -> 48.35 | E178: 1.087079481e-08 | U178: 0 | V178: 71
A179: -5.75 | B179: =INT((ROWS(B$11:B179)-1)/20)+40+0.05*MOD(ROWS(B$11:B179)-1,20) -> 48.4 | E179: 1.166721699e-08 | U179: 0 | V179: 71
A180: -5.75 | B180: =INT((ROWS(B$11:B180)-1)/20)+40+0.05*MOD(ROWS(B$11:B180)-1,20) -> 48.45 | E180: 1.25200307e-08 | U180: 0 | V180: 71
A181: -5.75 | B181: =INT((ROWS(B$11:B181)-1)/20)+40+0.05*MOD(ROWS(B$11:B181)-1,20) -> 48.5 | E181: 1.343308163e-08 | U181: 0 | V181: 71
A182: -5.75 | B182: =INT((ROWS(B$11:B182)-1)/20)+40+0.05*MOD(ROWS(B$11:B182)-1,20) -> 48.55 | E182: 1.4410467e-08 | U182: 0 | V182: 71
A183: -5.75 | B183: =INT((ROWS(B$11:B183)-1)/20)+40+0.05*MOD(ROWS(B$11:B183)-1,20) -> 48.6 | E183: 1.545655125e-08 | U183: 0 | V183: 71
A184: -5.75 | B184: =INT((ROWS(B$11:B184)-1)/20)+40+0.05*MOD(ROWS(B$11:B184)-1,20) -> 48.65 | E184: 1.657598262e-08 | U184: 0 | V184: 71
A185: -5.75 | B185: =INT((ROWS(B$11:B185)-1)/20)+40+0.05*MOD(ROWS(B$11:B185)-1,20) -> 48.7 | E185: 1.777371077e-08 | U185: 0 | V185: 71
A186: -5.75 | B186: =INT((ROWS(B$11:B186)-1)/20)+40+0.05*MOD(ROWS(B$11:B186)-1,20) -> 48.75 | E186: 1.90550054e-08 | U186: 0 | V186: 71
A187: -5.75 | B187: =INT((ROWS(B$11:B187)-1)/20)+40+0.05*MOD(ROWS(B$11:B187)-1,20) -> 48.8 | E187: 2.042547595e-08 | U187: 0 | V187: 71
A188: -5.75 | B188: =INT((ROWS(B$11:B188)-1)/20)+40+0.05*MOD(ROWS(B$11:B188)-1,20) -> 48.85 | E188: 2.189109247e-08 | U188: 0 | V188: 71
A189: -5.75 | B189: =INT((ROWS(B$11:B189)-1)/20)+40+0.05*MOD(ROWS(B$11:B189)-1,20) -> 48.9 | E189: 2.345820771e-08 | U189: 0 | V189: 71
A190: -5.75 | B190: =INT((ROWS(B$11:B190)-1)/20)+40+0.05*MOD(ROWS(B$11:B190)-1,20) -> 48.95 | E190: 2.513358043e-08 | U190: 0 | V190: 71
A191: -5.5 | B191: =INT((ROWS(B$11:B191)-1)/20)+40+0.05*MOD(ROWS(B$11:B191)-1,20) -> 49 | D191: 49 | E191: 2.692440011e-08 | F191: =IF(AND($B191>=F$7,$B191<=F$8),E191,"") ->  | U191: 0 | V191: 71
A192: -5.5 | B192: =INT((ROWS(B$11:B192)-1)/20)+40+0.05*MOD(ROWS(B$11:B192)-1,20) -> 49.05 | E192: 2.883831306e-08 | U192: 0 | V192: 71
A193: -5.5 | B193: =INT((ROWS(B$11:B193)-1)/20)+40+0.05*MOD(ROWS(B$11:B193)-1,20) -> 49.1 | E193: 3.088345003e-08 | U193: 0 | V193: 71
A194: -5.5 | B194: =INT((ROWS(B$11:B194)-1)/20)+40+0.05*MOD(ROWS(B$11:B194)-1,20) -> 49.15 | E194: 3.306845536e-08 | U194: 0 | V194: 71
A195: -5.5 | B195: =INT((ROWS(B$11:B195)-1)/20)+40+0.05*MOD(ROWS(B$11:B195)-1,20) -> 49.2 | E195: 3.540251783e-08 | U195: 0 | V195: 71
A196: -5.5 | B196: =INT((ROWS(B$11:B196)-1)/20)+40+0.05*MOD(ROWS(B$11:B196)-1,20) -> 49.25 | E196: 3.789540322e-08 | U196: 0 | V196: 71
A197: -5.5 | B197: =INT((ROWS(B$11:B197)-1)/20)+40+0.05*MOD(ROWS(B$11:B197)-1,20) -> 49.3 | E197: 4.055748874e-08 | U197: 0 | V197: 71
A198: -5.5 | B198: =INT((ROWS(B$11:B198)-1)/20)+40+0.05*MOD(ROWS(B$11:B198)-1,20) -> 49.35 | E198: 4.339979934e-08 | U198: 0 | V198: =$F$1+U198*$F$2 -> 71
A199: -5.5 | B199: =INT((ROWS(B$11:B199)-1)/20)+40+0.05*MOD(ROWS(B$11:B199)-1,20) -> 49.4 | E199: 4.643404611e-08 | U199: 0 | V199: 71
A200: -5.5 | B200: =INT((ROWS(B$11:B200)-1)/20)+40+0.05*MOD(ROWS(B$11:B200)-1,20) -> 49.45 | E200: 4.967266678e-08 | U200: 0 | V200: 71
... 1030 more rows

Sheet Empirical Rule (an)
A29: Empirical Rule:
A30: About 99.0% of the values will lie between +/- 3 SD
A31: About 95.0% of the values will lie between +/- 2 SD
A32: About 68.0% of the values will lie between +/- 1 SD
A34: Mean Height | B34: ='z(3)'!B1 -> 71 | D34: *assuming population distribution is bell shaped.
A35: SD | B35: ='z(3)'!B2 -> 4
A36: 68% of the values lie between what two values? | J36: 0.68 | K36: heights
A37: z | B37: 1
A38: Lower | B38: =B34-B37*B35 -> 67
A39: Upper | B39: =B34+B37*B35 -> 75 | C39: =IF(ISNUMBER(B39),"About "&TEXT(J36,"0%")&" of the "&K36&" will be between "&TEXT(B38,"0\""")&" and "&TEXT(B39,"0\"""),"") -> About 68% of the heights will be between 67" and 75"
A40: 95% of the values lie between what two values? | J40: 0.95 | K40: heights
A41: z | B41: 2
A42: Lower | B42: =B34-B41*B35 -> 63
A43: Upper | B43: =B34+B41*B35 -> 79 | C43: =IF(ISNUMBER(B43),"About "&TEXT(J40,"0%")&" of the "&K40&" will be between "&TEXT(B42,"0\""")&" and "&TEXT(B43,"0\"""),"") -> About 95% of the heights will be between 63" and 79"
A44: 99% of the values lie between what two values? | J44: 0.99 | K44: heights
A45: z | B45: 3
A46: Lower | B46: =B34-B45*B35 -> 59
A47: Upper | B47: =B34+B45*B35 -> 83 | C47: =IF(ISNUMBER(B47),"About "&TEXT(J44,"0%")&" of the "&K44&" will be between "&TEXT(B46,"0\""")&" and "&TEXT(B47,"0\"""),"") -> About 99% of the heights will be between 59" and 83"
A49: Empirical Rule:
A50: About 99.0% of the values will lie between +/- 3 SD
A51: About 95.0% of the values will lie between +/- 2 SD
A52: About 68.0% of the values will lie between +/- 1 SD
A54: Mean Gas Price | B54: 2.31 | D54: *assuming population distribution is bell shaped. | I54: Chapter 6 and later we will be using this rule to check reasonableness of peoples claims.
A55: SD | B55: 0.12
A56: 68% of the values lie between what two values? | J56: 0.68 | K56: prices
A57: z | B57: 1
A58: Lower | B58: =$B$54-B57*$B$55 -> 2.19
A59: Upper | B59: =$B$54+B57*$B$55 -> 2.43 | C59: =IF(ISNUMBER(B59),"About "&TEXT(J56,"0%")&" of the "&K56&" will be between "&TEXT(B58,"$0.00")&" and "&TEXT(B59,"$0.00"),"") -> About 68% of the prices will be between $2.19 and $2.43
A60: 95% of the values lie between what two values? | J60: 0.95 | K60: prices
A61: z | B61: 2
A62: Lower | B62: =$B$54-B61*$B$55 -> 2.07
A63: Upper | B63: =$B$54+B61*$B$55 -> 2.55 | C63: =IF(ISNUMBER(B63),"About "&TEXT(J60,"0%")&" of the "&K60&" will be between "&TEXT(B62,"$0.00")&" and "&TEXT(B63,"$0.00"),"") -> About 95% of the prices will be between $2.07 and $2.55
A64: 99% of the values lie between what two values? | J64: 0.99 | K64: prices
A65: z | B65: 3
A66: Lower | B66: =$B$54-B65*$B$55 -> 1.95
A67: Upper | B67: =$B$54+B65*$B$55 -> 2.67 | C67: =IF(ISNUMBER(B67),"About "&TEXT(J64,"0%")&" of the "&K64&" will be between "&TEXT(B66,"$0.00")&" and "&TEXT(B67,"$0.00"),"") -> About 99% of the prices will be between $1.95 and $2.67
A69: Empirical Rule:
A70: About 99.0% of the values will lie between +/- 3 SD
A71: About 95.0% of the values will lie between +/- 2 SD
A72: About 68.0% of the values will lie between +/- 1 SD
A74: Mean Cereal Box Weight | B74: 32 | C74: oz. | D74: *assuming population distribution is bell shaped. | I74: Chapter 6 and later we will be using this rule to check whether production machines are filling correctly
A75: SD | B75: 0.35 | C75: oz.
A76: 68% of the values lie between what two values? | J76: 0.68 | K76: weight
A77: z | B77: 1
A78: Lower | B78: =$B$74-B77*$B$75 -> 31.65
A79: Upper | B79: =$B$74+B77*$B$75 -> 32.35 | C79: =IF(ISNUMBER(B79),"About "&TEXT(J76,"0%")&" of the "&K76&" will be between "&TEXT(B78,"0.00 oz.")&" and "&TEXT(B79,"0.00 oz."),"") -> About 68% of the weight will be between 31.65 oz. and 32.35 oz.
A80: 95% of the values lie between what two values? | J80: 0.95 | K80: weight
A81: z | B81: 2
A82: Lower | B82: =$B$74-B81*$B$75 -> 31.3
A83: Upper | B83: =$B$74+B81*$B$75 -> 32.7 | C83: =IF(ISNUMBER(B83),"About "&TEXT(J80,"0%")&" of the "&K80&" will be between "&TEXT(B82,"0.00 oz.")&" and "&TEXT(B83,"0.00 oz."),"") -> About 95% of the weight will be between 31.30 oz. and 32.70 oz.
A84: 95% of the values lie between what two values? | J84: 0.99 | K84: weight
A85: z | B85: 3
A86: Lower | B86: =$B$74-B85*$B$75 -> 30.95
A87: Upper | B87: =$B$74+B85*$B$75 -> 33.05 | C87: =IF(ISNUMBER(B87),"About "&TEXT(J84,"0%")&" of the "&K84&" will be between "&TEXT(B86,"0.00 oz.")&" and "&TEXT(B87,"0.00 oz."),"") -> About 99% of the weight will be between 30.95 oz. and 33.05 oz.
A90: Empirical Rule Areas:
A91: SD | B91: % | C91: 1/2 area
A92: +/- 1 SD | B92: 0.68 | C92: =B92/2 -> 0.34
A93: +/- 2 SD | B93: 0.95 | C93: =B93/2 -> 0.475
A94: +/- 3 SD | B94: 0.99 | C94: 0.495
A96: Mean Gas Price | B96: 2.31
A97: SD | B97: 0.12
A98: ="What is the probability of getting a gas price between "&DOLLAR(B99)&" and "&DOLLAR(B100)&"?" -> What is the probability of getting a gas price between $2.31 and $2.55?
A99: Lower | B99: 2.31
A100: Upper | B100: =B96+B97*2 -> 2.55
A101: ="z "&A99 -> z Lower | B101: =(B99-$B$96)/$B$97 -> 0
A102: ="z "&A100 -> z Upper | B102: =(B100-$B$96)/$B$97 -> 2 | M102: =_xlfn.NORM.S.DIST(B102,1)-_xlfn.NORM.S.DIST(B101,1) -> 0.4772498681
A103: probability | B103: =C93 -> 0.475 | C103: =IF(ISNUMBER(B103),"The probability of getting a gas price between "&DOLLAR(B99)&" and "&DOLLAR(B100)&" is approximately "&TEXT(B103,"0.0%"),"") -> The probability of getting a gas price between $2.31 and $2.55 is approximately 47.5%
A104: ="What is the probability of getting a gas price between "&DOLLAR(B105)&" and "&DOLLAR(B106)&"?" -> What is the probability of getting a gas price between $2.07 and $2.43?
A105: Lower | B105: =B96-B97*2 -> 2.07
A106: Upper | B106: =B96+B97*1 -> 2.43
A107: ="z "&A105 -> z Lower | B107: =(B105-$B$96)/$B$97 -> -2
A108: ="z "&A106 -> z Upper | B108: =(B106-$B$96)/$B$97 -> 1 | M108: =_xlfn.NORM.S.DIST(B108,1)-_xlfn.NORM.S.DIST(B107,1) -> 0.8185946141
A109: probability | B109: =C93+C92 -> 0.815 | C109: =IF(ISNUMBER(B109),"The probability of getting a gas price between "&DOLLAR(B105)&" and "&DOLLAR(B106)&" is approximately "&TEXT(B109,"0.0%"),"") -> The probability of getting a gas price between $2.07 and $2.43 is approximately 81.5%
A110: ="What is the probability of getting a gas price above "&DOLLAR(B111) -> What is the probability of getting a gas price above $2.19
A111: Lower | B111: =B96-B97 -> 2.19
A112: ="z "&A111 -> z Lower | B112: =(B111-B96)/B97 -> -1 | M112: =1-_xlfn.NORM.S.DIST(B112,1) -> 0.8413447461
A113: probability | B113: =0.5+C92 -> 0.84 | C113: =IF(ISNUMBER(B113),"The probability of getting a gas price above "&DOLLAR(B111)&" is approximately "&TEXT(B113,"0.0%"),"") -> The probability of getting a gas price above $2.19 is approximately 84.0%

Sheet Bell&Cheb
A1: If the distribution of weights for a Lettuce Filling Machine are normally distributed (Bell Shape) with a mean of 13 oz and a standard deviation of .1 oz, what percent of the values should lie between 2 standard deviations and what are the low and high values associated with the percentage?
A3: Mean | B3: 13 | C3: oz
A4: SD | B4: 0.1 | C4: oz
A5: # SD | B5: 2
A6: Percent = | B6: 0.95 | D6: Empirical Rule
A7: Lower Values
A8: Upper Value
A9: =IF(B8="","","Because the distribution is bell shaped, we can say that approximately "&TEXT(B6,"0.00%")&" of the values should lie between "&B8&" oz. and "&B7&" oz.") -> 
A11: Mean | B11: 13 | C11: oz
A12: SD | B12: 0.1 | C12: oz
A13: # SD | B13: 2
A14: Percent = | B14: 0.75 | D14: Chebyshev's Theorem | G14: =1-1/B13^2 -> 0.75
A15: Lower Values
A16: Upper Value
A17: =IF(B16="","","Because the distribution is not bell shaped, we can say that approximately "&TEXT(B14,"0.00%")&" of the values should lie between "&B16&" oz. and "&B15&" oz.") -> 
A19: .

Sheet Bell&Cheb (an)
A1: If the distribution of weights for a Lettuce Filling Machine are normally distributed (Bell Shape) with a mean of 13 oz and a standard deviation of .1 oz, what percent of the values should lie between 2 standard deviations and what are the low and high values associated with the percentage?
A3: Mean | B3: 13 | C3: oz
A4: SD | B4: 0.1 | C4: oz
A5: # SD | B5: 2
A6: Percent = | B6: 0.95 | D6: Empirical Rule
A7: Lower Values | B7: =B3-B4*B5 -> 12.8
A8: Upper Value | B8: =B3+B4*B5 -> 13.2
A9: =IF(B8="","","Because the distribution is bell shaped, we can say that approximately "&TEXT(B6,"0.00%")&" of the values should lie between "&B8&" oz. and "&B7&" oz.") -> Because the distribution is bell shaped, we can say that approximately 95.00% of the values should lie between 13.2 oz. and 12.8 oz.
A11: Mean | B11: 13 | C11: oz
A12: SD | B12: 0.1 | C12: oz
A13: # SD | B13: 2
A14: Percent = | B14: 0.75 | D14: Chebyshev's Theorem | G14: =1-1/B13^2 -> 0.75
A15: Lower Values | B15: =B11-B12*B13 -> 12.8
A16: Upper Value | B16: =B11+B12*B13 -> 13.2
A17: =IF(B16="","","Because the distribution is not bell shaped, we can say that approximately "&TEXT(B14,"0.00%")&" of the values should lie between "&B16&" oz. and "&B15&" oz.") -> Because the distribution is not bell shaped, we can say that approximately 75.00% of the values should lie between 13.2 oz. and 12.8 oz.
A19: .

Sheet 5 N S
A1: 5 Number Summary Provides information like:
A2: Minimum Value
A3: Maximum Value
A4: Median
A5: Range, Max - Min
A6: Quartiles
A7: Interquartile Range = Qart 3 - Quart 1 = range for middle 50%
A8: Basis for build Box Plot
A10: For 5 Number Summary Use:
A12: MIN, MAX, QUARTILE.EXC Function | AB12: =CHOOSE(RANDBETWEEN(1,3),RANDBETWEEN(3000,6000),RANDBETWEEN(3800,4800),INT(_xlfn.NORM.INV(RAND(),4300,500))) -> 5663
A13: 1 | B13: Min | E13: Quartiles
A14: 2 | B14: Quartile 1 | E14: 1
A15: 3 | B15: Quartile 2 | E15: 2
A16: 4 | B16: Quartile 3 | E16: 3
A17: 5 | B17: Max
A19: Sample of Monthly Salary for Accounting in Oakland:
A21: Salaries
A22: 3822
A23: 4024
A24: 4015
A25: 4442
A26: 4174
A27: 3751
A28: 5802
A29: 4068
A30: 4239
A31: 4426
A32: 4246
A33: 4279
A34: 4431
A35: 4623
A36: 4228
A37: 4311
A38: 4524
A39: 4634
A40: 5490
A41: 4441
A42: 3541
A43: 4383
A44: 4155
A45: 4590
A46: 3891
A47: 5942
A48: 3957
A49: 3234
A50: 4224
A51: 4474
A52: 5942
A53: 4533
A54: 4563
A55: 3893
A56: 5367
A57: 3593
A58: 4710
A59: 4899
A60: 4381
A61: 3894
A62: 3877
A63: 5414
A64: 4837
A65: 3718
A66: 4437
A67: 4466
A68: 4312
A69: 4623
A70: 4512
A71: 4186
A72: 4316
A73: 4836
A74: 5620
A75: 4085
A76: 4104
A77: 3366
A78: 4250
A79: 4438
A80: 4614
A81: 4207
A82: 3945
A83: 4323
A84: 4750
A85: 3950
A86: 5180
A87: 4735
A88: 3904
A89: 4663
A90: 4612
A91: 4544
A92: 4724
A93: 4674
A94: 3184
A95: 4351
A96: 4182
A97: 3851
A98: 3373
A99: 3401
A100: 5492
A101: 4048
A102: 4011
A103: 4077
A104: 4003
A105: 4355
A106: 5280
A107: 4033
A108: 2510
A109: 3987
A110: 5767
A111: 4005
A112: 4144
A113: 3008
A114: 4674
A115: 3199
A116: 4698
A117: 4319
A118: 4664
A119: 3891
A120: 5301
A121: 3501
A122: 4767
A123: 6987
A124: 5491

Sheet 5 N S (an)
A1: 5 Number Summary Provides information like:
A2: Minimum Value
A3: Maximum Value
A4: Median
A5: Range, Max - Min
A6: Quartiles
A7: Interquartile Range = Qart 3 - Quart 1 = range for middle 50%
A8: Basis for build Box Plot
A10: For 5 Number Summary Use:
A12: MIN, MAX, QUARTILE.EXC Function | AB12: =CHOOSE(RANDBETWEEN(1,3),RANDBETWEEN(3000,6000),RANDBETWEEN(3800,4800),INT(_xlfn.NORM.INV(RAND(),4300,500))) -> 4587
A13: 1 | B13: Min | C13: =MIN(A22:A124) -> 2510 | E13: Quartiles
A14: 2 | B14: Quartile 1 | C14: =_xlfn.QUARTILE.EXC($A$22:$A$124,E14) -> 4003 | E14: 1
A15: 3 | B15: Quartile 2 | C15: =_xlfn.QUARTILE.EXC($A$22:$A$124,E15) -> 4319 | E15: 2
A16: 4 | B16: Quartile 3 | C16: =_xlfn.QUARTILE.EXC($A$22:$A$124,E16) -> 4664 | E16: 3
A17: 5 | B17: Max | C17: =MAX(A22:A124) -> 6987
A19: Sample of Monthly Salary for Accounting in Oakland:
A21: Salaries
A22: 3822
A23: 4024
A24: 4015
A25: 4442
A26: 4174
A27: 3751
A28: 5802
A29: 4068
A30: 4239
A31: 4426
A32: 4246
A33: 4279
A34: 4431
A35: 4623
A36: 4228
A37: 4311
A38: 4524
A39: 4634
A40: 5490
A41: 4441
A42: 3541
A43: 4383
A44: 4155
A45: 4590
A46: 3891
A47: 5942
A48: 3957
A49: 3234
A50: 4224
A51: 4474
A52: 5942
A53: 4533
A54: 4563
A55: 3893
A56: 5367
A57: 3593
A58: 4710
A59: 4899
A60: 4381
A61: 3894
A62: 3877
A63: 5414
A64: 4837
A65: 3718
A66: 4437
A67: 4466
A68: 4312
A69: 4623
A70: 4512
A71: 4186
A72: 4316
A73: 4836
A74: 5620
A75: 4085
A76: 4104
A77: 3366
A78: 4250
A79: 4438
A80: 4614
A81: 4207
A82: 3945
A83: 4323
A84: 4750
A85: 3950
A86: 5180
A87: 4735
A88: 3904
A89: 4663
A90: 4612
A91: 4544
A92: 4724
A93: 4674
A94: 3184
A95: 4351
A96: 4182
A97: 3851
A98: 3373
A99: 3401
A100: 5492
A101: 4048
A102: 4011
A103: 4077
A104: 4003
A105: 4355
A106: 5280
A107: 4033
A108: 2510
A109: 3987
A110: 5767
A111: 4005
A112: 4144
A113: 3008
A114: 4674
A115: 3199
A116: 4698
A117: 4319
A118: 4664
A119: 3891
A120: 5301
A121: 3501
A122: 4767
A123: 6987
A124: 5491

Sheet 5 Number & Box Blot
A16: Quiz Scores | C16: Min | F16: Quartile | N16: Plot Points: | S16: Picture Link:
A17: 15 | C17: Quartile 1 | F17: 1 | N17: Min | O17: =D16-D15 -> 0 | S17: =C16 -> Min | T17: 0 | U17: =C20 -> Max | V17: =D20 -> 0
A18: 20 | C18: Median | F18: 2 | N18: Quartile 1 | O18: =D17-D16 -> 0 | S18: Quartile 1 | T18: 0 | U18: =C24 -> Lower Limit | V18: =IF($D$24<0,0,$D$24) -> 0
A19: 25 | C19: Quartile 3 | F19: 3 | N19: Median | O19: =D18-D17 -> 0 | S19: Median | T19: 0 | U19: =C25 -> Upper Limit | V19: =D25 -> 0
A20: 25 | C20: Max | N20: Quartile 3 | O20: =D19-D18 -> 0 | S20: Quartile 3 | T20: 0
A21: 27 | C21: Interquartile Range | N21: Max | O21: =D20-D19 -> 0 | Q21: Y
A22: 28 | C22: Multiplier | D22: 1.5 | N22: =C30 -> Mean | O22: =D30 -> 0 | Q22: 1.5
A23: 30
A24: 25 | C24: Lower Limit | F24: ="Quartile 1 - "&D22&"*Interquartile Range, or 0." -> Quartile 1 - 1.5*Interquartile Range, or 0.
A25: 10 | C25: Upper Limit | F25: ="Quartile 3 + "&D22&"*Interquartile Range" -> Quartile 3 + 1.5*Interquartile Range
A26: 35 | O26: =C24&" X " -> Lower Limit X | P26: Y | R26: =C25&" X" -> Upper Limit X | S26: Y
A27: 27 | C27: # Outliers Below | O27: =IF($D$24<0,0,$D$24) -> 0 | P27: =0 -> 0 | R27: =D25 -> 0 | S27: 0
A28: 29 | C28: # Outliers Above | O28: =IF($D$24<0,0,$D$24) -> 0 | P28: 1.5 | R28: =D25 -> 0 | S28: 1.5
A29: 31
A30: 28 | C30: Mean
A31: 11
A32: 12
A33: 34
C34: Reference video for how to create Box Plots in Excel:
C35: Excel 2010 Statistics #28: Box & Whisker Plot: Stacked Bar with Mean Point Plotted and Outlier Lines
C36: https://www.youtube.com/watch?v=bgaN446TQXo
C38: Outlier Notes:
C39: Quartile 1 - 1.5*Interquartile Range, or 0.
C40: Quartile 3 + 1.5*Interquartile Range
C41: or:
C42: Quartile 1 - 2.2*Interquartile Range, or 0.
C43: Quartile 3 + 2.2*Interquartile Range
C44: Textbook uses Multiplier of 1.5
C45: Other Multipliers can be used, like 2.2
C46: Video Title: "The Right Way to Detect Outliers - Outlier Labeling Rule"
C47: https://www.youtube.com/watch?v=WSflSmcNRFI
C48: https://www.youtube.com/watch?v=2HmopqF6V6w
C49: https://www.youtube.com/watch?v=bRdC1u9veg8
C50: The references in video are:
C51: Tukey, J.W. (1977). Exploratory Data Analysis. Reading, MA: Addison-Wesley.
C52: Hoaglin, D.C., Iglewicz, B., and Tukey, J.W. (1986). Performance of some resistant rules for outlier labeling, Journal of American Statistical Association, 81, 991-999.
C53: Hoaglin, D. C., and Iglewicz, B. (1987), Fine tuning some resistant rules for outlier labeling, Journal of American Statistical Association, 82, 1147-1149.

Sheet 5 Number & Box Blot (an)
A16: Quiz Scores | C16: Min | D16: =MIN($A$17:$A$33) -> 10 | F16: Quartile | N16: Plot Points: | S16: Picture Link:
A17: 15 | C17: Quartile 1 | D17: =_xlfn.QUARTILE.EXC($A$17:$A$33,F17) -> 17.5 | F17: 1 | N17: Min | O17: =D16-D15 -> 10 | S17: =C16 -> Min | T17: 10 | U17: =C20 -> Max | V17: =D20 -> 35
A18: 20 | C18: Median | D18: =_xlfn.QUARTILE.EXC($A$17:$A$33,F18) -> 27 | F18: 2 | N18: Quartile 1 | O18: =D17-D16 -> 7.5 | S18: Quartile 1 | T18: 17.5 | U18: =C24 -> Lower Limit | V18: =IF($D$24<0,0,$D$24) -> 0
A19: 25 | C19: Quartile 3 | D19: =_xlfn.QUARTILE.EXC($A$17:$A$33,F19) -> 29.5 | F19: 3 | N19: Median | O19: =D18-D17 -> 9.5 | S19: Median | T19: 27 | U19: =C25 -> Upper Limit | V19: =D25 -> 47.5
A20: 25 | C20: Max | D20: =MAX($A$17:$A$33) -> 35 | N20: Quartile 3 | O20: =D19-D18 -> 2.5 | S20: Quartile 3 | T20: 29.5
A21: 27 | C21: Interquartile Range | D21: =D19-D17 -> 12 | N21: Max | O21: =D20-D19 -> 5.5 | Q21: Y
A22: 28 | C22: Multiplier | D22: 1.5 | N22: =C30 -> Mean | O22: =D30 -> 24.23529412 | Q22: 1.5
A23: 30
A24: 25 | C24: Lower Limit | D24: =D17-$D$21*$D$22 -> -0.5 | F24: ="Quartile 1 - "&D22&"*Interquartile Range, or 0." -> Quartile 1 - 1.5*Interquartile Range, or 0.
A25: 10 | C25: Upper Limit | D25: =D19+$D$21*$D$22 -> 47.5 | F25: ="Quartile 3 + "&D22&"*Interquartile Range" -> Quartile 3 + 1.5*Interquartile Range
A26: 35 | O26: =C24&" X " -> Lower Limit X | P26: Y | R26: =C25&" X" -> Upper Limit X | S26: Y
A27: 27 | C27: # Outliers Below | O27: =IF($D$24<0,0,$D$24) -> 0 | P27: =0 -> 0 | R27: =D25 -> 47.5 | S27: 0
A28: 29 | C28: # Outliers Above | D28: =COUNTIFS(A17:A33,">"&D25) -> 0 | O28: =IF($D$24<0,0,$D$24) -> 0 | P28: 1.5 | R28: =D25 -> 47.5 | S28: 1.5
A29: 31
A30: 28 | C30: Mean | D30: =AVERAGE(A17:A33) -> 24.23529412
A31: 11
A32: 12
A33: 34
C34: Reference video for how to create Box Plots in Excel:
C35: Excel 2010 Statistics #28: Box & Whisker Plot: Stacked Bar with Mean Point Plotted and Outlier Lines
C36: https://www.youtube.com/watch?v=bgaN446TQXo
C38: Outlier Notes:
C39: Quartile 1 - 1.5*Interquartile Range, or 0.
C40: Quartile 3 + 1.5*Interquartile Range
C41: or:
C42: Quartile 1 - 2.2*Interquartile Range, or 0.
C43: Quartile 3 + 2.2*Interquartile Range
C44: Textbook uses Multiplier of 1.5
C45: Other Multipliers can be used, like 2.2
C46: Video Title: "The Right Way to Detect Outliers - Outlier Labeling Rule"
C47: https://www.youtube.com/watch?v=WSflSmcNRFI
C48: https://www.youtube.com/watch?v=2HmopqF6V6w
C49: https://www.youtube.com/watch?v=bRdC1u9veg8
C50: The references in video are:
C51: Tukey, J.W. (1977). Exploratory Data Analysis. Reading, MA: Addison-Wesley.
C52: Hoaglin, D.C., Iglewicz, B., and Tukey, J.W. (1986). Performance of some resistant rules for outlier labeling, Journal of American Statistical Association, 81, 991-999.
C53: Hoaglin, D. C., and Iglewicz, B. (1987), Fine tuning some resistant rules for outlier labeling, Journal of American Statistical Association, 82, 1147-1149.

Sheet Outliers
A13: No | B13: Sales | C13: z | D13: Outlier = z >3 | F13: Mean | G13: SD | H13: Count TRUES
A14: 1 | B14: 610.6290047
A15: 2 | B15: 461.7005818
A16: 3 | B16: 557.9494272
A17: 4 | B17: 612.5697654
A18: 5 | B18: 674.0528933
A19: 6 | B19: 202.35
A20: 7 | B20: 658.6058561
A21: 8 | B21: 638.8686918
A22: 9 | B22: 360.4100034
A23: 10 | B23: 608.6981556
A24: 11 | B24: 998.98
A25: 12 | B25: 587.3148896
A26: 13 | B26: 662.6933468
A27: 14 | B27: 582.0823424
A28: 15 | B28: 422.1711482
A29: 16 | B29: 502.7009155
A30: 17 | B30: 597.3810324
A31: 18 | B31: 912.4428957
A32: 19 | B32: 656.4759124
A33: 20 | B33: 540.5760705
A34: 21 | B34: 549.5259251
A35: 22 | B35: 564.2371037
A36: 23 | B36: 652.7905768
A37: 24 | B37: 803.024406
A38: 25 | B38: 495.4805446
A39: 26 | B39: 526.4136462
A40: 27 | B40: 678.7669445
A41: 28 | B41: 686.1722517
A42: 29 | B42: 594.6627067
A43: 30 | B43: 685.9862053
A44: 31 | B44: 614.2066087
A45: 32 | B45: 463.7615779
A46: 33 | B46: 594.7359658
A47: 34 | B47: 682.5996415
A48: 35 | B48: 595.0749806
A49: 36 | B49: 765.425009
A50: 37 | B50: 759.7301122
A51: 38 | B51: 563.1371646
A52: 39 | B52: 572.9260438
A53: 40 | B53: 623.0441273
A54: 41 | B54: 592.23751
A55: 42 | B55: 782.5634906
A56: 43 | B56: 757.3814812
A57: 44 | B57: 793.3732145
A58: 45 | B58: 777.6975628
A59: 46 | B59: 628.1571535
A60: 47 | B60: 389.3882779
A61: 48 | B61: 698.9754127
A62: 49 | B62: 440.3723812
A63: 50 | B63: 437.9590774
A64: 51 | B64: 334.6726913
A65: 52 | B65: 723.5672562
A66: 53 | B66: 764.7248552
A67: 54 | B67: 778.47166
A68: 55 | B68: 521.4854776
A69: 56 | B69: 711.9520571
A70: 57 | B70: 587.6246787
A71: 58 | B71: 642.5954764
A72: 59 | B72: 635.4977729
A73: 60 | B73: 445.8103282
A74: 61 | B74: 668.7213528
A75: 62 | B75: 648.0559049
A76: 63 | B76: 750.0296621
A77: 64 | B77: 690.3170613
A78: 65 | B78: 400.7694164
A79: 66 | B79: 696.574725
A80: 67 | B80: 491.8011513
A81: 68 | B81: 670.8463003
A82: 69 | B82: 720.2014085
A83: 70 | B83: 539.7365225
A84: 71 | B84: 376.6851657
A85: 72 | B85: 665.393016
A86: 73 | B86: 657.5441117
A87: 74 | B87: 506.4831224
A88: 75 | B88: 540.676798
A89: 76 | B89: 650.5145871
A90: 77 | B90: 698.0151508
A91: 78 | B91: 534.6105524
A92: 79 | B92: 735.3982586
A93: 80 | B93: 391.2015002
A94: 81 | B94: 736.93274
A95: 82 | B95: 492.2316299
A96: 83 | B96: 492.5305591
A97: 84 | B97: 585.3276921
A98: 85 | B98: 543.3622307
A99: 86 | B99: 487.1763431
A100: 87 | B100: 604.3168309
A101: 88 | B101: 636.2239609
A102: 89 | B102: 656.053113
A103: 90 | B103: 649.9714946
A104: 91 | B104: 455.5714409
A105: 92 | B105: 388.5906809
A106: 93 | B106: 788.6034296
A107: 94 | B107: 591.1400477
A108: 95 | B108: 644.9503706
A109: 96 | B109: 544.0526547
A110: 97 | B110: 812.2007701
A111: 98 | B111: 648.7282879
A112: 99 | B112: 780.5267014
A113: 100 | B113: 643.6579465
A114: 101 | B114: 418.7407829
A115: 102 | B115: 690.2508772
A116: 103 | B116: 373.277603
A117: 104 | B117: 559.9931267
A118: 105 | B118: 521.6858213
A119: 106 | B119: 466.8428583
A120: 107 | B120: 336.552717
A121: 108 | B121: 551.6547279
A122: 109 | B122: 802.8187111
A123: 110 | B123: 560.4757882
A124: 111 | B124: 875.9032129
A125: 112 | B125: 444.4628059
A126: 113 | B126: 565.3974303
A127: 114 | B127: 697.6195
A128: 115 | B128: 576.6695615
A129: 116 | B129: 601.285568
A130: 117 | B130: 621.6530804
A131: 118 | B131: 674.0756656

Sheet Outliers (an)
A13: No | B13: Sales | C13: z | D13: Outlier = z >3 | F13: Mean | G13: SD | H13: Count TRUES
A14: 1 | B14: 610.6290047 | C14: =(B14-$F$14)/$G$14 -> 0.04739069299 | D14: =ABS(C14)>3 -> FALSE | F14: =AVERAGE(B14:B131) -> 604.406329 | G14: =_xlfn.STDEV.S(B14:B131) -> 131.3058608 | H14: =COUNTIFS(D14:D131,TRUE) -> 2
A15: 2 | B15: 461.7005818 | C15: =(B15-$F$14)/$G$14 -> -1.086819326 | D15: =ABS(C15)>3 -> FALSE
A16: 3 | B16: 557.9494272 | C16: -0.3538067649 | D16: FALSE
A17: 4 | B17: 612.5697654 | C17: 0.06217115014 | D17: FALSE
A18: 5 | B18: 674.0528933 | C18: 0.5304147424 | D18: FALSE
A19: 6 | B19: 202.35 | C19: -3.061983118 | D19: TRUE
A20: 7 | B20: 658.6058561 | C20: 0.4127730995 | D20: FALSE
A21: 8 | B21: 638.8686918 | C21: 0.2624586794 | D21: FALSE
A22: 9 | B22: 360.4100034 | C22: -1.85822875 | D22: FALSE
A23: 10 | B23: 608.6981556 | C23: 0.0326857201 | D23: FALSE
A24: 11 | B24: 998.98 | C24: 3.004996644 | D24: TRUE
A25: 12 | B25: 587.3148896 | C25: -0.1301650915 | D25: FALSE
A26: 13 | B26: 662.6933468 | C26: 0.4439026368 | D26: FALSE
A27: 14 | B27: 582.0823424 | C27: -0.1700151575 | D27: FALSE
A28: 15 | B28: 422.1711482 | C28: -1.387867835 | D28: FALSE
A29: 16 | B29: 502.7009155 | C29: -0.7745687273 | D29: FALSE
A30: 17 | B30: 597.3810324 | C30: -0.05350329767 | D30: FALSE
A31: 18 | B31: 912.4428957 | C31: 2.345946821 | D31: FALSE
A32: 19 | B32: 656.4759124 | C32: 0.396551861 | D32: FALSE
A33: 20 | B33: 540.5760705 | C33: -0.4861188836 | D33: FALSE
A34: 21 | B34: 549.5259251 | C34: -0.4179585248 | D34: FALSE
A35: 22 | B35: 564.2371037 | C35: -0.3059210386 | D35: FALSE
A36: 23 | B36: 652.7905768 | C36: 0.3684850588 | D36: FALSE
A37: 24 | B37: 803.024406 | C37: 1.5126368 | D37: FALSE
A38: 25 | B38: 495.4805446 | C38: -0.8295576732 | D38: FALSE
A39: 26 | B39: 526.4136462 | C39: -0.5939771639 | D39: FALSE
A40: 27 | B40: 678.7669445 | C40: 0.5663160427 | D40: FALSE
A41: 28 | B41: 686.1722517 | C41: 0.6227134282 | D41: FALSE
A42: 29 | B42: 594.6627067 | C42: -0.07420554026 | D42: FALSE
A43: 30 | B43: 685.9862053 | C43: 0.6212965348 | D43: FALSE
A44: 31 | B44: 614.2066087 | C44: 0.07463703196 | D44: FALSE
A45: 32 | B45: 463.7615779 | C45: -1.071123179 | D45: FALSE
A46: 33 | B46: 594.7359658 | C46: -0.07364761289 | D46: FALSE
A47: 34 | B47: 682.5996415 | C47: 0.5955051209 | D47: FALSE
A48: 35 | B48: 595.0749806 | C48: -0.07106574146 | D48: FALSE
A49: 36 | B49: 765.425009 | C49: 1.226287075 | D49: FALSE
A50: 37 | B50: 759.7301122 | C50: 1.182915845 | D50: FALSE
A51: 38 | B51: 563.1371646 | C51: -0.3142979618 | D51: FALSE
A52: 39 | B52: 572.9260438 | C52: -0.239747754 | D52: FALSE
A53: 40 | B53: 623.0441273 | C53: 0.1419418613 | D53: FALSE
A54: 41 | B54: 592.23751 | C54: -0.09267536824 | D54: FALSE
A55: 42 | B55: 782.5634906 | C55: 1.356810431 | D55: FALSE
A56: 43 | B56: 757.3814812 | C56: 1.165029126 | D56: FALSE
A57: 44 | B57: 793.3732145 | C57: 1.439135194 | D57: FALSE
A58: 45 | B58: 777.6975628 | C58: 1.319752468 | D58: FALSE
A59: 46 | B59: 628.1571535 | C59: 0.1808816783 | D59: FALSE
A60: 47 | B60: 389.3882779 | C60: -1.637535825 | D60: FALSE
A61: 48 | B61: 698.9754127 | C61: 0.720219822 | D61: FALSE
A62: 49 | B62: 440.3723812 | C62: -1.249250771 | D62: FALSE
A63: 50 | B63: 437.9590774 | C63: -1.267630025 | D63: FALSE
A64: 51 | B64: 334.6726913 | C64: -2.054239134 | D64: FALSE
A65: 52 | B65: 723.5672562 | C65: 0.9075065384 | D65: FALSE
A66: 53 | B66: 764.7248552 | C66: 1.220954839 | D66: FALSE
A67: 54 | B67: 778.47166 | C67: 1.325647842 | D67: FALSE
A68: 55 | B68: 521.4854776 | C68: -0.6315091415 | D68: FALSE
A69: 56 | B69: 711.9520571 | C69: 0.819047432 | D69: FALSE
A70: 57 | B70: 587.6246787 | C70: -0.1278057977 | D70: FALSE
A71: 58 | B71: 642.5954764 | C71: 0.290841149 | D71: FALSE
A72: 59 | B72: 635.4977729 | C72: 0.2367864141 | D72: FALSE
A73: 60 | B73: 445.8103282 | C73: -1.20783642 | D73: FALSE
A74: 61 | B74: 668.7213528 | C74: 0.4898107627 | D74: FALSE
A75: 62 | B75: 648.0559049 | C75: 0.3324267146 | D75: FALSE
A76: 63 | B76: 750.0296621 | C76: 1.109039096 | D76: FALSE
A77: 64 | B77: 690.3170613 | C77: 0.6542794953 | D77: FALSE
A78: 65 | B78: 400.7694164 | C78: -1.550859279 | D78: FALSE
A79: 66 | B79: 696.574725 | C79: =(B79-$F$14)/$G$14 -> 0.70193665 | D79: =ABS(C79)>3 -> FALSE
A80: 67 | B80: 491.8011513 | C80: -0.8575792202 | D80: FALSE
A81: 68 | B81: 670.8463003 | C81: 0.5059939509 | D81: FALSE
A82: 69 | B82: 720.2014085 | C82: 0.8818728942 | D82: FALSE
A83: 70 | B83: 539.7365225 | C83: -0.4925127187 | D83: FALSE
A84: 71 | B84: 376.6851657 | C84: -1.734280267 | D84: FALSE
A85: 72 | B85: 665.393016 | C85: 0.4644627943 | D85: FALSE
A86: 73 | B86: 657.5441117 | C86: 0.4046870596 | D86: FALSE
A87: 74 | B87: 506.4831224 | C87: -0.7457641726 | D87: FALSE
A88: 75 | B88: 540.676798 | C88: -0.4853517629 | D88: FALSE
A89: 76 | B89: 650.5145871 | C89: 0.3511515619 | D89: FALSE
A90: 77 | B90: 698.0151508 | C90: 0.7129066539 | D90: FALSE
A91: 78 | B91: 534.6105524 | C91: -0.5315511144 | D91: FALSE
A92: 79 | B92: 735.3982586 | C92: 0.9976091611 | D92: FALSE
A93: 80 | B93: 391.2015002 | C93: -1.623726675 | D93: FALSE
A94: 81 | B94: 736.93274 | C94: 1.009295474 | D94: FALSE
A95: 82 | B95: 492.2316299 | C95: -0.8543007782 | D95: FALSE
A96: 83 | B96: 492.5305591 | C96: -0.8520241917 | D96: FALSE
A97: 84 | B97: 585.3276921 | C97: -0.1452992029 | D97: FALSE
A98: 85 | B98: 543.3622307 | C98: -0.4649000278 | D98: FALSE
A99: 86 | B99: 487.1763431 | C99: -0.8928008637 | D99: FALSE
A100: 87 | B100: 604.3168309 | C100: -0.0006816001227 | D100: FALSE
A101: 88 | B101: 636.2239609 | C101: 0.242316921 | D101: FALSE
A102: 89 | B102: 656.053113 | C102: 0.3933319026 | D102: FALSE
A103: 90 | B103: 649.9714946 | C103: 0.347015475 | D103: FALSE
A104: 91 | B104: 455.5714409 | C104: -1.133497676 | D104: FALSE
A105: 92 | B105: 388.5906809 | C105: -1.64361017 | D105: FALSE
A106: 93 | B106: 788.6034296 | C106: 1.402809437 | D106: FALSE
A107: 94 | B107: 591.1400477 | C107: -0.1010334284 | D107: FALSE
A108: 95 | B108: 644.9503706 | C108: 0.3087755669 | D108: FALSE
A109: 96 | B109: 544.0526547 | C109: -0.4596418919 | D109: FALSE
A110: 97 | B110: 812.2007701 | C110: 1.582522211 | D110: FALSE
A111: 98 | B111: 648.7282879 | C111: 0.3375474532 | D111: FALSE
A112: 99 | B112: 780.5267014 | C112: 1.341298639 | D112: FALSE
A113: 100 | B113: 643.6579465 | C113: 0.2989327156 | D113: FALSE
A114: 101 | B114: 418.7407829 | C114: -1.413992833 | D114: FALSE
A115: 102 | B115: 690.2508772 | C115: 0.6537754502 | D115: FALSE
A116: 103 | B116: 373.277603 | C116: -1.760231605 | D116: FALSE
A117: 104 | B117: 559.9931267 | C117: -0.3382423455 | D117: FALSE
A118: 105 | B118: 521.6858213 | C118: -0.6299833622 | D118: FALSE
A119: 106 | B119: 466.8428583 | C119: -1.047656745 | D119: FALSE
A120: 107 | B120: 336.552717 | C120: -2.039921222 | D120: FALSE
A121: 108 | B121: 551.6547279 | C121: -0.4017459749 | D121: FALSE
A122: 109 | B122: 802.8187111 | C122: 1.511070267 | D122: FALSE
A123: 110 | B123: 560.4757882 | C123: -0.3345664888 | D123: FALSE
A124: 111 | B124: 875.9032129 | C124: 2.067667675 | D124: FALSE
A125: 112 | B125: 444.4628059 | C125: -1.218098889 | D125: FALSE
A126: 113 | B126: 565.3974303 | C126: -0.297084216 | D126: FALSE
A127: 114 | B127: 697.6195 | C127: 0.7098934538 | D127: FALSE
A128: 115 | B128: 576.6695615 | C128: -0.2112378486 | D128: FALSE
A129: 116 | B129: 601.285568 | C129: -0.02376711145 | D129: FALSE
A130: 117 | B130: 621.6530804 | C130: 0.131347918 | D130: FALSE
A131: 118 | B131: 674.0756656 | C131: 0.5305881716 | D131: FALSE

Sheet BP Chart
A1: Test Scores | I1: Lower Limit | J1: Y | L1: Upper Limit | M1: Y
A2: 94 | C2: 0 | D2: MIN | E2: =MIN(A2:A20) -> 23 | I2: =$E$8 -> 3.375 | J2: 0 | L2: =$E$9 -> 128.375 | M2: 0
A3: 55 | C3: 1 | D3: Quartile 1 | E3: =_xlfn.QUARTILE.EXC($A$2:$A$21,C3) -> 50.25 | I3: =$E$8 -> 3.375 | J3: 1 | L3: =$E$9 -> 128.375 | M3: 1
A4: 72 | C4: 2 | D4: Quartile 2 | E4: =_xlfn.QUARTILE.EXC($A$2:$A$21,C4) -> 71
A5: 96 | C5: 3 | D5: Quartile 3 | E5: =_xlfn.QUARTILE.EXC($A$2:$A$21,C5) -> 81.5
A6: 74 | C6: 4 | D6: Max | E6: =MAX(A2:A21) -> 96
A7: 75 | D7: Interquartile Range | E7: =E5-E3 -> 31.25 | F7: middle 50% of values
A8: 28 | D8: Lower Limit | E8: =E3-E7*1.5 -> 3.375 | F8: Quartile 1 - 1.5*Interquartile Range
A9: 40 | D9: Upper Limit | E9: =E5+E7*1.5 -> 128.375 | F9: Quartile 3 + 1.5*Interquartile Range
A10: 78 | D10: Mean | E10: =AVERAGE(A2:A21) -> 65.65 | F10: 1
A11: 65
A12: 67
A13: 54 | D13: differences
A14: 95 | E14: Scores
A15: 82 | D15: =D2 -> MIN | E15: =E2-E1 -> 23
A16: 23 | D16: =D3 -> Quartile 1 | E16: =E3-E2 -> 27.25
A17: 70 | D17: =D4 -> Quartile 2 | E17: =E4-E3 -> 20.75
A18: 82 | D18: =D5 -> Quartile 3 | E18: =E5-E4 -> 10.5
A19: 34 | D19: =D6 -> Max | E19: =E6-E5 -> 14.5
A20: 49
A21: 80 | D21: Excel Box Plot Notes:
D22: 1 | E22: Calculate 5 number summary | AQ22: =D21&CHAR(10)&AO23&CHAR(10)&AO24&CHAR(10)&AO25&CHAR(10)&AO26&CHAR(10)&AO27&CHAR(10)&AO28&CHAR(10)&AO29&CHAR(10)&AO30&CHAR(10)&AO31&CHAR(10)&AO32&CHAR(10)&AO33 -> Excel Box Plot Notes: 1) Calculate 5 number summary 2) Calculate the difference between each of the values: 1) Min - 0, 2) Q1 - MIN, 3) Q2 - Q1, 4) Q3 - Q3, 5) Max - Q3 3) Create Stacked Bar Chart 4) Switch Row and Column 5) Add fill = "No Fill" to 1st two parts of bar and last 6) Add Error Bar to 2nd part of bar with Minus / Custom / Negative = Quartile 1 - MIN 7) Add Error Bar to 4th part of bar with Plus / Custom / Positive = Max - Q3 8) Calculate Mean 9) Add Mean to Chart 10) Change that data point to X - Y Scatter 11) Edit Source data for X - Y Scatter and change X to Mean Value and Y to 1.
D23: 2 | E23: Calculate the difference between each of the values: 1) Min - 0, 2) Q1 - MIN, 3) Q2 - Q1, 4) Q3 - Q3, 5) Max - Q3 | AO23: =ROWS(AO$23:AO23)&") "&E22 -> 1) Calculate 5 number summary
D24: 3 | E24: Create Stacked Bar Chart | AO24: =ROWS(AO$23:AO24)&") "&E23 -> 2) Calculate the difference between each of the values: 1) Min - 0, 2) Q1 - MIN, 3) Q2 - Q1, 4) Q3 - Q3, 5) Max - Q3
D25: 4 | E25: Switch Row and Column | AO25: =ROWS(AO$23:AO25)&") "&E24 -> 3) Create Stacked Bar Chart
D26: 5 | E26: Add fill = "No Fill" to 1st two parts of bar and last | AO26: =ROWS(AO$23:AO26)&") "&E25 -> 4) Switch Row and Column
D27: 6 | E27: Add Error Bar to 2nd part of bar with Minus / Custom / Negative = Quartile 1 - MIN | AO27: =ROWS(AO$23:AO27)&") "&E26 -> 5) Add fill = "No Fill" to 1st two parts of bar and last
D28: 7 | E28: Add Error Bar to 4th part of bar with Plus / Custom / Positive = Max - Q3 | AO28: =ROWS(AO$23:AO28)&") "&E27 -> 6) Add Error Bar to 2nd part of bar with Minus / Custom / Negative = Quartile 1 - MIN
D29: 8 | E29: Calculate Mean | AO29: =ROWS(AO$23:AO29)&") "&E28 -> 7) Add Error Bar to 4th part of bar with Plus / Custom / Positive = Max - Q3
D30: 9 | E30: Add Mean to Chart | AO30: =ROWS(AO$23:AO30)&") "&E29 -> 8) Calculate Mean
